Workbook

Sheet Notes
A1: EventPredictabilityTester.xlsm
A2: Coded beginning 2015-Jan-07 by Ronald McAllister (rpmac_xltt@sprynet.com)
B3: For publication with the January 2015 issue
A5: This Workbook demonstrates an EXCEL version of the ideas presented
A6: by John Ehlers and Ric Way in an article titled "Trading System Design: A Statistical Approach"
A7: which appeared in the March 2015 issue of
A8: "Technical Analysis of Stocks and Commodities" magazine.
A11: CalculationsAndCharts construction Notes:
B12: Paraphrased from the article, an event, as used here is pretty much anything one can define with Cell formulas or VBA code.
B13: Here, as in the article, we use the Stochastic indicator crossing below a user specified threshold as our signaling event and then look
B14: a user specified number of bars into the future to see what the market has done since our "Event".
B16: For the trading simulation:
C17: Long trades only in this model
C18: User specifies: a maximum trade duration in bars, and a stop loss percentage of the entry price.
A20: Data for this EXCEL example:
C21: Historical Data for the S&P 500 continuous futures contract (SP1, there are several other versions) used in this example can be retrieved in CSV format from the free section of the QUANDLE web site.
C22: Link: | D22: https://www.quandl.com/
C23: Once downloaded, You must manually format the data and copy the result to the InputPriceData tab of this workbook
C24: the link shown below can be entered in your browsers navigation bar to invoke the "Save As" dialog to download the SP1 contract history to your hard drive.
D25: https://www.quandl.com/api/v1/datasets/CHRIS/CME_SP1.csv
C26: Using this data I was not able to duplicate the charts shown in the article. It boils down to the different ways the continuous contract from Quandle is built, when compared toe the method used in Trade Station.
C28: So I chose to use another equity for this example and avoid all of the hand formatting work.
A30: Development Notes:
A31: 1 | C31: This workbook contains and uses VBA macros.
A32: 2 | C32: Input Data
C33: The data in this workbook is sorted date descending (most recent date at the top). All formulas and
C34: VBA routines are built accordingly.
A36: Calculation and Chart Worksheet Usage Comments:
A37: 1 | C37: In General, Items in Bolded BLUE are items you may freely change to play what-if games.
C38: Be sure to have a backup copy of the spreadsheet before you alter anything else.
A39: 2 | C39: Several of the column formulas begin with "IF" logic that determines when there is sufficient data
C40: available for the subsequent calculations to be relevant. The cell will calculate to blank or the
C41: result of the calculation.
C42: In a couple of cases, this "IF" logic also sets starter values for subsequent smoothing calculations.
A43: 3 | C43: Data windowing can be performed by changing cell A11. Positive values logically "Pan" the
C44: data window represented by the Calculation sheet down the input sheet and back in time.
C45: This can have two side effects: First, data may fall outside of the fixed Y-axis scales and be clipped
C46: or fall well inside the Y-axis scales wasting a lot of chart vertical space. Second, you may move far
C47: enough back that you do not have sufficient data points to fill the left of the chart.
A48: 4 | C48: The VBA macros behind the SetChart button address these Data Windowing problems and also
C49: resizes and vertically aligns all charts on the work sheet to match the Price chart and then
C50: horizontally adjusts the X-axis positions of all charts on the work sheet so that the corresponding
C51: data points align vertically.
C52: The macros behind the SetChart button are sensitive to the user control values in cells A11 and
C53: A12, and also uses the computed values in cells A8, F11, and F12

Sheet InputPriceData
A1: Heartland Express (HTLD) -NasdaqNM (Daily)
A2: Last Trade: | B2: 2015-01-09 | C2: 26.67 | D2: 26.67 | E2: 26.16 | F2: 26.18 | G2: 310214 | H2: 4:00pm | L2: Notes: | M2: Online Yahoo Finance Query Interfaces used in the VBA code to obtain this data:
A3: Request Online Yahoo History for: | M3: A.) Price History Only: "http://ichart.finance.yahoo.com/table.csv"
A4: Symbol | B4: HTLD | D4: Valid | M4: B.) Price History w/ imbedded divs n splits: "http://ichart.finance.yahoo.com/x"
A5: From | B5: 1977-01-07 | D5: Data
A6: To | B6: =TODAY() -> 2015-01-12 | D6: Types | E6: =VLOOKUP(B7,D7:E10,2,FALSE) -> d | M6: C.) Fundamentals (in this case name and exchange):
A7: Data Type | B7: Daily | D7: Daily | E7: d | M7: "http://download.finance.yahoo.com/d/quotes.csv?"
D8: Weekly | E8: w | M8: For some how-to doc regarding this particular interface, including a list of the
A9: Available Data | D9: Monthly | E9: m | M9: specific fields you can include in a request to this interface see:
A10: Bar Count: | B10: =COUNTA(B15:B52748)-1 -> 6249 | M10: http://www.gummy-stuff.org/Yahoo-data.htm
A11: From: | B11: =IF(B10<=0,"",OFFSET(B15,B10,IF(HistReqDataType="v",1,0),1,1)) -> 1990-03-26 | D11: Selection: | E11: ="A16:AC" & B10+15 -> A16:AC6264 | M11: This web site includes a downloadable working EXCEL/VBA example | W11: Trailing 12 Month Dividend Returns
A12: To: | B12: =IF(B10<=0,"",IF(HistReqDataType="v",OFFSET(B15,2,1,1,1),OFFSET(B15,1,0,1,1))) -> 2015-01-09 | M12: of the capabilities of this interface. | W12: Raw Close price on Dividend date | X12: Looking for year ago Div date | Y12: Year ago Div Date we found | Z12: row offset to year ago div Date | AA12: Same month flag | AB12: Trailing 12 Div Total | AC12: Trailing 12 Div return
Q13: Split History | S13: =COUNT(Q16:Q10996) -> 7 | T13: Running | U13: Dividend History
B14: Raw Data Values | H14: Adjusted | I14: Price Adjust | J14: Vol Adjust | K14: Adjusted Values | P14: Last | Q14: Effective | R14: Shares | T14: Vol Adjust | V14: =COUNT(U16:U10996) -> 46
A15: RelRow | B15: Date | C15: Open | D15: High | E15: Low | F15: Close | G15: Volume | H15: Close | I15: Factor | J15: Factor | K15: Open | L15: High | M15: Low | N15: Close | O15: Volume | P15: Trade | Q15: 42015 | R15: New | S15: Old | T15: 1 | U15: Date | V15: $ / Share
A16: 1 | B16: 2015-01-09 | C16: 26.67 | D16: 26.67 | E16: 26.16 | F16: 26.18 | G16: 310200 | H16: 26.18 | I16: =H16/F16 -> 1 | J16: =INDEX(OFFSET($T$15,0,0,$S$13+1,1),MATCH(B16,OFFSET($Q$15,0,0,$S$13+1,1),-1)) -> 1 | K16: =ROUND($I16*C16,2) -> 26.67 | L16: =ROUND($I16*D16,2) -> 26.67 | M16: 26.16 | N16: 26.18 | O16: =G16*J16 -> 310200 | Q16: 2006-05-16 | R16: 4 | S16: 3 | T16: 1.333333333 | U16: 2014-12-05 | V16: 0.02 | W16: =(INDEX(OFFSET($F$15,1,0,$B$10,1),MATCH(U16,OFFSET($B$15,1,0,$B$10,1),-1))) -> 26.13 | X16: =IF(MONTH(DATE(YEAR(U16)-1,MONTH(U16),DAY(U16)))<>MONTH(U16),DATE(YEAR(U16)-1,MONTH(U16),DAY(U16-1)),DATE(YEAR(U16)-1,MONTH(U16),DAY(U16))) -> 2013-12-05 | Y16: =OFFSET(U15,Z16,0,1,1) -> 2013-12-06 | Z16: =MATCH(X16,OFFSET($U$15,A16,0,$V$14+1-A16,1),-1) -> 5 | AA16: =IF(MONTH(U16)=MONTH(Y16),1,0) -> 1 | AB16: =(V16+IFERROR(SUM(OFFSET(V16,1,0,Z16-AA16-1,1)),0)) -> 0.08 | AC16: =(V16+IFERROR(SUM(OFFSET(V16,1,0,Z16-AA16-1,1)),0))/(INDEX(OFFSET($F$15,1,0,$B$10,1),MATCH(U16,OFFSET($B$15,1,0,$B$10,1),-1))) -> 0.003061615002
A17: 2 | B17: 2015-01-08 | C17: 25.77 | D17: 26.67 | E17: 25.62 | F17: 26.6 | G17: 497900 | H17: 26.6 | I17: =H17/F17 -> 1 | J17: =INDEX(OFFSET($T$15,0,0,$S$13+1,1),MATCH(B17,OFFSET($Q$15,0,0,$S$13+1,1),-1)) -> 1 | K17: =ROUND($I17*C17,2) -> 25.77 | L17: =ROUND($I17*D17,2) -> 26.67 | M17: =ROUND($I17*E17,2) -> 25.62 | N17: =ROUND($I17*F17,2) -> 26.6 | O17: =G17*J17 -> 497900 | Q17: 2004-08-23 | R17: 3 | S17: 2 | T17: 2 | U17: 2014-09-16 | V17: 0.02 | W17: =(INDEX(OFFSET($F$15,1,0,$B$10,1),MATCH(U17,OFFSET($B$15,1,0,$B$10,1),-1))) -> 24.23 | X17: =IF(MONTH(DATE(YEAR(U17)-1,MONTH(U17),DAY(U17)))<>MONTH(U17),DATE(YEAR(U17)-1,MONTH(U17),DAY(U17-1)),DATE(YEAR(U17)-1,MONTH(U17),DAY(U17))) -> 2013-09-16 | Y17: =OFFSET(U16,Z17,0,1,1) -> 2013-09-18 | Z17: =MATCH(X17,OFFSET($U$15,A17,0,$V$14+1-A17,1),-1) -> 5 | AA17: =IF(MONTH(U17)=MONTH(Y17),1,0) -> 1 | AB17: =(V17+IFERROR(SUM(OFFSET(V17,1,0,Z17-AA17-1,1)),0)) -> 0.08 | AC17: =(V17+IFERROR(SUM(OFFSET(V17,1,0,Z17-AA17-1,1)),0))/(INDEX(OFFSET($F$15,1,0,$B$10,1),MATCH(U17,OFFSET($B$15,1,0,$B$10,1),-1))) -> 0.003301692117
A18: 3 | B18: 2015-01-07 | C18: 25.64 | D18: 25.78 | E18: 24.95 | F18: 25.46 | G18: 761600 | H18: 25.46 | I18: 1 | J18: 1 | K18: 25.64 | L18: 25.78 | M18: 24.95 | N18: 25.46 | O18: 761600 | Q18: 2001-06-01 | R18: 5 | S18: 4 | T18: 2.5 | U18: 2014-06-18 | V18: 0.02 | W18: 21.96 | X18: 2013-06-18 | Y18: 2013-06-18 | Z18: 5 | AA18: 1 | AB18: 0.08 | AC18: 0.00364298725
A19: 4 | B19: 2015-01-06 | C19: 26.1 | D19: 26.1 | E19: 25.22 | F19: 25.59 | G19: 386200 | H19: 25.59 | I19: 1 | J19: 1 | K19: 26.1 | L19: 26.1 | M19: 25.22 | N19: 25.59 | O19: 386200 | Q19: 1996-10-07 | R19: 3 | S19: 2 | T19: 3.75 | U19: 2014-03-19 | V19: 0.02 | W19: 22.08 | X19: 2013-03-19 | Y19: 2013-03-20 | Z19: 5 | AA19: 1 | AB19: 0.08 | AC19: 0.003623188406
A20: 5 | B20: 2015-01-05 | C20: 26.89 | D20: 26.9 | E20: 25.81 | F20: 25.96 | G20: 387000 | H20: 25.96 | I20: 1 | J20: 1 | K20: 26.89 | L20: 26.9 | M20: 25.81 | N20: 25.96 | O20: 387000 | Q20: 1993-12-14 | R20: 5 | S20: 4 | T20: 4.6875 | U20: 2013-12-06 | V20: 0.02 | W20: 18.39 | X20: 2012-12-06 | Y20: 2013-03-20 | Z20: 4 | AA20: 0 | AB20: 0.08 | AC20: 0.004350190321
A21: 6 | B21: 2015-01-02 | C21: 27.13 | D21: 27.25 | E21: 26.46 | F21: 26.97 | G21: 386500 | H21: 26.97 | I21: 1 | J21: 1 | K21: 27.13 | L21: 27.25 | M21: 26.46 | N21: 26.97 | O21: 386500 | Q21: 1992-12-22 | R21: 4 | S21: 3 | T21: 6.25 | U21: 2013-09-18 | V21: 0.02 | W21: 14 | X21: 2012-09-18 | Y21: 2012-09-19 | Z21: 5 | AA21: 1 | AB21: 1.08 | AC21: 0.07714285714
A22: 7 | B22: 2014-12-31 | C22: 27.06 | D22: 27.33 | E22: 26.85 | F22: 27.01 | G22: 337300 | H22: 27.01 | I22: 1 | J22: 1 | K22: 27.06 | L22: 27.33 | M22: 26.85 | N22: 27.01 | O22: 337300 | Q22: 1991-11-26 | R22: 3 | S22: 2 | T22: 9.375 | U22: 2013-06-18 | V22: 0.02 | W22: 13.97 | X22: 2012-06-18 | Y22: 2012-09-19 | Z22: 4 | AA22: 0 | AB22: 1.08 | AC22: 0.07730851825
A23: 8 | B23: 2014-12-30 | C23: 26.78 | D23: 27.18 | E23: 26.66 | F23: 27.09 | G23: 425900 | H23: 27.09 | I23: 1 | J23: 1 | K23: 26.78 | L23: 27.18 | M23: 26.66 | N23: 27.09 | O23: 425900 | U23: 2013-03-20 | V23: 0.02 | W23: 14.02 | X23: 2012-03-20 | Y23: 2012-03-21 | Z23: 5 | AA23: 1 | AB23: 1.08 | AC23: 0.07703281027
A24: 9 | B24: 2014-12-29 | C24: 27.68 | D24: 27.96 | E24: 26.68 | F24: 26.78 | G24: 504800 | H24: 26.78 | I24: 1 | J24: 1 | K24: 27.68 | L24: 27.96 | M24: 26.68 | N24: 26.78 | O24: 504800 | U24: 2012-12-05 | V24: 1.02 | W24: 12.83 | X24: 2011-12-05 | Y24: 2011-12-07 | Z24: 5 | AA24: 1 | AB24: 1.08 | AC24: 0.0841777085
A25: 10 | B25: 2014-12-26 | C25: 27.45 | D25: 27.93 | E25: 27.39 | F25: 27.71 | G25: 200800 | H25: 27.71 | I25: 1 | J25: 1 | K25: 27.45 | L25: 27.93 | M25: 27.39 | N25: 27.71 | O25: 200800 | U25: 2012-09-19 | V25: 0.02 | W25: 13.28 | X25: 2011-09-19 | Y25: 2011-09-21 | Z25: 5 | AA25: 1 | AB25: 0.08 | AC25: 0.006024096386
A26: 11 | B26: 2014-12-24 | C26: 27.53 | D26: 27.6 | E26: 27.15 | F26: 27.47 | G26: 181100 | H26: 27.47 | I26: 1 | J26: 1 | K26: 27.53 | L26: 27.6 | M26: 27.15 | N26: 27.47 | O26: 181100 | U26: 2012-06-14 | V26: 0.02 | W26: 14.23 | X26: 2011-06-14 | Y26: 2011-06-22 | Z26: 5 | AA26: 1 | AB26: 0.08 | AC26: 0.005621925509
A27: 12 | B27: 2014-12-23 | C27: 27.07 | D27: 27.53 | E27: 26.88 | F27: 27.45 | G27: 266200 | H27: 27.45 | I27: 1 | J27: 1 | K27: 27.07 | L27: 27.53 | M27: 26.88 | N27: 27.45 | O27: 266200 | U27: 2012-03-21 | V27: 0.02 | W27: 14.98 | X27: 2011-03-21 | Y27: 2011-03-22 | Z27: 5 | AA27: 1 | AB27: 0.08 | AC27: 0.005340453939
A28: 13 | B28: 2014-12-22 | C28: 26.68 | D28: 27.02 | E28: 26.52 | F28: 26.95 | G28: 198200 | H28: 26.95 | I28: 1 | J28: 1 | K28: 26.68 | L28: 27.02 | M28: 26.52 | N28: 26.95 | O28: 198200 | U28: 2011-12-07 | V28: 0.02 | W28: 13.88 | X28: 2010-12-07 | Y28: 2010-12-08 | Z28: 5 | AA28: 1 | AB28: 0.08 | AC28: 0.005763688761
A29: 14 | B29: 2014-12-19 | C29: 26.55 | D29: 26.66 | E29: 26.27 | F29: 26.61 | G29: 1007000 | H29: 26.61 | I29: 1 | J29: 1 | K29: 26.55 | L29: 26.66 | M29: 26.27 | N29: 26.61 | O29: 1007000 | U29: 2011-09-21 | V29: 0.02 | W29: 13.45 | X29: 2010-09-21 | Y29: 2010-09-22 | Z29: 5 | AA29: 1 | AB29: 0.08 | AC29: 0.00594795539
A30: 15 | B30: 2014-12-18 | C30: 26.63 | D30: 26.7 | E30: 26.21 | F30: 26.61 | G30: 257000 | H30: 26.61 | I30: 1 | J30: 1 | K30: 26.63 | L30: 26.7 | M30: 26.21 | N30: 26.61 | O30: 257000 | U30: 2011-06-22 | V30: 0.02 | W30: 15.92 | X30: 2010-06-22 | Y30: 2010-09-22 | Z30: 4 | AA30: 0 | AB30: 1.08 | AC30: 0.06783919598
A31: 16 | B31: 2014-12-17 | C31: 25.98 | D31: 26.32 | E31: 25.28 | F31: 26.25 | G31: 519400 | H31: 26.25 | I31: 1 | J31: 1 | K31: 25.98 | L31: 26.32 | M31: 25.28 | N31: 26.25 | O31: 519400 | U31: 2011-03-22 | V31: 0.02 | W31: 16.84 | X31: 2010-03-22 | Y31: 2010-03-23 | Z31: 5 | AA31: 1 | AB31: 1.08 | AC31: 0.06413301663
A32: 17 | B32: 2014-12-16 | C32: 26.05 | D32: 26.35 | E32: 25.82 | F32: 25.98 | G32: 343000 | H32: 25.98 | I32: 1 | J32: 1 | K32: 26.05 | L32: 26.35 | M32: 25.82 | N32: 25.98 | O32: 343000 | U32: 2010-12-08 | V32: 0.02 | W32: 16.56 | X32: 2009-12-08 | Y32: 2009-12-09 | Z32: 5 | AA32: 1 | AB32: 1.08 | AC32: 0.0652173913
A33: 18 | B33: 2014-12-15 | C33: 25.98 | D33: 26.59 | E33: 25.74 | F33: 26.12 | G33: 517300 | H33: 26.12 | I33: 1 | J33: 1 | K33: 25.98 | L33: 26.59 | M33: 25.74 | N33: 26.12 | O33: 517300 | U33: 2010-09-22 | V33: 1.02 | W33: 14.56 | X33: 2009-09-22 | Y33: 2009-12-09 | Z33: 4 | AA33: 0 | AB33: 1.08 | AC33: 0.07417582418
A34: 19 | B34: 2014-12-12 | C34: 25.23 | D34: 26 | E34: 25 | F34: 25.78 | G34: 270700 | H34: 25.78 | I34: 1 | J34: 1 | K34: 25.23 | L34: 26 | M34: 25 | N34: 25.78 | O34: 270700 | U34: 2010-06-18 | V34: 0.02 | W34: 15.24 | X34: 2009-06-18 | Y34: 2009-09-17 | Z34: 4 | AA34: 0 | AB34: 0.08 | AC34: 0.005249343832
A35: 20 | B35: 2014-12-11 | C35: 25.66 | D35: 25.95 | E35: 25.52 | F35: 25.58 | G35: 271000 | H35: 25.58 | I35: 1 | J35: 1 | K35: 25.66 | L35: 25.95 | M35: 25.52 | N35: 25.58 | O35: 271000 | U35: 2010-03-23 | V35: 0.02 | W35: 16.44 | X35: 2009-03-23 | Y35: 2009-06-17 | Z35: 4 | AA35: 0 | AB35: 0.08 | AC35: 0.004866180049
A36: 21 | B36: 2014-12-10 | C36: 25.98 | D36: 25.98 | E36: 25.46 | F36: 25.5 | G36: 390200 | H36: 25.5 | I36: 1 | J36: 1 | K36: 25.98 | L36: 25.98 | M36: 25.46 | N36: 25.5 | O36: 390200 | U36: 2009-12-09 | V36: 0.02 | W36: 15.19 | X36: 2008-12-09 | Y36: 2008-12-10 | Z36: 5 | AA36: 1 | AB36: 0.08 | AC36: 0.005266622778
A37: 22 | B37: 2014-12-09 | C37: 25.45 | D37: 26 | E37: 25.01 | F37: 25.99 | G37: 552800 | H37: 25.99 | I37: 1 | J37: 1 | K37: 25.45 | L37: 26 | M37: 25.01 | N37: 25.99 | O37: 552800 | U37: 2009-09-17 | V37: 0.02 | W37: 14.33 | X37: 2008-09-17 | Y37: 2008-09-17 | Z37: 5 | AA37: 1 | AB37: 0.08 | AC37: 0.00558269365
A38: 23 | B38: 2014-12-08 | C38: 26.14 | D38: 26.2 | E38: 25.59 | F38: 25.8 | G38: 247900 | H38: 25.8 | I38: 1 | J38: 1 | K38: 26.14 | L38: 26.2 | M38: 25.59 | N38: 25.8 | O38: 247900 | U38: 2009-06-17 | V38: 0.02 | W38: 14.57 | X38: 2008-06-17 | Y38: 2008-06-18 | Z38: 5 | AA38: 1 | AB38: 0.08 | AC38: 0.005490734386
A39: 24 | B39: 2014-12-05 | C39: 26.28 | D39: 26.54 | E39: 25.99 | F39: 26.13 | G39: 281200 | H39: 26.13 | I39: 1 | J39: 1 | K39: 26.28 | L39: 26.54 | M39: 25.99 | N39: 26.13 | O39: 281200 | U39: 2009-03-18 | V39: 0.02 | W39: 14.34 | X39: 2008-03-18 | Y39: 2008-03-18 | Z39: 5 | AA39: 1 | AB39: 0.08 | AC39: 0.005578800558
A40: 25 | B40: 2014-12-04 | C40: 26.32 | D40: 26.44 | E40: 25.97 | F40: 26.3 | G40: 334700 | H40: 26.28 | I40: 0.9992395437 | J40: 1 | K40: 26.3 | L40: 26.42 | M40: 25.95 | N40: 26.28 | O40: 334700 | U40: 2008-12-10 | V40: 0.02 | W40: 14.56 | X40: 2007-12-10 | Y40: 2007-12-19 | Z40: 5 | AA40: 1 | AB40: 0.08 | AC40: 0.005494505495
A41: 26 | B41: 2014-12-03 | C41: 26.35 | D41: 26.41 | E41: 26.04 | F41: 26.29 | G41: 273100 | H41: 26.27 | I41: 0.9992392545 | J41: 1 | K41: 26.33 | L41: 26.39 | M41: 26.02 | N41: 26.27 | O41: 273100 | U41: 2008-09-17 | V41: 0.02 | W41: 17.3 | X41: 2007-09-17 | Y41: 2007-09-18 | Z41: 5 | AA41: 1 | AB41: 0.08 | AC41: 0.004624277457
A42: 27 | B42: 2014-12-02 | C42: 26.08 | D42: 26.4 | E42: 26.08 | F42: 26.26 | G42: 255600 | H42: 26.24 | I42: 0.9992383854 | J42: 1 | K42: 26.06 | L42: 26.38 | M42: 26.06 | N42: 26.24 | O42: 255600 | U42: 2008-06-18 | V42: 0.02 | W42: 14.63 | X42: 2007-06-18 | Y42: 2007-09-18 | Z42: 4 | AA42: 0 | AB42: 0.08 | AC42: 0.005468215995
A43: 28 | B43: 2014-12-01 | C43: 26.45 | D43: 26.52 | E43: 25.93 | F43: 25.94 | G43: 273600 | H43: 25.92 | I43: 0.99922899 | J43: 1 | K43: 26.43 | L43: 26.5 | M43: 25.91 | N43: 25.92 | O43: 273600 | U43: 2008-03-18 | V43: 0.02 | W43: 14.71 | X43: 2007-03-18 | Y43: 2007-03-20 | Z43: 5 | AA43: 1 | AB43: 2.08 | AC43: 0.1414004079
A44: 29 | B44: 2014-11-28 | C44: 26.48 | D44: 26.82 | E44: 26.35 | F44: 26.53 | G44: 234100 | H44: 26.51 | I44: 0.9992461364 | J44: 1 | K44: 26.46 | L44: 26.8 | M44: 26.33 | N44: 26.51 | O44: 234100 | U44: 2007-12-19 | V44: 0.02 | W44: 14.34 | X44: 2006-12-19 | Y44: 2006-12-19 | Z44: 5 | AA44: 1 | AB44: 2.08 | AC44: 0.1450488145
A45: 30 | B45: 2014-11-26 | C45: 26.27 | D45: 26.53 | E45: 26.06 | F45: 26.26 | G45: 283100 | H45: 26.24 | I45: 0.9992383854 | J45: 1 | K45: 26.25 | L45: 26.51 | M45: 26.04 | N45: 26.24 | O45: 283100 | U45: 2007-09-18 | V45: 0.02 | W45: 15.05 | X45: 2006-09-18 | Y45: 2006-09-18 | Z45: 5 | AA45: 1 | AB45: 2.08 | AC45: 0.1382059801
A46: 31 | B46: 2014-11-25 | C46: 26.31 | D46: 27.85 | E46: 26 | F46: 26.27 | G46: 244800 | H46: 26.25 | I46: 0.9992386753 | J46: 1 | K46: 26.29 | L46: 27.83 | M46: 25.98 | N46: 26.25 | O46: 244800 | U46: 2007-05-22 | V46: 2.02 | W46: 16.89 | X46: 2006-05-22 | Y46: 2006-06-20 | Z46: 5 | AA46: 0 | AB46: 2.1 | AC46: 0.1243339254
A47: 32 | B47: 2014-11-24 | C47: 26.28 | D47: 26.64 | E47: 26.23 | F47: 26.3 | G47: 434300 | H47: 26.28 | I47: 0.9992395437 | J47: 1 | K47: 26.26 | L47: 26.62 | M47: 26.21 | N47: 26.28 | O47: 434300 | U47: 2007-03-20 | V47: 0.02 | W47: 16.23 | X47: 2006-03-20 | Y47: 2006-03-21 | Z47: 5 | AA47: 1 | AB47: 0.08 | AC47: 0.004929143561
A48: 33 | B48: 2014-11-21 | C48: 26.44 | D48: 26.49 | E48: 26.09 | F48: 26.28 | G48: 292700 | H48: 26.26 | I48: 0.999238965 | J48: 1 | K48: 26.42 | L48: 26.47 | M48: 26.07 | N48: 26.26 | O48: 292700 | U48: 2006-12-19 | V48: 0.02 | W48: 15.03 | X48: 2005-12-19 | Y48: 2005-12-20 | Z48: 5 | AA48: 1 | AB48: 0.075 | AC48: 0.00499001996
A49: 34 | B49: 2014-11-20 | C49: 25.44 | D49: 26.16 | E49: 25.22 | F49: 26.13 | G49: 277000 | H49: 26.11 | I49: 0.9992345962 | J49: 1 | K49: 25.42 | L49: 26.14 | M49: 25.2 | N49: 26.11 | O49: 277000 | U49: 2006-09-18 | V49: 0.02 | W49: 15.97 | X49: 2005-09-18 | Y49: 2005-09-20 | Z49: 5 | AA49: 1 | AB49: 0.07 | AC49: 0.004383218535
A50: 35 | B50: 2014-11-19 | C50: 25.6 | D50: 25.73 | E50: 25.2 | F50: 25.6 | G50: 166200 | H50: 25.58 | I50: 0.99921875 | J50: 1 | K50: 25.58 | L50: 25.71 | M50: 25.18 | N50: 25.58 | O50: 166200 | U50: 2006-06-20 | V50: 0.02 | W50: 17.19 | X50: 2005-06-20 | Y50: 2005-09-20 | Z50: 4 | AA50: 0 | AB50: 0.065 | AC50: 0.003781268179
A51: 36 | B51: 2014-11-18 | C51: 25.68 | D51: 25.94 | E51: 25.5 | F51: 25.68 | G51: 263800 | H51: 25.66 | I51: 0.9992211838 | J51: 1 | K51: 25.66 | L51: 25.92 | M51: 25.48 | N51: 25.66 | O51: 263800 | U51: 2006-03-21 | V51: 0.015 | W51: 23.33 | X51: 2005-03-21 | Y51: 2005-06-16 | Z51: 4 | AA51: 0 | AB51: 0.06 | AC51: 0.002571795971
A52: 37 | B52: 2014-11-17 | C52: 25.31 | D52: 25.64 | E52: 25.1 | F52: 25.56 | G52: 294900 | H52: 25.54 | I52: 0.9992175274 | J52: 1 | K52: 25.29 | L52: 25.62 | M52: 25.08 | N52: 25.54 | O52: 294900 | U52: 2005-12-20 | V52: 0.015 | W52: 19.62 | X52: 2004-12-20 | Y52: 2004-12-21 | Z52: 5 | AA52: 1 | AB52: 0.06 | AC52: 0.003058103976
A53: 38 | B53: 2014-11-14 | C53: 25.55 | D53: 25.55 | E53: 25.18 | F53: 25.3 | G53: 170100 | H53: 25.28 | I53: 0.9992094862 | J53: 1 | K53: 25.53 | L53: 25.53 | M53: 25.16 | N53: 25.28 | O53: 170100 | U53: 2005-09-20 | V53: 0.015 | W53: 19.28 | X53: 2004-09-20 | Y53: 2004-12-21 | Z53: 4 | AA53: 0 | AB53: 0.06 | AC53: 0.003112033195
A54: 39 | B54: 2014-11-13 | C54: 25.5 | D54: 25.74 | E54: 25.3 | F54: 25.53 | G54: 408600 | H54: 25.51 | I54: 0.9992166079 | J54: 1 | K54: 25.48 | L54: 25.72 | M54: 25.28 | N54: 25.51 | O54: 408600 | U54: 2005-06-16 | V54: 0.015 | W54: 19.61 | X54: 2004-06-16 | Y54: 2004-06-17 | Z54: 5 | AA54: 1 | AB54: 0.06 | AC54: 0.003059663437
A55: 40 | B55: 2014-11-12 | C55: 25.28 | D55: 25.71 | E55: 25.02 | F55: 25.4 | G55: 434800 | H55: 25.38 | I55: 0.9992125984 | J55: 1 | K55: 25.26 | L55: 25.69 | M55: 25 | N55: 25.38 | O55: 434800 | U55: 2005-03-17 | V55: 0.015 | W55: 20.2 | X55: 2004-03-17 | Y55: 2004-03-18 | Z55: 5 | AA55: 1 | AB55: 0.055 | AC55: 0.002722772277
A56: 41 | B56: 2014-11-11 | C56: 25.36 | D56: 25.59 | E56: 25.12 | F56: 25.46 | G56: 342300 | H56: 25.44 | I56: 0.999214454 | J56: 1 | K56: 25.34 | L56: 25.57 | M56: 25.1 | N56: 25.44 | O56: 342300 | U56: 2004-12-21 | V56: 0.015 | W56: 21.83 | X56: 2003-12-21 | Y56: 2004-03-18 | Z56: 4 | AA56: 0 | AB56: 0.05 | AC56: 0.002290426019
A57: 42 | B57: 2014-11-10 | C57: 25.04 | D57: 25.43 | E57: 24.91 | F57: 25.41 | G57: 167100 | H57: 25.39 | I57: 0.9992129083 | J57: 1 | K57: 25.02 | L57: 25.41 | M57: 24.89 | N57: 25.39 | O57: 167100 | U57: 2004-09-16 | V57: 0.015 | W57: 18.29 | X57: 2003-09-16 | Y57: 2003-12-18 | Z57: 4 | AA57: 0 | AB57: 0.045 | AC57: 0.002460360853
A58: 43 | B58: 2014-11-07 | C58: 25.05 | D58: 25.24 | E58: 24.89 | F58: 25.06 | G58: 233700 | H58: 25.04 | I58: 0.9992019154 | J58: 1 | K58: 25.03 | L58: 25.22 | M58: 24.87 | N58: 25.04 | O58: 233700 | U58: 2004-06-17 | V58: 0.01 | W58: 26.28 | X58: 2003-06-17 | Y58: 2003-09-15 | Z58: 4 | AA58: 0 | AB58: 0.04 | AC58: 0.001522070015
A59: 44 | B59: 2014-11-06 | C59: 24.52 | D59: 25.03 | E59: 24.29 | F59: 25.03 | G59: 320800 | H59: 25.01 | I59: 0.9992009588 | J59: 1 | K59: 24.5 | L59: 25.01 | M59: 24.27 | N59: 25.01 | O59: 320800 | U59: 2004-03-18 | V59: 0.01 | W59: 22.01 | X59: 2003-03-18 | Y59: 2003-09-15 | Z59: 3 | AA59: 0 | AB59: 0.03 | AC59: 0.001363016811
A60: 45 | B60: 2014-11-05 | C60: 24.9 | D60: 24.95 | E60: 24.35 | F60: 24.46 | G60: 323500 | H60: 24.44 | I60: 0.9991823385 | J60: 1 | K60: 24.88 | L60: 24.93 | M60: 24.33 | N60: 24.44 | O60: 323500 | U60: 2003-12-18 | V60: 0.01 | W60: 25.04 | X60: 2002-12-18 | Y60: 2003-09-15 | Z60: 2 | AA60: 0 | AB60: 0.02 | AC60: 0.0007987220447
A61: 46 | B61: 2014-11-04 | C61: 24.64 | D61: 25.17 | E61: 24.5 | F61: 24.73 | G61: 455800 | H61: 24.71 | I61: 0.9991912657 | J61: 1 | K61: 24.62 | L61: 25.15 | M61: 24.48 | N61: 24.71 | O61: 455800 | U61: 2003-09-15 | V61: 0.01 | W61: 26.21 | X61: 2002-09-15 | Y61: 2003-09-15 | Z61: 1 | AA61: 1 | AB61: 0.01 | AC61: 0.0003815337657
A62: 47 | B62: 2014-11-03 | C62: 25.19 | D62: 25.25 | E62: 24.53 | F62: 24.67 | G62: 593200 | H62: 24.65 | I62: 0.9991892987 | J62: 1 | K62: 25.17 | L62: 25.23 | M62: 24.51 | N62: 24.65 | O62: 593200
A63: 48 | B63: 2014-10-31 | C63: 25.66 | D63: 25.68 | E63: 25.04 | F63: 25.14 | G63: 508600 | H63: 25.12 | I63: 0.9992044551 | J63: 1 | K63: 25.64 | L63: 25.66 | M63: 25.02 | N63: 25.12 | O63: 508600
A64: 49 | B64: 2014-10-30 | C64: 25.08 | D64: 25.4 | E64: 24.83 | F64: 25.03 | G64: 360600 | H64: 25.01 | I64: 0.9992009588 | J64: 1 | K64: 25.06 | L64: 25.38 | M64: 24.81 | N64: 25.01 | O64: 360600
A65: 50 | B65: 2014-10-29 | C65: 25.08 | D65: 25.5 | E65: 24.75 | F65: 25.22 | G65: 409600 | H65: 25.2 | I65: 0.9992069786 | J65: 1 | K65: 25.06 | L65: 25.48 | M65: 24.73 | N65: 25.2 | O65: 409600
A66: 51 | B66: 2014-10-28 | C66: 24.52 | D66: 25.01 | E66: 24.29 | F66: 24.97 | G66: 376400 | H66: 24.95 | I66: 0.9991990388 | J66: 1 | K66: 24.5 | L66: 24.99 | M66: 24.27 | N66: 24.95 | O66: 376400
A67: 52 | B67: 2014-10-27 | C67: 23.91 | D67: 24.78 | E67: 23.5 | F67: 24.37 | G67: 573000 | H67: 24.35 | I67: 0.9991793188 | J67: 1 | K67: 23.89 | L67: 24.76 | M67: 23.48 | N67: 24.35 | O67: 573000
A68: 53 | B68: 2014-10-24 | C68: 25.46 | D68: 25.75 | E68: 23.89 | F68: 24.01 | G68: 1112500 | H68: 23.99 | I68: 0.9991670137 | J68: 1 | K68: 25.44 | L68: 25.73 | M68: 23.87 | N68: 23.99 | O68: 1112500
A69: 54 | B69: 2014-10-23 | C69: 25.28 | D69: 25.57 | E69: 25.23 | F69: 25.32 | G69: 227900 | H69: 25.3 | I69: 0.9992101106 | J69: 1 | K69: 25.26 | L69: 25.55 | M69: 25.21 | N69: 25.3 | O69: 227900
A70: 55 | B70: 2014-10-22 | C70: 25.76 | D70: 25.93 | E70: 24.92 | F70: 24.92 | G70: 399300 | H70: 24.9 | I70: 0.9991974318 | J70: 1 | K70: 25.74 | L70: 25.91 | M70: 24.9 | N70: 24.9 | O70: 399300
A71: 56 | B71: 2014-10-21 | C71: 24.81 | D71: 25.58 | E71: 24.81 | F71: 25.53 | G71: 531000 | H71: 25.51 | I71: 0.9992166079 | J71: 1 | K71: 24.79 | L71: 25.56 | M71: 24.79 | N71: 25.51 | O71: 531000
A72: 57 | B72: 2014-10-20 | C72: 23.96 | D72: 24.7 | E72: 23.96 | F72: 24.66 | G72: 364000 | H72: 24.64 | I72: 0.99918897 | J72: 1 | K72: 23.94 | L72: 24.68 | M72: 23.94 | N72: 24.64 | O72: 364000
A73: 58 | B73: 2014-10-17 | C73: 24.29 | D73: 24.29 | E73: 23.67 | F73: 24.16 | G73: 486400 | H73: 24.14 | I73: 0.9991721854 | J73: 1 | K73: 24.27 | L73: 24.27 | M73: 23.65 | N73: 24.14 | O73: 486400
A74: 59 | B74: 2014-10-16 | C74: 23.08 | D74: 23.94 | E74: 23.08 | F74: 23.87 | G74: 323200 | H74: 23.85 | I74: 0.9991621282 | J74: 1 | K74: 23.06 | L74: 23.92 | M74: 23.06 | N74: 23.85 | O74: 323200
A75: 60 | B75: 2014-10-15 | C75: 22.69 | D75: 23.45 | E75: 22.45 | F75: 23.37 | G75: 339000 | H75: 23.35 | I75: 0.999144202 | J75: 1 | K75: 22.67 | L75: 23.43 | M75: 22.43 | N75: 23.35 | O75: 339000
A76: 61 | B76: 2014-10-14 | C76: 22.96 | D76: 23.39 | E76: 22.6 | F76: 23.06 | G76: 520000 | H76: 23.04 | I76: 0.9991326973 | J76: 1 | K76: 22.94 | L76: 23.37 | M76: 22.58 | N76: 23.04 | O76: 520000
A77: 62 | B77: 2014-10-13 | C77: 22.77 | D77: 22.88 | E77: 22.3 | F77: 22.58 | G77: 473900 | H77: 22.56 | I77: 0.9991142604 | J77: 1 | K77: 22.75 | L77: 22.86 | M77: 22.28 | N77: 22.56 | O77: 473900
A78: 63 | B78: 2014-10-10 | C78: 22.55 | D78: 22.93 | E78: 22.4 | F78: 22.64 | G78: 366500 | H78: 22.62 | I78: 0.9991166078 | J78: 1 | K78: 22.53 | L78: 22.91 | M78: 22.38 | N78: 22.62 | O78: 366500
A79: 64 | B79: 2014-10-09 | C79: 23.16 | D79: 23.23 | E79: 22.51 | F79: 22.55 | G79: 278700 | H79: 22.53 | I79: 0.999113082 | J79: 1 | K79: 23.14 | L79: 23.21 | M79: 22.49 | N79: 22.53 | O79: 278700
A80: 65 | B80: 2014-10-08 | C80: 22.95 | D80: 23.26 | E80: 22.64 | F80: 23.19 | G80: 522200 | H80: 23.17 | I80: 0.9991375593 | J80: 1 | K80: 22.93 | L80: 23.24 | M80: 22.62 | N80: 23.17 | O80: 522200
A81: 66 | B81: 2014-10-07 | C81: 23.28 | D81: 23.48 | E81: 22.95 | F81: 22.98 | G81: 241500 | H81: 22.96 | I81: =H81/F81 -> 0.999129678 | J81: =INDEX(OFFSET($T$15,0,0,$S$13+1,1),MATCH(B81,OFFSET($Q$15,0,0,$S$13+1,1),-1)) -> 1 | K81: =ROUND($I81*C81,2) -> 23.26 | L81: =ROUND($I81*D81,2) -> 23.46 | M81: =ROUND($I81*E81,2) -> 22.93 | N81: =ROUND($I81*F81,2) -> 22.96 | O81: =G81*J81 -> 241500
A82: 67 | B82: 2014-10-06 | C82: 23.9 | D82: 24.01 | E82: 23.45 | F82: 23.47 | G82: 216800 | H82: 23.45 | I82: 0.9991478483 | J82: 1 | K82: 23.88 | L82: 23.99 | M82: 23.43 | N82: 23.45 | O82: 216800
A83: 68 | B83: 2014-10-03 | C83: 23.99 | D83: 23.99 | E83: 23.62 | F83: 23.77 | G83: 426200 | H83: 23.75 | I83: 0.9991586033 | J83: 1 | K83: 23.97 | L83: 23.97 | M83: 23.6 | N83: 23.75 | O83: 426200
A84: 69 | B84: 2014-10-02 | C84: 23.44 | D84: 23.81 | E84: 23.22 | F84: 23.73 | G84: 237500 | H84: 23.71 | I84: 0.999157185 | J84: 1 | K84: 23.42 | L84: 23.79 | M84: 23.2 | N84: 23.71 | O84: 237500
A85: 70 | B85: 2014-10-01 | C85: 23.79 | D85: 24.11 | E85: 23.34 | F85: 23.44 | G85: 319800 | H85: 23.42 | I85: 0.9991467577 | J85: 1 | K85: 23.77 | L85: 24.09 | M85: 23.32 | N85: 23.42 | O85: 319800
A86: 71 | B86: 2014-09-30 | C86: 24.05 | D86: 24.14 | E86: 23.86 | F86: 23.96 | G86: 527500 | H86: 23.94 | I86: 0.9991652755 | J86: 1 | K86: 24.03 | L86: 24.12 | M86: 23.84 | N86: 23.94 | O86: 527500
A87: 72 | B87: 2014-09-29 | C87: 23.78 | D87: 24.22 | E87: 23.58 | F87: 24.09 | G87: 665200 | H87: 24.07 | I87: 0.99916978 | J87: 1 | K87: 23.76 | L87: 24.2 | M87: 23.56 | N87: 24.07 | O87: 665200
A88: 73 | B88: 2014-09-26 | C88: 23.51 | D88: 24.1 | E88: 23.43 | F88: 24.03 | G88: 407600 | H88: 24.01 | I88: 0.999167707 | J88: 1 | K88: 23.49 | L88: 24.08 | M88: 23.41 | N88: 24.01 | O88: 407600
A89: 74 | B89: 2014-09-25 | C89: 23.76 | D89: 23.82 | E89: 23.22 | F89: 23.48 | G89: 504000 | H89: 23.46 | I89: 0.9991482112 | J89: 1 | K89: 23.74 | L89: 23.8 | M89: 23.2 | N89: 23.46 | O89: 504000
A90: 75 | B90: 2014-09-24 | C90: 23.93 | D90: 24.01 | E90: 23.73 | F90: 23.79 | G90: 286200 | H90: 23.77 | I90: 0.9991593106 | J90: 1 | K90: 23.91 | L90: 23.99 | M90: 23.71 | N90: 23.77 | O90: 286200
A91: 76 | B91: 2014-09-23 | C91: 24.28 | D91: 24.42 | E91: 23.89 | F91: 23.94 | G91: 308100 | H91: 23.92 | I91: 0.9991645781 | J91: 1 | K91: 24.26 | L91: 24.4 | M91: 23.87 | N91: 23.92 | O91: 308100
A92: 77 | B92: 2014-09-22 | C92: 24.61 | D92: 24.61 | E92: 24.31 | F92: 24.42 | G92: 286700 | H92: 24.4 | I92: 0.9991809992 | J92: 1 | K92: 24.59 | L92: 24.59 | M92: 24.29 | N92: 24.4 | O92: 286700
A93: 78 | B93: 2014-09-19 | C93: 25 | D93: 25.07 | E93: 24.43 | F93: 24.7 | G93: 1509100 | H93: 24.68 | I93: 0.9991902834 | J93: 1 | K93: 24.98 | L93: 25.05 | M93: 24.41 | N93: 24.68 | O93: 1509100
A94: 79 | B94: 2014-09-18 | C94: 24.43 | D94: 24.91 | E94: 24.43 | F94: 24.85 | G94: 214000 | H94: 24.83 | I94: 0.999195171 | J94: 1 | K94: 24.41 | L94: 24.89 | M94: 24.41 | N94: 24.83 | O94: 214000
A95: 80 | B95: 2014-09-17 | C95: 24.38 | D95: 24.6 | E95: 24.18 | F95: 24.36 | G95: 313200 | H95: 24.34 | I95: 0.9991789819 | J95: 1 | K95: 24.36 | L95: 24.58 | M95: 24.16 | N95: 24.34 | O95: 313200
A96: 81 | B96: 2014-09-16 | C96: 24.06 | D96: 24.25 | E96: 23.93 | F96: 24.23 | G96: 437300 | H96: 24.21 | I96: 0.999174577 | J96: 1 | K96: 24.04 | L96: 24.23 | M96: 23.91 | N96: 24.21 | O96: 437300
A97: 82 | B97: 2014-09-15 | C97: 24.53 | D97: 24.53 | E97: 24.09 | F97: 24.1 | G97: 540700 | H97: 24.06 | I97: 0.998340249 | J97: 1 | K97: 24.49 | L97: 24.49 | M97: 24.05 | N97: 24.06 | O97: 540700
A98: 83 | B98: 2014-09-12 | C98: 24.15 | D98: 24.64 | E98: 24.08 | F98: 24.57 | G98: 468000 | H98: 24.53 | I98: 0.9983719984 | J98: 1 | K98: 24.11 | L98: 24.6 | M98: 24.04 | N98: 24.53 | O98: 468000
A99: 84 | B99: 2014-09-11 | C99: 24.03 | D99: 24.24 | E99: 23.65 | F99: 24.07 | G99: 456500 | H99: 24.03 | I99: 0.9983381803 | J99: 1 | K99: 23.99 | L99: 24.2 | M99: 23.61 | N99: 24.03 | O99: 456500
A100: 85 | B100: 2014-09-10 | C100: 24 | D100: 24.16 | E100: 23.82 | F100: 24.09 | G100: 246100 | H100: 24.05 | I100: 0.99833956 | J100: 1 | K100: 23.96 | L100: 24.12 | M100: 23.78 | N100: 24.05 | O100: 246100
A101: 86 | B101: 2014-09-09 | C101: 24.19 | D101: 24.42 | E101: 23.87 | F101: 23.94 | G101: 228300 | H101: 23.9 | I101: 0.9983291562 | J101: 1 | K101: 24.15 | L101: 24.38 | M101: 23.83 | N101: 23.9 | O101: 228300
A102: 87 | B102: 2014-09-08 | C102: 23.95 | D102: 24.41 | E102: 23.76 | F102: 24.16 | G102: 471100 | H102: 24.12 | I102: 0.9983443709 | J102: 1 | K102: 23.91 | L102: 24.37 | M102: 23.72 | N102: 24.12 | O102: 471100
A103: 88 | B103: 2014-09-05 | C103: 23.89 | D103: 24.01 | E103: 23.74 | F103: 23.89 | G103: 257000 | H103: 23.85 | I103: 0.9983256593 | J103: 1 | K103: 23.85 | L103: 23.97 | M103: 23.7 | N103: 23.85 | O103: 257000
A104: 89 | B104: 2014-09-04 | C104: 23.98 | D104: 24.16 | E104: 23.78 | F104: 23.83 | G104: 163400 | H104: 23.79 | I104: 0.9983214436 | J104: 1 | K104: 23.94 | L104: 24.12 | M104: 23.74 | N104: 23.79 | O104: 163400
A105: 90 | B105: 2014-09-03 | C105: 24.05 | D105: 24.21 | E105: 23.77 | F105: 23.85 | G105: 328800 | H105: 23.81 | I105: 0.9983228512 | J105: 1 | K105: 24.01 | L105: 24.17 | M105: 23.73 | N105: 23.81 | O105: 328800
A106: 91 | B106: 2014-09-02 | C106: 23.56 | D106: 24.13 | E106: 23.48 | F106: 24.01 | G106: 305300 | H106: 23.97 | I106: 0.9983340275 | J106: 1 | K106: 23.52 | L106: 24.09 | M106: 23.44 | N106: 23.97 | O106: 305300
A107: 92 | B107: 2014-08-29 | C107: 23.29 | D107: 23.62 | E107: 23.25 | F107: 23.45 | G107: 187300 | H107: 23.41 | I107: 0.9982942431 | J107: 1 | K107: 23.25 | L107: 23.58 | M107: 23.21 | N107: 23.41 | O107: 187300
A108: 93 | B108: 2014-08-28 | C108: 23.44 | D108: 23.73 | E108: 23.16 | F108: 23.27 | G108: 208700 | H108: 23.23 | I108: 0.9982810486 | J108: 1 | K108: 23.4 | L108: 23.69 | M108: 23.12 | N108: 23.23 | O108: 208700
A109: 94 | B109: 2014-08-27 | C109: 23.56 | D109: 23.61 | E109: 23.24 | F109: 23.47 | G109: 160100 | H109: 23.43 | I109: 0.9982956966 | J109: 1 | K109: 23.52 | L109: 23.57 | M109: 23.2 | N109: 23.43 | O109: 160100
A110: 95 | B110: 2014-08-26 | C110: 23.63 | D110: 23.78 | E110: 23.36 | F110: 23.48 | G110: 206600 | H110: 23.44 | I110: 0.9982964225 | J110: 1 | K110: 23.59 | L110: 23.74 | M110: 23.32 | N110: 23.44 | O110: 206600
A111: 96 | B111: 2014-08-25 | C111: 23.77 | D111: 23.86 | E111: 23.49 | F111: 23.6 | G111: 148300 | H111: 23.56 | I111: 0.9983050847 | J111: 1 | K111: 23.73 | L111: 23.82 | M111: 23.45 | N111: 23.56 | O111: 148300
A112: 97 | B112: 2014-08-22 | C112: 23.4 | D112: 23.73 | E112: 23.21 | F112: 23.58 | G112: 180600 | H112: 23.54 | I112: 0.9983036472 | J112: 1 | K112: 23.36 | L112: 23.69 | M112: 23.17 | N112: 23.54 | O112: 180600
A113: 98 | B113: 2014-08-21 | C113: 23.41 | D113: 23.5 | E113: 23.04 | F113: 23.47 | G113: 210300 | H113: 23.43 | I113: 0.9982956966 | J113: 1 | K113: 23.37 | L113: 23.46 | M113: 23 | N113: 23.43 | O113: 210300
A114: 99 | B114: 2014-08-20 | C114: 23.79 | D114: 24.09 | E114: 23.24 | F114: 23.37 | G114: 358500 | H114: 23.33 | I114: 0.9982884039 | J114: 1 | K114: 23.75 | L114: 24.05 | M114: 23.2 | N114: 23.33 | O114: 358500
A115: 100 | B115: 2014-08-19 | C115: 23.79 | D115: 24.01 | E115: 23.74 | F115: 23.87 | G115: 272700 | H115: 23.83 | I115: 0.9983242564 | J115: 1 | K115: 23.75 | L115: 23.97 | M115: 23.7 | N115: 23.83 | O115: 272700
A116: 101 | B116: 2014-08-18 | C116: 23.16 | D116: 23.76 | E116: 23.14 | F116: 23.75 | G116: 259900 | H116: 23.71 | I116: 0.9983157895 | J116: 1 | K116: 23.12 | L116: 23.72 | M116: 23.1 | N116: 23.71 | O116: 259900
A117: 102 | B117: 2014-08-15 | C117: 23.49 | D117: 23.59 | E117: 22.79 | F117: 23.01 | G117: 510500 | H117: 22.97 | I117: 0.9982616254 | J117: 1 | K117: 23.45 | L117: 23.55 | M117: 22.75 | N117: 22.97 | O117: 510500
A118: 103 | B118: 2014-08-14 | C118: 23.18 | D118: 23.33 | E118: 23.04 | F118: 23.31 | G118: 220800 | H118: 23.27 | I118: 0.9982839983 | J118: 1 | K118: 23.14 | L118: 23.29 | M118: 23 | N118: 23.27 | O118: 220800
A119: 104 | B119: 2014-08-13 | C119: 23.03 | D119: 23.35 | E119: 23.03 | F119: 23.12 | G119: 639700 | H119: 23.08 | I119: 0.9982698962 | J119: 1 | K119: 22.99 | L119: 23.31 | M119: 22.99 | N119: 23.08 | O119: 639700
A120: 105 | B120: 2014-08-12 | C120: 22.73 | D120: 23.04 | E120: 22.44 | F120: 22.88 | G120: 310500 | H120: 22.84 | I120: 0.9982517483 | J120: 1 | K120: 22.69 | L120: 23 | M120: 22.4 | N120: 22.84 | O120: 310500
A121: 106 | B121: 2014-08-11 | C121: 22.82 | D121: 23.13 | E121: 22.52 | F121: 22.77 | G121: 254000 | H121: 22.73 | I121: 0.9982433026 | J121: 1 | K121: 22.78 | L121: 23.09 | M121: 22.48 | N121: 22.73 | O121: 254000
A122: 107 | B122: 2014-08-08 | C122: 22.41 | D122: 22.73 | E122: 22.21 | F122: 22.69 | G122: 235900 | H122: 22.65 | I122: 0.9982371089 | J122: 1 | K122: 22.37 | L122: 22.69 | M122: 22.17 | N122: 22.65 | O122: 235900
A123: 108 | B123: 2014-08-07 | C123: 22.2 | D123: 22.45 | E123: 22.2 | F123: 22.36 | G123: 237900 | H123: 22.32 | I123: 0.9982110912 | J123: 1 | K123: 22.16 | L123: 22.41 | M123: 22.16 | N123: 22.32 | O123: 237900
A124: 109 | B124: 2014-08-06 | C124: 22.27 | D124: 22.4 | E124: 22.15 | F124: 22.19 | G124: 259800 | H124: 22.15 | I124: 0.9981973862 | J124: 1 | K124: 22.23 | L124: 22.36 | M124: 22.11 | N124: 22.15 | O124: 259800
A125: 110 | B125: 2014-08-05 | C125: 22.52 | D125: 22.84 | E125: 22.3 | F125: 22.35 | G125: 388500 | H125: 22.31 | I125: 0.9982102908 | J125: 1 | K125: 22.48 | L125: 22.8 | M125: 22.26 | N125: 22.31 | O125: 388500
A126: 111 | B126: 2014-08-04 | C126: 22.4 | D126: 22.69 | E126: 22.15 | F126: 22.66 | G126: 344600 | H126: 22.62 | I126: 0.9982347749 | J126: 1 | K126: 22.36 | L126: 22.65 | M126: 22.11 | N126: 22.62 | O126: 344600
A127: 112 | B127: 2014-08-01 | C127: 22.4 | D127: 22.5 | E127: 22.13 | F127: 22.33 | G127: 419000 | H127: 22.29 | I127: 0.9982086879 | J127: 1 | K127: 22.36 | L127: 22.46 | M127: 22.09 | N127: 22.29 | O127: 419000
A128: 113 | B128: 2014-07-31 | C128: 22.85 | D128: 23.19 | E128: 22.45 | F128: 22.47 | G128: 428800 | H128: 22.43 | I128: 0.9982198487 | J128: 1 | K128: 22.81 | L128: 23.15 | M128: 22.41 | N128: 22.43 | O128: 428800
A129: 114 | B129: 2014-07-30 | C129: 22.84 | D129: 23.13 | E129: 22.72 | F129: 23.07 | G129: 271700 | H129: 23.03 | I129: 0.9982661465 | J129: 1 | K129: 22.8 | L129: 23.09 | M129: 22.68 | N129: 23.03 | O129: 271700
A130: 115 | B130: 2014-07-29 | C130: 22.9 | D130: 23.17 | E130: 22.7 | F130: 22.72 | G130: 343100 | H130: 22.68 | I130: 0.9982394366 | J130: 1 | K130: 22.86 | L130: 23.13 | M130: 22.66 | N130: 22.68 | O130: 343100
A131: 116 | B131: 2014-07-28 | C131: 23.19 | D131: 23.2 | E131: 22.69 | F131: 22.92 | G131: 618800 | H131: 22.88 | I131: 0.9982547993 | J131: 1 | K131: 23.15 | L131: 23.16 | M131: 22.65 | N131: 22.88 | O131: 618800
A132: 117 | B132: 2014-07-25 | C132: 24 | D132: 24 | E132: 23.09 | F132: 23.1 | G132: 706700 | H132: 23.06 | I132: 0.9982683983 | J132: 1 | K132: 23.96 | L132: 23.96 | M132: 23.05 | N132: 23.06 | O132: 706700
A133: 118 | B133: 2014-07-24 | C133: 23.53 | D133: 24.23 | E133: 23.51 | F133: 24.15 | G133: 662100 | H133: 24.11 | I133: 0.9983436853 | J133: 1 | K133: 23.49 | L133: 24.19 | M133: 23.47 | N133: 24.11 | O133: 662100
A134: 119 | B134: 2014-07-23 | C134: 23.4 | D134: 24.2 | E134: 23.4 | F134: 23.78 | G134: 891300 | H134: 23.74 | I134: 0.9983179142 | J134: 1 | K134: 23.36 | L134: 24.16 | M134: 23.36 | N134: 23.74 | O134: 891300
A135: 120 | B135: 2014-07-22 | C135: 22.12 | D135: 23.43 | E135: 21.94 | F135: 23.41 | G135: 1068600 | H135: 23.37 | I135: 0.9982913285 | J135: 1 | K135: 22.08 | L135: 23.39 | M135: 21.9 | N135: 23.37 | O135: 1068600
A136: 121 | B136: 2014-07-21 | C136: 21.82 | D136: 21.96 | E136: 21.54 | F136: 21.89 | G136: 366200 | H136: 21.86 | I136: 0.9986295112 | J136: 1 | K136: 21.79 | L136: 21.93 | M136: 21.51 | N136: 21.86 | O136: 366200
A137: 122 | B137: 2014-07-18 | C137: 21.56 | D137: 22.07 | E137: 21.48 | F137: 21.96 | G137: 341600 | H137: 21.93 | I137: 0.9986338798 | J137: 1 | K137: 21.53 | L137: 22.04 | M137: 21.45 | N137: 21.93 | O137: 341600
A138: 123 | B138: 2014-07-17 | C138: 21.78 | D138: 21.93 | E138: 21.69 | F138: 21.76 | G138: 435200 | H138: 21.73 | I138: 0.9986213235 | J138: 1 | K138: 21.75 | L138: 21.9 | M138: 21.66 | N138: 21.73 | O138: 435200
A139: 124 | B139: 2014-07-16 | C139: 21.79 | D139: 22.05 | E139: 21.55 | F139: 22 | G139: 351000 | H139: 21.97 | I139: 0.9986363636 | J139: 1 | K139: 21.76 | L139: 22.02 | M139: 21.52 | N139: 21.97 | O139: 351000
A140: 125 | B140: 2014-07-15 | C140: 21.59 | D140: 21.91 | E140: 21.5 | F140: 21.69 | G140: 420200 | H140: 21.66 | I140: 0.9986168741 | J140: 1 | K140: 21.56 | L140: 21.88 | M140: 21.47 | N140: 21.66 | O140: 420200
A141: 126 | B141: 2014-07-14 | C141: 21.71 | D141: 21.73 | E141: 21.52 | F141: 21.66 | G141: 319500 | H141: 21.63 | I141: 0.9986149584 | J141: 1 | K141: 21.68 | L141: 21.7 | M141: 21.49 | N141: 21.63 | O141: 319500
A142: 127 | B142: 2014-07-11 | C142: 21.75 | D142: 21.92 | E142: 21.43 | F142: 21.52 | G142: 385600 | H142: 21.49 | I142: 0.998605948 | J142: 1 | K142: 21.72 | L142: 21.89 | M142: 21.4 | N142: 21.49 | O142: 385600
A143: 128 | B143: 2014-07-10 | C143: 21.57 | D143: 22.05 | E143: 21.51 | F143: 21.8 | G143: 595500 | H143: 21.77 | I143: 0.9986238532 | J143: 1 | K143: 21.54 | L143: 22.02 | M143: 21.48 | N143: 21.77 | O143: 595500
A144: 129 | B144: 2014-07-09 | C144: 21.63 | D144: 22.01 | E144: 21.34 | F144: 21.94 | G144: 459400 | H144: 21.91 | I144: 0.9986326345 | J144: 1 | K144: 21.6 | L144: 21.98 | M144: 21.31 | N144: 21.91 | O144: 459400
A145: 130 | B145: 2014-07-08 | C145: 21.48 | D145: 21.69 | E145: 21.31 | F145: 21.5 | G145: 635600 | H145: 21.47 | I145: =H145/F145 -> 0.9986046512 | J145: =INDEX(OFFSET($T$15,0,0,$S$13+1,1),MATCH(B145,OFFSET($Q$15,0,0,$S$13+1,1),-1)) -> 1 | K145: =ROUND($I145*C145,2) -> 21.45 | L145: =ROUND($I145*D145,2) -> 21.66 | M145: =ROUND($I145*E145,2) -> 21.28 | N145: =ROUND($I145*F145,2) -> 21.47 | O145: =G145*J145 -> 635600
A146: 131 | B146: 2014-07-07 | C146: 21.47 | D146: 21.78 | E146: 21.1 | F146: 21.55 | G146: 514000 | H146: 21.52 | I146: 0.9986078886 | J146: 1 | K146: 21.44 | L146: 21.75 | M146: 21.07 | N146: 21.52 | O146: 514000
A147: 132 | B147: 2014-07-03 | C147: 21.43 | D147: 21.64 | E147: 21.3 | F147: 21.57 | G147: 93400 | H147: 21.54 | I147: 0.9986091794 | J147: 1 | K147: 21.4 | L147: 21.61 | M147: 21.27 | N147: 21.54 | O147: 93400
A148: 133 | B148: 2014-07-02 | C148: 21.48 | D148: 21.71 | E148: 21.16 | F148: 21.31 | G148: 223400 | H148: 21.28 | I148: 0.9985922102 | J148: 1 | K148: 21.45 | L148: 21.68 | M148: 21.13 | N148: 21.28 | O148: 223400
A149: 134 | B149: 2014-07-01 | C149: 21.46 | D149: 21.84 | E149: 21.46 | F149: 21.52 | G149: 297700 | H149: 21.49 | I149: 0.998605948 | J149: 1 | K149: 21.43 | L149: 21.81 | M149: 21.43 | N149: 21.49 | O149: 297700
A150: 135 | B150: 2014-06-30 | C150: 21 | D150: 21.43 | E150: 20.98 | F150: 21.34 | G150: 361500 | H150: 21.31 | I150: 0.9985941893 | J150: 1 | K150: 20.97 | L150: 21.4 | M150: 20.95 | N150: 21.31 | O150: 361500
A151: 136 | B151: 2014-06-27 | C151: 20.86 | D151: 21.3 | E151: 20.79 | F151: 21.03 | G151: 1730200 | H151: 21 | I151: 0.9985734665 | J151: 1 | K151: 20.83 | L151: 21.27 | M151: 20.76 | N151: 21 | O151: 1730200
A152: 137 | B152: 2014-06-26 | C152: 21.05 | D152: 21.08 | E152: 20.79 | F152: 20.93 | G152: 313100 | H152: 20.9 | I152: 0.9985666507 | J152: 1 | K152: 21.02 | L152: 21.05 | M152: 20.76 | N152: 20.9 | O152: 313100
A153: 138 | B153: 2014-06-25 | C153: 21.07 | D153: 21.16 | E153: 20.83 | F153: 21.07 | G153: 365800 | H153: 21.04 | I153: 0.9985761747 | J153: 1 | K153: 21.04 | L153: 21.13 | M153: 20.8 | N153: 21.04 | O153: 365800
A154: 139 | B154: 2014-06-24 | C154: 21.56 | D154: 21.81 | E154: 21.13 | F154: 21.18 | G154: 389700 | H154: 21.15 | I154: 0.9985835694 | J154: 1 | K154: 21.53 | L154: 21.78 | M154: 21.1 | N154: 21.15 | O154: 389700
A155: 140 | B155: 2014-06-23 | C155: 21.88 | D155: 21.94 | E155: 21.57 | F155: 21.63 | G155: 167900 | H155: 21.6 | I155: 0.9986130374 | J155: 1 | K155: 21.85 | L155: 21.91 | M155: 21.54 | N155: 21.6 | O155: 167900
A156: 141 | B156: 2014-06-20 | C156: 21.97 | D156: 22.04 | E156: 21.51 | F156: 21.88 | G156: 820800 | H156: 21.85 | I156: 0.9986288848 | J156: 1 | K156: 21.94 | L156: 22.01 | M156: 21.48 | N156: 21.85 | O156: 820800
A157: 142 | B157: 2014-06-19 | C157: 22.01 | D157: 22.01 | E157: 21.7 | F157: 21.86 | G157: 184800 | H157: 21.83 | I157: 0.9986276304 | J157: 1 | K157: 21.98 | L157: 21.98 | M157: 21.67 | N157: 21.83 | O157: 184800
A158: 143 | B158: 2014-06-18 | C158: 21.4 | D158: 22.09 | E158: 21.4 | F158: 21.96 | G158: 408400 | H158: 21.93 | I158: 0.9986338798 | J158: 1 | K158: 21.37 | L158: 22.06 | M158: 21.37 | N158: 21.93 | O158: 408400
A159: 144 | B159: 2014-06-17 | C159: 21.95 | D159: 22.15 | E159: 21.45 | F159: 21.47 | G159: 386000 | H159: 21.42 | I159: 0.9976711691 | J159: 1 | K159: 21.9 | L159: 22.1 | M159: 21.4 | N159: 21.42 | O159: 386000
A160: 145 | B160: 2014-06-16 | C160: 21.81 | D160: 22.07 | E160: 21.73 | F160: 22.01 | G160: 354600 | H160: 21.95 | I160: 0.9972739664 | J160: 1 | K160: 21.75 | L160: 22.01 | M160: 21.67 | N160: 21.95 | O160: 354600
A161: 146 | B161: 2014-06-13 | C161: 21.64 | D161: 21.95 | E161: 21.44 | F161: 21.87 | G161: 290800 | H161: 21.81 | I161: 0.9972565158 | J161: 1 | K161: 21.58 | L161: 21.89 | M161: 21.38 | N161: 21.81 | O161: 290800
A162: 147 | B162: 2014-06-12 | C162: 21.74 | D162: 21.83 | E162: 21.44 | F162: 21.55 | G162: 316900 | H162: 21.5 | I162: 0.9976798144 | J162: 1 | K162: 21.69 | L162: 21.78 | M162: 21.39 | N162: 21.5 | O162: 316900
A163: 148 | B163: 2014-06-11 | C163: 21.9 | D163: 21.9 | E163: 21.65 | F163: 21.82 | G163: 186600 | H163: 21.77 | I163: 0.9977085243 | J163: 1 | K163: 21.85 | L163: 21.85 | M163: 21.6 | N163: 21.77 | O163: 186600
A164: 149 | B164: 2014-06-10 | C164: 22.03 | D164: 22.1 | E164: 21.78 | F164: 22.06 | G164: 209300 | H164: 22 | I164: 0.9972801451 | J164: 1 | K164: 21.97 | L164: 22.04 | M164: 21.72 | N164: 22 | O164: 209300
A165: 150 | B165: 2014-06-09 | C165: 21.87 | D165: 22.33 | E165: 21.82 | F165: 22.08 | G165: 260700 | H165: 22.02 | I165: 0.9972826087 | J165: 1 | K165: 21.81 | L165: 22.27 | M165: 21.76 | N165: 22.02 | O165: 260700
A166: 151 | B166: 2014-06-06 | C166: 21.78 | D166: 22.01 | E166: 21.41 | F166: 21.92 | G166: 227900 | H166: 21.86 | I166: 0.9972627737 | J166: 1 | K166: 21.72 | L166: 21.95 | M166: 21.35 | N166: 21.86 | O166: 227900
A167: 152 | B167: 2014-06-05 | C167: 21.19 | D167: 21.7 | E167: 20.98 | F167: 21.7 | G167: 384000 | H167: 21.65 | I167: 0.9976958525 | J167: 1 | K167: 21.14 | L167: 21.65 | M167: 20.93 | N167: 21.65 | O167: 384000
A168: 153 | B168: 2014-06-04 | C168: 20.98 | D168: 21.23 | E168: 20.91 | F168: 21.08 | G168: 355100 | H168: 21.03 | I168: 0.9976280835 | J168: 1 | K168: 20.93 | L168: 21.18 | M168: 20.86 | N168: 21.03 | O168: 355100
A169: 154 | B169: 2014-06-03 | C169: 21.37 | D169: 21.58 | E169: 20.96 | F169: 21.02 | G169: 433700 | H169: 20.97 | I169: 0.997621313 | J169: 1 | K169: 21.32 | L169: 21.53 | M169: 20.91 | N169: 20.97 | O169: 433700
A170: 155 | B170: 2014-06-02 | C170: 21.64 | D170: 21.68 | E170: 21.4 | F170: 21.49 | G170: 383700 | H170: 21.44 | I170: 0.9976733364 | J170: 1 | K170: 21.59 | L170: 21.63 | M170: 21.35 | N170: 21.44 | O170: 383700
A171: 156 | B171: 2014-05-30 | C171: 22 | D171: 22.13 | E171: 21.58 | F171: 21.63 | G171: 272300 | H171: 21.58 | I171: 0.9976883957 | J171: 1 | K171: 21.95 | L171: 22.08 | M171: 21.53 | N171: 21.58 | O171: 272300
A172: 157 | B172: 2014-05-29 | C172: 21.95 | D172: 22.11 | E172: 21.59 | F172: 21.96 | G172: 360100 | H172: 21.9 | I172: 0.9972677596 | J172: 1 | K172: 21.89 | L172: 22.05 | M172: 21.53 | N172: 21.9 | O172: 360100
A173: 158 | B173: 2014-05-28 | C173: 21.49 | D173: 21.83 | E173: 21.44 | F173: 21.74 | G173: 368500 | H173: 21.69 | I173: 0.997700092 | J173: 1 | K173: 21.44 | L173: 21.78 | M173: 21.39 | N173: 21.69 | O173: 368500
A174: 159 | B174: 2014-05-27 | C174: 21.27 | D174: 21.57 | E174: 21.13 | F174: 21.54 | G174: 372800 | H174: 21.49 | I174: 0.9976787372 | J174: 1 | K174: 21.22 | L174: 21.52 | M174: 21.08 | N174: 21.49 | O174: 372800
A175: 160 | B175: 2014-05-23 | C175: 21 | D175: 21.18 | E175: 20.9 | F175: 21.1 | G175: 355100 | H175: 21.05 | I175: 0.9976303318 | J175: 1 | K175: 20.95 | L175: 21.13 | M175: 20.85 | N175: 21.05 | O175: 355100
A176: 161 | B176: 2014-05-22 | C176: 20.33 | D176: 21 | E176: 20.33 | F176: 20.96 | G176: 368200 | H176: 20.91 | I176: 0.9976145038 | J176: 1 | K176: 20.28 | L176: 20.95 | M176: 20.28 | N176: 20.91 | O176: 368200
A177: 162 | B177: 2014-05-21 | C177: 20.64 | D177: 20.74 | E177: 20.29 | F177: 20.3 | G177: 450900 | H177: 20.25 | I177: 0.9975369458 | J177: 1 | K177: 20.59 | L177: 20.69 | M177: 20.24 | N177: 20.25 | O177: 450900
A178: 163 | B178: 2014-05-20 | C178: 20.73 | D178: 20.85 | E178: 20.31 | F178: 20.57 | G178: 354100 | H178: 20.52 | I178: 0.9975692756 | J178: 1 | K178: 20.68 | L178: 20.8 | M178: 20.26 | N178: 20.52 | O178: 354100
A179: 164 | B179: 2014-05-19 | C179: 20.32 | D179: 20.87 | E179: 20.22 | F179: 20.82 | G179: 320000 | H179: 20.77 | I179: 0.997598463 | J179: 1 | K179: 20.27 | L179: 20.82 | M179: 20.17 | N179: 20.77 | O179: 320000
A180: 165 | B180: 2014-05-16 | C180: 20.16 | D180: 20.57 | E180: 19.99 | F180: 20.38 | G180: 318300 | H180: 20.33 | I180: 0.9975466143 | J180: 1 | K180: 20.11 | L180: 20.52 | M180: 19.94 | N180: 20.33 | O180: 318300
A181: 166 | B181: 2014-05-15 | C181: 20.59 | D181: 20.61 | E181: 19.96 | F181: 20.2 | G181: 676100 | H181: 20.15 | I181: 0.9975247525 | J181: 1 | K181: 20.54 | L181: 20.56 | M181: 19.91 | N181: 20.15 | O181: 676100
A182: 167 | B182: 2014-05-14 | C182: 21.05 | D182: 21.1 | E182: 20.59 | F182: 20.7 | G182: 326500 | H182: 20.65 | I182: 0.9975845411 | J182: 1 | K182: 21 | L182: 21.05 | M182: 20.54 | N182: 20.65 | O182: 326500
A183: 168 | B183: 2014-05-13 | C183: 21.45 | D183: 21.49 | E183: 21.14 | F183: 21.15 | G183: 391800 | H183: 21.1 | I183: 0.9976359338 | J183: 1 | K183: 21.4 | L183: 21.44 | M183: 21.09 | N183: 21.1 | O183: 391800
A184: 169 | B184: 2014-05-12 | C184: 20.65 | D184: 21.56 | E184: 20.46 | F184: 21.43 | G184: 449400 | H184: 21.38 | I184: 0.9976668222 | J184: 1 | K184: 20.6 | L184: 21.51 | M184: 20.41 | N184: 21.38 | O184: 449400
A185: 170 | B185: 2014-05-09 | C185: 20.65 | D185: 20.74 | E185: 20.43 | F185: 20.64 | G185: 529700 | H185: 20.59 | I185: 0.9975775194 | J185: 1 | K185: 20.6 | L185: 20.69 | M185: 20.38 | N185: 20.59 | O185: 529700
A186: 171 | B186: 2014-05-08 | C186: 20.92 | D186: 21.29 | E186: 20.71 | F186: 20.74 | G186: 237800 | H186: 20.69 | I186: 0.9975891996 | J186: 1 | K186: 20.87 | L186: 21.24 | M186: 20.66 | N186: 20.69 | O186: 237800
A187: 172 | B187: 2014-05-07 | C187: 21.09 | D187: 21.31 | E187: 20.74 | F187: 20.97 | G187: 435700 | H187: 20.92 | I187: 0.9976156414 | J187: 1 | K187: 21.04 | L187: 21.26 | M187: 20.69 | N187: 20.92 | O187: 435700
A188: 173 | B188: 2014-05-06 | C188: 21.43 | D188: 21.62 | E188: 21.07 | F188: 21.11 | G188: 326400 | H188: 21.06 | I188: 0.9976314543 | J188: 1 | K188: 21.38 | L188: 21.57 | M188: 21.02 | N188: 21.06 | O188: 326400
A189: 174 | B189: 2014-05-05 | C189: 21.43 | D189: 21.68 | E189: 21.06 | F189: 21.51 | G189: 275200 | H189: 21.46 | I189: 0.9976754998 | J189: 1 | K189: 21.38 | L189: 21.63 | M189: 21.01 | N189: 21.46 | O189: 275200
A190: 175 | B190: 2014-05-02 | C190: 21.53 | D190: 21.82 | E190: 21.21 | F190: 21.54 | G190: 592600 | H190: 21.49 | I190: 0.9976787372 | J190: 1 | K190: 21.48 | L190: 21.77 | M190: 21.16 | N190: 21.49 | O190: 592600
A191: 176 | B191: 2014-05-01 | C191: 21.69 | D191: 21.8 | E191: 21.25 | F191: 21.48 | G191: 511700 | H191: 21.43 | I191: 0.9976722533 | J191: 1 | K191: 21.64 | L191: 21.75 | M191: 21.2 | N191: 21.43 | O191: 511700
A192: 177 | B192: 2014-04-30 | C192: 21.65 | D192: 21.8 | E192: 21.46 | F192: 21.76 | G192: 679500 | H192: 21.71 | I192: 0.9977022059 | J192: 1 | K192: 21.6 | L192: 21.75 | M192: 21.41 | N192: 21.71 | O192: 679500
A193: 178 | B193: 2014-04-29 | C193: 21.93 | D193: 21.98 | E193: 21.53 | F193: 21.72 | G193: 285800 | H193: 21.67 | I193: 0.9976979742 | J193: 1 | K193: 21.88 | L193: 21.93 | M193: 21.48 | N193: 21.67 | O193: 285800
A194: 179 | B194: 2014-04-28 | C194: 22.1 | D194: 22.4 | E194: 21.58 | F194: 21.77 | G194: 434100 | H194: 21.72 | I194: 0.9977032614 | J194: 1 | K194: 22.05 | L194: 22.35 | M194: 21.53 | N194: 21.72 | O194: 434100
A195: 180 | B195: 2014-04-25 | C195: 22.22 | D195: 22.24 | E195: 21.84 | F195: 22.09 | G195: 478000 | H195: 22.03 | I195: 0.9972838388 | J195: 1 | K195: 22.16 | L195: 22.18 | M195: 21.78 | N195: 22.03 | O195: 478000
A196: 181 | B196: 2014-04-24 | C196: 22.77 | D196: 22.77 | E196: 21.81 | F196: 22.33 | G196: 917300 | H196: 22.27 | I196: 0.9973130318 | J196: 1 | K196: 22.71 | L196: 22.71 | M196: 21.75 | N196: 22.27 | O196: 917300
A197: 182 | B197: 2014-04-23 | C197: 23.19 | D197: 23.26 | E197: 22.46 | F197: 22.7 | G197: 1208200 | H197: 22.64 | I197: 0.9973568282 | J197: 1 | K197: 23.13 | L197: 23.2 | M197: 22.4 | N197: 22.64 | O197: 1208200
A198: 183 | B198: 2014-04-22 | C198: 23.16 | D198: 23.53 | E198: 22.98 | F198: 23.17 | G198: 713800 | H198: 23.11 | I198: 0.9974104445 | J198: 1 | K198: 23.1 | L198: 23.47 | M198: 22.92 | N198: 23.11 | O198: 713800
A199: 184 | B199: 2014-04-21 | C199: 22.7 | D199: 23.2 | E199: 22.43 | F199: 23.15 | G199: 456000 | H199: 23.09 | I199: 0.9974082073 | J199: 1 | K199: 22.64 | L199: 23.14 | M199: 22.37 | N199: 23.09 | O199: 456000
A200: 185 | B200: 2014-04-17 | C200: 22.17 | D200: 22.77 | E200: 22.15 | F200: 22.58 | G200: 411200 | H200: 22.52 | I200: 0.9973427812 | J200: 1 | K200: 22.11 | L200: 22.71 | M200: 22.09 | N200: 22.52 | O200: 411200
... 6064 more rows

Sheet Follow
A1: Stocks and Indexes I wish to follow
A3: To ease following a stock, enter a Yahoo Finance acceptable symbol in column "A" anywhere below cell "A9".
A4: Thereafter you may doubleclick the cell containing a symbol of interest to initiate data retrieval and charting for that symbol.
A7: Symbol
A8: To | B8: Description | C8: Last Trade as of most recent check
A9: Follow | C9: Date | D9: Time | E9: Open | F9: High | G9: Low | H9: Close | I9: Volume
A10: F | B10: Ford Motor Compan (F) -NYSE (Daily) | C10: 2014-05-09 | D10: 16:00:00 | E10: 15.73 | F10: 15.9 | G10: 15.73 | H10: 15.77 | I10: 25172568
A11: MCD | B11: McDonald's Corpor (MCD) -NYSE (Daily) | C11: 2014-08-07 | D11: 11:39:00 | E11: 93.83 | F11: 94 | G11: 93.47 | H11: 93.54 | I11: 1106835
A12: JNJ | B12: Johnson & Johnson (JNJ) -NYSE | C12: 2014-02-03 | D12: 16:01:00 | E12: 88.75 | F12: 88.78 | G12: 86.61 | H12: 86.78 | I12: 13953268
A13: AAL | B13: American Airlines (AAL) -NasdaqNM | C13: 2014-02-03 | D13: 16:00:00 | E13: 34.04 | F13: 34.48 | G13: 33.05 | H13: 33.96 | I13: 21748284
A14: CIEN | B14: Ciena Corporation (CIEN) -NYSE | C14: 2014-02-03 | D14: 16:02:00 | E14: 23.31 | F14: 23.38 | G14: 21.9 | H14: 22.09 | I14: 4433923
A15: SONC | B15: Sonic Corp. (SONC) -NasdaqNM | C15: 2014-02-03 | D15: 16:00:00 | E15: 17.7 | F15: 18 | G15: 16.92 | H15: 17.28 | I15: 918579
A16: HTLD | B16: Heartland Express (HTLD) -NasdaqNM (Daily) | C16: 2015-01-09 | D16: 16:00:00 | E16: 26.67 | F16: 26.67 | G16: 26.16 | H16: 26.18 | I16: 310214
A17: adm | B17: Archer-Daniels-Mi (ADM) -NYSE (Daily) | C17: 2014-04-04 | D17: 16:01:00 | E17: 43.59 | F17: 43.66 | G17: 43.03 | H17: 43.05 | I17: 4416020
A18: a | B18: Agilent Technolog (A) -NYSE | C18: 2014-02-03 | D18: 16:02:00 | E18: 58.15 | F18: 58.48 | G18: 56.075 | H18: 56.15 | I18: 2929252
A19: psec | B19: Prospect Capital (PSEC) -NasdaqNM (Daily) | C19: 2014-11-07 | D19: 16:00:00 | E19: 9.55 | F19: 9.67 | G19: 9.49 | H19: 9.53 | I19: 5870263
A20: rtn | B20: Raytheon Company (RTN) -NYSE (Daily) | C20: 2014-11-07 | D20: 16:02:00 | E20: 104.54 | F20: 104.64 | G20: 103.26 | H20: 104.36 | I20: 1775996
A22: spy | B22: SPDR S&P 500 (SPY) -PCX (Daily) | C22: 2015-01-09 | D22: 10:43:00 | E22: 206.4 | F22: 206.42 | G22: 203.97 | H22: 204.16 | I22: 36904156
A23: ^GSPC | B23: S&P 500 (^GSPC) -SNP (Daily) | C23: 2015-01-09 | D23: 11:44:00 | E23: 2063.45 | F23: 2064.43 | G23: 2038.33 | H23: 2043.55 | I23: 156360512
A24: QQQ | B24: PowerShares QQQ T (QQQ) -NGM (Daily) | C24: 2015-01-09 | D24: 11:17:00 | E24: 103.61 | F24: 103.65 | G24: 102.05 | H24: 102.11 | I24: 18893092

Sheet CalculationsAndCharts
A1: Event Predictability Tester
B2: =InputPriceData!A1 -> Heartland Express (HTLD) -NasdaqNM (Daily)
A4: User Charting Controls
A5: Data Control
A6: =InputPriceData!$B$10 -> 6249 | B6: Available Input Data Rows | E6: Earliest: | F6: =OFFSET(InputPriceData!B15,CalculationsAndCharts!A6,0,1,1) -> 1990-03-26
B7: Use Close Adjusted: | C7: FALSE | E7: Latest: | F7: =OFFSET(InputPriceData!B15,1,0,1,1) -> 2015-01-09 | T7: Computations Area for Predictive Event Testing | AM7: Computations Area for Trade Decisions
A8: =MIN(A6-A11,COUNTA(B33:B9983)) -> 2800 | B8: Logically Available for Calc / Plot
A10: Price Chart Windowing Controls | F10: Y-axis Range
A11: 0 | B11: Input Data Offset (Pan) | E11: Max High+ | F11: =CEILING(MAX(OFFSET($E$33,0,0,$A$12,1))+2*F14,0.1) -> 29.6
A12: 500 | B12: Data Points to Plot (Zoom) | E12: Min Low- | F12: =FLOOR(MIN(OFFSET($F$33,0,0,$A$12,1))-2*F14,0.1) -> 11.3
B13: First: | C13: =OFFSET(B32,A12,0,1,1) -> 2013-01-16 | E13: White space %: | F13: 0.05
B14: ="Last: "&OFFSET(InputPriceData!P15,1+A11,0,1,1) -> Last: | C14: =B33 -> 2015-01-09 | E14: Allowance: | F14: =FLOOR((CEILING(MAX(OFFSET($E$33,0,0,$A$12,1)),1)-FLOOR(MIN(OFFSET($F$33,0,0,$A$12,1)),1))*$F$13,0.01) -> 0.8
A15: Help! I would like to plot data
A16: From | B16: 2013-10-04 | C16: =OFFSET(InputPriceData!$A$15,MATCH(B16,OFFSET(InputPriceData!B15,1,0,InputPriceData!$B$10,1),0),0,1,1)-C17 -> 201 | E16: 209 | AE16: Cross Check Computation of Final CG
A17: To | B17: 2014-07-23 | C17: =OFFSET(InputPriceData!$A$15,MATCH(B17,OFFSET(InputPriceData!$B$15,1,0,InputPriceData!$B$10,1),0),0,1,1)-1 -> 118 | E17: =$A$12-$E$16+1 -> 292
A18: Predictive Event Testing Controls | E18: Trading System Controls | W18: % Gain Probability Distribution For | AF18: SumProduct of Predict Bin# * Predict Bin content
A19: 18 | B19: <-- Stochastic Length (Bars) --> | E19: 16
A20: 0.1 | B20: <-- Cross Under Threshold --> | E20: 0.1 | AE20: Calculated Using Value Scale Range | AX20: Entries Ignored Due to Transaction in Progress
A21: 18 | B21: <-- Look Ahead (Bars) Max Trade --> | E21: 9 | AG21: Sum of Predict Bin Occurences | AI21: Scale Conversion Factor
D22: Stop Loss Pct --> | E22: 0.03 | W22: =COUNTIF(OFFSET(W33,0,0,$A$23,1),TRUE) -> 183 | AH22: Final
A23: 2800 | B23: <-- Back Test Bars w/ Date Range ==> | D23: =OFFSET(B32,A23,0,1,1) -> 2003-11-25 | E23: =B33 -> 2015-01-09 | W23: Event Signals Found in | AH23: CG | AW23: Entries Taken
A24: Stochastic Cross Under System: (In $ For One Share Traded) | W24: =A23 -> 2800 | AE24: -50 to +50 | AF24: =SUMPRODUCT(AG33:AG133,AI33:AI133) -> 2498 | AG24: =SUM(AI33:AI133) -> 183 | AH24: =AF24/AG24 -> 13.65027322 | AI24: 0.2 | AJ24: =AH24*AI24 -> 2.730054645
A25: ="Summary of Trades using all "& TEXT(A8,"#,##0") & " available bars from "&TEXT(OFFSET(B32,A8,0,1,1),"mm/dd/yyyy") & " to " & TEXT(B33,"mm/dd/yyyy") -> Summary of Trades using all 2,800 available bars from 11/25/2003 to 01/09/2015 | W25: Bar "Predictive Event" Test | AE25: -10 to +10 | AF25: =SUMPRODUCT(AH33:AH133,AI33:AI133) -> 499.6 | AG25: =SUM(AI33:AI133) -> 183 | AH25: =AF25/AG24 -> 2.730054645 | AP25: Entry Signal Count | AW25: =COUNTIF(OFFSET(AW33,0,0,$A$8,1),TRUE) -> 130 | AX25: =AP27-AW25 -> 68
A26: For Details: See Transaction Summary Tab | V26: ="Preliminary Event Signal: Stoch Crossing Below " & TEXT($A$20,"#0.00") -> Preliminary Event Signal: Stoch Crossing Below 0.10 | W26: ="Event Signal: Stoch Crossing Below " & TEXT($A$20,"#0.00") & CHAR(10) & $A$21 & " bars ago" -> Event Signal: Stoch Crossing Below 0.10 18 bars ago | AJ26: Center of Gravity @
A27: Position | B27: Summary of System Trades | D27: =" Note: " & AX25 & " System Entry signals were ignored due to having a long position already active." -> Note: 68 System Entry signals were ignored due to having a long position already active. | AA27: Future Price % Up-Scaled into 0 to 100 Range | AI27: Max of Predict Bin Occurences | AP27: =COUNTIF(OFFSET(AP33,0,0,$A$8,1),TRUE) -> 198 | AW27: Transaction Decision Table
A28: Wins | B28: ='Transaction Summary'!$B$6&" Trans" -> 71 Trans | C28: ='Transaction Summary'!$I$6 -> 63.94 | H28: Date and prices @ Cursor => | I28: =OFFSET(A32,$E$17,0,1,1)&"(RR)" -> 292(RR) | J28: =OFFSET($B$32,E17,0,1,1) -> 2013-11-12 | K28: =TEXT(OFFSET(D32,$E$17,0,1,1),"#,##0.00")&"(o)" -> 17.48(o) | L28: =TEXT(OFFSET(E32,$E$17,0,1,1),"#,##0.00")&"(h)" -> 18.14(h) | M28: =TEXT(OFFSET(F32,$E$17,0,1,1),"#,##0.00")&"(l)" -> 16.03(l) | N28: =TEXT(OFFSET(G32,$E$17,0,1,1),"#,##0.00")&"(c)" -> 17.28(c) | AD28: Running Zero to 100 Range Center of Gravity | AJ28: =AJ24/100 -> 0.02730054645 | AU28: ="Hit Max Trade Duration of " &$E$21 & " Bars" -> Hit Max Trade Duration of 9 Bars
A29: Losses | B29: ='Transaction Summary'!$B$7&" Trans" -> 59 Trans | C29: ='Transaction Summary'!$I$7 -> -31.07 | Z29: Future Price % Clipped to +- 10 | AB29: Running CG Numerator | AC29: Running CG Denominator | AE29: Running CG Centered in -50 to +50 Range | AF29: Running CG Scaled into -10 to +10 Range | AJ29: CG Plot Location | AP29: ="Entry Signal: Stoch Crossing Below " & TEXT($A$20,"#0.00") -> Entry Signal: Stoch Crossing Below 0.10 | AV29: Composite of System Exit Conditions | AW29: Entries and Exits shown here are on the bar AFTER a Signal
A30: Net | B30: ='Transaction Summary'!$B$6+'Transaction Summary'!$B$7 & " Trans" -> 130 Trans | C30: =C28+C29 -> 32.87 | S30: ="Highest Close " &$A$19&" Bars" -> Highest Close 18 Bars | T30: ="Lowest Close " &$A$19&" Bars" -> Lowest Close 18 Bars | X30: ="Close " & $A$21 & " bars ago" -> Close 18 bars ago | Y30: Future Price % | AI30: =MAX(AI33:AI133) -> 29 | AM30: ="Highest Close " &$E$19&" Bars" -> Highest Close 16 Bars | AN30: ="Lowest Close " &$E$19&" Bars" -> Lowest Close 16 Bars | AQ30: Stop Loss Delta | AR30: ="Stop Loss Price @ " & TEXT(E22,"0.00%") -> Stop Loss Price @ 3.00%
A31: Rel Row | B31: Stock Prices | H31: P Cursor | I31: P Cursor Min | J31: Vol Cursor | K31: P Cursor Min | O31: Os Cursor | P31: P Cursor Min | U31: ="Stochastic (" & $A$19 & ")" -> Stochastic (18) | AG31: Predict Bin ID by Scale | AI31: Predict Bin | AJ31: =INT(INT(AE33*2)/2)*0.2 -> 2.6 | AO31: ="Stochastic (" & $E$19 & ")" -> Stochastic (16) | AS31: Hit Stop Loss | AT31: Trade Duration | AW31: Note: Long Only System
B32: Date | C32: Volume | D32: Open | E32: High | F32: Low | G32: Close | H32: =$F$11 -> 29.6 | I32: =$F$12 -> 11.3 | J32: =MAX(OFFSET(C32,1,0,A12,1)) -> 3747900 | K32: 0 | O32: 1 | P32: -1 | AH32: % gain | AI32: Occurences | AJ32: CG Plot Bar | AW32: Enter | AX32: Active | AY32: Exit
A33: 1 | B33: =OFFSET(InputPriceData!$B$15,CalculationsAndCharts!$A33+$A$11,0,1,1) -> 2015-01-09 | C33: =OFFSET(InputPriceData!G$15,CalculationsAndCharts!$A33+$A$11,IF($C$7,8,0),1,1) -> 310200 | D33: =OFFSET(InputPriceData!$C$15,CalculationsAndCharts!$A33+$A$11,IF($C$7,8,0),1,1) -> 26.67 | E33: =OFFSET(InputPriceData!$D$15,CalculationsAndCharts!$A33+$A$11,IF($C$7,8,0),1,1) -> 26.67 | F33: =OFFSET(InputPriceData!$E$15,CalculationsAndCharts!$A33+$A$11,IF($C$7,8,0),1,1) -> 26.16 | G33: =OFFSET(InputPriceData!$F$15,CalculationsAndCharts!$A33+$A$11,IF($C$7,8,0),1,1) -> 26.18 | H33: =$E$17 -> 292 | I33: =H32 -> 29.6 | J33: =$E$17 -> 292 | K33: =10^INT(LOG10(J32))*(INT(J32/10^INT(LOG10(J32)))+IF(2*(J32-(10^INT(LOG10(J32))*INT(J32/10^INT(LOG10(J32)))))>10^INT(LOG10(J32)),1,1)) -> 4000000 | O33: =$E$17 -> 292 | P33: =O32 -> 1 | S33: =MAX(OFFSET($G33,0,0,$A$19,1)) -> 27.71 | T33: =MIN(OFFSET($G33,0,0,$A$19,1)) -> 25.46 | U33: =IFERROR(($G33- T33)/(S33-T33),0) -> 0.32 | V33: =AND(U33<$A$20,U34>$A$20) -> FALSE | W33: =OFFSET(V33,($A$21-1),0,1,1) -> FALSE | X33: =IF($W33,OFFSET($G33,$A$19-1,0,1,1),"") ->  | Y33: =IF(W33,IFERROR(100*(G33-X33)/X33,0),"") ->  | Z33: =IF(W33,IF(Y33<-10,10,IF(Y33>10,10,Y33)),"") ->  | AA33: =IF(W33,INT(5*(Z33+10)),"") ->  | AB33: =IF(A33>$A$23,0,IF(W33,AA33,0))+AB34 -> 11648 | AC33: =IF(A33>$A$23,0,IF(W33,1,0))+AC34 -> 183 | AD33: =IFERROR(AB33/AC33,0) -> 63.65027322 | AE33: =IFERROR(AB33/AC33-50,0) -> 13.65027322 | AF33: =AE33*0.2 -> 2.730054645 | AG33: -50 | AH33: =0.2*AG33 -> -10 | AI33: =SUM((OFFSET($W$33,0,0,$A$23,1)=TRUE)*(OFFSET($AA$33,0,0,$A$23,1)=(AG33+50))) -> 0 | AJ33: =IF(AH33=$AJ$31,$AI$30+1,NA()) ->  | AM33: =MAX(OFFSET($G33,0,0,$E$19,1)) -> 27.71 | AN33: =MIN(OFFSET($G33,0,0,$E$19,1)) -> 25.46 | AO33: =IFERROR(($G33- AN33)/(AM33-AN33),0) -> 0.32 | AP33: =AND(AO33<$E$20,AO34>$E$20) -> FALSE | AQ33: =IF(AND(NOT(AX34),AW33),D33*($E$22),IF(AX33,AQ34,0)) -> 0.7692 | AR33: =IF(AND(NOT(AX34),AW33),D33*(1-$E$22),IF(AX33,AR34,0)) -> 24.8708 | AS33: =AND(AX33,F33<AR33) -> FALSE | AT33: =IF(AX33,AT34+1,0) -> 3 | AU33: =(AT33>=$E$21) -> FALSE | AV33: =OR(AS33,AU33) -> FALSE | AW33: =AND($AP34,NOT(AX34)) -> FALSE | AX33: =IF(AX34,IF(AY33,FALSE,AX34),IF(AW33,TRUE,AX34)) -> TRUE | AY33: =AND(AX34,AND($AV34<>$AV35,$AV34)) -> FALSE
A34: 2 | B34: =OFFSET(InputPriceData!B$15,CalculationsAndCharts!$A34+$A$11,0,1,1) -> 2015-01-08 | C34: =OFFSET(InputPriceData!G$15,CalculationsAndCharts!$A34+$A$11,IF($C$7,8,0),1,1) -> 497900 | D34: =OFFSET(InputPriceData!C$15,CalculationsAndCharts!$A34+$A$11,IF($C$7,8,0),1,1) -> 25.77 | E34: =OFFSET(InputPriceData!D$15,CalculationsAndCharts!$A34+$A$11,IF($C$7,8,0),1,1) -> 26.67 | F34: =OFFSET(InputPriceData!E$15,CalculationsAndCharts!$A34+$A$11,IF($C$7,8,0),1,1) -> 25.62 | G34: =OFFSET(InputPriceData!F$15,CalculationsAndCharts!$A34+$A$11,IF($C$7,8,0),1,1) -> 26.6 | H34: =$E$17 -> 292 | I34: =I32 -> 11.3 | J34: =$E$17 -> 292 | K34: =K32 -> 0 | O34: =$E$17 -> 292 | P34: =P32 -> -1 | S34: =MAX(OFFSET($G34,0,0,$A$19,1)) -> 27.71 | T34: =MIN(OFFSET($G34,0,0,$A$19,1)) -> 25.46 | U34: =IFERROR((G34- T34)/(S34-T34),0) -> 0.5066666667 | V34: =AND(U34<$A$20,U35>$A$20) -> FALSE | W34: =OFFSET(V34,($A$21-1),0,1,1) -> FALSE | X34: =IF($W34,OFFSET($G34,$A$19-1,0,1,1),"") ->  | Z34: =IF(W34,IF(Y34<-10,10,IF(Y34>10,10,Y34)),"") ->  | AA34: =IF(W34,INT(5*(Z34+10)),"") ->  | AB34: =IF(A34>$A$23,0,IF(W34,AA34,0))+AB35 -> 11648 | AC34: =IF(A34>$A$23,0,IF(W34,1,0))+AC35 -> 183 | AD34: 63.65027322 | AE34: 13.65027322 | AF34: =AE34*0.2 -> 2.730054645 | AG34: -49 | AH34: =0.2*AG34 -> -9.8 | AI34: =SUM((OFFSET($W$33,0,0,$A$23,1)=TRUE)*(OFFSET($AA$33,0,0,$A$23,1)=(AG34+50))) -> 0 | AM34: =MAX(OFFSET($G34,0,0,$E$19,1)) -> 27.71 | AN34: =MIN(OFFSET($G34,0,0,$E$19,1)) -> 25.46 | AO34: =IFERROR(($G34- AN34)/(AM34-AN34),0) -> 0.5066666667 | AP34: =AND(AO34<$E$20,AO35>$E$20) -> FALSE | AQ34: =IF(AND(NOT(AX35),AW34),D34*($E$22),IF(AX34,AQ35,0)) -> 0.7692 | AR34: 24.8708 | AS34: FALSE | AT34: 2 | AU34: =(AT34>=$E$21) -> FALSE | AV34: =OR(AS34,AU34) -> FALSE | AW34: =AND($AP35,NOT(AX35)) -> FALSE | AX34: =IF(AX35,IF(AY34,FALSE,AX35),IF(AW34,TRUE,AX35)) -> TRUE | AY34: =AND(AX35,AND(AV35<>AV36,AV35)) -> FALSE
A35: 3 | B35: =OFFSET(InputPriceData!B$15,CalculationsAndCharts!$A35+$A$11,0,1,1) -> 2015-01-07 | C35: =OFFSET(InputPriceData!G$15,CalculationsAndCharts!$A35+$A$11,IF($C$7,8,0),1,1) -> 761600 | D35: =OFFSET(InputPriceData!C$15,CalculationsAndCharts!$A35+$A$11,IF($C$7,8,0),1,1) -> 25.64 | E35: =OFFSET(InputPriceData!D$15,CalculationsAndCharts!$A35+$A$11,IF($C$7,8,0),1,1) -> 25.78 | F35: =OFFSET(InputPriceData!E$15,CalculationsAndCharts!$A35+$A$11,IF($C$7,8,0),1,1) -> 24.95 | G35: =OFFSET(InputPriceData!F$15,CalculationsAndCharts!$A35+$A$11,IF($C$7,8,0),1,1) -> 25.46 | S35: 27.71 | T35: 25.46 | U35: 0 | V35: FALSE | W35: TRUE | X35: 25.58 | Y35: -0.4691164973 | Z35: -0.4691164973 | AA35: 47 | AB35: 11648 | AC35: 183 | AD35: 63.65027322 | AE35: 13.65027322 | AF35: 2.730054645 | AG35: -48 | AH35: -9.6 | AI35: =SUM((OFFSET($W$33,0,0,$A$23,1)=TRUE)*(OFFSET($AA$33,0,0,$A$23,1)=(AG35+50))) -> 0 | AM35: 27.71 | AN35: 25.46 | AO35: 0 | AP35: FALSE | AQ35: 0.7692 | AR35: 24.8708 | AS35: FALSE | AT35: 1 | AU35: FALSE | AV35: FALSE | AW35: TRUE | AX35: TRUE | AY35: FALSE
A36: 4 | B36: =OFFSET(InputPriceData!B$15,CalculationsAndCharts!$A36+$A$11,0,1,1) -> 2015-01-06 | C36: =OFFSET(InputPriceData!G$15,CalculationsAndCharts!$A36+$A$11,IF($C$7,8,0),1,1) -> 386200 | D36: =OFFSET(InputPriceData!C$15,CalculationsAndCharts!$A36+$A$11,IF($C$7,8,0),1,1) -> 26.1 | E36: =OFFSET(InputPriceData!D$15,CalculationsAndCharts!$A36+$A$11,IF($C$7,8,0),1,1) -> 26.1 | F36: =OFFSET(InputPriceData!E$15,CalculationsAndCharts!$A36+$A$11,IF($C$7,8,0),1,1) -> 25.22 | G36: =OFFSET(InputPriceData!F$15,CalculationsAndCharts!$A36+$A$11,IF($C$7,8,0),1,1) -> 25.59 | S36: 27.71 | T36: 25.5 | U36: 0.0407239819 | V36: TRUE | W36: FALSE | AB36: 11601 | AC36: 182 | AD36: 63.74175824 | AE36: 13.74175824 | AF36: 2.748351648 | AG36: -47 | AH36: -9.4 | AI36: =SUM((OFFSET($W$33,0,0,$A$23,1)=TRUE)*(OFFSET($AA$33,0,0,$A$23,1)=(AG36+50))) -> 0 | AM36: 27.71 | AN36: 25.59 | AO36: 0 | AP36: TRUE | AQ36: 0 | AR36: 0 | AS36: FALSE | AT36: 0 | AU36: FALSE | AV36: FALSE | AW36: FALSE | AX36: FALSE | AY36: FALSE
A37: 5 | B37: =OFFSET(InputPriceData!B$15,CalculationsAndCharts!$A37+$A$11,0,1,1) -> 2015-01-05 | C37: =OFFSET(InputPriceData!G$15,CalculationsAndCharts!$A37+$A$11,IF($C$7,8,0),1,1) -> 387000 | D37: =OFFSET(InputPriceData!C$15,CalculationsAndCharts!$A37+$A$11,IF($C$7,8,0),1,1) -> 26.89 | E37: =OFFSET(InputPriceData!D$15,CalculationsAndCharts!$A37+$A$11,IF($C$7,8,0),1,1) -> 26.9 | F37: =OFFSET(InputPriceData!E$15,CalculationsAndCharts!$A37+$A$11,IF($C$7,8,0),1,1) -> 25.81 | G37: =OFFSET(InputPriceData!F$15,CalculationsAndCharts!$A37+$A$11,IF($C$7,8,0),1,1) -> 25.96 | S37: 27.71 | T37: 25.5 | U37: 0.2081447964 | V37: FALSE | W37: FALSE | AB37: 11601 | AC37: 182 | AD37: 63.74175824 | AE37: 13.74175824 | AF37: 2.748351648 | AG37: -46 | AH37: -9.2 | AI37: =SUM((OFFSET($W$33,0,0,$A$23,1)=TRUE)*(OFFSET($AA$33,0,0,$A$23,1)=(AG37+50))) -> 0 | AM37: 27.71 | AN37: 25.58 | AO37: 0.1784037559 | AP37: FALSE | AQ37: 0 | AR37: 0 | AS37: FALSE | AT37: 0 | AU37: FALSE | AV37: FALSE | AW37: FALSE | AX37: FALSE | AY37: FALSE
A38: 6 | B38: =OFFSET(InputPriceData!B$15,CalculationsAndCharts!$A38+$A$11,0,1,1) -> 2015-01-02 | C38: =OFFSET(InputPriceData!G$15,CalculationsAndCharts!$A38+$A$11,IF($C$7,8,0),1,1) -> 386500 | D38: =OFFSET(InputPriceData!C$15,CalculationsAndCharts!$A38+$A$11,IF($C$7,8,0),1,1) -> 27.13 | E38: =OFFSET(InputPriceData!D$15,CalculationsAndCharts!$A38+$A$11,IF($C$7,8,0),1,1) -> 27.25 | F38: =OFFSET(InputPriceData!E$15,CalculationsAndCharts!$A38+$A$11,IF($C$7,8,0),1,1) -> 26.46 | G38: =OFFSET(InputPriceData!F$15,CalculationsAndCharts!$A38+$A$11,IF($C$7,8,0),1,1) -> 26.97 | S38: 27.71 | T38: 25.5 | U38: 0.665158371 | V38: FALSE | W38: FALSE | AB38: 11601 | AC38: 182 | AD38: 63.74175824 | AE38: 13.74175824 | AF38: 2.748351648 | AG38: -45 | AH38: -9 | AI38: =SUM((OFFSET($W$33,0,0,$A$23,1)=TRUE)*(OFFSET($AA$33,0,0,$A$23,1)=(AG38+50))) -> 0 | AM38: 27.71 | AN38: 25.5 | AO38: 0.665158371 | AP38: FALSE | AQ38: 0 | AR38: 0 | AS38: FALSE | AT38: 0 | AU38: FALSE | AV38: FALSE | AW38: FALSE | AX38: FALSE | AY38: FALSE
A39: 7 | B39: =OFFSET(InputPriceData!B$15,CalculationsAndCharts!$A39+$A$11,0,1,1) -> 2014-12-31 | C39: =OFFSET(InputPriceData!G$15,CalculationsAndCharts!$A39+$A$11,IF($C$7,8,0),1,1) -> 337300 | D39: =OFFSET(InputPriceData!C$15,CalculationsAndCharts!$A39+$A$11,IF($C$7,8,0),1,1) -> 27.06 | E39: =OFFSET(InputPriceData!D$15,CalculationsAndCharts!$A39+$A$11,IF($C$7,8,0),1,1) -> 27.33 | F39: =OFFSET(InputPriceData!E$15,CalculationsAndCharts!$A39+$A$11,IF($C$7,8,0),1,1) -> 26.85 | G39: =OFFSET(InputPriceData!F$15,CalculationsAndCharts!$A39+$A$11,IF($C$7,8,0),1,1) -> 27.01 | S39: 27.71 | T39: 25.5 | U39: 0.6832579186 | V39: FALSE | W39: FALSE | AB39: 11601 | AC39: 182 | AD39: 63.74175824 | AE39: 13.74175824 | AF39: 2.748351648 | AG39: -44 | AH39: -8.8 | AI39: =SUM((OFFSET($W$33,0,0,$A$23,1)=TRUE)*(OFFSET($AA$33,0,0,$A$23,1)=(AG39+50))) -> 0 | AM39: 27.71 | AN39: 25.5 | AO39: 0.6832579186 | AP39: FALSE | AQ39: 0 | AR39: 0 | AS39: FALSE | AT39: 0 | AU39: FALSE | AV39: FALSE | AW39: FALSE | AX39: FALSE | AY39: FALSE
A40: 8 | B40: =OFFSET(InputPriceData!B$15,CalculationsAndCharts!$A40+$A$11,0,1,1) -> 2014-12-30 | C40: =OFFSET(InputPriceData!G$15,CalculationsAndCharts!$A40+$A$11,IF($C$7,8,0),1,1) -> 425900 | D40: =OFFSET(InputPriceData!C$15,CalculationsAndCharts!$A40+$A$11,IF($C$7,8,0),1,1) -> 26.78 | E40: =OFFSET(InputPriceData!D$15,CalculationsAndCharts!$A40+$A$11,IF($C$7,8,0),1,1) -> 27.18 | F40: =OFFSET(InputPriceData!E$15,CalculationsAndCharts!$A40+$A$11,IF($C$7,8,0),1,1) -> 26.66 | G40: =OFFSET(InputPriceData!F$15,CalculationsAndCharts!$A40+$A$11,IF($C$7,8,0),1,1) -> 27.09 | S40: 27.71 | T40: 25.5 | U40: 0.7194570136 | V40: FALSE | W40: FALSE | AB40: 11601 | AC40: 182 | AD40: 63.74175824 | AE40: 13.74175824 | AF40: 2.748351648 | AG40: -43 | AH40: -8.6 | AI40: =SUM((OFFSET($W$33,0,0,$A$23,1)=TRUE)*(OFFSET($AA$33,0,0,$A$23,1)=(AG40+50))) -> 2 | AM40: 27.71 | AN40: 25.5 | AO40: 0.7194570136 | AP40: FALSE | AQ40: 0 | AR40: 0 | AS40: FALSE | AT40: 0 | AU40: FALSE | AV40: FALSE | AW40: FALSE | AX40: FALSE | AY40: FALSE
A41: 9 | B41: =OFFSET(InputPriceData!B$15,CalculationsAndCharts!$A41+$A$11,0,1,1) -> 2014-12-29 | C41: =OFFSET(InputPriceData!G$15,CalculationsAndCharts!$A41+$A$11,IF($C$7,8,0),1,1) -> 504800 | D41: =OFFSET(InputPriceData!C$15,CalculationsAndCharts!$A41+$A$11,IF($C$7,8,0),1,1) -> 27.68 | E41: =OFFSET(InputPriceData!D$15,CalculationsAndCharts!$A41+$A$11,IF($C$7,8,0),1,1) -> 27.96 | F41: =OFFSET(InputPriceData!E$15,CalculationsAndCharts!$A41+$A$11,IF($C$7,8,0),1,1) -> 26.68 | G41: =OFFSET(InputPriceData!F$15,CalculationsAndCharts!$A41+$A$11,IF($C$7,8,0),1,1) -> 26.78 | S41: 27.71 | T41: 25.5 | U41: 0.5791855204 | V41: FALSE | W41: FALSE | AB41: 11601 | AC41: 182 | AD41: 63.74175824 | AE41: 13.74175824 | AF41: 2.748351648 | AG41: -42 | AH41: -8.4 | AI41: =SUM((OFFSET($W$33,0,0,$A$23,1)=TRUE)*(OFFSET($AA$33,0,0,$A$23,1)=(AG41+50))) -> 0 | AM41: 27.71 | AN41: 25.5 | AO41: 0.5791855204 | AP41: FALSE | AQ41: 0 | AR41: 0 | AS41: FALSE | AT41: 0 | AU41: FALSE | AV41: FALSE | AW41: FALSE | AX41: FALSE | AY41: FALSE
A42: 10 | B42: =OFFSET(InputPriceData!B$15,CalculationsAndCharts!$A42+$A$11,0,1,1) -> 2014-12-26 | C42: =OFFSET(InputPriceData!G$15,CalculationsAndCharts!$A42+$A$11,IF($C$7,8,0),1,1) -> 200800 | D42: =OFFSET(InputPriceData!C$15,CalculationsAndCharts!$A42+$A$11,IF($C$7,8,0),1,1) -> 27.45 | E42: =OFFSET(InputPriceData!D$15,CalculationsAndCharts!$A42+$A$11,IF($C$7,8,0),1,1) -> 27.93 | F42: =OFFSET(InputPriceData!E$15,CalculationsAndCharts!$A42+$A$11,IF($C$7,8,0),1,1) -> 27.39 | G42: =OFFSET(InputPriceData!F$15,CalculationsAndCharts!$A42+$A$11,IF($C$7,8,0),1,1) -> 27.71 | S42: 27.71 | T42: 25.5 | U42: 1 | V42: FALSE | W42: FALSE | AB42: 11601 | AC42: 182 | AD42: 63.74175824 | AE42: 13.74175824 | AF42: 2.748351648 | AG42: -41 | AH42: -8.2 | AI42: =SUM((OFFSET($W$33,0,0,$A$23,1)=TRUE)*(OFFSET($AA$33,0,0,$A$23,1)=(AG42+50))) -> 0 | AM42: 27.71 | AN42: 25.5 | AO42: =IFERROR(($G42- AN42)/(AM42-AN42),0) -> 1 | AP42: FALSE | AQ42: 0 | AR42: 0 | AS42: FALSE | AT42: 0 | AU42: FALSE | AV42: FALSE | AW42: FALSE | AX42: FALSE | AY42: FALSE
A43: 11 | B43: =OFFSET(InputPriceData!B$15,CalculationsAndCharts!$A43+$A$11,0,1,1) -> 2014-12-24 | C43: =OFFSET(InputPriceData!G$15,CalculationsAndCharts!$A43+$A$11,IF($C$7,8,0),1,1) -> 181100 | D43: =OFFSET(InputPriceData!C$15,CalculationsAndCharts!$A43+$A$11,IF($C$7,8,0),1,1) -> 27.53 | E43: =OFFSET(InputPriceData!D$15,CalculationsAndCharts!$A43+$A$11,IF($C$7,8,0),1,1) -> 27.6 | F43: =OFFSET(InputPriceData!E$15,CalculationsAndCharts!$A43+$A$11,IF($C$7,8,0),1,1) -> 27.15 | G43: =OFFSET(InputPriceData!F$15,CalculationsAndCharts!$A43+$A$11,IF($C$7,8,0),1,1) -> 27.47 | S43: 27.47 | T43: 25.5 | U43: 1 | V43: FALSE | W43: FALSE | AB43: 11601 | AC43: 182 | AD43: 63.74175824 | AE43: 13.74175824 | AF43: 2.748351648 | AG43: -40 | AH43: -8 | AI43: =SUM((OFFSET($W$33,0,0,$A$23,1)=TRUE)*(OFFSET($AA$33,0,0,$A$23,1)=(AG43+50))) -> 1 | AM43: 27.47 | AN43: 25.5 | AO43: 1 | AP43: FALSE | AQ43: 0 | AR43: 0 | AS43: FALSE | AT43: 0 | AU43: FALSE | AV43: FALSE | AW43: FALSE | AX43: FALSE | AY43: TRUE
A44: 12 | B44: =OFFSET(InputPriceData!B$15,CalculationsAndCharts!$A44+$A$11,0,1,1) -> 2014-12-23 | C44: =OFFSET(InputPriceData!G$15,CalculationsAndCharts!$A44+$A$11,IF($C$7,8,0),1,1) -> 266200 | D44: =OFFSET(InputPriceData!C$15,CalculationsAndCharts!$A44+$A$11,IF($C$7,8,0),1,1) -> 27.07 | E44: =OFFSET(InputPriceData!D$15,CalculationsAndCharts!$A44+$A$11,IF($C$7,8,0),1,1) -> 27.53 | F44: =OFFSET(InputPriceData!E$15,CalculationsAndCharts!$A44+$A$11,IF($C$7,8,0),1,1) -> 26.88 | G44: =OFFSET(InputPriceData!F$15,CalculationsAndCharts!$A44+$A$11,IF($C$7,8,0),1,1) -> 27.45 | S44: 27.45 | T44: 25.5 | U44: 1 | V44: FALSE | W44: FALSE | AB44: 11601 | AC44: 182 | AD44: 63.74175824 | AE44: 13.74175824 | AF44: 2.748351648 | AG44: -39 | AH44: -7.8 | AI44: =SUM((OFFSET($W$33,0,0,$A$23,1)=TRUE)*(OFFSET($AA$33,0,0,$A$23,1)=(AG44+50))) -> 0 | AM44: 27.45 | AN44: 25.5 | AO44: 1 | AP44: FALSE | AQ44: 0.7698 | AR44: 24.8902 | AS44: FALSE | AT44: 9 | AU44: TRUE | AV44: TRUE | AW44: FALSE | AX44: TRUE | AY44: FALSE
A45: 13 | B45: =OFFSET(InputPriceData!B$15,CalculationsAndCharts!$A45+$A$11,0,1,1) -> 2014-12-22 | C45: =OFFSET(InputPriceData!G$15,CalculationsAndCharts!$A45+$A$11,IF($C$7,8,0),1,1) -> 198200 | D45: =OFFSET(InputPriceData!C$15,CalculationsAndCharts!$A45+$A$11,IF($C$7,8,0),1,1) -> 26.68 | E45: =OFFSET(InputPriceData!D$15,CalculationsAndCharts!$A45+$A$11,IF($C$7,8,0),1,1) -> 27.02 | F45: =OFFSET(InputPriceData!E$15,CalculationsAndCharts!$A45+$A$11,IF($C$7,8,0),1,1) -> 26.52 | G45: =OFFSET(InputPriceData!F$15,CalculationsAndCharts!$A45+$A$11,IF($C$7,8,0),1,1) -> 26.95 | S45: 26.95 | T45: 25.5 | U45: 1 | V45: FALSE | W45: FALSE | AB45: 11601 | AC45: 182 | AD45: 63.74175824 | AE45: 13.74175824 | AF45: 2.748351648 | AG45: -38 | AH45: -7.6 | AI45: =SUM((OFFSET($W$33,0,0,$A$23,1)=TRUE)*(OFFSET($AA$33,0,0,$A$23,1)=(AG45+50))) -> 1 | AM45: 26.95 | AN45: 25.5 | AO45: 1 | AP45: FALSE | AQ45: 0.7698 | AR45: 24.8902 | AS45: FALSE | AT45: 8 | AU45: FALSE | AV45: FALSE | AW45: FALSE | AX45: TRUE | AY45: FALSE
A46: 14 | B46: =OFFSET(InputPriceData!B$15,CalculationsAndCharts!$A46+$A$11,0,1,1) -> 2014-12-19 | C46: =OFFSET(InputPriceData!G$15,CalculationsAndCharts!$A46+$A$11,IF($C$7,8,0),1,1) -> 1007000 | D46: =OFFSET(InputPriceData!C$15,CalculationsAndCharts!$A46+$A$11,IF($C$7,8,0),1,1) -> 26.55 | E46: =OFFSET(InputPriceData!D$15,CalculationsAndCharts!$A46+$A$11,IF($C$7,8,0),1,1) -> 26.66 | F46: =OFFSET(InputPriceData!E$15,CalculationsAndCharts!$A46+$A$11,IF($C$7,8,0),1,1) -> 26.27 | G46: =OFFSET(InputPriceData!F$15,CalculationsAndCharts!$A46+$A$11,IF($C$7,8,0),1,1) -> 26.61 | S46: 26.61 | T46: 25.5 | U46: 1 | V46: FALSE | W46: FALSE | AB46: 11601 | AC46: 182 | AD46: 63.74175824 | AE46: 13.74175824 | AF46: 2.748351648 | AG46: -37 | AH46: -7.4 | AI46: =SUM((OFFSET($W$33,0,0,$A$23,1)=TRUE)*(OFFSET($AA$33,0,0,$A$23,1)=(AG46+50))) -> 0 | AM46: 26.61 | AN46: 25.5 | AO46: 1 | AP46: FALSE | AQ46: 0.7698 | AR46: 24.8902 | AS46: FALSE | AT46: 7 | AU46: FALSE | AV46: FALSE | AW46: FALSE | AX46: TRUE | AY46: FALSE
A47: 15 | B47: =OFFSET(InputPriceData!B$15,CalculationsAndCharts!$A47+$A$11,0,1,1) -> 2014-12-18 | C47: =OFFSET(InputPriceData!G$15,CalculationsAndCharts!$A47+$A$11,IF($C$7,8,0),1,1) -> 257000 | D47: =OFFSET(InputPriceData!C$15,CalculationsAndCharts!$A47+$A$11,IF($C$7,8,0),1,1) -> 26.63 | E47: =OFFSET(InputPriceData!D$15,CalculationsAndCharts!$A47+$A$11,IF($C$7,8,0),1,1) -> 26.7 | F47: =OFFSET(InputPriceData!E$15,CalculationsAndCharts!$A47+$A$11,IF($C$7,8,0),1,1) -> 26.21 | G47: =OFFSET(InputPriceData!F$15,CalculationsAndCharts!$A47+$A$11,IF($C$7,8,0),1,1) -> 26.61 | S47: 26.61 | T47: 25.5 | U47: 1 | V47: FALSE | W47: FALSE | AB47: 11601 | AC47: 182 | AD47: 63.74175824 | AE47: 13.74175824 | AF47: 2.748351648 | AG47: -36 | AH47: -7.2 | AI47: =SUM((OFFSET($W$33,0,0,$A$23,1)=TRUE)*(OFFSET($AA$33,0,0,$A$23,1)=(AG47+50))) -> 0 | AM47: 26.61 | AN47: 25.5 | AO47: 1 | AP47: FALSE | AQ47: 0.7698 | AR47: 24.8902 | AS47: FALSE | AT47: 6 | AU47: FALSE | AV47: FALSE | AW47: FALSE | AX47: TRUE | AY47: FALSE
A48: 16 | B48: =OFFSET(InputPriceData!B$15,CalculationsAndCharts!$A48+$A$11,0,1,1) -> 2014-12-17 | C48: =OFFSET(InputPriceData!G$15,CalculationsAndCharts!$A48+$A$11,IF($C$7,8,0),1,1) -> 519400 | D48: =OFFSET(InputPriceData!C$15,CalculationsAndCharts!$A48+$A$11,IF($C$7,8,0),1,1) -> 25.98 | E48: =OFFSET(InputPriceData!D$15,CalculationsAndCharts!$A48+$A$11,IF($C$7,8,0),1,1) -> 26.32 | F48: =OFFSET(InputPriceData!E$15,CalculationsAndCharts!$A48+$A$11,IF($C$7,8,0),1,1) -> 25.28 | G48: =OFFSET(InputPriceData!F$15,CalculationsAndCharts!$A48+$A$11,IF($C$7,8,0),1,1) -> 26.25 | S48: 26.53 | T48: 25.5 | U48: 0.7281553398 | V48: FALSE | W48: FALSE | AB48: 11601 | AC48: 182 | AD48: 63.74175824 | AE48: 13.74175824 | AF48: 2.748351648 | AG48: -35 | AH48: -7 | AI48: =SUM((OFFSET($W$33,0,0,$A$23,1)=TRUE)*(OFFSET($AA$33,0,0,$A$23,1)=(AG48+50))) -> 1 | AM48: 26.53 | AN48: 25.5 | AO48: 0.7281553398 | AP48: FALSE | AQ48: 0.7698 | AR48: 24.8902 | AS48: FALSE | AT48: 5 | AU48: FALSE | AV48: FALSE | AW48: FALSE | AX48: TRUE | AY48: FALSE
A49: 17 | B49: =OFFSET(InputPriceData!B$15,CalculationsAndCharts!$A49+$A$11,0,1,1) -> 2014-12-16 | C49: =OFFSET(InputPriceData!G$15,CalculationsAndCharts!$A49+$A$11,IF($C$7,8,0),1,1) -> 343000 | D49: =OFFSET(InputPriceData!C$15,CalculationsAndCharts!$A49+$A$11,IF($C$7,8,0),1,1) -> 26.05 | E49: =OFFSET(InputPriceData!D$15,CalculationsAndCharts!$A49+$A$11,IF($C$7,8,0),1,1) -> 26.35 | F49: =OFFSET(InputPriceData!E$15,CalculationsAndCharts!$A49+$A$11,IF($C$7,8,0),1,1) -> 25.82 | G49: =OFFSET(InputPriceData!F$15,CalculationsAndCharts!$A49+$A$11,IF($C$7,8,0),1,1) -> 25.98 | S49: 26.53 | T49: 25.5 | U49: 0.4660194175 | V49: FALSE | W49: FALSE | AB49: 11601 | AC49: 182 | AD49: 63.74175824 | AE49: 13.74175824 | AF49: 2.748351648 | AG49: -34 | AH49: -6.8 | AI49: =SUM((OFFSET($W$33,0,0,$A$23,1)=TRUE)*(OFFSET($AA$33,0,0,$A$23,1)=(AG49+50))) -> 1 | AM49: 26.53 | AN49: 25.5 | AO49: 0.4660194175 | AP49: FALSE | AQ49: 0.7698 | AR49: 24.8902 | AS49: FALSE | AT49: 4 | AU49: FALSE | AV49: FALSE | AW49: FALSE | AX49: TRUE | AY49: FALSE
A50: 18 | B50: =OFFSET(InputPriceData!B$15,CalculationsAndCharts!$A50+$A$11,0,1,1) -> 2014-12-15 | C50: =OFFSET(InputPriceData!G$15,CalculationsAndCharts!$A50+$A$11,IF($C$7,8,0),1,1) -> 517300 | D50: =OFFSET(InputPriceData!C$15,CalculationsAndCharts!$A50+$A$11,IF($C$7,8,0),1,1) -> 25.98 | E50: =OFFSET(InputPriceData!D$15,CalculationsAndCharts!$A50+$A$11,IF($C$7,8,0),1,1) -> 26.59 | F50: =OFFSET(InputPriceData!E$15,CalculationsAndCharts!$A50+$A$11,IF($C$7,8,0),1,1) -> 25.74 | G50: =OFFSET(InputPriceData!F$15,CalculationsAndCharts!$A50+$A$11,IF($C$7,8,0),1,1) -> 26.12 | S50: 26.53 | T50: 25.5 | U50: 0.6019417476 | V50: FALSE | W50: FALSE | AB50: 11601 | AC50: 182 | AD50: 63.74175824 | AE50: 13.74175824 | AF50: 2.748351648 | AG50: -33 | AH50: -6.6 | AI50: =SUM((OFFSET($W$33,0,0,$A$23,1)=TRUE)*(OFFSET($AA$33,0,0,$A$23,1)=(AG50+50))) -> 1 | AM50: 26.53 | AN50: 25.5 | AO50: 0.6019417476 | AP50: FALSE | AQ50: 0.7698 | AR50: 24.8902 | AS50: FALSE | AT50: 3 | AU50: FALSE | AV50: FALSE | AW50: FALSE | AX50: TRUE | AY50: FALSE
A51: 19 | B51: =OFFSET(InputPriceData!B$15,CalculationsAndCharts!$A51+$A$11,0,1,1) -> 2014-12-12 | C51: =OFFSET(InputPriceData!G$15,CalculationsAndCharts!$A51+$A$11,IF($C$7,8,0),1,1) -> 270700 | D51: =OFFSET(InputPriceData!C$15,CalculationsAndCharts!$A51+$A$11,IF($C$7,8,0),1,1) -> 25.23 | E51: =OFFSET(InputPriceData!D$15,CalculationsAndCharts!$A51+$A$11,IF($C$7,8,0),1,1) -> 26 | F51: =OFFSET(InputPriceData!E$15,CalculationsAndCharts!$A51+$A$11,IF($C$7,8,0),1,1) -> 25 | G51: =OFFSET(InputPriceData!F$15,CalculationsAndCharts!$A51+$A$11,IF($C$7,8,0),1,1) -> 25.78 | S51: 26.53 | T51: 25.5 | U51: 0.2718446602 | V51: FALSE | W51: FALSE | AB51: 11601 | AC51: 182 | AD51: 63.74175824 | AE51: 13.74175824 | AF51: 2.748351648 | AG51: -32 | AH51: -6.4 | AI51: =SUM((OFFSET($W$33,0,0,$A$23,1)=TRUE)*(OFFSET($AA$33,0,0,$A$23,1)=(AG51+50))) -> 0 | AM51: 26.53 | AN51: 25.5 | AO51: 0.2718446602 | AP51: FALSE | AQ51: 0.7698 | AR51: 24.8902 | AS51: FALSE | AT51: 2 | AU51: FALSE | AV51: FALSE | AW51: FALSE | AX51: TRUE | AY51: FALSE
A52: 20 | B52: =OFFSET(InputPriceData!B$15,CalculationsAndCharts!$A52+$A$11,0,1,1) -> 2014-12-11 | C52: =OFFSET(InputPriceData!G$15,CalculationsAndCharts!$A52+$A$11,IF($C$7,8,0),1,1) -> 271000 | D52: =OFFSET(InputPriceData!C$15,CalculationsAndCharts!$A52+$A$11,IF($C$7,8,0),1,1) -> 25.66 | E52: =OFFSET(InputPriceData!D$15,CalculationsAndCharts!$A52+$A$11,IF($C$7,8,0),1,1) -> 25.95 | F52: =OFFSET(InputPriceData!E$15,CalculationsAndCharts!$A52+$A$11,IF($C$7,8,0),1,1) -> 25.52 | G52: =OFFSET(InputPriceData!F$15,CalculationsAndCharts!$A52+$A$11,IF($C$7,8,0),1,1) -> 25.58 | S52: 26.53 | T52: 25.5 | U52: 0.07766990291 | V52: TRUE | W52: FALSE | AB52: 11601 | AC52: 182 | AD52: 63.74175824 | AE52: 13.74175824 | AF52: 2.748351648 | AG52: -31 | AH52: -6.2 | AI52: =SUM((OFFSET($W$33,0,0,$A$23,1)=TRUE)*(OFFSET($AA$33,0,0,$A$23,1)=(AG52+50))) -> 0 | AM52: 26.53 | AN52: 25.5 | AO52: 0.07766990291 | AP52: FALSE | AQ52: 0.7698 | AR52: 24.8902 | AS52: FALSE | AT52: 1 | AU52: FALSE | AV52: FALSE | AW52: TRUE | AX52: TRUE | AY52: FALSE
A53: 21 | B53: =OFFSET(InputPriceData!B$15,CalculationsAndCharts!$A53+$A$11,0,1,1) -> 2014-12-10 | C53: =OFFSET(InputPriceData!G$15,CalculationsAndCharts!$A53+$A$11,IF($C$7,8,0),1,1) -> 390200 | D53: =OFFSET(InputPriceData!C$15,CalculationsAndCharts!$A53+$A$11,IF($C$7,8,0),1,1) -> 25.98 | E53: =OFFSET(InputPriceData!D$15,CalculationsAndCharts!$A53+$A$11,IF($C$7,8,0),1,1) -> 25.98 | F53: =OFFSET(InputPriceData!E$15,CalculationsAndCharts!$A53+$A$11,IF($C$7,8,0),1,1) -> 25.46 | G53: =OFFSET(InputPriceData!F$15,CalculationsAndCharts!$A53+$A$11,IF($C$7,8,0),1,1) -> 25.5 | S53: 26.53 | T53: 25.3 | U53: 0.162601626 | V53: FALSE | W53: FALSE | AB53: 11601 | AC53: 182 | AD53: 63.74175824 | AE53: 13.74175824 | AF53: 2.748351648 | AG53: -30 | AH53: -6 | AI53: =SUM((OFFSET($W$33,0,0,$A$23,1)=TRUE)*(OFFSET($AA$33,0,0,$A$23,1)=(AG53+50))) -> 0 | AM53: 26.53 | AN53: 25.5 | AO53: 0 | AP53: TRUE | AQ53: 0 | AR53: 0 | AS53: FALSE | AT53: 0 | AU53: FALSE | AV53: FALSE | AW53: FALSE | AX53: FALSE | AY53: FALSE
A54: 22 | B54: =OFFSET(InputPriceData!B$15,CalculationsAndCharts!$A54+$A$11,0,1,1) -> 2014-12-09 | C54: =OFFSET(InputPriceData!G$15,CalculationsAndCharts!$A54+$A$11,IF($C$7,8,0),1,1) -> 552800 | D54: =OFFSET(InputPriceData!C$15,CalculationsAndCharts!$A54+$A$11,IF($C$7,8,0),1,1) -> 25.45 | E54: =OFFSET(InputPriceData!D$15,CalculationsAndCharts!$A54+$A$11,IF($C$7,8,0),1,1) -> 26 | F54: =OFFSET(InputPriceData!E$15,CalculationsAndCharts!$A54+$A$11,IF($C$7,8,0),1,1) -> 25.01 | G54: =OFFSET(InputPriceData!F$15,CalculationsAndCharts!$A54+$A$11,IF($C$7,8,0),1,1) -> 25.99 | S54: 26.53 | T54: 25.3 | U54: 0.5609756098 | V54: FALSE | W54: FALSE | AB54: 11601 | AC54: 182 | AD54: 63.74175824 | AE54: 13.74175824 | AF54: 2.748351648 | AG54: -29 | AH54: -5.8 | AI54: =SUM((OFFSET($W$33,0,0,$A$23,1)=TRUE)*(OFFSET($AA$33,0,0,$A$23,1)=(AG54+50))) -> 1 | AM54: 26.53 | AN54: 25.56 | AO54: 0.4432989691 | AP54: FALSE | AQ54: 0 | AR54: 0 | AS54: FALSE | AT54: 0 | AU54: FALSE | AV54: FALSE | AW54: FALSE | AX54: FALSE | AY54: FALSE
A55: 23 | B55: =OFFSET(InputPriceData!B$15,CalculationsAndCharts!$A55+$A$11,0,1,1) -> 2014-12-08 | C55: =OFFSET(InputPriceData!G$15,CalculationsAndCharts!$A55+$A$11,IF($C$7,8,0),1,1) -> 247900 | D55: =OFFSET(InputPriceData!C$15,CalculationsAndCharts!$A55+$A$11,IF($C$7,8,0),1,1) -> 26.14 | E55: =OFFSET(InputPriceData!D$15,CalculationsAndCharts!$A55+$A$11,IF($C$7,8,0),1,1) -> 26.2 | F55: =OFFSET(InputPriceData!E$15,CalculationsAndCharts!$A55+$A$11,IF($C$7,8,0),1,1) -> 25.59 | G55: =OFFSET(InputPriceData!F$15,CalculationsAndCharts!$A55+$A$11,IF($C$7,8,0),1,1) -> 25.8 | S55: 26.53 | T55: 25.3 | U55: 0.406504065 | V55: FALSE | W55: FALSE | AB55: 11601 | AC55: 182 | AD55: 63.74175824 | AE55: 13.74175824 | AF55: 2.748351648 | AG55: -28 | AH55: -5.6 | AI55: =SUM((OFFSET($W$33,0,0,$A$23,1)=TRUE)*(OFFSET($AA$33,0,0,$A$23,1)=(AG55+50))) -> 3 | AM55: 26.53 | AN55: 25.3 | AO55: 0.406504065 | AP55: FALSE | AQ55: 0 | AR55: 0 | AS55: FALSE | AT55: 0 | AU55: FALSE | AV55: FALSE | AW55: FALSE | AX55: FALSE | AY55: FALSE
A56: 24 | B56: =OFFSET(InputPriceData!B$15,CalculationsAndCharts!$A56+$A$11,0,1,1) -> 2014-12-05 | C56: =OFFSET(InputPriceData!G$15,CalculationsAndCharts!$A56+$A$11,IF($C$7,8,0),1,1) -> 281200 | D56: =OFFSET(InputPriceData!C$15,CalculationsAndCharts!$A56+$A$11,IF($C$7,8,0),1,1) -> 26.28 | E56: =OFFSET(InputPriceData!D$15,CalculationsAndCharts!$A56+$A$11,IF($C$7,8,0),1,1) -> 26.54 | F56: =OFFSET(InputPriceData!E$15,CalculationsAndCharts!$A56+$A$11,IF($C$7,8,0),1,1) -> 25.99 | G56: =OFFSET(InputPriceData!F$15,CalculationsAndCharts!$A56+$A$11,IF($C$7,8,0),1,1) -> 26.13 | S56: 26.53 | T56: 25.3 | U56: 0.674796748 | V56: FALSE | W56: FALSE | AB56: 11601 | AC56: 182 | AD56: 63.74175824 | AE56: 13.74175824 | AF56: 2.748351648 | AG56: -27 | AH56: -5.4 | AI56: =SUM((OFFSET($W$33,0,0,$A$23,1)=TRUE)*(OFFSET($AA$33,0,0,$A$23,1)=(AG56+50))) -> 1 | AM56: 26.53 | AN56: 25.3 | AO56: 0.674796748 | AP56: FALSE | AQ56: 0 | AR56: 0 | AS56: FALSE | AT56: 0 | AU56: FALSE | AV56: FALSE | AW56: FALSE | AX56: FALSE | AY56: FALSE
A57: 25 | B57: =OFFSET(InputPriceData!B$15,CalculationsAndCharts!$A57+$A$11,0,1,1) -> 2014-12-04 | C57: =OFFSET(InputPriceData!G$15,CalculationsAndCharts!$A57+$A$11,IF($C$7,8,0),1,1) -> 334700 | D57: =OFFSET(InputPriceData!C$15,CalculationsAndCharts!$A57+$A$11,IF($C$7,8,0),1,1) -> 26.32 | E57: =OFFSET(InputPriceData!D$15,CalculationsAndCharts!$A57+$A$11,IF($C$7,8,0),1,1) -> 26.44 | F57: =OFFSET(InputPriceData!E$15,CalculationsAndCharts!$A57+$A$11,IF($C$7,8,0),1,1) -> 25.97 | G57: =OFFSET(InputPriceData!F$15,CalculationsAndCharts!$A57+$A$11,IF($C$7,8,0),1,1) -> 26.3 | S57: 26.53 | T57: 25.3 | U57: 0.8130081301 | V57: FALSE | W57: FALSE | AB57: 11601 | AC57: 182 | AD57: 63.74175824 | AE57: 13.74175824 | AF57: 2.748351648 | AG57: -26 | AH57: -5.2 | AI57: =SUM((OFFSET($W$33,0,0,$A$23,1)=TRUE)*(OFFSET($AA$33,0,0,$A$23,1)=(AG57+50))) -> 1 | AM57: 26.53 | AN57: 25.3 | AO57: 0.8130081301 | AP57: FALSE | AQ57: 0 | AR57: 0 | AS57: FALSE | AT57: 0 | AU57: FALSE | AV57: FALSE | AW57: FALSE | AX57: FALSE | AY57: FALSE
A58: 26 | B58: =OFFSET(InputPriceData!B$15,CalculationsAndCharts!$A58+$A$11,0,1,1) -> 2014-12-03 | C58: =OFFSET(InputPriceData!G$15,CalculationsAndCharts!$A58+$A$11,IF($C$7,8,0),1,1) -> 273100 | D58: =OFFSET(InputPriceData!C$15,CalculationsAndCharts!$A58+$A$11,IF($C$7,8,0),1,1) -> 26.35 | E58: =OFFSET(InputPriceData!D$15,CalculationsAndCharts!$A58+$A$11,IF($C$7,8,0),1,1) -> 26.41 | F58: =OFFSET(InputPriceData!E$15,CalculationsAndCharts!$A58+$A$11,IF($C$7,8,0),1,1) -> 26.04 | G58: =OFFSET(InputPriceData!F$15,CalculationsAndCharts!$A58+$A$11,IF($C$7,8,0),1,1) -> 26.29 | S58: 26.53 | T58: 25.06 | U58: 0.8367346939 | V58: FALSE | W58: FALSE | AB58: 11601 | AC58: 182 | AD58: 63.74175824 | AE58: 13.74175824 | AF58: 2.748351648 | AG58: -25 | AH58: -5 | AI58: =SUM((OFFSET($W$33,0,0,$A$23,1)=TRUE)*(OFFSET($AA$33,0,0,$A$23,1)=(AG58+50))) -> 1 | AM58: 26.53 | AN58: 25.3 | AO58: 0.8048780488 | AP58: FALSE | AQ58: 0 | AR58: 0 | AS58: FALSE | AT58: 0 | AU58: FALSE | AV58: FALSE | AW58: FALSE | AX58: FALSE | AY58: FALSE
A59: 27 | B59: =OFFSET(InputPriceData!B$15,CalculationsAndCharts!$A59+$A$11,0,1,1) -> 2014-12-02 | C59: =OFFSET(InputPriceData!G$15,CalculationsAndCharts!$A59+$A$11,IF($C$7,8,0),1,1) -> 255600 | D59: =OFFSET(InputPriceData!C$15,CalculationsAndCharts!$A59+$A$11,IF($C$7,8,0),1,1) -> 26.08 | E59: =OFFSET(InputPriceData!D$15,CalculationsAndCharts!$A59+$A$11,IF($C$7,8,0),1,1) -> 26.4 | F59: =OFFSET(InputPriceData!E$15,CalculationsAndCharts!$A59+$A$11,IF($C$7,8,0),1,1) -> 26.08 | G59: =OFFSET(InputPriceData!F$15,CalculationsAndCharts!$A59+$A$11,IF($C$7,8,0),1,1) -> 26.26 | S59: 26.53 | T59: 25.03 | U59: 0.82 | V59: FALSE | W59: FALSE | AB59: 11601 | AC59: 182 | AD59: 63.74175824 | AE59: 13.74175824 | AF59: 2.748351648 | AG59: -24 | AH59: -4.8 | AI59: =SUM((OFFSET($W$33,0,0,$A$23,1)=TRUE)*(OFFSET($AA$33,0,0,$A$23,1)=(AG59+50))) -> 0 | AM59: 26.53 | AN59: 25.3 | AO59: 0.7804878049 | AP59: FALSE | AQ59: 0 | AR59: 0 | AS59: FALSE | AT59: 0 | AU59: FALSE | AV59: FALSE | AW59: FALSE | AX59: FALSE | AY59: FALSE
A60: 28 | B60: =OFFSET(InputPriceData!B$15,CalculationsAndCharts!$A60+$A$11,0,1,1) -> 2014-12-01 | C60: =OFFSET(InputPriceData!G$15,CalculationsAndCharts!$A60+$A$11,IF($C$7,8,0),1,1) -> 273600 | D60: =OFFSET(InputPriceData!C$15,CalculationsAndCharts!$A60+$A$11,IF($C$7,8,0),1,1) -> 26.45 | E60: =OFFSET(InputPriceData!D$15,CalculationsAndCharts!$A60+$A$11,IF($C$7,8,0),1,1) -> 26.52 | F60: =OFFSET(InputPriceData!E$15,CalculationsAndCharts!$A60+$A$11,IF($C$7,8,0),1,1) -> 25.93 | G60: =OFFSET(InputPriceData!F$15,CalculationsAndCharts!$A60+$A$11,IF($C$7,8,0),1,1) -> 25.94 | S60: 26.53 | T60: 24.46 | U60: 0.7149758454 | V60: FALSE | W60: FALSE | AB60: 11601 | AC60: 182 | AD60: 63.74175824 | AE60: 13.74175824 | AF60: 2.748351648 | AG60: -23 | AH60: -4.6 | AI60: =SUM((OFFSET($W$33,0,0,$A$23,1)=TRUE)*(OFFSET($AA$33,0,0,$A$23,1)=(AG60+50))) -> 0 | AM60: 26.53 | AN60: 25.06 | AO60: 0.5986394558 | AP60: FALSE | AQ60: 0 | AR60: 0 | AS60: FALSE | AT60: 0 | AU60: FALSE | AV60: FALSE | AW60: FALSE | AX60: FALSE | AY60: FALSE
A61: 29 | B61: =OFFSET(InputPriceData!B$15,CalculationsAndCharts!$A61+$A$11,0,1,1) -> 2014-11-28 | C61: =OFFSET(InputPriceData!G$15,CalculationsAndCharts!$A61+$A$11,IF($C$7,8,0),1,1) -> 234100 | D61: =OFFSET(InputPriceData!C$15,CalculationsAndCharts!$A61+$A$11,IF($C$7,8,0),1,1) -> 26.48 | E61: =OFFSET(InputPriceData!D$15,CalculationsAndCharts!$A61+$A$11,IF($C$7,8,0),1,1) -> 26.82 | F61: =OFFSET(InputPriceData!E$15,CalculationsAndCharts!$A61+$A$11,IF($C$7,8,0),1,1) -> 26.35 | G61: =OFFSET(InputPriceData!F$15,CalculationsAndCharts!$A61+$A$11,IF($C$7,8,0),1,1) -> 26.53 | S61: 26.53 | T61: 24.46 | U61: 1 | V61: FALSE | W61: FALSE | AB61: 11601 | AC61: 182 | AD61: 63.74175824 | AE61: 13.74175824 | AF61: 2.748351648 | AG61: -22 | AH61: -4.4 | AI61: =SUM((OFFSET($W$33,0,0,$A$23,1)=TRUE)*(OFFSET($AA$33,0,0,$A$23,1)=(AG61+50))) -> 2 | AM61: 26.53 | AN61: 25.03 | AO61: 1 | AP61: FALSE | AQ61: 0 | AR61: 0 | AS61: FALSE | AT61: 0 | AU61: FALSE | AV61: FALSE | AW61: FALSE | AX61: FALSE | AY61: FALSE
A62: 30 | B62: =OFFSET(InputPriceData!B$15,CalculationsAndCharts!$A62+$A$11,0,1,1) -> 2014-11-26 | C62: =OFFSET(InputPriceData!G$15,CalculationsAndCharts!$A62+$A$11,IF($C$7,8,0),1,1) -> 283100 | D62: =OFFSET(InputPriceData!C$15,CalculationsAndCharts!$A62+$A$11,IF($C$7,8,0),1,1) -> 26.27 | E62: =OFFSET(InputPriceData!D$15,CalculationsAndCharts!$A62+$A$11,IF($C$7,8,0),1,1) -> 26.53 | F62: =OFFSET(InputPriceData!E$15,CalculationsAndCharts!$A62+$A$11,IF($C$7,8,0),1,1) -> 26.06 | G62: =OFFSET(InputPriceData!F$15,CalculationsAndCharts!$A62+$A$11,IF($C$7,8,0),1,1) -> 26.26 | S62: 26.3 | T62: 24.46 | U62: 0.9782608696 | V62: FALSE | W62: FALSE | AB62: 11601 | AC62: 182 | AD62: 63.74175824 | AE62: 13.74175824 | AF62: 2.748351648 | AG62: -21 | AH62: -4.2 | AI62: =SUM((OFFSET($W$33,0,0,$A$23,1)=TRUE)*(OFFSET($AA$33,0,0,$A$23,1)=(AG62+50))) -> 1 | AM62: 26.3 | AN62: 24.46 | AO62: 0.9782608696 | AP62: FALSE | AQ62: 0 | AR62: 0 | AS62: FALSE | AT62: 0 | AU62: FALSE | AV62: FALSE | AW62: FALSE | AX62: FALSE | AY62: FALSE
A63: 31 | B63: =OFFSET(InputPriceData!B$15,CalculationsAndCharts!$A63+$A$11,0,1,1) -> 2014-11-25 | C63: =OFFSET(InputPriceData!G$15,CalculationsAndCharts!$A63+$A$11,IF($C$7,8,0),1,1) -> 244800 | D63: =OFFSET(InputPriceData!C$15,CalculationsAndCharts!$A63+$A$11,IF($C$7,8,0),1,1) -> 26.31 | E63: =OFFSET(InputPriceData!D$15,CalculationsAndCharts!$A63+$A$11,IF($C$7,8,0),1,1) -> 27.85 | F63: =OFFSET(InputPriceData!E$15,CalculationsAndCharts!$A63+$A$11,IF($C$7,8,0),1,1) -> 26 | G63: =OFFSET(InputPriceData!F$15,CalculationsAndCharts!$A63+$A$11,IF($C$7,8,0),1,1) -> 26.27 | S63: 26.3 | T63: 24.46 | U63: 0.9836956522 | V63: FALSE | W63: FALSE | AB63: 11601 | AC63: 182 | AD63: 63.74175824 | AE63: 13.74175824 | AF63: 2.748351648 | AG63: -20 | AH63: -4 | AI63: =SUM((OFFSET($W$33,0,0,$A$23,1)=TRUE)*(OFFSET($AA$33,0,0,$A$23,1)=(AG63+50))) -> 3 | AM63: 26.3 | AN63: 24.46 | AO63: 0.9836956522 | AP63: FALSE | AQ63: 0 | AR63: 0 | AS63: FALSE | AT63: 0 | AU63: FALSE | AV63: FALSE | AW63: FALSE | AX63: FALSE | AY63: FALSE
A64: 32 | B64: =OFFSET(InputPriceData!B$15,CalculationsAndCharts!$A64+$A$11,0,1,1) -> 2014-11-24 | C64: =OFFSET(InputPriceData!G$15,CalculationsAndCharts!$A64+$A$11,IF($C$7,8,0),1,1) -> 434300 | D64: =OFFSET(InputPriceData!C$15,CalculationsAndCharts!$A64+$A$11,IF($C$7,8,0),1,1) -> 26.28 | E64: =OFFSET(InputPriceData!D$15,CalculationsAndCharts!$A64+$A$11,IF($C$7,8,0),1,1) -> 26.64 | F64: =OFFSET(InputPriceData!E$15,CalculationsAndCharts!$A64+$A$11,IF($C$7,8,0),1,1) -> 26.23 | G64: =OFFSET(InputPriceData!F$15,CalculationsAndCharts!$A64+$A$11,IF($C$7,8,0),1,1) -> 26.3 | S64: 26.3 | T64: 24.46 | U64: 1 | V64: FALSE | W64: FALSE | AB64: 11601 | AC64: 182 | AD64: 63.74175824 | AE64: 13.74175824 | AF64: 2.748351648 | AG64: -19 | AH64: -3.8 | AI64: =SUM((OFFSET($W$33,0,0,$A$23,1)=TRUE)*(OFFSET($AA$33,0,0,$A$23,1)=(AG64+50))) -> 2 | AM64: 26.3 | AN64: 24.46 | AO64: 1 | AP64: FALSE | AQ64: 0 | AR64: 0 | AS64: FALSE | AT64: 0 | AU64: FALSE | AV64: FALSE | AW64: FALSE | AX64: FALSE | AY64: FALSE
A65: 33 | B65: =OFFSET(InputPriceData!B$15,CalculationsAndCharts!$A65+$A$11,0,1,1) -> 2014-11-21 | C65: =OFFSET(InputPriceData!G$15,CalculationsAndCharts!$A65+$A$11,IF($C$7,8,0),1,1) -> 292700 | D65: =OFFSET(InputPriceData!C$15,CalculationsAndCharts!$A65+$A$11,IF($C$7,8,0),1,1) -> 26.44 | E65: =OFFSET(InputPriceData!D$15,CalculationsAndCharts!$A65+$A$11,IF($C$7,8,0),1,1) -> 26.49 | F65: =OFFSET(InputPriceData!E$15,CalculationsAndCharts!$A65+$A$11,IF($C$7,8,0),1,1) -> 26.09 | G65: =OFFSET(InputPriceData!F$15,CalculationsAndCharts!$A65+$A$11,IF($C$7,8,0),1,1) -> 26.28 | S65: 26.28 | T65: 24.46 | U65: 1 | V65: FALSE | W65: FALSE | AB65: 11601 | AC65: 182 | AD65: 63.74175824 | AE65: 13.74175824 | AF65: 2.748351648 | AG65: -18 | AH65: -3.6 | AI65: =SUM((OFFSET($W$33,0,0,$A$23,1)=TRUE)*(OFFSET($AA$33,0,0,$A$23,1)=(AG65+50))) -> 0 | AJ65: =IF(AH65=$AJ$31,$AI$30+1,NA()) ->  | AM65: 26.28 | AN65: 24.46 | AO65: 1 | AP65: FALSE | AQ65: 0 | AR65: 0 | AS65: FALSE | AT65: 0 | AU65: FALSE | AV65: FALSE | AW65: FALSE | AX65: FALSE | AY65: FALSE
A66: 34 | B66: =OFFSET(InputPriceData!B$15,CalculationsAndCharts!$A66+$A$11,0,1,1) -> 2014-11-20 | C66: =OFFSET(InputPriceData!G$15,CalculationsAndCharts!$A66+$A$11,IF($C$7,8,0),1,1) -> 277000 | D66: =OFFSET(InputPriceData!C$15,CalculationsAndCharts!$A66+$A$11,IF($C$7,8,0),1,1) -> 25.44 | E66: =OFFSET(InputPriceData!D$15,CalculationsAndCharts!$A66+$A$11,IF($C$7,8,0),1,1) -> 26.16 | F66: =OFFSET(InputPriceData!E$15,CalculationsAndCharts!$A66+$A$11,IF($C$7,8,0),1,1) -> 25.22 | G66: =OFFSET(InputPriceData!F$15,CalculationsAndCharts!$A66+$A$11,IF($C$7,8,0),1,1) -> 26.13 | S66: 26.13 | T66: 24.46 | U66: 1 | V66: FALSE | W66: FALSE | AB66: 11601 | AC66: 182 | AD66: 63.74175824 | AE66: 13.74175824 | AF66: 2.748351648 | AG66: -17 | AH66: -3.4 | AI66: =SUM((OFFSET($W$33,0,0,$A$23,1)=TRUE)*(OFFSET($AA$33,0,0,$A$23,1)=(AG66+50))) -> 4 | AM66: 26.13 | AN66: 24.46 | AO66: 1 | AP66: FALSE | AQ66: 0 | AR66: 0 | AS66: FALSE | AT66: 0 | AU66: FALSE | AV66: FALSE | AW66: FALSE | AX66: FALSE | AY66: FALSE
A67: 35 | B67: =OFFSET(InputPriceData!B$15,CalculationsAndCharts!$A67+$A$11,0,1,1) -> 2014-11-19 | C67: =OFFSET(InputPriceData!G$15,CalculationsAndCharts!$A67+$A$11,IF($C$7,8,0),1,1) -> 166200 | D67: =OFFSET(InputPriceData!C$15,CalculationsAndCharts!$A67+$A$11,IF($C$7,8,0),1,1) -> 25.6 | E67: =OFFSET(InputPriceData!D$15,CalculationsAndCharts!$A67+$A$11,IF($C$7,8,0),1,1) -> 25.73 | F67: =OFFSET(InputPriceData!E$15,CalculationsAndCharts!$A67+$A$11,IF($C$7,8,0),1,1) -> 25.2 | G67: =OFFSET(InputPriceData!F$15,CalculationsAndCharts!$A67+$A$11,IF($C$7,8,0),1,1) -> 25.6 | S67: 25.68 | T67: 24.37 | U67: 0.9389312977 | V67: FALSE | W67: FALSE | AB67: 11601 | AC67: 182 | AD67: 63.74175824 | AE67: 13.74175824 | AF67: 2.748351648 | AG67: -16 | AH67: -3.2 | AI67: =SUM((OFFSET($W$33,0,0,$A$23,1)=TRUE)*(OFFSET($AA$33,0,0,$A$23,1)=(AG67+50))) -> 3 | AM67: 25.68 | AN67: 24.46 | AO67: 0.9344262295 | AP67: FALSE | AQ67: 0 | AR67: 0 | AS67: FALSE | AT67: 0 | AU67: FALSE | AV67: FALSE | AW67: FALSE | AX67: FALSE | AY67: FALSE
A68: 36 | B68: =OFFSET(InputPriceData!B$15,CalculationsAndCharts!$A68+$A$11,0,1,1) -> 2014-11-18 | C68: =OFFSET(InputPriceData!G$15,CalculationsAndCharts!$A68+$A$11,IF($C$7,8,0),1,1) -> 263800 | D68: =OFFSET(InputPriceData!C$15,CalculationsAndCharts!$A68+$A$11,IF($C$7,8,0),1,1) -> 25.68 | E68: =OFFSET(InputPriceData!D$15,CalculationsAndCharts!$A68+$A$11,IF($C$7,8,0),1,1) -> 25.94 | F68: =OFFSET(InputPriceData!E$15,CalculationsAndCharts!$A68+$A$11,IF($C$7,8,0),1,1) -> 25.5 | G68: =OFFSET(InputPriceData!F$15,CalculationsAndCharts!$A68+$A$11,IF($C$7,8,0),1,1) -> 25.68 | S68: 25.68 | T68: 24.01 | U68: 1 | V68: FALSE | W68: FALSE | AB68: 11601 | AC68: 182 | AD68: 63.74175824 | AE68: 13.74175824 | AF68: 2.748351648 | AG68: -15 | AH68: -3 | AI68: =SUM((OFFSET($W$33,0,0,$A$23,1)=TRUE)*(OFFSET($AA$33,0,0,$A$23,1)=(AG68+50))) -> 4 | AM68: 25.68 | AN68: 24.46 | AO68: 1 | AP68: FALSE | AQ68: 0 | AR68: 0 | AS68: FALSE | AT68: 0 | AU68: FALSE | AV68: FALSE | AW68: FALSE | AX68: FALSE | AY68: FALSE
A69: 37 | B69: =OFFSET(InputPriceData!B$15,CalculationsAndCharts!$A69+$A$11,0,1,1) -> 2014-11-17 | C69: =OFFSET(InputPriceData!G$15,CalculationsAndCharts!$A69+$A$11,IF($C$7,8,0),1,1) -> 294900 | D69: =OFFSET(InputPriceData!C$15,CalculationsAndCharts!$A69+$A$11,IF($C$7,8,0),1,1) -> 25.31 | E69: =OFFSET(InputPriceData!D$15,CalculationsAndCharts!$A69+$A$11,IF($C$7,8,0),1,1) -> 25.64 | F69: =OFFSET(InputPriceData!E$15,CalculationsAndCharts!$A69+$A$11,IF($C$7,8,0),1,1) -> 25.1 | G69: =OFFSET(InputPriceData!F$15,CalculationsAndCharts!$A69+$A$11,IF($C$7,8,0),1,1) -> 25.56 | S69: 25.56 | T69: 24.01 | U69: 1 | V69: FALSE | W69: FALSE | AB69: 11601 | AC69: 182 | AD69: 63.74175824 | AE69: 13.74175824 | AF69: 2.748351648 | AG69: -14 | AH69: -2.8 | AI69: =SUM((OFFSET($W$33,0,0,$A$23,1)=TRUE)*(OFFSET($AA$33,0,0,$A$23,1)=(AG69+50))) -> 2 | AM69: 25.56 | AN69: 24.37 | AO69: 1 | AP69: FALSE | AQ69: 0 | AR69: 0 | AS69: FALSE | AT69: 0 | AU69: FALSE | AV69: FALSE | AW69: FALSE | AX69: FALSE | AY69: FALSE
A70: 38 | B70: =OFFSET(InputPriceData!B$15,CalculationsAndCharts!$A70+$A$11,0,1,1) -> 2014-11-14 | C70: =OFFSET(InputPriceData!G$15,CalculationsAndCharts!$A70+$A$11,IF($C$7,8,0),1,1) -> 170100 | D70: =OFFSET(InputPriceData!C$15,CalculationsAndCharts!$A70+$A$11,IF($C$7,8,0),1,1) -> 25.55 | E70: =OFFSET(InputPriceData!D$15,CalculationsAndCharts!$A70+$A$11,IF($C$7,8,0),1,1) -> 25.55 | F70: =OFFSET(InputPriceData!E$15,CalculationsAndCharts!$A70+$A$11,IF($C$7,8,0),1,1) -> 25.18 | G70: =OFFSET(InputPriceData!F$15,CalculationsAndCharts!$A70+$A$11,IF($C$7,8,0),1,1) -> 25.3 | S70: 25.53 | T70: 24.01 | U70: 0.8486842105 | V70: FALSE | W70: FALSE | AB70: 11601 | AC70: 182 | AD70: 63.74175824 | AE70: 13.74175824 | AF70: 2.748351648 | AG70: -13 | AH70: -2.6 | AI70: =SUM((OFFSET($W$33,0,0,$A$23,1)=TRUE)*(OFFSET($AA$33,0,0,$A$23,1)=(AG70+50))) -> 4 | AM70: 25.53 | AN70: 24.01 | AO70: 0.8486842105 | AP70: FALSE | AQ70: 0 | AR70: 0 | AS70: FALSE | AT70: 0 | AU70: FALSE | AV70: FALSE | AW70: FALSE | AX70: FALSE | AY70: FALSE
A71: 39 | B71: =OFFSET(InputPriceData!B$15,CalculationsAndCharts!$A71+$A$11,0,1,1) -> 2014-11-13 | C71: =OFFSET(InputPriceData!G$15,CalculationsAndCharts!$A71+$A$11,IF($C$7,8,0),1,1) -> 408600 | D71: =OFFSET(InputPriceData!C$15,CalculationsAndCharts!$A71+$A$11,IF($C$7,8,0),1,1) -> 25.5 | E71: =OFFSET(InputPriceData!D$15,CalculationsAndCharts!$A71+$A$11,IF($C$7,8,0),1,1) -> 25.74 | F71: =OFFSET(InputPriceData!E$15,CalculationsAndCharts!$A71+$A$11,IF($C$7,8,0),1,1) -> 25.3 | G71: =OFFSET(InputPriceData!F$15,CalculationsAndCharts!$A71+$A$11,IF($C$7,8,0),1,1) -> 25.53 | S71: 25.53 | T71: 24.01 | U71: 1 | V71: FALSE | W71: FALSE | AB71: 11601 | AC71: 182 | AD71: 63.74175824 | AE71: 13.74175824 | AF71: 2.748351648 | AG71: -12 | AH71: -2.4 | AI71: =SUM((OFFSET($W$33,0,0,$A$23,1)=TRUE)*(OFFSET($AA$33,0,0,$A$23,1)=(AG71+50))) -> 0 | AM71: 25.53 | AN71: 24.01 | AO71: 1 | AP71: FALSE | AQ71: 0 | AR71: 0 | AS71: FALSE | AT71: 0 | AU71: FALSE | AV71: FALSE | AW71: FALSE | AX71: FALSE | AY71: FALSE
A72: 40 | B72: =OFFSET(InputPriceData!B$15,CalculationsAndCharts!$A72+$A$11,0,1,1) -> 2014-11-12 | C72: =OFFSET(InputPriceData!G$15,CalculationsAndCharts!$A72+$A$11,IF($C$7,8,0),1,1) -> 434800 | D72: =OFFSET(InputPriceData!C$15,CalculationsAndCharts!$A72+$A$11,IF($C$7,8,0),1,1) -> 25.28 | E72: =OFFSET(InputPriceData!D$15,CalculationsAndCharts!$A72+$A$11,IF($C$7,8,0),1,1) -> 25.71 | F72: =OFFSET(InputPriceData!E$15,CalculationsAndCharts!$A72+$A$11,IF($C$7,8,0),1,1) -> 25.02 | G72: =OFFSET(InputPriceData!F$15,CalculationsAndCharts!$A72+$A$11,IF($C$7,8,0),1,1) -> 25.4 | S72: 25.53 | T72: 24.01 | U72: 0.9144736842 | V72: FALSE | W72: FALSE | AB72: 11601 | AC72: 182 | AD72: 63.74175824 | AE72: 13.74175824 | AF72: 2.748351648 | AG72: -11 | AH72: -2.2 | AI72: =SUM((OFFSET($W$33,0,0,$A$23,1)=TRUE)*(OFFSET($AA$33,0,0,$A$23,1)=(AG72+50))) -> 2 | AM72: 25.46 | AN72: 24.01 | AO72: 0.9586206897 | AP72: FALSE | AQ72: 0 | AR72: 0 | AS72: FALSE | AT72: 0 | AU72: FALSE | AV72: FALSE | AW72: FALSE | AX72: FALSE | AY72: FALSE
A73: 41 | B73: =OFFSET(InputPriceData!B$15,CalculationsAndCharts!$A73+$A$11,0,1,1) -> 2014-11-11 | C73: =OFFSET(InputPriceData!G$15,CalculationsAndCharts!$A73+$A$11,IF($C$7,8,0),1,1) -> 342300 | D73: =OFFSET(InputPriceData!C$15,CalculationsAndCharts!$A73+$A$11,IF($C$7,8,0),1,1) -> 25.36 | E73: =OFFSET(InputPriceData!D$15,CalculationsAndCharts!$A73+$A$11,IF($C$7,8,0),1,1) -> 25.59 | F73: =OFFSET(InputPriceData!E$15,CalculationsAndCharts!$A73+$A$11,IF($C$7,8,0),1,1) -> 25.12 | G73: =OFFSET(InputPriceData!F$15,CalculationsAndCharts!$A73+$A$11,IF($C$7,8,0),1,1) -> 25.46 | S73: 25.53 | T73: 24.01 | U73: 0.9539473684 | V73: FALSE | W73: FALSE | AB73: 11601 | AC73: 182 | AD73: 63.74175824 | AE73: 13.74175824 | AF73: 2.748351648 | AG73: -10 | AH73: -2 | AI73: =SUM((OFFSET($W$33,0,0,$A$23,1)=TRUE)*(OFFSET($AA$33,0,0,$A$23,1)=(AG73+50))) -> 0 | AM73: 25.53 | AN73: 24.01 | AO73: 0.9539473684 | AP73: FALSE | AQ73: 0 | AR73: 0 | AS73: FALSE | AT73: 0 | AU73: FALSE | AV73: FALSE | AW73: FALSE | AX73: FALSE | AY73: FALSE
A74: 42 | B74: =OFFSET(InputPriceData!B$15,CalculationsAndCharts!$A74+$A$11,0,1,1) -> 2014-11-10 | C74: =OFFSET(InputPriceData!G$15,CalculationsAndCharts!$A74+$A$11,IF($C$7,8,0),1,1) -> 167100 | D74: =OFFSET(InputPriceData!C$15,CalculationsAndCharts!$A74+$A$11,IF($C$7,8,0),1,1) -> 25.04 | E74: =OFFSET(InputPriceData!D$15,CalculationsAndCharts!$A74+$A$11,IF($C$7,8,0),1,1) -> 25.43 | F74: =OFFSET(InputPriceData!E$15,CalculationsAndCharts!$A74+$A$11,IF($C$7,8,0),1,1) -> 24.91 | G74: =OFFSET(InputPriceData!F$15,CalculationsAndCharts!$A74+$A$11,IF($C$7,8,0),1,1) -> 25.41 | S74: 25.53 | T74: 23.87 | U74: 0.9277108434 | V74: FALSE | W74: FALSE | AB74: 11601 | AC74: 182 | AD74: 63.74175824 | AE74: 13.74175824 | AF74: 2.748351648 | AG74: -9 | AH74: -1.8 | AI74: =SUM((OFFSET($W$33,0,0,$A$23,1)=TRUE)*(OFFSET($AA$33,0,0,$A$23,1)=(AG74+50))) -> 0 | AM74: 25.53 | AN74: 24.01 | AO74: 0.9210526316 | AP74: FALSE | AQ74: 0 | AR74: 0 | AS74: FALSE | AT74: 0 | AU74: FALSE | AV74: FALSE | AW74: FALSE | AX74: FALSE | AY74: FALSE
A75: 43 | B75: =OFFSET(InputPriceData!B$15,CalculationsAndCharts!$A75+$A$11,0,1,1) -> 2014-11-07 | C75: =OFFSET(InputPriceData!G$15,CalculationsAndCharts!$A75+$A$11,IF($C$7,8,0),1,1) -> 233700 | D75: =OFFSET(InputPriceData!C$15,CalculationsAndCharts!$A75+$A$11,IF($C$7,8,0),1,1) -> 25.05 | E75: =OFFSET(InputPriceData!D$15,CalculationsAndCharts!$A75+$A$11,IF($C$7,8,0),1,1) -> 25.24 | F75: =OFFSET(InputPriceData!E$15,CalculationsAndCharts!$A75+$A$11,IF($C$7,8,0),1,1) -> 24.89 | G75: =OFFSET(InputPriceData!F$15,CalculationsAndCharts!$A75+$A$11,IF($C$7,8,0),1,1) -> 25.06 | S75: 25.53 | T75: 23.37 | U75: 0.7824074074 | V75: FALSE | W75: FALSE | AB75: 11601 | AC75: 182 | AD75: 63.74175824 | AE75: 13.74175824 | AF75: 2.748351648 | AG75: -8 | AH75: -1.6 | AI75: =SUM((OFFSET($W$33,0,0,$A$23,1)=TRUE)*(OFFSET($AA$33,0,0,$A$23,1)=(AG75+50))) -> 2 | AM75: 25.53 | AN75: 24.01 | AO75: 0.6907894737 | AP75: FALSE | AQ75: 0 | AR75: 0 | AS75: FALSE | AT75: 0 | AU75: FALSE | AV75: FALSE | AW75: FALSE | AX75: FALSE | AY75: FALSE
A76: 44 | B76: =OFFSET(InputPriceData!B$15,CalculationsAndCharts!$A76+$A$11,0,1,1) -> 2014-11-06 | C76: =OFFSET(InputPriceData!G$15,CalculationsAndCharts!$A76+$A$11,IF($C$7,8,0),1,1) -> 320800 | D76: =OFFSET(InputPriceData!C$15,CalculationsAndCharts!$A76+$A$11,IF($C$7,8,0),1,1) -> 24.52 | E76: =OFFSET(InputPriceData!D$15,CalculationsAndCharts!$A76+$A$11,IF($C$7,8,0),1,1) -> 25.03 | F76: =OFFSET(InputPriceData!E$15,CalculationsAndCharts!$A76+$A$11,IF($C$7,8,0),1,1) -> 24.29 | G76: =OFFSET(InputPriceData!F$15,CalculationsAndCharts!$A76+$A$11,IF($C$7,8,0),1,1) -> 25.03 | S76: 25.53 | T76: 23.06 | U76: 0.7975708502 | V76: FALSE | W76: FALSE | AB76: 11601 | AC76: 182 | AD76: 63.74175824 | AE76: 13.74175824 | AF76: 2.748351648 | AG76: -7 | AH76: -1.4 | AI76: =SUM((OFFSET($W$33,0,0,$A$23,1)=TRUE)*(OFFSET($AA$33,0,0,$A$23,1)=(AG76+50))) -> 2 | AM76: 25.53 | AN76: 23.87 | AO76: 0.6987951807 | AP76: FALSE | AQ76: 0 | AR76: 0 | AS76: FALSE | AT76: 0 | AU76: FALSE | AV76: FALSE | AW76: FALSE | AX76: FALSE | AY76: FALSE
A77: 45 | B77: =OFFSET(InputPriceData!B$15,CalculationsAndCharts!$A77+$A$11,0,1,1) -> 2014-11-05 | C77: =OFFSET(InputPriceData!G$15,CalculationsAndCharts!$A77+$A$11,IF($C$7,8,0),1,1) -> 323500 | D77: =OFFSET(InputPriceData!C$15,CalculationsAndCharts!$A77+$A$11,IF($C$7,8,0),1,1) -> 24.9 | E77: =OFFSET(InputPriceData!D$15,CalculationsAndCharts!$A77+$A$11,IF($C$7,8,0),1,1) -> 24.95 | F77: =OFFSET(InputPriceData!E$15,CalculationsAndCharts!$A77+$A$11,IF($C$7,8,0),1,1) -> 24.35 | G77: =OFFSET(InputPriceData!F$15,CalculationsAndCharts!$A77+$A$11,IF($C$7,8,0),1,1) -> 24.46 | S77: 25.53 | T77: 22.58 | U77: 0.6372881356 | V77: FALSE | W77: FALSE | AB77: 11601 | AC77: 182 | AD77: 63.74175824 | AE77: 13.74175824 | AF77: 2.748351648 | AG77: -6 | AH77: -1.2 | AI77: =SUM((OFFSET($W$33,0,0,$A$23,1)=TRUE)*(OFFSET($AA$33,0,0,$A$23,1)=(AG77+50))) -> 2 | AM77: 25.53 | AN77: 23.37 | AO77: 0.5046296296 | AP77: FALSE | AQ77: 0 | AR77: 0 | AS77: FALSE | AT77: 0 | AU77: FALSE | AV77: FALSE | AW77: FALSE | AX77: FALSE | AY77: FALSE
A78: 46 | B78: =OFFSET(InputPriceData!B$15,CalculationsAndCharts!$A78+$A$11,0,1,1) -> 2014-11-04 | C78: =OFFSET(InputPriceData!G$15,CalculationsAndCharts!$A78+$A$11,IF($C$7,8,0),1,1) -> 455800 | D78: =OFFSET(InputPriceData!C$15,CalculationsAndCharts!$A78+$A$11,IF($C$7,8,0),1,1) -> 24.64 | E78: =OFFSET(InputPriceData!D$15,CalculationsAndCharts!$A78+$A$11,IF($C$7,8,0),1,1) -> 25.17 | F78: =OFFSET(InputPriceData!E$15,CalculationsAndCharts!$A78+$A$11,IF($C$7,8,0),1,1) -> 24.5 | G78: =OFFSET(InputPriceData!F$15,CalculationsAndCharts!$A78+$A$11,IF($C$7,8,0),1,1) -> 24.73 | S78: 25.53 | T78: 22.58 | U78: 0.7288135593 | V78: FALSE | W78: FALSE | AB78: 11601 | AC78: 182 | AD78: 63.74175824 | AE78: 13.74175824 | AF78: 2.748351648 | AG78: -5 | AH78: -1 | AI78: =SUM((OFFSET($W$33,0,0,$A$23,1)=TRUE)*(OFFSET($AA$33,0,0,$A$23,1)=(AG78+50))) -> 2 | AM78: 25.53 | AN78: 23.06 | AO78: 0.6761133603 | AP78: FALSE | AQ78: 0 | AR78: 0 | AS78: FALSE | AT78: 0 | AU78: FALSE | AV78: FALSE | AW78: FALSE | AX78: FALSE | AY78: FALSE
A79: 47 | B79: =OFFSET(InputPriceData!B$15,CalculationsAndCharts!$A79+$A$11,0,1,1) -> 2014-11-03 | C79: =OFFSET(InputPriceData!G$15,CalculationsAndCharts!$A79+$A$11,IF($C$7,8,0),1,1) -> 593200 | D79: =OFFSET(InputPriceData!C$15,CalculationsAndCharts!$A79+$A$11,IF($C$7,8,0),1,1) -> 25.19 | E79: =OFFSET(InputPriceData!D$15,CalculationsAndCharts!$A79+$A$11,IF($C$7,8,0),1,1) -> 25.25 | F79: =OFFSET(InputPriceData!E$15,CalculationsAndCharts!$A79+$A$11,IF($C$7,8,0),1,1) -> 24.53 | G79: =OFFSET(InputPriceData!F$15,CalculationsAndCharts!$A79+$A$11,IF($C$7,8,0),1,1) -> 24.67 | S79: 25.53 | T79: 22.55 | U79: 0.711409396 | V79: FALSE | W79: TRUE | X79: 22.55 | Y79: 9.401330377 | Z79: 9.401330377 | AA79: 97 | AB79: 11601 | AC79: 182 | AD79: 63.74175824 | AE79: 13.74175824 | AF79: 2.748351648 | AG79: -4 | AH79: -0.8 | AI79: =SUM((OFFSET($W$33,0,0,$A$23,1)=TRUE)*(OFFSET($AA$33,0,0,$A$23,1)=(AG79+50))) -> 2 | AM79: 25.53 | AN79: 22.58 | AO79: 0.7084745763 | AP79: FALSE | AQ79: 0 | AR79: 0 | AS79: FALSE | AT79: 0 | AU79: FALSE | AV79: FALSE | AW79: FALSE | AX79: FALSE | AY79: FALSE
A80: 48 | B80: =OFFSET(InputPriceData!B$15,CalculationsAndCharts!$A80+$A$11,0,1,1) -> 2014-10-31 | C80: =OFFSET(InputPriceData!G$15,CalculationsAndCharts!$A80+$A$11,IF($C$7,8,0),1,1) -> 508600 | D80: =OFFSET(InputPriceData!C$15,CalculationsAndCharts!$A80+$A$11,IF($C$7,8,0),1,1) -> 25.66 | E80: =OFFSET(InputPriceData!D$15,CalculationsAndCharts!$A80+$A$11,IF($C$7,8,0),1,1) -> 25.68 | F80: =OFFSET(InputPriceData!E$15,CalculationsAndCharts!$A80+$A$11,IF($C$7,8,0),1,1) -> 25.04 | G80: =OFFSET(InputPriceData!F$15,CalculationsAndCharts!$A80+$A$11,IF($C$7,8,0),1,1) -> 25.14 | S80: 25.53 | T80: 22.55 | U80: 0.8691275168 | V80: FALSE | W80: FALSE | AB80: 11504 | AC80: 181 | AD80: 63.55801105 | AE80: 13.55801105 | AF80: 2.71160221 | AG80: -3 | AH80: -0.6 | AI80: =SUM((OFFSET($W$33,0,0,$A$23,1)=TRUE)*(OFFSET($AA$33,0,0,$A$23,1)=(AG80+50))) -> 4 | AM80: 25.53 | AN80: 22.58 | AO80: 0.8677966102 | AP80: FALSE | AQ80: 0 | AR80: 0 | AS80: FALSE | AT80: 0 | AU80: FALSE | AV80: FALSE | AW80: FALSE | AX80: FALSE | AY80: FALSE
A81: 49 | B81: =OFFSET(InputPriceData!B$15,CalculationsAndCharts!$A81+$A$11,0,1,1) -> 2014-10-30 | C81: =OFFSET(InputPriceData!G$15,CalculationsAndCharts!$A81+$A$11,IF($C$7,8,0),1,1) -> 360600 | D81: =OFFSET(InputPriceData!C$15,CalculationsAndCharts!$A81+$A$11,IF($C$7,8,0),1,1) -> 25.08 | E81: =OFFSET(InputPriceData!D$15,CalculationsAndCharts!$A81+$A$11,IF($C$7,8,0),1,1) -> 25.4 | F81: =OFFSET(InputPriceData!E$15,CalculationsAndCharts!$A81+$A$11,IF($C$7,8,0),1,1) -> 24.83 | G81: =OFFSET(InputPriceData!F$15,CalculationsAndCharts!$A81+$A$11,IF($C$7,8,0),1,1) -> 25.03 | S81: 25.53 | T81: 22.55 | U81: 0.8322147651 | V81: FALSE | W81: FALSE | AB81: 11504 | AC81: 181 | AD81: 63.55801105 | AE81: 13.55801105 | AF81: 2.71160221 | AG81: -2 | AH81: -0.4 | AI81: =SUM((OFFSET($W$33,0,0,$A$23,1)=TRUE)*(OFFSET($AA$33,0,0,$A$23,1)=(AG81+50))) -> 1 | AM81: 25.53 | AN81: 22.55 | AO81: 0.8322147651 | AP81: FALSE | AQ81: 0 | AR81: 0 | AS81: FALSE | AT81: 0 | AU81: FALSE | AV81: FALSE | AW81: FALSE | AX81: FALSE | AY81: FALSE
A82: 50 | B82: =OFFSET(InputPriceData!B$15,CalculationsAndCharts!$A82+$A$11,0,1,1) -> 2014-10-29 | C82: =OFFSET(InputPriceData!G$15,CalculationsAndCharts!$A82+$A$11,IF($C$7,8,0),1,1) -> 409600 | D82: =OFFSET(InputPriceData!C$15,CalculationsAndCharts!$A82+$A$11,IF($C$7,8,0),1,1) -> 25.08 | E82: =OFFSET(InputPriceData!D$15,CalculationsAndCharts!$A82+$A$11,IF($C$7,8,0),1,1) -> 25.5 | F82: =OFFSET(InputPriceData!E$15,CalculationsAndCharts!$A82+$A$11,IF($C$7,8,0),1,1) -> 24.75 | G82: =OFFSET(InputPriceData!F$15,CalculationsAndCharts!$A82+$A$11,IF($C$7,8,0),1,1) -> 25.22 | S82: 25.53 | T82: 22.55 | U82: 0.8959731544 | V82: FALSE | W82: TRUE | X82: 23.47 | Y82: 7.456327226 | Z82: 7.456327226 | AA82: 87 | AB82: 11504 | AC82: 181 | AD82: 63.55801105 | AE82: 13.55801105 | AF82: 2.71160221 | AG82: -1 | AH82: -0.2 | AI82: =SUM((OFFSET($W$33,0,0,$A$23,1)=TRUE)*(OFFSET($AA$33,0,0,$A$23,1)=(AG82+50))) -> 3 | AM82: 25.53 | AN82: 22.55 | AO82: 0.8959731544 | AP82: FALSE | AQ82: 0 | AR82: 0 | AS82: FALSE | AT82: 0 | AU82: FALSE | AV82: FALSE | AW82: FALSE | AX82: FALSE | AY82: FALSE
A83: 51 | B83: =OFFSET(InputPriceData!B$15,CalculationsAndCharts!$A83+$A$11,0,1,1) -> 2014-10-28 | C83: =OFFSET(InputPriceData!G$15,CalculationsAndCharts!$A83+$A$11,IF($C$7,8,0),1,1) -> 376400 | D83: =OFFSET(InputPriceData!C$15,CalculationsAndCharts!$A83+$A$11,IF($C$7,8,0),1,1) -> 24.52 | E83: =OFFSET(InputPriceData!D$15,CalculationsAndCharts!$A83+$A$11,IF($C$7,8,0),1,1) -> 25.01 | F83: =OFFSET(InputPriceData!E$15,CalculationsAndCharts!$A83+$A$11,IF($C$7,8,0),1,1) -> 24.29 | G83: =OFFSET(InputPriceData!F$15,CalculationsAndCharts!$A83+$A$11,IF($C$7,8,0),1,1) -> 24.97 | S83: 25.53 | T83: 22.55 | U83: 0.8120805369 | V83: FALSE | W83: FALSE | AB83: 11417 | AC83: 180 | AD83: 63.42777778 | AE83: 13.42777778 | AF83: 2.685555556 | AG83: 0 | AH83: 0 | AI83: =SUM((OFFSET($W$33,0,0,$A$23,1)=TRUE)*(OFFSET($AA$33,0,0,$A$23,1)=(AG83+50))) -> 1 | AM83: 25.53 | AN83: 22.55 | AO83: 0.8120805369 | AP83: FALSE | AQ83: 0 | AR83: 0 | AS83: FALSE | AT83: 0 | AU83: FALSE | AV83: FALSE | AW83: FALSE | AX83: FALSE | AY83: FALSE
A84: 52 | B84: =OFFSET(InputPriceData!B$15,CalculationsAndCharts!$A84+$A$11,0,1,1) -> 2014-10-27 | C84: =OFFSET(InputPriceData!G$15,CalculationsAndCharts!$A84+$A$11,IF($C$7,8,0),1,1) -> 573000 | D84: =OFFSET(InputPriceData!C$15,CalculationsAndCharts!$A84+$A$11,IF($C$7,8,0),1,1) -> 23.91 | E84: =OFFSET(InputPriceData!D$15,CalculationsAndCharts!$A84+$A$11,IF($C$7,8,0),1,1) -> 24.78 | F84: =OFFSET(InputPriceData!E$15,CalculationsAndCharts!$A84+$A$11,IF($C$7,8,0),1,1) -> 23.5 | G84: =OFFSET(InputPriceData!F$15,CalculationsAndCharts!$A84+$A$11,IF($C$7,8,0),1,1) -> 24.37 | S84: 25.53 | T84: 22.55 | U84: 0.610738255 | V84: FALSE | W84: FALSE | AB84: 11417 | AC84: 180 | AD84: 63.42777778 | AE84: 13.42777778 | AF84: 2.685555556 | AG84: 1 | AH84: 0.2 | AI84: =SUM((OFFSET($W$33,0,0,$A$23,1)=TRUE)*(OFFSET($AA$33,0,0,$A$23,1)=(AG84+50))) -> 2 | AM84: 25.53 | AN84: 22.55 | AO84: 0.610738255 | AP84: FALSE | AQ84: 0 | AR84: 0 | AS84: FALSE | AT84: 0 | AU84: FALSE | AV84: FALSE | AW84: FALSE | AX84: FALSE | AY84: FALSE
A85: 53 | B85: =OFFSET(InputPriceData!B$15,CalculationsAndCharts!$A85+$A$11,0,1,1) -> 2014-10-24 | C85: =OFFSET(InputPriceData!G$15,CalculationsAndCharts!$A85+$A$11,IF($C$7,8,0),1,1) -> 1112500 | D85: =OFFSET(InputPriceData!C$15,CalculationsAndCharts!$A85+$A$11,IF($C$7,8,0),1,1) -> 25.46 | E85: =OFFSET(InputPriceData!D$15,CalculationsAndCharts!$A85+$A$11,IF($C$7,8,0),1,1) -> 25.75 | F85: =OFFSET(InputPriceData!E$15,CalculationsAndCharts!$A85+$A$11,IF($C$7,8,0),1,1) -> 23.89 | G85: =OFFSET(InputPriceData!F$15,CalculationsAndCharts!$A85+$A$11,IF($C$7,8,0),1,1) -> 24.01 | S85: 25.53 | T85: 22.55 | U85: 0.4899328859 | V85: FALSE | W85: TRUE | X85: 23.44 | Y85: 2.431740614 | Z85: 2.431740614 | AA85: 62 | AB85: 11417 | AC85: 180 | AD85: 63.42777778 | AE85: 13.42777778 | AF85: 2.685555556 | AG85: 2 | AH85: 0.4 | AI85: =SUM((OFFSET($W$33,0,0,$A$23,1)=TRUE)*(OFFSET($AA$33,0,0,$A$23,1)=(AG85+50))) -> 3 | AM85: 25.53 | AN85: 22.55 | AO85: 0.4899328859 | AP85: FALSE | AQ85: 0 | AR85: 0 | AS85: FALSE | AT85: 0 | AU85: FALSE | AV85: FALSE | AW85: FALSE | AX85: FALSE | AY85: FALSE
A86: 54 | B86: =OFFSET(InputPriceData!B$15,CalculationsAndCharts!$A86+$A$11,0,1,1) -> 2014-10-23 | C86: =OFFSET(InputPriceData!G$15,CalculationsAndCharts!$A86+$A$11,IF($C$7,8,0),1,1) -> 227900 | D86: =OFFSET(InputPriceData!C$15,CalculationsAndCharts!$A86+$A$11,IF($C$7,8,0),1,1) -> 25.28 | E86: =OFFSET(InputPriceData!D$15,CalculationsAndCharts!$A86+$A$11,IF($C$7,8,0),1,1) -> 25.57 | F86: =OFFSET(InputPriceData!E$15,CalculationsAndCharts!$A86+$A$11,IF($C$7,8,0),1,1) -> 25.23 | G86: =OFFSET(InputPriceData!F$15,CalculationsAndCharts!$A86+$A$11,IF($C$7,8,0),1,1) -> 25.32 | S86: 25.53 | T86: 22.55 | U86: 0.9295302013 | V86: FALSE | W86: FALSE | AB86: 11355 | AC86: 179 | AD86: 63.43575419 | AE86: 13.43575419 | AF86: 2.687150838 | AG86: 3 | AH86: 0.6 | AI86: =SUM((OFFSET($W$33,0,0,$A$23,1)=TRUE)*(OFFSET($AA$33,0,0,$A$23,1)=(AG86+50))) -> 1 | AM86: 25.53 | AN86: 22.55 | AO86: 0.9295302013 | AP86: FALSE | AQ86: 0 | AR86: 0 | AS86: FALSE | AT86: 0 | AU86: FALSE | AV86: FALSE | AW86: FALSE | AX86: FALSE | AY86: TRUE
A87: 55 | B87: =OFFSET(InputPriceData!B$15,CalculationsAndCharts!$A87+$A$11,0,1,1) -> 2014-10-22 | C87: =OFFSET(InputPriceData!G$15,CalculationsAndCharts!$A87+$A$11,IF($C$7,8,0),1,1) -> 399300 | D87: =OFFSET(InputPriceData!C$15,CalculationsAndCharts!$A87+$A$11,IF($C$7,8,0),1,1) -> 25.76 | E87: =OFFSET(InputPriceData!D$15,CalculationsAndCharts!$A87+$A$11,IF($C$7,8,0),1,1) -> 25.93 | F87: =OFFSET(InputPriceData!E$15,CalculationsAndCharts!$A87+$A$11,IF($C$7,8,0),1,1) -> 24.92 | G87: =OFFSET(InputPriceData!F$15,CalculationsAndCharts!$A87+$A$11,IF($C$7,8,0),1,1) -> 24.92 | S87: 25.53 | T87: 22.55 | U87: 0.7953020134 | V87: FALSE | W87: FALSE | AB87: 11355 | AC87: 179 | AD87: 63.43575419 | AE87: 13.43575419 | AF87: 2.687150838 | AG87: 4 | AH87: 0.8 | AI87: =SUM((OFFSET($W$33,0,0,$A$23,1)=TRUE)*(OFFSET($AA$33,0,0,$A$23,1)=(AG87+50))) -> 3 | AM87: 25.53 | AN87: 22.55 | AO87: 0.7953020134 | AP87: FALSE | AQ87: 0.6765 | AR87: 21.8735 | AS87: FALSE | AT87: 9 | AU87: TRUE | AV87: TRUE | AW87: FALSE | AX87: TRUE | AY87: FALSE
A88: 56 | B88: =OFFSET(InputPriceData!B$15,CalculationsAndCharts!$A88+$A$11,0,1,1) -> 2014-10-21 | C88: =OFFSET(InputPriceData!G$15,CalculationsAndCharts!$A88+$A$11,IF($C$7,8,0),1,1) -> 531000 | D88: =OFFSET(InputPriceData!C$15,CalculationsAndCharts!$A88+$A$11,IF($C$7,8,0),1,1) -> 24.81 | E88: =OFFSET(InputPriceData!D$15,CalculationsAndCharts!$A88+$A$11,IF($C$7,8,0),1,1) -> 25.58 | F88: =OFFSET(InputPriceData!E$15,CalculationsAndCharts!$A88+$A$11,IF($C$7,8,0),1,1) -> 24.81 | G88: =OFFSET(InputPriceData!F$15,CalculationsAndCharts!$A88+$A$11,IF($C$7,8,0),1,1) -> 25.53 | S88: 25.53 | T88: 22.55 | U88: 1 | V88: FALSE | W88: FALSE | AB88: 11355 | AC88: 179 | AD88: 63.43575419 | AE88: 13.43575419 | AF88: 2.687150838 | AG88: 5 | AH88: 1 | AI88: =SUM((OFFSET($W$33,0,0,$A$23,1)=TRUE)*(OFFSET($AA$33,0,0,$A$23,1)=(AG88+50))) -> 2 | AM88: 25.53 | AN88: 22.55 | AO88: 1 | AP88: FALSE | AQ88: 0.6765 | AR88: 21.8735 | AS88: FALSE | AT88: 8 | AU88: FALSE | AV88: FALSE | AW88: FALSE | AX88: TRUE | AY88: FALSE
A89: 57 | B89: =OFFSET(InputPriceData!B$15,CalculationsAndCharts!$A89+$A$11,0,1,1) -> 2014-10-20 | C89: =OFFSET(InputPriceData!G$15,CalculationsAndCharts!$A89+$A$11,IF($C$7,8,0),1,1) -> 364000 | D89: =OFFSET(InputPriceData!C$15,CalculationsAndCharts!$A89+$A$11,IF($C$7,8,0),1,1) -> 23.96 | E89: =OFFSET(InputPriceData!D$15,CalculationsAndCharts!$A89+$A$11,IF($C$7,8,0),1,1) -> 24.7 | F89: =OFFSET(InputPriceData!E$15,CalculationsAndCharts!$A89+$A$11,IF($C$7,8,0),1,1) -> 23.96 | G89: =OFFSET(InputPriceData!F$15,CalculationsAndCharts!$A89+$A$11,IF($C$7,8,0),1,1) -> 24.66 | S89: 24.66 | T89: 22.55 | U89: 1 | V89: FALSE | W89: TRUE | X89: 23.48 | Y89: 5.025553663 | Z89: 5.025553663 | AA89: 75 | AB89: 11355 | AC89: 179 | AD89: 63.43575419 | AE89: 13.43575419 | AF89: 2.687150838 | AG89: 6 | AH89: 1.2 | AI89: =SUM((OFFSET($W$33,0,0,$A$23,1)=TRUE)*(OFFSET($AA$33,0,0,$A$23,1)=(AG89+50))) -> 4 | AM89: 24.66 | AN89: 22.55 | AO89: 1 | AP89: FALSE | AQ89: 0.6765 | AR89: 21.8735 | AS89: FALSE | AT89: 7 | AU89: FALSE | AV89: FALSE | AW89: FALSE | AX89: TRUE | AY89: FALSE
A90: 58 | B90: =OFFSET(InputPriceData!B$15,CalculationsAndCharts!$A90+$A$11,0,1,1) -> 2014-10-17 | C90: =OFFSET(InputPriceData!G$15,CalculationsAndCharts!$A90+$A$11,IF($C$7,8,0),1,1) -> 486400 | D90: =OFFSET(InputPriceData!C$15,CalculationsAndCharts!$A90+$A$11,IF($C$7,8,0),1,1) -> 24.29 | E90: =OFFSET(InputPriceData!D$15,CalculationsAndCharts!$A90+$A$11,IF($C$7,8,0),1,1) -> 24.29 | F90: =OFFSET(InputPriceData!E$15,CalculationsAndCharts!$A90+$A$11,IF($C$7,8,0),1,1) -> 23.67 | G90: =OFFSET(InputPriceData!F$15,CalculationsAndCharts!$A90+$A$11,IF($C$7,8,0),1,1) -> 24.16 | S90: 24.16 | T90: 22.55 | U90: 1 | V90: FALSE | W90: FALSE | AB90: 11280 | AC90: 178 | AD90: 63.37078652 | AE90: 13.37078652 | AF90: 2.674157303 | AG90: 7 | AH90: 1.4 | AI90: =SUM((OFFSET($W$33,0,0,$A$23,1)=TRUE)*(OFFSET($AA$33,0,0,$A$23,1)=(AG90+50))) -> 2 | AM90: 24.16 | AN90: 22.55 | AO90: 1 | AP90: FALSE | AQ90: 0.6765 | AR90: 21.8735 | AS90: FALSE | AT90: 6 | AU90: FALSE | AV90: FALSE | AW90: FALSE | AX90: TRUE | AY90: FALSE
A91: 59 | B91: =OFFSET(InputPriceData!B$15,CalculationsAndCharts!$A91+$A$11,0,1,1) -> 2014-10-16 | C91: =OFFSET(InputPriceData!G$15,CalculationsAndCharts!$A91+$A$11,IF($C$7,8,0),1,1) -> 323200 | D91: =OFFSET(InputPriceData!C$15,CalculationsAndCharts!$A91+$A$11,IF($C$7,8,0),1,1) -> 23.08 | E91: =OFFSET(InputPriceData!D$15,CalculationsAndCharts!$A91+$A$11,IF($C$7,8,0),1,1) -> 23.94 | F91: =OFFSET(InputPriceData!E$15,CalculationsAndCharts!$A91+$A$11,IF($C$7,8,0),1,1) -> 23.08 | G91: =OFFSET(InputPriceData!F$15,CalculationsAndCharts!$A91+$A$11,IF($C$7,8,0),1,1) -> 23.87 | S91: 24.09 | T91: 22.55 | U91: 0.8571428571 | V91: FALSE | W91: FALSE | AB91: 11280 | AC91: 178 | AD91: 63.37078652 | AE91: 13.37078652 | AF91: 2.674157303 | AG91: 8 | AH91: 1.6 | AI91: =SUM((OFFSET($W$33,0,0,$A$23,1)=TRUE)*(OFFSET($AA$33,0,0,$A$23,1)=(AG91+50))) -> 1 | AM91: 24.09 | AN91: 22.55 | AO91: 0.8571428571 | AP91: FALSE | AQ91: 0.6765 | AR91: 21.8735 | AS91: FALSE | AT91: 5 | AU91: FALSE | AV91: FALSE | AW91: FALSE | AX91: TRUE | AY91: FALSE
A92: 60 | B92: =OFFSET(InputPriceData!B$15,CalculationsAndCharts!$A92+$A$11,0,1,1) -> 2014-10-15 | C92: =OFFSET(InputPriceData!G$15,CalculationsAndCharts!$A92+$A$11,IF($C$7,8,0),1,1) -> 339000 | D92: =OFFSET(InputPriceData!C$15,CalculationsAndCharts!$A92+$A$11,IF($C$7,8,0),1,1) -> 22.69 | E92: =OFFSET(InputPriceData!D$15,CalculationsAndCharts!$A92+$A$11,IF($C$7,8,0),1,1) -> 23.45 | F92: =OFFSET(InputPriceData!E$15,CalculationsAndCharts!$A92+$A$11,IF($C$7,8,0),1,1) -> 22.45 | G92: =OFFSET(InputPriceData!F$15,CalculationsAndCharts!$A92+$A$11,IF($C$7,8,0),1,1) -> 23.37 | S92: 24.42 | T92: 22.55 | U92: 0.4385026738 | V92: FALSE | W92: FALSE | AB92: 11280 | AC92: 178 | AD92: 63.37078652 | AE92: 13.37078652 | AF92: 2.674157303 | AG92: 9 | AH92: 1.8 | AI92: =SUM((OFFSET($W$33,0,0,$A$23,1)=TRUE)*(OFFSET($AA$33,0,0,$A$23,1)=(AG92+50))) -> 3 | AM92: 24.09 | AN92: 22.55 | AO92: 0.5324675325 | AP92: FALSE | AQ92: 0.6765 | AR92: 21.8735 | AS92: FALSE | AT92: 4 | AU92: FALSE | AV92: FALSE | AW92: FALSE | AX92: TRUE | AY92: FALSE
A93: 61 | B93: =OFFSET(InputPriceData!B$15,CalculationsAndCharts!$A93+$A$11,0,1,1) -> 2014-10-14 | C93: =OFFSET(InputPriceData!G$15,CalculationsAndCharts!$A93+$A$11,IF($C$7,8,0),1,1) -> 520000 | D93: =OFFSET(InputPriceData!C$15,CalculationsAndCharts!$A93+$A$11,IF($C$7,8,0),1,1) -> 22.96 | E93: =OFFSET(InputPriceData!D$15,CalculationsAndCharts!$A93+$A$11,IF($C$7,8,0),1,1) -> 23.39 | F93: =OFFSET(InputPriceData!E$15,CalculationsAndCharts!$A93+$A$11,IF($C$7,8,0),1,1) -> 22.6 | G93: =OFFSET(InputPriceData!F$15,CalculationsAndCharts!$A93+$A$11,IF($C$7,8,0),1,1) -> 23.06 | S93: 24.7 | T93: 22.55 | U93: 0.2372093023 | V93: FALSE | W93: FALSE | AB93: 11280 | AC93: 178 | AD93: 63.37078652 | AE93: 13.37078652 | AF93: 2.674157303 | AG93: 10 | AH93: 2 | AI93: =SUM((OFFSET($W$33,0,0,$A$23,1)=TRUE)*(OFFSET($AA$33,0,0,$A$23,1)=(AG93+50))) -> 0 | AM93: 24.09 | AN93: 22.55 | AO93: 0.3311688312 | AP93: FALSE | AQ93: 0.6765 | AR93: 21.8735 | AS93: FALSE | AT93: 3 | AU93: FALSE | AV93: FALSE | AW93: FALSE | AX93: TRUE | AY93: FALSE
A94: 62 | B94: =OFFSET(InputPriceData!B$15,CalculationsAndCharts!$A94+$A$11,0,1,1) -> 2014-10-13 | C94: =OFFSET(InputPriceData!G$15,CalculationsAndCharts!$A94+$A$11,IF($C$7,8,0),1,1) -> 473900 | D94: =OFFSET(InputPriceData!C$15,CalculationsAndCharts!$A94+$A$11,IF($C$7,8,0),1,1) -> 22.77 | E94: =OFFSET(InputPriceData!D$15,CalculationsAndCharts!$A94+$A$11,IF($C$7,8,0),1,1) -> 22.88 | F94: =OFFSET(InputPriceData!E$15,CalculationsAndCharts!$A94+$A$11,IF($C$7,8,0),1,1) -> 22.3 | G94: =OFFSET(InputPriceData!F$15,CalculationsAndCharts!$A94+$A$11,IF($C$7,8,0),1,1) -> 22.58 | S94: 24.85 | T94: 22.55 | U94: 0.01304347826 | V94: FALSE | W94: FALSE | AB94: 11280 | AC94: 178 | AD94: 63.37078652 | AE94: 13.37078652 | AF94: 2.674157303 | AG94: 11 | AH94: 2.2 | AI94: =SUM((OFFSET($W$33,0,0,$A$23,1)=TRUE)*(OFFSET($AA$33,0,0,$A$23,1)=(AG94+50))) -> 2 | AM94: 24.42 | AN94: 22.55 | AO94: 0.01604278075 | AP94: FALSE | AQ94: 0.6765 | AR94: 21.8735 | AS94: FALSE | AT94: 2 | AU94: FALSE | AV94: FALSE | AW94: FALSE | AX94: TRUE | AY94: FALSE
A95: 63 | B95: =OFFSET(InputPriceData!B$15,CalculationsAndCharts!$A95+$A$11,0,1,1) -> 2014-10-10 | C95: =OFFSET(InputPriceData!G$15,CalculationsAndCharts!$A95+$A$11,IF($C$7,8,0),1,1) -> 366500 | D95: =OFFSET(InputPriceData!C$15,CalculationsAndCharts!$A95+$A$11,IF($C$7,8,0),1,1) -> 22.55 | E95: =OFFSET(InputPriceData!D$15,CalculationsAndCharts!$A95+$A$11,IF($C$7,8,0),1,1) -> 22.93 | F95: =OFFSET(InputPriceData!E$15,CalculationsAndCharts!$A95+$A$11,IF($C$7,8,0),1,1) -> 22.4 | G95: =OFFSET(InputPriceData!F$15,CalculationsAndCharts!$A95+$A$11,IF($C$7,8,0),1,1) -> 22.64 | S95: 24.85 | T95: 22.55 | U95: 0.03913043478 | V95: FALSE | W95: FALSE | AB95: 11280 | AC95: 178 | AD95: 63.37078652 | AE95: 13.37078652 | AF95: 2.674157303 | AG95: 12 | AH95: 2.4 | AI95: =SUM((OFFSET($W$33,0,0,$A$23,1)=TRUE)*(OFFSET($AA$33,0,0,$A$23,1)=(AG95+50))) -> 3 | AM95: 24.7 | AN95: 22.55 | AO95: 0.04186046512 | AP95: FALSE | AQ95: 0.6765 | AR95: 21.8735 | AS95: FALSE | AT95: 1 | AU95: FALSE | AV95: FALSE | AW95: TRUE | AX95: TRUE | AY95: FALSE
A96: 64 | B96: =OFFSET(InputPriceData!B$15,CalculationsAndCharts!$A96+$A$11,0,1,1) -> 2014-10-09 | C96: =OFFSET(InputPriceData!G$15,CalculationsAndCharts!$A96+$A$11,IF($C$7,8,0),1,1) -> 278700 | D96: =OFFSET(InputPriceData!C$15,CalculationsAndCharts!$A96+$A$11,IF($C$7,8,0),1,1) -> 23.16 | E96: =OFFSET(InputPriceData!D$15,CalculationsAndCharts!$A96+$A$11,IF($C$7,8,0),1,1) -> 23.23 | F96: =OFFSET(InputPriceData!E$15,CalculationsAndCharts!$A96+$A$11,IF($C$7,8,0),1,1) -> 22.51 | G96: =OFFSET(InputPriceData!F$15,CalculationsAndCharts!$A96+$A$11,IF($C$7,8,0),1,1) -> 22.55 | S96: 24.85 | T96: 22.55 | U96: 0 | V96: TRUE | W96: FALSE | AB96: 11280 | AC96: 178 | AD96: 63.37078652 | AE96: 13.37078652 | AF96: 2.674157303 | AG96: 13 | AH96: 2.6 | AI96: =SUM((OFFSET($W$33,0,0,$A$23,1)=TRUE)*(OFFSET($AA$33,0,0,$A$23,1)=(AG96+50))) -> 4 | AJ96: 30 | AM96: 24.85 | AN96: 22.55 | AO96: 0 | AP96: TRUE | AQ96: 0 | AR96: 0 | AS96: FALSE | AT96: 0 | AU96: FALSE | AV96: FALSE | AW96: FALSE | AX96: FALSE | AY96: FALSE
A97: 65 | B97: =OFFSET(InputPriceData!B$15,CalculationsAndCharts!$A97+$A$11,0,1,1) -> 2014-10-08 | C97: =OFFSET(InputPriceData!G$15,CalculationsAndCharts!$A97+$A$11,IF($C$7,8,0),1,1) -> 522200 | D97: =OFFSET(InputPriceData!C$15,CalculationsAndCharts!$A97+$A$11,IF($C$7,8,0),1,1) -> 22.95 | E97: =OFFSET(InputPriceData!D$15,CalculationsAndCharts!$A97+$A$11,IF($C$7,8,0),1,1) -> 23.26 | F97: =OFFSET(InputPriceData!E$15,CalculationsAndCharts!$A97+$A$11,IF($C$7,8,0),1,1) -> 22.64 | G97: =OFFSET(InputPriceData!F$15,CalculationsAndCharts!$A97+$A$11,IF($C$7,8,0),1,1) -> 23.19 | S97: 24.85 | T97: 22.98 | U97: =IFERROR((G97- T97)/(S97-T97),0) -> 0.1122994652 | V97: FALSE | W97: FALSE | Y97: =IF(W97,IFERROR(100*(G97-X97)/X97,0),"") ->  | AB97: 11280 | AC97: 178 | AD97: =IFERROR(AB97/AC97,0) -> 63.37078652 | AE97: =IFERROR(AB97/AC97-50,0) -> 13.37078652 | AF97: 2.674157303 | AG97: 14 | AH97: 2.8 | AI97: =SUM((OFFSET($W$33,0,0,$A$23,1)=TRUE)*(OFFSET($AA$33,0,0,$A$23,1)=(AG97+50))) -> 3 | AJ97: =IF(AH97=$AJ$31,$AI$30+1,NA()) ->  | AM97: 24.85 | AN97: 22.98 | AO97: 0.1122994652 | AP97: FALSE | AQ97: 0 | AR97: =IF(AND(NOT(AX98),AW97),D97*(1-$E$22),IF(AX97,AR98,0)) -> 0 | AS97: =AND(AX97,F97<AR97) -> FALSE | AT97: =IF(AX97,AT98+1,0) -> 0 | AU97: FALSE | AV97: FALSE | AW97: FALSE | AX97: FALSE | AY97: TRUE
A98: 66 | B98: =OFFSET(InputPriceData!B$15,CalculationsAndCharts!$A98+$A$11,0,1,1) -> 2014-10-07 | C98: =OFFSET(InputPriceData!G$15,CalculationsAndCharts!$A98+$A$11,IF($C$7,8,0),1,1) -> 241500 | D98: =OFFSET(InputPriceData!C$15,CalculationsAndCharts!$A98+$A$11,IF($C$7,8,0),1,1) -> 23.28 | E98: =OFFSET(InputPriceData!D$15,CalculationsAndCharts!$A98+$A$11,IF($C$7,8,0),1,1) -> 23.48 | F98: =OFFSET(InputPriceData!E$15,CalculationsAndCharts!$A98+$A$11,IF($C$7,8,0),1,1) -> 22.95 | G98: =OFFSET(InputPriceData!F$15,CalculationsAndCharts!$A98+$A$11,IF($C$7,8,0),1,1) -> 22.98 | S98: =MAX(OFFSET($G98,0,0,$A$19,1)) -> 24.85 | T98: =MIN(OFFSET($G98,0,0,$A$19,1)) -> 22.98 | U98: 0 | V98: =AND(U98<$A$20,U99>$A$20) -> FALSE | W98: =OFFSET(V98,($A$21-1),0,1,1) -> FALSE | X98: =IF($W98,OFFSET($G98,$A$19-1,0,1,1),"") ->  | Z98: =IF(W98,IF(Y98<-10,10,IF(Y98>10,10,Y98)),"") ->  | AA98: =IF(W98,INT(5*(Z98+10)),"") ->  | AB98: =IF(A98>$A$23,0,IF(W98,AA98,0))+AB99 -> 11280 | AC98: =IF(A98>$A$23,0,IF(W98,1,0))+AC99 -> 178 | AD98: 63.37078652 | AE98: 13.37078652 | AF98: =AE98*0.2 -> 2.674157303 | AG98: 15 | AH98: =0.2*AG98 -> 3 | AI98: =SUM((OFFSET($W$33,0,0,$A$23,1)=TRUE)*(OFFSET($AA$33,0,0,$A$23,1)=(AG98+50))) -> 6 | AM98: =MAX(OFFSET($G98,0,0,$E$19,1)) -> 24.85 | AN98: =MIN(OFFSET($G98,0,0,$E$19,1)) -> 22.98 | AO98: =IFERROR(($G98- AN98)/(AM98-AN98),0) -> 0 | AP98: =AND(AO98<$E$20,AO99>$E$20) -> FALSE | AQ98: =IF(AND(NOT(AX99),AW98),D98*($E$22),IF(AX98,AQ99,0)) -> 0.7128 | AR98: 23.0472 | AS98: TRUE | AT98: 9 | AU98: =(AT98>=$E$21) -> TRUE | AV98: =OR(AS98,AU98) -> TRUE | AW98: =AND($AP99,NOT(AX99)) -> FALSE | AX98: =IF(AX99,IF(AY98,FALSE,AX99),IF(AW98,TRUE,AX99)) -> TRUE | AY98: =AND(AX99,AND(AV99<>AV100,AV99)) -> FALSE
A99: 67 | B99: =OFFSET(InputPriceData!B$15,CalculationsAndCharts!$A99+$A$11,0,1,1) -> 2014-10-06 | C99: =OFFSET(InputPriceData!G$15,CalculationsAndCharts!$A99+$A$11,IF($C$7,8,0),1,1) -> 216800 | D99: =OFFSET(InputPriceData!C$15,CalculationsAndCharts!$A99+$A$11,IF($C$7,8,0),1,1) -> 23.9 | E99: =OFFSET(InputPriceData!D$15,CalculationsAndCharts!$A99+$A$11,IF($C$7,8,0),1,1) -> 24.01 | F99: =OFFSET(InputPriceData!E$15,CalculationsAndCharts!$A99+$A$11,IF($C$7,8,0),1,1) -> 23.45 | G99: =OFFSET(InputPriceData!F$15,CalculationsAndCharts!$A99+$A$11,IF($C$7,8,0),1,1) -> 23.47 | S99: 24.85 | T99: 23.44 | U99: 0.02127659574 | V99: TRUE | W99: FALSE | AB99: 11280 | AC99: 178 | AD99: 63.37078652 | AE99: 13.37078652 | AF99: 2.674157303 | AG99: 16 | AH99: 3.2 | AI99: =SUM((OFFSET($W$33,0,0,$A$23,1)=TRUE)*(OFFSET($AA$33,0,0,$A$23,1)=(AG99+50))) -> 2 | AM99: 24.85 | AN99: 23.44 | AO99: 0.02127659574 | AP99: TRUE | AQ99: 0.7128 | AR99: 23.0472 | AS99: FALSE | AT99: 8 | AU99: FALSE | AV99: FALSE | AW99: FALSE | AX99: TRUE | AY99: FALSE
A100: 68 | B100: =OFFSET(InputPriceData!B$15,CalculationsAndCharts!$A100+$A$11,0,1,1) -> 2014-10-03 | C100: =OFFSET(InputPriceData!G$15,CalculationsAndCharts!$A100+$A$11,IF($C$7,8,0),1,1) -> 426200 | D100: =OFFSET(InputPriceData!C$15,CalculationsAndCharts!$A100+$A$11,IF($C$7,8,0),1,1) -> 23.99 | E100: =OFFSET(InputPriceData!D$15,CalculationsAndCharts!$A100+$A$11,IF($C$7,8,0),1,1) -> 23.99 | F100: =OFFSET(InputPriceData!E$15,CalculationsAndCharts!$A100+$A$11,IF($C$7,8,0),1,1) -> 23.62 | G100: =OFFSET(InputPriceData!F$15,CalculationsAndCharts!$A100+$A$11,IF($C$7,8,0),1,1) -> 23.77 | S100: 24.85 | T100: 23.44 | U100: 0.2340425532 | V100: FALSE | W100: FALSE | AB100: 11280 | AC100: 178 | AD100: 63.37078652 | AE100: 13.37078652 | AF100: 2.674157303 | AG100: 17 | AH100: 3.4 | AI100: =SUM((OFFSET($W$33,0,0,$A$23,1)=TRUE)*(OFFSET($AA$33,0,0,$A$23,1)=(AG100+50))) -> 1 | AM100: 24.85 | AN100: 23.44 | AO100: 0.2340425532 | AP100: FALSE | AQ100: 0.7128 | AR100: 23.0472 | AS100: FALSE | AT100: 7 | AU100: FALSE | AV100: FALSE | AW100: FALSE | AX100: TRUE | AY100: FALSE
A101: 69 | B101: =OFFSET(InputPriceData!B$15,CalculationsAndCharts!$A101+$A$11,0,1,1) -> 2014-10-02 | C101: =OFFSET(InputPriceData!G$15,CalculationsAndCharts!$A101+$A$11,IF($C$7,8,0),1,1) -> 237500 | D101: =OFFSET(InputPriceData!C$15,CalculationsAndCharts!$A101+$A$11,IF($C$7,8,0),1,1) -> 23.44 | E101: =OFFSET(InputPriceData!D$15,CalculationsAndCharts!$A101+$A$11,IF($C$7,8,0),1,1) -> 23.81 | F101: =OFFSET(InputPriceData!E$15,CalculationsAndCharts!$A101+$A$11,IF($C$7,8,0),1,1) -> 23.22 | G101: =OFFSET(InputPriceData!F$15,CalculationsAndCharts!$A101+$A$11,IF($C$7,8,0),1,1) -> 23.73 | S101: 24.85 | T101: 23.44 | U101: 0.2056737589 | V101: FALSE | W101: FALSE | AB101: 11280 | AC101: 178 | AD101: 63.37078652 | AE101: 13.37078652 | AF101: 2.674157303 | AG101: 18 | AH101: 3.6 | AI101: =SUM((OFFSET($W$33,0,0,$A$23,1)=TRUE)*(OFFSET($AA$33,0,0,$A$23,1)=(AG101+50))) -> 5 | AM101: 24.85 | AN101: 23.44 | AO101: 0.2056737589 | AP101: FALSE | AQ101: 0.7128 | AR101: 23.0472 | AS101: FALSE | AT101: 6 | AU101: FALSE | AV101: FALSE | AW101: FALSE | AX101: TRUE | AY101: FALSE
A102: 70 | B102: =OFFSET(InputPriceData!B$15,CalculationsAndCharts!$A102+$A$11,0,1,1) -> 2014-10-01 | C102: =OFFSET(InputPriceData!G$15,CalculationsAndCharts!$A102+$A$11,IF($C$7,8,0),1,1) -> 319800 | D102: =OFFSET(InputPriceData!C$15,CalculationsAndCharts!$A102+$A$11,IF($C$7,8,0),1,1) -> 23.79 | E102: =OFFSET(InputPriceData!D$15,CalculationsAndCharts!$A102+$A$11,IF($C$7,8,0),1,1) -> 24.11 | F102: =OFFSET(InputPriceData!E$15,CalculationsAndCharts!$A102+$A$11,IF($C$7,8,0),1,1) -> 23.34 | G102: =OFFSET(InputPriceData!F$15,CalculationsAndCharts!$A102+$A$11,IF($C$7,8,0),1,1) -> 23.44 | S102: 24.85 | T102: 23.44 | U102: 0 | V102: TRUE | W102: FALSE | AB102: 11280 | AC102: 178 | AD102: 63.37078652 | AE102: 13.37078652 | AF102: 2.674157303 | AG102: 19 | AH102: 3.8 | AI102: =SUM((OFFSET($W$33,0,0,$A$23,1)=TRUE)*(OFFSET($AA$33,0,0,$A$23,1)=(AG102+50))) -> 2 | AM102: 24.85 | AN102: 23.44 | AO102: 0 | AP102: TRUE | AQ102: 0.7128 | AR102: 23.0472 | AS102: FALSE | AT102: 5 | AU102: FALSE | AV102: FALSE | AW102: FALSE | AX102: TRUE | AY102: FALSE
A103: 71 | B103: =OFFSET(InputPriceData!B$15,CalculationsAndCharts!$A103+$A$11,0,1,1) -> 2014-09-30 | C103: =OFFSET(InputPriceData!G$15,CalculationsAndCharts!$A103+$A$11,IF($C$7,8,0),1,1) -> 527500 | D103: =OFFSET(InputPriceData!C$15,CalculationsAndCharts!$A103+$A$11,IF($C$7,8,0),1,1) -> 24.05 | E103: =OFFSET(InputPriceData!D$15,CalculationsAndCharts!$A103+$A$11,IF($C$7,8,0),1,1) -> 24.14 | F103: =OFFSET(InputPriceData!E$15,CalculationsAndCharts!$A103+$A$11,IF($C$7,8,0),1,1) -> 23.86 | G103: =OFFSET(InputPriceData!F$15,CalculationsAndCharts!$A103+$A$11,IF($C$7,8,0),1,1) -> 23.96 | S103: 24.85 | T103: 23.48 | U103: 0.3503649635 | V103: FALSE | W103: FALSE | AB103: 11280 | AC103: 178 | AD103: 63.37078652 | AE103: 13.37078652 | AF103: 2.674157303 | AG103: 20 | AH103: 4 | AI103: =SUM((OFFSET($W$33,0,0,$A$23,1)=TRUE)*(OFFSET($AA$33,0,0,$A$23,1)=(AG103+50))) -> 0 | AM103: 24.85 | AN103: 23.48 | AO103: 0.3503649635 | AP103: FALSE | AQ103: 0.7128 | AR103: 23.0472 | AS103: FALSE | AT103: 4 | AU103: FALSE | AV103: FALSE | AW103: FALSE | AX103: TRUE | AY103: FALSE
A104: 72 | B104: =OFFSET(InputPriceData!B$15,CalculationsAndCharts!$A104+$A$11,0,1,1) -> 2014-09-29 | C104: =OFFSET(InputPriceData!G$15,CalculationsAndCharts!$A104+$A$11,IF($C$7,8,0),1,1) -> 665200 | D104: =OFFSET(InputPriceData!C$15,CalculationsAndCharts!$A104+$A$11,IF($C$7,8,0),1,1) -> 23.78 | E104: =OFFSET(InputPriceData!D$15,CalculationsAndCharts!$A104+$A$11,IF($C$7,8,0),1,1) -> 24.22 | F104: =OFFSET(InputPriceData!E$15,CalculationsAndCharts!$A104+$A$11,IF($C$7,8,0),1,1) -> 23.58 | G104: =OFFSET(InputPriceData!F$15,CalculationsAndCharts!$A104+$A$11,IF($C$7,8,0),1,1) -> 24.09 | S104: 24.85 | T104: 23.48 | U104: 0.4452554745 | V104: FALSE | W104: FALSE | AB104: 11280 | AC104: 178 | AD104: 63.37078652 | AE104: 13.37078652 | AF104: 2.674157303 | AG104: 21 | AH104: 4.2 | AI104: =SUM((OFFSET($W$33,0,0,$A$23,1)=TRUE)*(OFFSET($AA$33,0,0,$A$23,1)=(AG104+50))) -> 0 | AM104: 24.85 | AN104: 23.48 | AO104: 0.4452554745 | AP104: FALSE | AQ104: 0.7128 | AR104: 23.0472 | AS104: FALSE | AT104: 3 | AU104: FALSE | AV104: FALSE | AW104: FALSE | AX104: TRUE | AY104: FALSE
A105: 73 | B105: =OFFSET(InputPriceData!B$15,CalculationsAndCharts!$A105+$A$11,0,1,1) -> 2014-09-26 | C105: =OFFSET(InputPriceData!G$15,CalculationsAndCharts!$A105+$A$11,IF($C$7,8,0),1,1) -> 407600 | D105: =OFFSET(InputPriceData!C$15,CalculationsAndCharts!$A105+$A$11,IF($C$7,8,0),1,1) -> 23.51 | E105: =OFFSET(InputPriceData!D$15,CalculationsAndCharts!$A105+$A$11,IF($C$7,8,0),1,1) -> 24.1 | F105: =OFFSET(InputPriceData!E$15,CalculationsAndCharts!$A105+$A$11,IF($C$7,8,0),1,1) -> 23.43 | G105: =OFFSET(InputPriceData!F$15,CalculationsAndCharts!$A105+$A$11,IF($C$7,8,0),1,1) -> 24.03 | S105: 24.85 | T105: 23.48 | U105: 0.401459854 | V105: FALSE | W105: FALSE | AB105: 11280 | AC105: 178 | AD105: 63.37078652 | AE105: 13.37078652 | AF105: 2.674157303 | AG105: 22 | AH105: 4.4 | AI105: =SUM((OFFSET($W$33,0,0,$A$23,1)=TRUE)*(OFFSET($AA$33,0,0,$A$23,1)=(AG105+50))) -> 6 | AM105: 24.85 | AN105: 23.48 | AO105: 0.401459854 | AP105: FALSE | AQ105: 0.7128 | AR105: 23.0472 | AS105: FALSE | AT105: 2 | AU105: FALSE | AV105: FALSE | AW105: FALSE | AX105: TRUE | AY105: FALSE
A106: 74 | B106: =OFFSET(InputPriceData!B$15,CalculationsAndCharts!$A106+$A$11,0,1,1) -> 2014-09-25 | C106: =OFFSET(InputPriceData!G$15,CalculationsAndCharts!$A106+$A$11,IF($C$7,8,0),1,1) -> 504000 | D106: =OFFSET(InputPriceData!C$15,CalculationsAndCharts!$A106+$A$11,IF($C$7,8,0),1,1) -> 23.76 | E106: =OFFSET(InputPriceData!D$15,CalculationsAndCharts!$A106+$A$11,IF($C$7,8,0),1,1) -> 23.82 | F106: =OFFSET(InputPriceData!E$15,CalculationsAndCharts!$A106+$A$11,IF($C$7,8,0),1,1) -> 23.22 | G106: =OFFSET(InputPriceData!F$15,CalculationsAndCharts!$A106+$A$11,IF($C$7,8,0),1,1) -> 23.48 | S106: 24.85 | T106: 23.48 | U106: 0 | V106: TRUE | W106: FALSE | AB106: 11280 | AC106: 178 | AD106: 63.37078652 | AE106: 13.37078652 | AF106: 2.674157303 | AG106: 23 | AH106: 4.6 | AI106: =SUM((OFFSET($W$33,0,0,$A$23,1)=TRUE)*(OFFSET($AA$33,0,0,$A$23,1)=(AG106+50))) -> 1 | AM106: 24.85 | AN106: 23.48 | AO106: 0 | AP106: FALSE | AQ106: 0.7128 | AR106: 23.0472 | AS106: FALSE | AT106: 1 | AU106: FALSE | AV106: FALSE | AW106: TRUE | AX106: TRUE | AY106: FALSE
A107: 75 | B107: =OFFSET(InputPriceData!B$15,CalculationsAndCharts!$A107+$A$11,0,1,1) -> 2014-09-24 | C107: =OFFSET(InputPriceData!G$15,CalculationsAndCharts!$A107+$A$11,IF($C$7,8,0),1,1) -> 286200 | D107: =OFFSET(InputPriceData!C$15,CalculationsAndCharts!$A107+$A$11,IF($C$7,8,0),1,1) -> 23.93 | E107: =OFFSET(InputPriceData!D$15,CalculationsAndCharts!$A107+$A$11,IF($C$7,8,0),1,1) -> 24.01 | F107: =OFFSET(InputPriceData!E$15,CalculationsAndCharts!$A107+$A$11,IF($C$7,8,0),1,1) -> 23.73 | G107: =OFFSET(InputPriceData!F$15,CalculationsAndCharts!$A107+$A$11,IF($C$7,8,0),1,1) -> 23.79 | S107: 24.85 | T107: 23.45 | U107: 0.2428571429 | V107: FALSE | W107: FALSE | AB107: 11280 | AC107: 178 | AD107: 63.37078652 | AE107: 13.37078652 | AF107: 2.674157303 | AG107: 24 | AH107: 4.8 | AI107: =SUM((OFFSET($W$33,0,0,$A$23,1)=TRUE)*(OFFSET($AA$33,0,0,$A$23,1)=(AG107+50))) -> 1 | AM107: 24.85 | AN107: 23.79 | AO107: 0 | AP107: TRUE | AQ107: 0 | AR107: 0 | AS107: FALSE | AT107: 0 | AU107: FALSE | AV107: FALSE | AW107: FALSE | AX107: FALSE | AY107: FALSE
A108: 76 | B108: =OFFSET(InputPriceData!B$15,CalculationsAndCharts!$A108+$A$11,0,1,1) -> 2014-09-23 | C108: =OFFSET(InputPriceData!G$15,CalculationsAndCharts!$A108+$A$11,IF($C$7,8,0),1,1) -> 308100 | D108: =OFFSET(InputPriceData!C$15,CalculationsAndCharts!$A108+$A$11,IF($C$7,8,0),1,1) -> 24.28 | E108: =OFFSET(InputPriceData!D$15,CalculationsAndCharts!$A108+$A$11,IF($C$7,8,0),1,1) -> 24.42 | F108: =OFFSET(InputPriceData!E$15,CalculationsAndCharts!$A108+$A$11,IF($C$7,8,0),1,1) -> 23.89 | G108: =OFFSET(InputPriceData!F$15,CalculationsAndCharts!$A108+$A$11,IF($C$7,8,0),1,1) -> 23.94 | S108: 24.85 | T108: 23.27 | U108: 0.4240506329 | V108: FALSE | W108: FALSE | AB108: 11280 | AC108: 178 | AD108: 63.37078652 | AE108: 13.37078652 | AF108: 2.674157303 | AG108: 25 | AH108: 5 | AI108: =SUM((OFFSET($W$33,0,0,$A$23,1)=TRUE)*(OFFSET($AA$33,0,0,$A$23,1)=(AG108+50))) -> 3 | AM108: 24.85 | AN108: 23.83 | AO108: 0.1078431373 | AP108: FALSE | AQ108: 0 | AR108: 0 | AS108: FALSE | AT108: 0 | AU108: FALSE | AV108: FALSE | AW108: FALSE | AX108: FALSE | AY108: FALSE
A109: 77 | B109: =OFFSET(InputPriceData!B$15,CalculationsAndCharts!$A109+$A$11,0,1,1) -> 2014-09-22 | C109: =OFFSET(InputPriceData!G$15,CalculationsAndCharts!$A109+$A$11,IF($C$7,8,0),1,1) -> 286700 | D109: =OFFSET(InputPriceData!C$15,CalculationsAndCharts!$A109+$A$11,IF($C$7,8,0),1,1) -> 24.61 | E109: =OFFSET(InputPriceData!D$15,CalculationsAndCharts!$A109+$A$11,IF($C$7,8,0),1,1) -> 24.61 | F109: =OFFSET(InputPriceData!E$15,CalculationsAndCharts!$A109+$A$11,IF($C$7,8,0),1,1) -> 24.31 | G109: =OFFSET(InputPriceData!F$15,CalculationsAndCharts!$A109+$A$11,IF($C$7,8,0),1,1) -> 24.42 | S109: 24.85 | T109: 23.27 | U109: 0.7278481013 | V109: FALSE | W109: FALSE | AB109: 11280 | AC109: 178 | AD109: 63.37078652 | AE109: 13.37078652 | AF109: 2.674157303 | AG109: 26 | AH109: 5.2 | AI109: =SUM((OFFSET($W$33,0,0,$A$23,1)=TRUE)*(OFFSET($AA$33,0,0,$A$23,1)=(AG109+50))) -> 1 | AM109: 24.85 | AN109: 23.45 | AO109: 0.6928571429 | AP109: FALSE | AQ109: 0 | AR109: 0 | AS109: FALSE | AT109: 0 | AU109: FALSE | AV109: FALSE | AW109: FALSE | AX109: FALSE | AY109: FALSE
A110: 78 | B110: =OFFSET(InputPriceData!B$15,CalculationsAndCharts!$A110+$A$11,0,1,1) -> 2014-09-19 | C110: =OFFSET(InputPriceData!G$15,CalculationsAndCharts!$A110+$A$11,IF($C$7,8,0),1,1) -> 1509100 | D110: =OFFSET(InputPriceData!C$15,CalculationsAndCharts!$A110+$A$11,IF($C$7,8,0),1,1) -> 25 | E110: =OFFSET(InputPriceData!D$15,CalculationsAndCharts!$A110+$A$11,IF($C$7,8,0),1,1) -> 25.07 | F110: =OFFSET(InputPriceData!E$15,CalculationsAndCharts!$A110+$A$11,IF($C$7,8,0),1,1) -> 24.43 | G110: =OFFSET(InputPriceData!F$15,CalculationsAndCharts!$A110+$A$11,IF($C$7,8,0),1,1) -> 24.7 | S110: 24.85 | T110: 23.27 | U110: 0.9050632911 | V110: FALSE | W110: FALSE | AB110: 11280 | AC110: 178 | AD110: 63.37078652 | AE110: 13.37078652 | AF110: 2.674157303 | AG110: 27 | AH110: 5.4 | AI110: =SUM((OFFSET($W$33,0,0,$A$23,1)=TRUE)*(OFFSET($AA$33,0,0,$A$23,1)=(AG110+50))) -> 1 | AM110: 24.85 | AN110: 23.27 | AO110: 0.9050632911 | AP110: FALSE | AQ110: 0 | AR110: 0 | AS110: FALSE | AT110: 0 | AU110: FALSE | AV110: FALSE | AW110: FALSE | AX110: FALSE | AY110: FALSE
A111: 79 | B111: =OFFSET(InputPriceData!B$15,CalculationsAndCharts!$A111+$A$11,0,1,1) -> 2014-09-18 | C111: =OFFSET(InputPriceData!G$15,CalculationsAndCharts!$A111+$A$11,IF($C$7,8,0),1,1) -> 214000 | D111: =OFFSET(InputPriceData!C$15,CalculationsAndCharts!$A111+$A$11,IF($C$7,8,0),1,1) -> 24.43 | E111: =OFFSET(InputPriceData!D$15,CalculationsAndCharts!$A111+$A$11,IF($C$7,8,0),1,1) -> 24.91 | F111: =OFFSET(InputPriceData!E$15,CalculationsAndCharts!$A111+$A$11,IF($C$7,8,0),1,1) -> 24.43 | G111: =OFFSET(InputPriceData!F$15,CalculationsAndCharts!$A111+$A$11,IF($C$7,8,0),1,1) -> 24.85 | S111: 24.85 | T111: 23.27 | U111: 1 | V111: FALSE | W111: FALSE | AB111: 11280 | AC111: 178 | AD111: 63.37078652 | AE111: 13.37078652 | AF111: 2.674157303 | AG111: 28 | AH111: 5.6 | AI111: =SUM((OFFSET($W$33,0,0,$A$23,1)=TRUE)*(OFFSET($AA$33,0,0,$A$23,1)=(AG111+50))) -> 1 | AM111: 24.85 | AN111: 23.27 | AO111: 1 | AP111: FALSE | AQ111: 0 | AR111: 0 | AS111: FALSE | AT111: 0 | AU111: FALSE | AV111: FALSE | AW111: FALSE | AX111: FALSE | AY111: FALSE
A112: 80 | B112: =OFFSET(InputPriceData!B$15,CalculationsAndCharts!$A112+$A$11,0,1,1) -> 2014-09-17 | C112: =OFFSET(InputPriceData!G$15,CalculationsAndCharts!$A112+$A$11,IF($C$7,8,0),1,1) -> 313200 | D112: =OFFSET(InputPriceData!C$15,CalculationsAndCharts!$A112+$A$11,IF($C$7,8,0),1,1) -> 24.38 | E112: =OFFSET(InputPriceData!D$15,CalculationsAndCharts!$A112+$A$11,IF($C$7,8,0),1,1) -> 24.6 | F112: =OFFSET(InputPriceData!E$15,CalculationsAndCharts!$A112+$A$11,IF($C$7,8,0),1,1) -> 24.18 | G112: =OFFSET(InputPriceData!F$15,CalculationsAndCharts!$A112+$A$11,IF($C$7,8,0),1,1) -> 24.36 | S112: 24.57 | T112: 23.27 | U112: 0.8384615385 | V112: FALSE | W112: FALSE | AB112: 11280 | AC112: 178 | AD112: 63.37078652 | AE112: 13.37078652 | AF112: 2.674157303 | AG112: 29 | AH112: 5.8 | AI112: =SUM((OFFSET($W$33,0,0,$A$23,1)=TRUE)*(OFFSET($AA$33,0,0,$A$23,1)=(AG112+50))) -> 1 | AM112: 24.57 | AN112: 23.27 | AO112: 0.8384615385 | AP112: FALSE | AQ112: 0 | AR112: 0 | AS112: FALSE | AT112: 0 | AU112: FALSE | AV112: FALSE | AW112: FALSE | AX112: FALSE | AY112: FALSE
A113: 81 | B113: =OFFSET(InputPriceData!B$15,CalculationsAndCharts!$A113+$A$11,0,1,1) -> 2014-09-16 | C113: =OFFSET(InputPriceData!G$15,CalculationsAndCharts!$A113+$A$11,IF($C$7,8,0),1,1) -> 437300 | D113: =OFFSET(InputPriceData!C$15,CalculationsAndCharts!$A113+$A$11,IF($C$7,8,0),1,1) -> 24.06 | E113: =OFFSET(InputPriceData!D$15,CalculationsAndCharts!$A113+$A$11,IF($C$7,8,0),1,1) -> 24.25 | F113: =OFFSET(InputPriceData!E$15,CalculationsAndCharts!$A113+$A$11,IF($C$7,8,0),1,1) -> 23.93 | G113: =OFFSET(InputPriceData!F$15,CalculationsAndCharts!$A113+$A$11,IF($C$7,8,0),1,1) -> 24.23 | S113: 24.57 | T113: 23.27 | U113: 0.7384615385 | V113: FALSE | W113: FALSE | AB113: 11280 | AC113: 178 | AD113: 63.37078652 | AE113: 13.37078652 | AF113: 2.674157303 | AG113: 30 | AH113: 6 | AI113: =SUM((OFFSET($W$33,0,0,$A$23,1)=TRUE)*(OFFSET($AA$33,0,0,$A$23,1)=(AG113+50))) -> 5 | AM113: 24.57 | AN113: 23.27 | AO113: 0.7384615385 | AP113: FALSE | AQ113: 0 | AR113: 0 | AS113: FALSE | AT113: 0 | AU113: FALSE | AV113: FALSE | AW113: FALSE | AX113: FALSE | AY113: FALSE
A114: 82 | B114: =OFFSET(InputPriceData!B$15,CalculationsAndCharts!$A114+$A$11,0,1,1) -> 2014-09-15 | C114: =OFFSET(InputPriceData!G$15,CalculationsAndCharts!$A114+$A$11,IF($C$7,8,0),1,1) -> 540700 | D114: =OFFSET(InputPriceData!C$15,CalculationsAndCharts!$A114+$A$11,IF($C$7,8,0),1,1) -> 24.53 | E114: =OFFSET(InputPriceData!D$15,CalculationsAndCharts!$A114+$A$11,IF($C$7,8,0),1,1) -> 24.53 | F114: =OFFSET(InputPriceData!E$15,CalculationsAndCharts!$A114+$A$11,IF($C$7,8,0),1,1) -> 24.09 | G114: =OFFSET(InputPriceData!F$15,CalculationsAndCharts!$A114+$A$11,IF($C$7,8,0),1,1) -> 24.1 | S114: 24.57 | T114: 23.27 | U114: 0.6384615385 | V114: FALSE | W114: FALSE | AB114: 11280 | AC114: 178 | AD114: 63.37078652 | AE114: 13.37078652 | AF114: 2.674157303 | AG114: 31 | AH114: 6.2 | AI114: =SUM((OFFSET($W$33,0,0,$A$23,1)=TRUE)*(OFFSET($AA$33,0,0,$A$23,1)=(AG114+50))) -> 1 | AM114: 24.57 | AN114: 23.27 | AO114: 0.6384615385 | AP114: FALSE | AQ114: 0 | AR114: 0 | AS114: FALSE | AT114: 0 | AU114: FALSE | AV114: FALSE | AW114: FALSE | AX114: FALSE | AY114: FALSE
A115: 83 | B115: =OFFSET(InputPriceData!B$15,CalculationsAndCharts!$A115+$A$11,0,1,1) -> 2014-09-12 | C115: =OFFSET(InputPriceData!G$15,CalculationsAndCharts!$A115+$A$11,IF($C$7,8,0),1,1) -> 468000 | D115: =OFFSET(InputPriceData!C$15,CalculationsAndCharts!$A115+$A$11,IF($C$7,8,0),1,1) -> 24.15 | E115: =OFFSET(InputPriceData!D$15,CalculationsAndCharts!$A115+$A$11,IF($C$7,8,0),1,1) -> 24.64 | F115: =OFFSET(InputPriceData!E$15,CalculationsAndCharts!$A115+$A$11,IF($C$7,8,0),1,1) -> 24.08 | G115: =OFFSET(InputPriceData!F$15,CalculationsAndCharts!$A115+$A$11,IF($C$7,8,0),1,1) -> 24.57 | S115: 24.57 | T115: 23.27 | U115: 1 | V115: FALSE | W115: FALSE | AB115: 11280 | AC115: 178 | AD115: 63.37078652 | AE115: 13.37078652 | AF115: 2.674157303 | AG115: 32 | AH115: 6.4 | AI115: =SUM((OFFSET($W$33,0,0,$A$23,1)=TRUE)*(OFFSET($AA$33,0,0,$A$23,1)=(AG115+50))) -> 3 | AM115: 24.57 | AN115: 23.27 | AO115: 1 | AP115: FALSE | AQ115: 0 | AR115: 0 | AS115: FALSE | AT115: 0 | AU115: FALSE | AV115: FALSE | AW115: FALSE | AX115: FALSE | AY115: FALSE
A116: 84 | B116: =OFFSET(InputPriceData!B$15,CalculationsAndCharts!$A116+$A$11,0,1,1) -> 2014-09-11 | C116: =OFFSET(InputPriceData!G$15,CalculationsAndCharts!$A116+$A$11,IF($C$7,8,0),1,1) -> 456500 | D116: =OFFSET(InputPriceData!C$15,CalculationsAndCharts!$A116+$A$11,IF($C$7,8,0),1,1) -> 24.03 | E116: =OFFSET(InputPriceData!D$15,CalculationsAndCharts!$A116+$A$11,IF($C$7,8,0),1,1) -> 24.24 | F116: =OFFSET(InputPriceData!E$15,CalculationsAndCharts!$A116+$A$11,IF($C$7,8,0),1,1) -> 23.65 | G116: =OFFSET(InputPriceData!F$15,CalculationsAndCharts!$A116+$A$11,IF($C$7,8,0),1,1) -> 24.07 | S116: 24.16 | T116: 23.27 | U116: 0.8988764045 | V116: FALSE | W116: FALSE | AB116: 11280 | AC116: 178 | AD116: 63.37078652 | AE116: 13.37078652 | AF116: 2.674157303 | AG116: 33 | AH116: 6.6 | AI116: =SUM((OFFSET($W$33,0,0,$A$23,1)=TRUE)*(OFFSET($AA$33,0,0,$A$23,1)=(AG116+50))) -> 1 | AM116: 24.16 | AN116: 23.27 | AO116: 0.8988764045 | AP116: FALSE | AQ116: 0 | AR116: 0 | AS116: FALSE | AT116: 0 | AU116: FALSE | AV116: FALSE | AW116: FALSE | AX116: FALSE | AY116: FALSE
A117: 85 | B117: =OFFSET(InputPriceData!B$15,CalculationsAndCharts!$A117+$A$11,0,1,1) -> 2014-09-10 | C117: =OFFSET(InputPriceData!G$15,CalculationsAndCharts!$A117+$A$11,IF($C$7,8,0),1,1) -> 246100 | D117: =OFFSET(InputPriceData!C$15,CalculationsAndCharts!$A117+$A$11,IF($C$7,8,0),1,1) -> 24 | E117: =OFFSET(InputPriceData!D$15,CalculationsAndCharts!$A117+$A$11,IF($C$7,8,0),1,1) -> 24.16 | F117: =OFFSET(InputPriceData!E$15,CalculationsAndCharts!$A117+$A$11,IF($C$7,8,0),1,1) -> 23.82 | G117: =OFFSET(InputPriceData!F$15,CalculationsAndCharts!$A117+$A$11,IF($C$7,8,0),1,1) -> 24.09 | S117: 24.16 | T117: 23.01 | U117: 0.9391304348 | V117: FALSE | W117: FALSE | AB117: 11280 | AC117: 178 | AD117: 63.37078652 | AE117: 13.37078652 | AF117: 2.674157303 | AG117: 34 | AH117: 6.8 | AI117: =SUM((OFFSET($W$33,0,0,$A$23,1)=TRUE)*(OFFSET($AA$33,0,0,$A$23,1)=(AG117+50))) -> 2 | AM117: 24.16 | AN117: 23.27 | AO117: 0.9213483146 | AP117: FALSE | AQ117: 0 | AR117: 0 | AS117: FALSE | AT117: 0 | AU117: FALSE | AV117: FALSE | AW117: FALSE | AX117: FALSE | AY117: FALSE
A118: 86 | B118: =OFFSET(InputPriceData!B$15,CalculationsAndCharts!$A118+$A$11,0,1,1) -> 2014-09-09 | C118: =OFFSET(InputPriceData!G$15,CalculationsAndCharts!$A118+$A$11,IF($C$7,8,0),1,1) -> 228300 | D118: =OFFSET(InputPriceData!C$15,CalculationsAndCharts!$A118+$A$11,IF($C$7,8,0),1,1) -> 24.19 | E118: =OFFSET(InputPriceData!D$15,CalculationsAndCharts!$A118+$A$11,IF($C$7,8,0),1,1) -> 24.42 | F118: =OFFSET(InputPriceData!E$15,CalculationsAndCharts!$A118+$A$11,IF($C$7,8,0),1,1) -> 23.87 | G118: =OFFSET(InputPriceData!F$15,CalculationsAndCharts!$A118+$A$11,IF($C$7,8,0),1,1) -> 23.94 | S118: 24.16 | T118: 23.01 | U118: 0.8086956522 | V118: FALSE | W118: FALSE | AB118: 11280 | AC118: 178 | AD118: 63.37078652 | AE118: 13.37078652 | AF118: 2.674157303 | AG118: 35 | AH118: 7 | AI118: =SUM((OFFSET($W$33,0,0,$A$23,1)=TRUE)*(OFFSET($AA$33,0,0,$A$23,1)=(AG118+50))) -> 2 | AM118: 24.16 | AN118: 23.27 | AO118: 0.7528089888 | AP118: FALSE | AQ118: 0 | AR118: 0 | AS118: FALSE | AT118: 0 | AU118: FALSE | AV118: FALSE | AW118: FALSE | AX118: FALSE | AY118: FALSE
A119: 87 | B119: =OFFSET(InputPriceData!B$15,CalculationsAndCharts!$A119+$A$11,0,1,1) -> 2014-09-08 | C119: =OFFSET(InputPriceData!G$15,CalculationsAndCharts!$A119+$A$11,IF($C$7,8,0),1,1) -> 471100 | D119: =OFFSET(InputPriceData!C$15,CalculationsAndCharts!$A119+$A$11,IF($C$7,8,0),1,1) -> 23.95 | E119: =OFFSET(InputPriceData!D$15,CalculationsAndCharts!$A119+$A$11,IF($C$7,8,0),1,1) -> 24.41 | F119: =OFFSET(InputPriceData!E$15,CalculationsAndCharts!$A119+$A$11,IF($C$7,8,0),1,1) -> 23.76 | G119: =OFFSET(InputPriceData!F$15,CalculationsAndCharts!$A119+$A$11,IF($C$7,8,0),1,1) -> 24.16 | S119: 24.16 | T119: 23.01 | U119: 1 | V119: FALSE | W119: FALSE | AB119: 11280 | AC119: 178 | AD119: 63.37078652 | AE119: 13.37078652 | AF119: 2.674157303 | AG119: 36 | AH119: 7.2 | AI119: =SUM((OFFSET($W$33,0,0,$A$23,1)=TRUE)*(OFFSET($AA$33,0,0,$A$23,1)=(AG119+50))) -> 2 | AM119: 24.16 | AN119: 23.01 | AO119: 1 | AP119: FALSE | AQ119: 0 | AR119: 0 | AS119: FALSE | AT119: 0 | AU119: FALSE | AV119: FALSE | AW119: FALSE | AX119: FALSE | AY119: FALSE
A120: 88 | B120: =OFFSET(InputPriceData!B$15,CalculationsAndCharts!$A120+$A$11,0,1,1) -> 2014-09-05 | C120: =OFFSET(InputPriceData!G$15,CalculationsAndCharts!$A120+$A$11,IF($C$7,8,0),1,1) -> 257000 | D120: =OFFSET(InputPriceData!C$15,CalculationsAndCharts!$A120+$A$11,IF($C$7,8,0),1,1) -> 23.89 | E120: =OFFSET(InputPriceData!D$15,CalculationsAndCharts!$A120+$A$11,IF($C$7,8,0),1,1) -> 24.01 | F120: =OFFSET(InputPriceData!E$15,CalculationsAndCharts!$A120+$A$11,IF($C$7,8,0),1,1) -> 23.74 | G120: =OFFSET(InputPriceData!F$15,CalculationsAndCharts!$A120+$A$11,IF($C$7,8,0),1,1) -> 23.89 | S120: 24.01 | T120: 22.88 | U120: 0.8938053097 | V120: FALSE | W120: FALSE | AB120: 11280 | AC120: 178 | AD120: 63.37078652 | AE120: 13.37078652 | AF120: 2.674157303 | AG120: 37 | AH120: 7.4 | AI120: =SUM((OFFSET($W$33,0,0,$A$23,1)=TRUE)*(OFFSET($AA$33,0,0,$A$23,1)=(AG120+50))) -> 2 | AM120: 24.01 | AN120: 23.01 | AO120: 0.88 | AP120: FALSE | AQ120: 0 | AR120: 0 | AS120: FALSE | AT120: 0 | AU120: FALSE | AV120: FALSE | AW120: FALSE | AX120: FALSE | AY120: FALSE
A121: 89 | B121: =OFFSET(InputPriceData!B$15,CalculationsAndCharts!$A121+$A$11,0,1,1) -> 2014-09-04 | C121: =OFFSET(InputPriceData!G$15,CalculationsAndCharts!$A121+$A$11,IF($C$7,8,0),1,1) -> 163400 | D121: =OFFSET(InputPriceData!C$15,CalculationsAndCharts!$A121+$A$11,IF($C$7,8,0),1,1) -> 23.98 | E121: =OFFSET(InputPriceData!D$15,CalculationsAndCharts!$A121+$A$11,IF($C$7,8,0),1,1) -> 24.16 | F121: =OFFSET(InputPriceData!E$15,CalculationsAndCharts!$A121+$A$11,IF($C$7,8,0),1,1) -> 23.78 | G121: =OFFSET(InputPriceData!F$15,CalculationsAndCharts!$A121+$A$11,IF($C$7,8,0),1,1) -> 23.83 | S121: 24.01 | T121: 22.77 | U121: 0.8548387097 | V121: FALSE | W121: FALSE | AB121: 11280 | AC121: 178 | AD121: 63.37078652 | AE121: 13.37078652 | AF121: 2.674157303 | AG121: 38 | AH121: 7.6 | AI121: =SUM((OFFSET($W$33,0,0,$A$23,1)=TRUE)*(OFFSET($AA$33,0,0,$A$23,1)=(AG121+50))) -> 0 | AM121: 24.01 | AN121: 23.01 | AO121: 0.82 | AP121: FALSE | AQ121: 0 | AR121: 0 | AS121: FALSE | AT121: 0 | AU121: FALSE | AV121: FALSE | AW121: FALSE | AX121: FALSE | AY121: FALSE
A122: 90 | B122: =OFFSET(InputPriceData!B$15,CalculationsAndCharts!$A122+$A$11,0,1,1) -> 2014-09-03 | C122: =OFFSET(InputPriceData!G$15,CalculationsAndCharts!$A122+$A$11,IF($C$7,8,0),1,1) -> 328800 | D122: =OFFSET(InputPriceData!C$15,CalculationsAndCharts!$A122+$A$11,IF($C$7,8,0),1,1) -> 24.05 | E122: =OFFSET(InputPriceData!D$15,CalculationsAndCharts!$A122+$A$11,IF($C$7,8,0),1,1) -> 24.21 | F122: =OFFSET(InputPriceData!E$15,CalculationsAndCharts!$A122+$A$11,IF($C$7,8,0),1,1) -> 23.77 | G122: =OFFSET(InputPriceData!F$15,CalculationsAndCharts!$A122+$A$11,IF($C$7,8,0),1,1) -> 23.85 | S122: 24.01 | T122: 22.69 | U122: 0.8787878788 | V122: FALSE | W122: FALSE | AB122: 11280 | AC122: 178 | AD122: 63.37078652 | AE122: 13.37078652 | AF122: 2.674157303 | AG122: 39 | AH122: 7.8 | AI122: =SUM((OFFSET($W$33,0,0,$A$23,1)=TRUE)*(OFFSET($AA$33,0,0,$A$23,1)=(AG122+50))) -> 0 | AM122: 24.01 | AN122: 22.88 | AO122: 0.8584070796 | AP122: FALSE | AQ122: 0 | AR122: 0 | AS122: FALSE | AT122: 0 | AU122: FALSE | AV122: FALSE | AW122: FALSE | AX122: FALSE | AY122: FALSE
A123: 91 | B123: =OFFSET(InputPriceData!B$15,CalculationsAndCharts!$A123+$A$11,0,1,1) -> 2014-09-02 | C123: =OFFSET(InputPriceData!G$15,CalculationsAndCharts!$A123+$A$11,IF($C$7,8,0),1,1) -> 305300 | D123: =OFFSET(InputPriceData!C$15,CalculationsAndCharts!$A123+$A$11,IF($C$7,8,0),1,1) -> 23.56 | E123: =OFFSET(InputPriceData!D$15,CalculationsAndCharts!$A123+$A$11,IF($C$7,8,0),1,1) -> 24.13 | F123: =OFFSET(InputPriceData!E$15,CalculationsAndCharts!$A123+$A$11,IF($C$7,8,0),1,1) -> 23.48 | G123: =OFFSET(InputPriceData!F$15,CalculationsAndCharts!$A123+$A$11,IF($C$7,8,0),1,1) -> 24.01 | S123: 24.01 | T123: 22.36 | U123: 1 | V123: FALSE | W123: FALSE | AB123: 11280 | AC123: 178 | AD123: 63.37078652 | AE123: 13.37078652 | AF123: 2.674157303 | AG123: 40 | AH123: 8 | AI123: =SUM((OFFSET($W$33,0,0,$A$23,1)=TRUE)*(OFFSET($AA$33,0,0,$A$23,1)=(AG123+50))) -> 0 | AM123: 24.01 | AN123: 22.77 | AO123: 1 | AP123: FALSE | AQ123: 0 | AR123: 0 | AS123: FALSE | AT123: 0 | AU123: FALSE | AV123: FALSE | AW123: FALSE | AX123: FALSE | AY123: FALSE
A124: 92 | B124: =OFFSET(InputPriceData!B$15,CalculationsAndCharts!$A124+$A$11,0,1,1) -> 2014-08-29 | C124: =OFFSET(InputPriceData!G$15,CalculationsAndCharts!$A124+$A$11,IF($C$7,8,0),1,1) -> 187300 | D124: =OFFSET(InputPriceData!C$15,CalculationsAndCharts!$A124+$A$11,IF($C$7,8,0),1,1) -> 23.29 | E124: =OFFSET(InputPriceData!D$15,CalculationsAndCharts!$A124+$A$11,IF($C$7,8,0),1,1) -> 23.62 | F124: =OFFSET(InputPriceData!E$15,CalculationsAndCharts!$A124+$A$11,IF($C$7,8,0),1,1) -> 23.25 | G124: =OFFSET(InputPriceData!F$15,CalculationsAndCharts!$A124+$A$11,IF($C$7,8,0),1,1) -> 23.45 | S124: 23.87 | T124: 22.19 | U124: 0.75 | V124: FALSE | W124: FALSE | AB124: 11280 | AC124: 178 | AD124: 63.37078652 | AE124: 13.37078652 | AF124: 2.674157303 | AG124: 41 | AH124: 8.2 | AI124: =SUM((OFFSET($W$33,0,0,$A$23,1)=TRUE)*(OFFSET($AA$33,0,0,$A$23,1)=(AG124+50))) -> 0 | AM124: 23.87 | AN124: 22.69 | AO124: 0.6440677966 | AP124: FALSE | AQ124: 0 | AR124: 0 | AS124: FALSE | AT124: 0 | AU124: FALSE | AV124: FALSE | AW124: FALSE | AX124: FALSE | AY124: FALSE
A125: 93 | B125: =OFFSET(InputPriceData!B$15,CalculationsAndCharts!$A125+$A$11,0,1,1) -> 2014-08-28 | C125: =OFFSET(InputPriceData!G$15,CalculationsAndCharts!$A125+$A$11,IF($C$7,8,0),1,1) -> 208700 | D125: =OFFSET(InputPriceData!C$15,CalculationsAndCharts!$A125+$A$11,IF($C$7,8,0),1,1) -> 23.44 | E125: =OFFSET(InputPriceData!D$15,CalculationsAndCharts!$A125+$A$11,IF($C$7,8,0),1,1) -> 23.73 | F125: =OFFSET(InputPriceData!E$15,CalculationsAndCharts!$A125+$A$11,IF($C$7,8,0),1,1) -> 23.16 | G125: =OFFSET(InputPriceData!F$15,CalculationsAndCharts!$A125+$A$11,IF($C$7,8,0),1,1) -> 23.27 | S125: 23.87 | T125: 22.19 | U125: 0.6428571429 | V125: FALSE | W125: FALSE | AB125: 11280 | AC125: 178 | AD125: 63.37078652 | AE125: 13.37078652 | AF125: 2.674157303 | AG125: 42 | AH125: 8.4 | AI125: =SUM((OFFSET($W$33,0,0,$A$23,1)=TRUE)*(OFFSET($AA$33,0,0,$A$23,1)=(AG125+50))) -> 3 | AM125: 23.87 | AN125: 22.36 | AO125: 0.6026490066 | AP125: FALSE | AQ125: 0 | AR125: 0 | AS125: FALSE | AT125: 0 | AU125: FALSE | AV125: FALSE | AW125: FALSE | AX125: FALSE | AY125: FALSE
A126: 94 | B126: =OFFSET(InputPriceData!B$15,CalculationsAndCharts!$A126+$A$11,0,1,1) -> 2014-08-27 | C126: =OFFSET(InputPriceData!G$15,CalculationsAndCharts!$A126+$A$11,IF($C$7,8,0),1,1) -> 160100 | D126: =OFFSET(InputPriceData!C$15,CalculationsAndCharts!$A126+$A$11,IF($C$7,8,0),1,1) -> 23.56 | E126: =OFFSET(InputPriceData!D$15,CalculationsAndCharts!$A126+$A$11,IF($C$7,8,0),1,1) -> 23.61 | F126: =OFFSET(InputPriceData!E$15,CalculationsAndCharts!$A126+$A$11,IF($C$7,8,0),1,1) -> 23.24 | G126: =OFFSET(InputPriceData!F$15,CalculationsAndCharts!$A126+$A$11,IF($C$7,8,0),1,1) -> 23.47 | S126: 23.87 | T126: 22.19 | U126: 0.7619047619 | V126: FALSE | W126: FALSE | AB126: 11280 | AC126: 178 | AD126: 63.37078652 | AE126: 13.37078652 | AF126: 2.674157303 | AG126: 43 | AH126: 8.6 | AI126: =SUM((OFFSET($W$33,0,0,$A$23,1)=TRUE)*(OFFSET($AA$33,0,0,$A$23,1)=(AG126+50))) -> 0 | AM126: 23.87 | AN126: 22.19 | AO126: 0.7619047619 | AP126: FALSE | AQ126: 0 | AR126: 0 | AS126: FALSE | AT126: 0 | AU126: FALSE | AV126: FALSE | AW126: FALSE | AX126: FALSE | AY126: FALSE
A127: 95 | B127: =OFFSET(InputPriceData!B$15,CalculationsAndCharts!$A127+$A$11,0,1,1) -> 2014-08-26 | C127: =OFFSET(InputPriceData!G$15,CalculationsAndCharts!$A127+$A$11,IF($C$7,8,0),1,1) -> 206600 | D127: =OFFSET(InputPriceData!C$15,CalculationsAndCharts!$A127+$A$11,IF($C$7,8,0),1,1) -> 23.63 | E127: =OFFSET(InputPriceData!D$15,CalculationsAndCharts!$A127+$A$11,IF($C$7,8,0),1,1) -> 23.78 | F127: =OFFSET(InputPriceData!E$15,CalculationsAndCharts!$A127+$A$11,IF($C$7,8,0),1,1) -> 23.36 | G127: =OFFSET(InputPriceData!F$15,CalculationsAndCharts!$A127+$A$11,IF($C$7,8,0),1,1) -> 23.48 | S127: 23.87 | T127: 22.19 | U127: 0.7678571429 | V127: FALSE | W127: FALSE | AB127: 11280 | AC127: 178 | AD127: 63.37078652 | AE127: 13.37078652 | AF127: 2.674157303 | AG127: 44 | AH127: 8.8 | AI127: =SUM((OFFSET($W$33,0,0,$A$23,1)=TRUE)*(OFFSET($AA$33,0,0,$A$23,1)=(AG127+50))) -> 1 | AM127: 23.87 | AN127: 22.19 | AO127: 0.7678571429 | AP127: FALSE | AQ127: 0 | AR127: 0 | AS127: FALSE | AT127: 0 | AU127: FALSE | AV127: FALSE | AW127: FALSE | AX127: FALSE | AY127: FALSE
A128: 96 | B128: =OFFSET(InputPriceData!B$15,CalculationsAndCharts!$A128+$A$11,0,1,1) -> 2014-08-25 | C128: =OFFSET(InputPriceData!G$15,CalculationsAndCharts!$A128+$A$11,IF($C$7,8,0),1,1) -> 148300 | D128: =OFFSET(InputPriceData!C$15,CalculationsAndCharts!$A128+$A$11,IF($C$7,8,0),1,1) -> 23.77 | E128: =OFFSET(InputPriceData!D$15,CalculationsAndCharts!$A128+$A$11,IF($C$7,8,0),1,1) -> 23.86 | F128: =OFFSET(InputPriceData!E$15,CalculationsAndCharts!$A128+$A$11,IF($C$7,8,0),1,1) -> 23.49 | G128: =OFFSET(InputPriceData!F$15,CalculationsAndCharts!$A128+$A$11,IF($C$7,8,0),1,1) -> 23.6 | S128: 23.87 | T128: 22.19 | U128: 0.8392857143 | V128: FALSE | W128: FALSE | AB128: 11280 | AC128: 178 | AD128: 63.37078652 | AE128: 13.37078652 | AF128: 2.674157303 | AG128: 45 | AH128: 9 | AI128: =SUM((OFFSET($W$33,0,0,$A$23,1)=TRUE)*(OFFSET($AA$33,0,0,$A$23,1)=(AG128+50))) -> 4 | AM128: 23.87 | AN128: 22.19 | AO128: 0.8392857143 | AP128: FALSE | AQ128: 0 | AR128: 0 | AS128: FALSE | AT128: 0 | AU128: FALSE | AV128: FALSE | AW128: FALSE | AX128: FALSE | AY128: FALSE
A129: 97 | B129: =OFFSET(InputPriceData!B$15,CalculationsAndCharts!$A129+$A$11,0,1,1) -> 2014-08-22 | C129: =OFFSET(InputPriceData!G$15,CalculationsAndCharts!$A129+$A$11,IF($C$7,8,0),1,1) -> 180600 | D129: =OFFSET(InputPriceData!C$15,CalculationsAndCharts!$A129+$A$11,IF($C$7,8,0),1,1) -> 23.4 | E129: =OFFSET(InputPriceData!D$15,CalculationsAndCharts!$A129+$A$11,IF($C$7,8,0),1,1) -> 23.73 | F129: =OFFSET(InputPriceData!E$15,CalculationsAndCharts!$A129+$A$11,IF($C$7,8,0),1,1) -> 23.21 | G129: =OFFSET(InputPriceData!F$15,CalculationsAndCharts!$A129+$A$11,IF($C$7,8,0),1,1) -> 23.58 | S129: 23.87 | T129: 22.19 | U129: 0.8273809524 | V129: FALSE | W129: FALSE | AB129: 11280 | AC129: 178 | AD129: 63.37078652 | AE129: 13.37078652 | AF129: 2.674157303 | AG129: 46 | AH129: 9.2 | AI129: =SUM((OFFSET($W$33,0,0,$A$23,1)=TRUE)*(OFFSET($AA$33,0,0,$A$23,1)=(AG129+50))) -> 1 | AM129: 23.87 | AN129: 22.19 | AO129: 0.8273809524 | AP129: FALSE | AQ129: 0 | AR129: 0 | AS129: FALSE | AT129: 0 | AU129: FALSE | AV129: FALSE | AW129: FALSE | AX129: FALSE | AY129: FALSE
A130: 98 | B130: =OFFSET(InputPriceData!B$15,CalculationsAndCharts!$A130+$A$11,0,1,1) -> 2014-08-21 | C130: =OFFSET(InputPriceData!G$15,CalculationsAndCharts!$A130+$A$11,IF($C$7,8,0),1,1) -> 210300 | D130: =OFFSET(InputPriceData!C$15,CalculationsAndCharts!$A130+$A$11,IF($C$7,8,0),1,1) -> 23.41 | E130: =OFFSET(InputPriceData!D$15,CalculationsAndCharts!$A130+$A$11,IF($C$7,8,0),1,1) -> 23.5 | F130: =OFFSET(InputPriceData!E$15,CalculationsAndCharts!$A130+$A$11,IF($C$7,8,0),1,1) -> 23.04 | G130: =OFFSET(InputPriceData!F$15,CalculationsAndCharts!$A130+$A$11,IF($C$7,8,0),1,1) -> 23.47 | S130: 23.87 | T130: 22.19 | U130: 0.7619047619 | V130: FALSE | W130: FALSE | AB130: 11280 | AC130: 178 | AD130: 63.37078652 | AE130: 13.37078652 | AF130: 2.674157303 | AG130: 47 | AH130: 9.4 | AI130: =SUM((OFFSET($W$33,0,0,$A$23,1)=TRUE)*(OFFSET($AA$33,0,0,$A$23,1)=(AG130+50))) -> 1 | AM130: 23.87 | AN130: 22.19 | AO130: 0.7619047619 | AP130: FALSE | AQ130: 0 | AR130: 0 | AS130: FALSE | AT130: 0 | AU130: FALSE | AV130: FALSE | AW130: FALSE | AX130: FALSE | AY130: FALSE
A131: 99 | B131: =OFFSET(InputPriceData!B$15,CalculationsAndCharts!$A131+$A$11,0,1,1) -> 2014-08-20 | C131: =OFFSET(InputPriceData!G$15,CalculationsAndCharts!$A131+$A$11,IF($C$7,8,0),1,1) -> 358500 | D131: =OFFSET(InputPriceData!C$15,CalculationsAndCharts!$A131+$A$11,IF($C$7,8,0),1,1) -> 23.79 | E131: =OFFSET(InputPriceData!D$15,CalculationsAndCharts!$A131+$A$11,IF($C$7,8,0),1,1) -> 24.09 | F131: =OFFSET(InputPriceData!E$15,CalculationsAndCharts!$A131+$A$11,IF($C$7,8,0),1,1) -> 23.24 | G131: =OFFSET(InputPriceData!F$15,CalculationsAndCharts!$A131+$A$11,IF($C$7,8,0),1,1) -> 23.37 | S131: 23.87 | T131: 22.19 | U131: 0.7023809524 | V131: FALSE | W131: FALSE | AB131: 11280 | AC131: 178 | AD131: 63.37078652 | AE131: 13.37078652 | AF131: 2.674157303 | AG131: 48 | AH131: 9.6 | AI131: =SUM((OFFSET($W$33,0,0,$A$23,1)=TRUE)*(OFFSET($AA$33,0,0,$A$23,1)=(AG131+50))) -> 1 | AM131: 23.87 | AN131: 22.19 | AO131: 0.7023809524 | AP131: FALSE | AQ131: 0 | AR131: 0 | AS131: FALSE | AT131: 0 | AU131: FALSE | AV131: FALSE | AW131: FALSE | AX131: FALSE | AY131: FALSE
A132: 100 | B132: =OFFSET(InputPriceData!B$15,CalculationsAndCharts!$A132+$A$11,0,1,1) -> 2014-08-19 | C132: =OFFSET(InputPriceData!G$15,CalculationsAndCharts!$A132+$A$11,IF($C$7,8,0),1,1) -> 272700 | D132: =OFFSET(InputPriceData!C$15,CalculationsAndCharts!$A132+$A$11,IF($C$7,8,0),1,1) -> 23.79 | E132: =OFFSET(InputPriceData!D$15,CalculationsAndCharts!$A132+$A$11,IF($C$7,8,0),1,1) -> 24.01 | F132: =OFFSET(InputPriceData!E$15,CalculationsAndCharts!$A132+$A$11,IF($C$7,8,0),1,1) -> 23.74 | G132: =OFFSET(InputPriceData!F$15,CalculationsAndCharts!$A132+$A$11,IF($C$7,8,0),1,1) -> 23.87 | S132: 23.87 | T132: 22.19 | U132: 1 | V132: FALSE | W132: FALSE | AB132: 11280 | AC132: 178 | AD132: 63.37078652 | AE132: 13.37078652 | AF132: 2.674157303 | AG132: 49 | AH132: 9.8 | AI132: =SUM((OFFSET($W$33,0,0,$A$23,1)=TRUE)*(OFFSET($AA$33,0,0,$A$23,1)=(AG132+50))) -> 1 | AM132: 23.87 | AN132: 22.19 | AO132: 1 | AP132: FALSE | AQ132: 0 | AR132: 0 | AS132: FALSE | AT132: 0 | AU132: FALSE | AV132: FALSE | AW132: FALSE | AX132: FALSE | AY132: FALSE
A133: 101 | B133: =OFFSET(InputPriceData!B$15,CalculationsAndCharts!$A133+$A$11,0,1,1) -> 2014-08-18 | C133: =OFFSET(InputPriceData!G$15,CalculationsAndCharts!$A133+$A$11,IF($C$7,8,0),1,1) -> 259900 | D133: =OFFSET(InputPriceData!C$15,CalculationsAndCharts!$A133+$A$11,IF($C$7,8,0),1,1) -> 23.16 | E133: =OFFSET(InputPriceData!D$15,CalculationsAndCharts!$A133+$A$11,IF($C$7,8,0),1,1) -> 23.76 | F133: =OFFSET(InputPriceData!E$15,CalculationsAndCharts!$A133+$A$11,IF($C$7,8,0),1,1) -> 23.14 | G133: =OFFSET(InputPriceData!F$15,CalculationsAndCharts!$A133+$A$11,IF($C$7,8,0),1,1) -> 23.75 | S133: 24.15 | T133: 22.19 | U133: 0.7959183673 | V133: FALSE | W133: FALSE | AB133: 11280 | AC133: 178 | AD133: 63.37078652 | AE133: 13.37078652 | AF133: 2.674157303 | AG133: 50 | AH133: 10 | AI133: =SUM((OFFSET($W$33,0,0,$A$23,1)=TRUE)*(OFFSET($AA$33,0,0,$A$23,1)=(AG133+50))) -> 29 | AM133: 23.75 | AN133: 22.19 | AO133: 1 | AP133: FALSE | AQ133: 0 | AR133: 0 | AS133: FALSE | AT133: 0 | AU133: FALSE | AV133: FALSE | AW133: FALSE | AX133: FALSE | AY133: FALSE
A134: 102 | B134: =OFFSET(InputPriceData!B$15,CalculationsAndCharts!$A134+$A$11,0,1,1) -> 2014-08-15 | C134: =OFFSET(InputPriceData!G$15,CalculationsAndCharts!$A134+$A$11,IF($C$7,8,0),1,1) -> 510500 | D134: =OFFSET(InputPriceData!C$15,CalculationsAndCharts!$A134+$A$11,IF($C$7,8,0),1,1) -> 23.49 | E134: =OFFSET(InputPriceData!D$15,CalculationsAndCharts!$A134+$A$11,IF($C$7,8,0),1,1) -> 23.59 | F134: =OFFSET(InputPriceData!E$15,CalculationsAndCharts!$A134+$A$11,IF($C$7,8,0),1,1) -> 22.79 | G134: =OFFSET(InputPriceData!F$15,CalculationsAndCharts!$A134+$A$11,IF($C$7,8,0),1,1) -> 23.01 | S134: 24.15 | T134: 22.19 | U134: 0.4183673469 | V134: FALSE | W134: FALSE | AB134: 11280 | AC134: 178 | AD134: 63.37078652 | AE134: 13.37078652 | AF134: 2.674157303 | AM134: 23.31 | AN134: 22.19 | AO134: 0.7321428571 | AP134: FALSE | AQ134: 0 | AR134: 0 | AS134: FALSE | AT134: 0 | AU134: FALSE | AV134: FALSE | AW134: FALSE | AX134: FALSE | AY134: FALSE
A135: 103 | B135: =OFFSET(InputPriceData!B$15,CalculationsAndCharts!$A135+$A$11,0,1,1) -> 2014-08-14 | C135: =OFFSET(InputPriceData!G$15,CalculationsAndCharts!$A135+$A$11,IF($C$7,8,0),1,1) -> 220800 | D135: =OFFSET(InputPriceData!C$15,CalculationsAndCharts!$A135+$A$11,IF($C$7,8,0),1,1) -> 23.18 | E135: =OFFSET(InputPriceData!D$15,CalculationsAndCharts!$A135+$A$11,IF($C$7,8,0),1,1) -> 23.33 | F135: =OFFSET(InputPriceData!E$15,CalculationsAndCharts!$A135+$A$11,IF($C$7,8,0),1,1) -> 23.04 | G135: =OFFSET(InputPriceData!F$15,CalculationsAndCharts!$A135+$A$11,IF($C$7,8,0),1,1) -> 23.31 | S135: 24.15 | T135: 22.19 | U135: 0.5714285714 | V135: FALSE | W135: FALSE | AB135: 11280 | AC135: 178 | AD135: 63.37078652 | AE135: 13.37078652 | AF135: 2.674157303 | AM135: 24.15 | AN135: 22.19 | AO135: 0.5714285714 | AP135: FALSE | AQ135: 0 | AR135: 0 | AS135: FALSE | AT135: 0 | AU135: FALSE | AV135: FALSE | AW135: FALSE | AX135: FALSE | AY135: FALSE
A136: 104 | B136: =OFFSET(InputPriceData!B$15,CalculationsAndCharts!$A136+$A$11,0,1,1) -> 2014-08-13 | C136: =OFFSET(InputPriceData!G$15,CalculationsAndCharts!$A136+$A$11,IF($C$7,8,0),1,1) -> 639700 | D136: =OFFSET(InputPriceData!C$15,CalculationsAndCharts!$A136+$A$11,IF($C$7,8,0),1,1) -> 23.03 | E136: =OFFSET(InputPriceData!D$15,CalculationsAndCharts!$A136+$A$11,IF($C$7,8,0),1,1) -> 23.35 | F136: =OFFSET(InputPriceData!E$15,CalculationsAndCharts!$A136+$A$11,IF($C$7,8,0),1,1) -> 23.03 | G136: =OFFSET(InputPriceData!F$15,CalculationsAndCharts!$A136+$A$11,IF($C$7,8,0),1,1) -> 23.12 | S136: 24.15 | T136: 21.89 | U136: 0.5442477876 | V136: FALSE | W136: FALSE | AB136: 11280 | AC136: 178 | AD136: 63.37078652 | AE136: 13.37078652 | AF136: 2.674157303 | AM136: 24.15 | AN136: 22.19 | AO136: 0.4744897959 | AP136: FALSE | AQ136: 0 | AR136: 0 | AS136: FALSE | AT136: 0 | AU136: FALSE | AV136: FALSE | AW136: FALSE | AX136: FALSE | AY136: FALSE
A137: 105 | B137: =OFFSET(InputPriceData!B$15,CalculationsAndCharts!$A137+$A$11,0,1,1) -> 2014-08-12 | C137: =OFFSET(InputPriceData!G$15,CalculationsAndCharts!$A137+$A$11,IF($C$7,8,0),1,1) -> 310500 | D137: =OFFSET(InputPriceData!C$15,CalculationsAndCharts!$A137+$A$11,IF($C$7,8,0),1,1) -> 22.73 | E137: =OFFSET(InputPriceData!D$15,CalculationsAndCharts!$A137+$A$11,IF($C$7,8,0),1,1) -> 23.04 | F137: =OFFSET(InputPriceData!E$15,CalculationsAndCharts!$A137+$A$11,IF($C$7,8,0),1,1) -> 22.44 | G137: =OFFSET(InputPriceData!F$15,CalculationsAndCharts!$A137+$A$11,IF($C$7,8,0),1,1) -> 22.88 | S137: 24.15 | T137: 21.89 | U137: 0.4380530973 | V137: FALSE | W137: FALSE | AB137: 11280 | AC137: 178 | AD137: 63.37078652 | AE137: 13.37078652 | AF137: 2.674157303 | AM137: 24.15 | AN137: 22.19 | AO137: 0.3520408163 | AP137: FALSE | AQ137: 0 | AR137: 0 | AS137: FALSE | AT137: 0 | AU137: FALSE | AV137: FALSE | AW137: FALSE | AX137: FALSE | AY137: FALSE
A138: 106 | B138: =OFFSET(InputPriceData!B$15,CalculationsAndCharts!$A138+$A$11,0,1,1) -> 2014-08-11 | C138: =OFFSET(InputPriceData!G$15,CalculationsAndCharts!$A138+$A$11,IF($C$7,8,0),1,1) -> 254000 | D138: =OFFSET(InputPriceData!C$15,CalculationsAndCharts!$A138+$A$11,IF($C$7,8,0),1,1) -> 22.82 | E138: =OFFSET(InputPriceData!D$15,CalculationsAndCharts!$A138+$A$11,IF($C$7,8,0),1,1) -> 23.13 | F138: =OFFSET(InputPriceData!E$15,CalculationsAndCharts!$A138+$A$11,IF($C$7,8,0),1,1) -> 22.52 | G138: =OFFSET(InputPriceData!F$15,CalculationsAndCharts!$A138+$A$11,IF($C$7,8,0),1,1) -> 22.77 | S138: 24.15 | T138: 21.76 | U138: 0.4225941423 | V138: FALSE | W138: FALSE | AB138: 11280 | AC138: 178 | AD138: 63.37078652 | AE138: 13.37078652 | AF138: 2.674157303 | AM138: 24.15 | AN138: 21.89 | AO138: 0.389380531 | AP138: FALSE | AQ138: 0 | AR138: 0 | AS138: FALSE | AT138: 0 | AU138: FALSE | AV138: FALSE | AW138: FALSE | AX138: FALSE | AY138: FALSE
A139: 107 | B139: =OFFSET(InputPriceData!B$15,CalculationsAndCharts!$A139+$A$11,0,1,1) -> 2014-08-08 | C139: =OFFSET(InputPriceData!G$15,CalculationsAndCharts!$A139+$A$11,IF($C$7,8,0),1,1) -> 235900 | D139: =OFFSET(InputPriceData!C$15,CalculationsAndCharts!$A139+$A$11,IF($C$7,8,0),1,1) -> 22.41 | E139: =OFFSET(InputPriceData!D$15,CalculationsAndCharts!$A139+$A$11,IF($C$7,8,0),1,1) -> 22.73 | F139: =OFFSET(InputPriceData!E$15,CalculationsAndCharts!$A139+$A$11,IF($C$7,8,0),1,1) -> 22.21 | G139: =OFFSET(InputPriceData!F$15,CalculationsAndCharts!$A139+$A$11,IF($C$7,8,0),1,1) -> 22.69 | S139: 24.15 | T139: 21.76 | U139: 0.3891213389 | V139: FALSE | W139: FALSE | AB139: 11280 | AC139: 178 | AD139: 63.37078652 | AE139: 13.37078652 | AF139: 2.674157303 | AM139: 24.15 | AN139: 21.89 | AO139: 0.3539823009 | AP139: FALSE | AQ139: 0 | AR139: 0 | AS139: FALSE | AT139: 0 | AU139: FALSE | AV139: FALSE | AW139: FALSE | AX139: FALSE | AY139: FALSE
A140: 108 | B140: =OFFSET(InputPriceData!B$15,CalculationsAndCharts!$A140+$A$11,0,1,1) -> 2014-08-07 | C140: =OFFSET(InputPriceData!G$15,CalculationsAndCharts!$A140+$A$11,IF($C$7,8,0),1,1) -> 237900 | D140: =OFFSET(InputPriceData!C$15,CalculationsAndCharts!$A140+$A$11,IF($C$7,8,0),1,1) -> 22.2 | E140: =OFFSET(InputPriceData!D$15,CalculationsAndCharts!$A140+$A$11,IF($C$7,8,0),1,1) -> 22.45 | F140: =OFFSET(InputPriceData!E$15,CalculationsAndCharts!$A140+$A$11,IF($C$7,8,0),1,1) -> 22.2 | G140: =OFFSET(InputPriceData!F$15,CalculationsAndCharts!$A140+$A$11,IF($C$7,8,0),1,1) -> 22.36 | S140: 24.15 | T140: 21.69 | U140: 0.2723577236 | V140: FALSE | W140: FALSE | AB140: 11280 | AC140: 178 | AD140: 63.37078652 | AE140: 13.37078652 | AF140: 2.674157303 | AM140: 24.15 | AN140: 21.76 | AO140: 0.2510460251 | AP140: FALSE | AQ140: 0 | AR140: 0 | AS140: FALSE | AT140: 0 | AU140: FALSE | AV140: FALSE | AW140: FALSE | AX140: FALSE | AY140: FALSE
A141: 109 | B141: =OFFSET(InputPriceData!B$15,CalculationsAndCharts!$A141+$A$11,0,1,1) -> 2014-08-06 | C141: =OFFSET(InputPriceData!G$15,CalculationsAndCharts!$A141+$A$11,IF($C$7,8,0),1,1) -> 259800 | D141: =OFFSET(InputPriceData!C$15,CalculationsAndCharts!$A141+$A$11,IF($C$7,8,0),1,1) -> 22.27 | E141: =OFFSET(InputPriceData!D$15,CalculationsAndCharts!$A141+$A$11,IF($C$7,8,0),1,1) -> 22.4 | F141: =OFFSET(InputPriceData!E$15,CalculationsAndCharts!$A141+$A$11,IF($C$7,8,0),1,1) -> 22.15 | G141: =OFFSET(InputPriceData!F$15,CalculationsAndCharts!$A141+$A$11,IF($C$7,8,0),1,1) -> 22.19 | S141: 24.15 | T141: 21.66 | U141: 0.2128514056 | V141: FALSE | W141: FALSE | AB141: 11280 | AC141: 178 | AD141: 63.37078652 | AE141: 13.37078652 | AF141: 2.674157303 | AM141: 24.15 | AN141: 21.76 | AO141: 0.179916318 | AP141: FALSE | AQ141: 0 | AR141: 0 | AS141: FALSE | AT141: 0 | AU141: FALSE | AV141: FALSE | AW141: FALSE | AX141: FALSE | AY141: FALSE
A142: 110 | B142: =OFFSET(InputPriceData!B$15,CalculationsAndCharts!$A142+$A$11,0,1,1) -> 2014-08-05 | C142: =OFFSET(InputPriceData!G$15,CalculationsAndCharts!$A142+$A$11,IF($C$7,8,0),1,1) -> 388500 | D142: =OFFSET(InputPriceData!C$15,CalculationsAndCharts!$A142+$A$11,IF($C$7,8,0),1,1) -> 22.52 | E142: =OFFSET(InputPriceData!D$15,CalculationsAndCharts!$A142+$A$11,IF($C$7,8,0),1,1) -> 22.84 | F142: =OFFSET(InputPriceData!E$15,CalculationsAndCharts!$A142+$A$11,IF($C$7,8,0),1,1) -> 22.3 | G142: =OFFSET(InputPriceData!F$15,CalculationsAndCharts!$A142+$A$11,IF($C$7,8,0),1,1) -> 22.35 | S142: 24.15 | T142: 21.52 | U142: 0.3155893536 | V142: FALSE | W142: FALSE | AB142: 11280 | AC142: 178 | AD142: 63.37078652 | AE142: 13.37078652 | AF142: 2.674157303 | AM142: 24.15 | AN142: 21.69 | AO142: 0.2682926829 | AP142: FALSE | AQ142: 0 | AR142: 0 | AS142: FALSE | AT142: 0 | AU142: FALSE | AV142: FALSE | AW142: FALSE | AX142: FALSE | AY142: FALSE
A143: 111 | B143: =OFFSET(InputPriceData!B$15,CalculationsAndCharts!$A143+$A$11,0,1,1) -> 2014-08-04 | C143: =OFFSET(InputPriceData!G$15,CalculationsAndCharts!$A143+$A$11,IF($C$7,8,0),1,1) -> 344600 | D143: =OFFSET(InputPriceData!C$15,CalculationsAndCharts!$A143+$A$11,IF($C$7,8,0),1,1) -> 22.4 | E143: =OFFSET(InputPriceData!D$15,CalculationsAndCharts!$A143+$A$11,IF($C$7,8,0),1,1) -> 22.69 | F143: =OFFSET(InputPriceData!E$15,CalculationsAndCharts!$A143+$A$11,IF($C$7,8,0),1,1) -> 22.15 | G143: =OFFSET(InputPriceData!F$15,CalculationsAndCharts!$A143+$A$11,IF($C$7,8,0),1,1) -> 22.66 | S143: 24.15 | T143: 21.52 | U143: 0.433460076 | V143: FALSE | W143: FALSE | AB143: 11280 | AC143: 178 | AD143: 63.37078652 | AE143: 13.37078652 | AF143: 2.674157303 | AM143: 24.15 | AN143: 21.66 | AO143: 0.4016064257 | AP143: FALSE | AQ143: 0 | AR143: 0 | AS143: FALSE | AT143: 0 | AU143: FALSE | AV143: FALSE | AW143: FALSE | AX143: FALSE | AY143: FALSE
A144: 112 | B144: =OFFSET(InputPriceData!B$15,CalculationsAndCharts!$A144+$A$11,0,1,1) -> 2014-08-01 | C144: =OFFSET(InputPriceData!G$15,CalculationsAndCharts!$A144+$A$11,IF($C$7,8,0),1,1) -> 419000 | D144: =OFFSET(InputPriceData!C$15,CalculationsAndCharts!$A144+$A$11,IF($C$7,8,0),1,1) -> 22.4 | E144: =OFFSET(InputPriceData!D$15,CalculationsAndCharts!$A144+$A$11,IF($C$7,8,0),1,1) -> 22.5 | F144: =OFFSET(InputPriceData!E$15,CalculationsAndCharts!$A144+$A$11,IF($C$7,8,0),1,1) -> 22.13 | G144: =OFFSET(InputPriceData!F$15,CalculationsAndCharts!$A144+$A$11,IF($C$7,8,0),1,1) -> 22.33 | S144: 24.15 | T144: 21.52 | U144: 0.3079847909 | V144: FALSE | W144: FALSE | AB144: 11280 | AC144: 178 | AD144: 63.37078652 | AE144: 13.37078652 | AF144: 2.674157303 | AM144: 24.15 | AN144: 21.52 | AO144: 0.3079847909 | AP144: FALSE | AQ144: 0 | AR144: 0 | AS144: FALSE | AT144: 0 | AU144: FALSE | AV144: FALSE | AW144: FALSE | AX144: FALSE | AY144: FALSE
A145: 113 | B145: =OFFSET(InputPriceData!B$15,CalculationsAndCharts!$A145+$A$11,0,1,1) -> 2014-07-31 | C145: =OFFSET(InputPriceData!G$15,CalculationsAndCharts!$A145+$A$11,IF($C$7,8,0),1,1) -> 428800 | D145: =OFFSET(InputPriceData!C$15,CalculationsAndCharts!$A145+$A$11,IF($C$7,8,0),1,1) -> 22.85 | E145: =OFFSET(InputPriceData!D$15,CalculationsAndCharts!$A145+$A$11,IF($C$7,8,0),1,1) -> 23.19 | F145: =OFFSET(InputPriceData!E$15,CalculationsAndCharts!$A145+$A$11,IF($C$7,8,0),1,1) -> 22.45 | G145: =OFFSET(InputPriceData!F$15,CalculationsAndCharts!$A145+$A$11,IF($C$7,8,0),1,1) -> 22.47 | S145: 24.15 | T145: 21.5 | U145: 0.3660377358 | V145: FALSE | W145: FALSE | AB145: 11280 | AC145: 178 | AD145: 63.37078652 | AE145: 13.37078652 | AF145: 2.674157303 | AM145: 24.15 | AN145: 21.52 | AO145: 0.36121673 | AP145: FALSE | AQ145: 0 | AR145: 0 | AS145: FALSE | AT145: 0 | AU145: FALSE | AV145: FALSE | AW145: FALSE | AX145: FALSE | AY145: FALSE
A146: 114 | B146: =OFFSET(InputPriceData!B$15,CalculationsAndCharts!$A146+$A$11,0,1,1) -> 2014-07-30 | C146: =OFFSET(InputPriceData!G$15,CalculationsAndCharts!$A146+$A$11,IF($C$7,8,0),1,1) -> 271700 | D146: =OFFSET(InputPriceData!C$15,CalculationsAndCharts!$A146+$A$11,IF($C$7,8,0),1,1) -> 22.84 | E146: =OFFSET(InputPriceData!D$15,CalculationsAndCharts!$A146+$A$11,IF($C$7,8,0),1,1) -> 23.13 | F146: =OFFSET(InputPriceData!E$15,CalculationsAndCharts!$A146+$A$11,IF($C$7,8,0),1,1) -> 22.72 | G146: =OFFSET(InputPriceData!F$15,CalculationsAndCharts!$A146+$A$11,IF($C$7,8,0),1,1) -> 23.07 | S146: 24.15 | T146: 21.5 | U146: 0.5924528302 | V146: FALSE | W146: FALSE | AB146: 11280 | AC146: 178 | AD146: 63.37078652 | AE146: 13.37078652 | AF146: 2.674157303 | AM146: 24.15 | AN146: 21.52 | AO146: 0.5893536122 | AP146: FALSE | AQ146: 0 | AR146: 0 | AS146: FALSE | AT146: 0 | AU146: FALSE | AV146: FALSE | AW146: FALSE | AX146: FALSE | AY146: FALSE
A147: 115 | B147: =OFFSET(InputPriceData!B$15,CalculationsAndCharts!$A147+$A$11,0,1,1) -> 2014-07-29 | C147: =OFFSET(InputPriceData!G$15,CalculationsAndCharts!$A147+$A$11,IF($C$7,8,0),1,1) -> 343100 | D147: =OFFSET(InputPriceData!C$15,CalculationsAndCharts!$A147+$A$11,IF($C$7,8,0),1,1) -> 22.9 | E147: =OFFSET(InputPriceData!D$15,CalculationsAndCharts!$A147+$A$11,IF($C$7,8,0),1,1) -> 23.17 | F147: =OFFSET(InputPriceData!E$15,CalculationsAndCharts!$A147+$A$11,IF($C$7,8,0),1,1) -> 22.7 | G147: =OFFSET(InputPriceData!F$15,CalculationsAndCharts!$A147+$A$11,IF($C$7,8,0),1,1) -> 22.72 | S147: 24.15 | T147: 21.5 | U147: 0.4603773585 | V147: FALSE | W147: FALSE | AB147: 11280 | AC147: 178 | AD147: 63.37078652 | AE147: 13.37078652 | AF147: 2.674157303 | AM147: 24.15 | AN147: 21.5 | AO147: 0.4603773585 | AP147: FALSE | AQ147: 0 | AR147: 0 | AS147: FALSE | AT147: 0 | AU147: FALSE | AV147: FALSE | AW147: FALSE | AX147: FALSE | AY147: FALSE
A148: 116 | B148: =OFFSET(InputPriceData!B$15,CalculationsAndCharts!$A148+$A$11,0,1,1) -> 2014-07-28 | C148: =OFFSET(InputPriceData!G$15,CalculationsAndCharts!$A148+$A$11,IF($C$7,8,0),1,1) -> 618800 | D148: =OFFSET(InputPriceData!C$15,CalculationsAndCharts!$A148+$A$11,IF($C$7,8,0),1,1) -> 23.19 | E148: =OFFSET(InputPriceData!D$15,CalculationsAndCharts!$A148+$A$11,IF($C$7,8,0),1,1) -> 23.2 | F148: =OFFSET(InputPriceData!E$15,CalculationsAndCharts!$A148+$A$11,IF($C$7,8,0),1,1) -> 22.69 | G148: =OFFSET(InputPriceData!F$15,CalculationsAndCharts!$A148+$A$11,IF($C$7,8,0),1,1) -> 22.92 | S148: 24.15 | T148: 21.31 | U148: 0.5669014085 | V148: FALSE | W148: FALSE | AB148: 11280 | AC148: 178 | AD148: 63.37078652 | AE148: 13.37078652 | AF148: 2.674157303 | AM148: 24.15 | AN148: 21.5 | AO148: 0.5358490566 | AP148: FALSE | AQ148: 0 | AR148: 0 | AS148: FALSE | AT148: 0 | AU148: FALSE | AV148: FALSE | AW148: FALSE | AX148: FALSE | AY148: FALSE
A149: 117 | B149: =OFFSET(InputPriceData!B$15,CalculationsAndCharts!$A149+$A$11,0,1,1) -> 2014-07-25 | C149: =OFFSET(InputPriceData!G$15,CalculationsAndCharts!$A149+$A$11,IF($C$7,8,0),1,1) -> 706700 | D149: =OFFSET(InputPriceData!C$15,CalculationsAndCharts!$A149+$A$11,IF($C$7,8,0),1,1) -> 24 | E149: =OFFSET(InputPriceData!D$15,CalculationsAndCharts!$A149+$A$11,IF($C$7,8,0),1,1) -> 24 | F149: =OFFSET(InputPriceData!E$15,CalculationsAndCharts!$A149+$A$11,IF($C$7,8,0),1,1) -> 23.09 | G149: =OFFSET(InputPriceData!F$15,CalculationsAndCharts!$A149+$A$11,IF($C$7,8,0),1,1) -> 23.1 | S149: 24.15 | T149: 21.31 | U149: 0.6302816901 | V149: FALSE | W149: FALSE | AB149: 11280 | AC149: 178 | AD149: 63.37078652 | AE149: 13.37078652 | AF149: 2.674157303 | AM149: 24.15 | AN149: 21.5 | AO149: 0.6037735849 | AP149: FALSE | AQ149: 0 | AR149: 0 | AS149: FALSE | AT149: 0 | AU149: FALSE | AV149: FALSE | AW149: FALSE | AX149: FALSE | AY149: FALSE
A150: 118 | B150: =OFFSET(InputPriceData!B$15,CalculationsAndCharts!$A150+$A$11,0,1,1) -> 2014-07-24 | C150: =OFFSET(InputPriceData!G$15,CalculationsAndCharts!$A150+$A$11,IF($C$7,8,0),1,1) -> 662100 | D150: =OFFSET(InputPriceData!C$15,CalculationsAndCharts!$A150+$A$11,IF($C$7,8,0),1,1) -> 23.53 | E150: =OFFSET(InputPriceData!D$15,CalculationsAndCharts!$A150+$A$11,IF($C$7,8,0),1,1) -> 24.23 | F150: =OFFSET(InputPriceData!E$15,CalculationsAndCharts!$A150+$A$11,IF($C$7,8,0),1,1) -> 23.51 | G150: =OFFSET(InputPriceData!F$15,CalculationsAndCharts!$A150+$A$11,IF($C$7,8,0),1,1) -> 24.15 | S150: 24.15 | T150: 21.31 | U150: 1 | V150: FALSE | W150: FALSE | AB150: 11280 | AC150: 178 | AD150: 63.37078652 | AE150: 13.37078652 | AF150: 2.674157303 | AM150: 24.15 | AN150: 21.31 | AO150: 1 | AP150: FALSE | AQ150: 0 | AR150: 0 | AS150: FALSE | AT150: 0 | AU150: FALSE | AV150: FALSE | AW150: FALSE | AX150: FALSE | AY150: FALSE
A151: 119 | B151: =OFFSET(InputPriceData!B$15,CalculationsAndCharts!$A151+$A$11,0,1,1) -> 2014-07-23 | C151: =OFFSET(InputPriceData!G$15,CalculationsAndCharts!$A151+$A$11,IF($C$7,8,0),1,1) -> 891300 | D151: =OFFSET(InputPriceData!C$15,CalculationsAndCharts!$A151+$A$11,IF($C$7,8,0),1,1) -> 23.4 | E151: =OFFSET(InputPriceData!D$15,CalculationsAndCharts!$A151+$A$11,IF($C$7,8,0),1,1) -> 24.2 | F151: =OFFSET(InputPriceData!E$15,CalculationsAndCharts!$A151+$A$11,IF($C$7,8,0),1,1) -> 23.4 | G151: =OFFSET(InputPriceData!F$15,CalculationsAndCharts!$A151+$A$11,IF($C$7,8,0),1,1) -> 23.78 | S151: 23.78 | T151: 21.03 | U151: 1 | V151: FALSE | W151: FALSE | AB151: 11280 | AC151: 178 | AD151: 63.37078652 | AE151: 13.37078652 | AF151: 2.674157303 | AM151: 23.78 | AN151: 21.31 | AO151: 1 | AP151: FALSE | AQ151: 0 | AR151: 0 | AS151: FALSE | AT151: 0 | AU151: FALSE | AV151: FALSE | AW151: FALSE | AX151: FALSE | AY151: FALSE
A152: 120 | B152: =OFFSET(InputPriceData!B$15,CalculationsAndCharts!$A152+$A$11,0,1,1) -> 2014-07-22 | C152: =OFFSET(InputPriceData!G$15,CalculationsAndCharts!$A152+$A$11,IF($C$7,8,0),1,1) -> 1068600 | D152: =OFFSET(InputPriceData!C$15,CalculationsAndCharts!$A152+$A$11,IF($C$7,8,0),1,1) -> 22.12 | E152: =OFFSET(InputPriceData!D$15,CalculationsAndCharts!$A152+$A$11,IF($C$7,8,0),1,1) -> 23.43 | F152: =OFFSET(InputPriceData!E$15,CalculationsAndCharts!$A152+$A$11,IF($C$7,8,0),1,1) -> 21.94 | G152: =OFFSET(InputPriceData!F$15,CalculationsAndCharts!$A152+$A$11,IF($C$7,8,0),1,1) -> 23.41 | S152: 23.41 | T152: 20.93 | U152: 1 | V152: FALSE | W152: FALSE | AB152: 11280 | AC152: 178 | AD152: 63.37078652 | AE152: 13.37078652 | AF152: 2.674157303 | AM152: 23.41 | AN152: 21.31 | AO152: 1 | AP152: FALSE | AQ152: 0 | AR152: 0 | AS152: FALSE | AT152: 0 | AU152: FALSE | AV152: FALSE | AW152: FALSE | AX152: FALSE | AY152: FALSE
A153: 121 | B153: =OFFSET(InputPriceData!B$15,CalculationsAndCharts!$A153+$A$11,0,1,1) -> 2014-07-21 | C153: =OFFSET(InputPriceData!G$15,CalculationsAndCharts!$A153+$A$11,IF($C$7,8,0),1,1) -> 366200 | D153: =OFFSET(InputPriceData!C$15,CalculationsAndCharts!$A153+$A$11,IF($C$7,8,0),1,1) -> 21.82 | E153: =OFFSET(InputPriceData!D$15,CalculationsAndCharts!$A153+$A$11,IF($C$7,8,0),1,1) -> 21.96 | F153: =OFFSET(InputPriceData!E$15,CalculationsAndCharts!$A153+$A$11,IF($C$7,8,0),1,1) -> 21.54 | G153: =OFFSET(InputPriceData!F$15,CalculationsAndCharts!$A153+$A$11,IF($C$7,8,0),1,1) -> 21.89 | S153: 22 | T153: 20.93 | U153: 0.8971962617 | V153: FALSE | W153: TRUE | X153: 21.07 | Y153: 3.891789274 | Z153: 3.891789274 | AA153: 69 | AB153: 11280 | AC153: 178 | AD153: 63.37078652 | AE153: 13.37078652 | AF153: 2.674157303 | AM153: 22 | AN153: 21.03 | AO153: 0.8865979381 | AP153: FALSE | AQ153: 0 | AR153: 0 | AS153: FALSE | AT153: 0 | AU153: FALSE | AV153: FALSE | AW153: FALSE | AX153: FALSE | AY153: FALSE
A154: 122 | B154: =OFFSET(InputPriceData!B$15,CalculationsAndCharts!$A154+$A$11,0,1,1) -> 2014-07-18 | C154: =OFFSET(InputPriceData!G$15,CalculationsAndCharts!$A154+$A$11,IF($C$7,8,0),1,1) -> 341600 | D154: =OFFSET(InputPriceData!C$15,CalculationsAndCharts!$A154+$A$11,IF($C$7,8,0),1,1) -> 21.56 | E154: =OFFSET(InputPriceData!D$15,CalculationsAndCharts!$A154+$A$11,IF($C$7,8,0),1,1) -> 22.07 | F154: =OFFSET(InputPriceData!E$15,CalculationsAndCharts!$A154+$A$11,IF($C$7,8,0),1,1) -> 21.48 | G154: =OFFSET(InputPriceData!F$15,CalculationsAndCharts!$A154+$A$11,IF($C$7,8,0),1,1) -> 21.96 | S154: 22 | T154: 20.93 | U154: 0.9626168224 | V154: FALSE | W154: FALSE | AB154: 11211 | AC154: 177 | AD154: 63.33898305 | AE154: 13.33898305 | AF154: 2.66779661 | AM154: 22 | AN154: 20.93 | AO154: 0.9626168224 | AP154: FALSE | AQ154: 0 | AR154: 0 | AS154: FALSE | AT154: 0 | AU154: FALSE | AV154: FALSE | AW154: FALSE | AX154: FALSE | AY154: FALSE
A155: 123 | B155: =OFFSET(InputPriceData!B$15,CalculationsAndCharts!$A155+$A$11,0,1,1) -> 2014-07-17 | C155: =OFFSET(InputPriceData!G$15,CalculationsAndCharts!$A155+$A$11,IF($C$7,8,0),1,1) -> 435200 | D155: =OFFSET(InputPriceData!C$15,CalculationsAndCharts!$A155+$A$11,IF($C$7,8,0),1,1) -> 21.78 | E155: =OFFSET(InputPriceData!D$15,CalculationsAndCharts!$A155+$A$11,IF($C$7,8,0),1,1) -> 21.93 | F155: =OFFSET(InputPriceData!E$15,CalculationsAndCharts!$A155+$A$11,IF($C$7,8,0),1,1) -> 21.69 | G155: =OFFSET(InputPriceData!F$15,CalculationsAndCharts!$A155+$A$11,IF($C$7,8,0),1,1) -> 21.76 | S155: 22 | T155: 20.93 | U155: 0.7757009346 | V155: FALSE | W155: FALSE | AB155: 11211 | AC155: 177 | AD155: 63.33898305 | AE155: 13.33898305 | AF155: 2.66779661 | AM155: 22 | AN155: 20.93 | AO155: 0.7757009346 | AP155: FALSE | AQ155: 0 | AR155: 0 | AS155: FALSE | AT155: 0 | AU155: FALSE | AV155: FALSE | AW155: FALSE | AX155: FALSE | AY155: FALSE
A156: 124 | B156: =OFFSET(InputPriceData!B$15,CalculationsAndCharts!$A156+$A$11,0,1,1) -> 2014-07-16 | C156: =OFFSET(InputPriceData!G$15,CalculationsAndCharts!$A156+$A$11,IF($C$7,8,0),1,1) -> 351000 | D156: =OFFSET(InputPriceData!C$15,CalculationsAndCharts!$A156+$A$11,IF($C$7,8,0),1,1) -> 21.79 | E156: =OFFSET(InputPriceData!D$15,CalculationsAndCharts!$A156+$A$11,IF($C$7,8,0),1,1) -> 22.05 | F156: =OFFSET(InputPriceData!E$15,CalculationsAndCharts!$A156+$A$11,IF($C$7,8,0),1,1) -> 21.55 | G156: =OFFSET(InputPriceData!F$15,CalculationsAndCharts!$A156+$A$11,IF($C$7,8,0),1,1) -> 22 | S156: 22 | T156: 20.93 | U156: 1 | V156: FALSE | W156: FALSE | AB156: 11211 | AC156: 177 | AD156: 63.33898305 | AE156: 13.33898305 | AF156: 2.66779661 | AM156: 22 | AN156: 20.93 | AO156: 1 | AP156: FALSE | AQ156: 0 | AR156: 0 | AS156: FALSE | AT156: 0 | AU156: FALSE | AV156: FALSE | AW156: FALSE | AX156: FALSE | AY156: FALSE
A157: 125 | B157: =OFFSET(InputPriceData!B$15,CalculationsAndCharts!$A157+$A$11,0,1,1) -> 2014-07-15 | C157: =OFFSET(InputPriceData!G$15,CalculationsAndCharts!$A157+$A$11,IF($C$7,8,0),1,1) -> 420200 | D157: =OFFSET(InputPriceData!C$15,CalculationsAndCharts!$A157+$A$11,IF($C$7,8,0),1,1) -> 21.59 | E157: =OFFSET(InputPriceData!D$15,CalculationsAndCharts!$A157+$A$11,IF($C$7,8,0),1,1) -> 21.91 | F157: =OFFSET(InputPriceData!E$15,CalculationsAndCharts!$A157+$A$11,IF($C$7,8,0),1,1) -> 21.5 | G157: =OFFSET(InputPriceData!F$15,CalculationsAndCharts!$A157+$A$11,IF($C$7,8,0),1,1) -> 21.69 | S157: 21.94 | T157: 20.93 | U157: 0.7524752475 | V157: FALSE | W157: FALSE | AB157: 11211 | AC157: 177 | AD157: 63.33898305 | AE157: 13.33898305 | AF157: 2.66779661 | AM157: 21.94 | AN157: 20.93 | AO157: 0.7524752475 | AP157: FALSE | AQ157: 0 | AR157: 0 | AS157: FALSE | AT157: 0 | AU157: FALSE | AV157: FALSE | AW157: FALSE | AX157: FALSE | AY157: FALSE
A158: 126 | B158: =OFFSET(InputPriceData!B$15,CalculationsAndCharts!$A158+$A$11,0,1,1) -> 2014-07-14 | C158: =OFFSET(InputPriceData!G$15,CalculationsAndCharts!$A158+$A$11,IF($C$7,8,0),1,1) -> 319500 | D158: =OFFSET(InputPriceData!C$15,CalculationsAndCharts!$A158+$A$11,IF($C$7,8,0),1,1) -> 21.71 | E158: =OFFSET(InputPriceData!D$15,CalculationsAndCharts!$A158+$A$11,IF($C$7,8,0),1,1) -> 21.73 | F158: =OFFSET(InputPriceData!E$15,CalculationsAndCharts!$A158+$A$11,IF($C$7,8,0),1,1) -> 21.52 | G158: =OFFSET(InputPriceData!F$15,CalculationsAndCharts!$A158+$A$11,IF($C$7,8,0),1,1) -> 21.66 | S158: 21.96 | T158: 20.93 | U158: 0.7087378641 | V158: FALSE | W158: FALSE | AB158: 11211 | AC158: 177 | AD158: 63.33898305 | AE158: 13.33898305 | AF158: 2.66779661 | AM158: 21.94 | AN158: 20.93 | AO158: 0.7227722772 | AP158: FALSE | AQ158: 0 | AR158: 0 | AS158: FALSE | AT158: 0 | AU158: FALSE | AV158: FALSE | AW158: FALSE | AX158: FALSE | AY158: FALSE
A159: 127 | B159: =OFFSET(InputPriceData!B$15,CalculationsAndCharts!$A159+$A$11,0,1,1) -> 2014-07-11 | C159: =OFFSET(InputPriceData!G$15,CalculationsAndCharts!$A159+$A$11,IF($C$7,8,0),1,1) -> 385600 | D159: =OFFSET(InputPriceData!C$15,CalculationsAndCharts!$A159+$A$11,IF($C$7,8,0),1,1) -> 21.75 | E159: =OFFSET(InputPriceData!D$15,CalculationsAndCharts!$A159+$A$11,IF($C$7,8,0),1,1) -> 21.92 | F159: =OFFSET(InputPriceData!E$15,CalculationsAndCharts!$A159+$A$11,IF($C$7,8,0),1,1) -> 21.43 | G159: =OFFSET(InputPriceData!F$15,CalculationsAndCharts!$A159+$A$11,IF($C$7,8,0),1,1) -> 21.52 | S159: 21.96 | T159: 20.93 | U159: 0.572815534 | V159: FALSE | W159: FALSE | AB159: 11211 | AC159: 177 | AD159: 63.33898305 | AE159: 13.33898305 | AF159: 2.66779661 | AM159: 21.94 | AN159: 20.93 | AO159: 0.5841584158 | AP159: FALSE | AQ159: 0 | AR159: 0 | AS159: FALSE | AT159: 0 | AU159: FALSE | AV159: FALSE | AW159: FALSE | AX159: FALSE | AY159: FALSE
A160: 128 | B160: =OFFSET(InputPriceData!B$15,CalculationsAndCharts!$A160+$A$11,0,1,1) -> 2014-07-10 | C160: =OFFSET(InputPriceData!G$15,CalculationsAndCharts!$A160+$A$11,IF($C$7,8,0),1,1) -> 595500 | D160: =OFFSET(InputPriceData!C$15,CalculationsAndCharts!$A160+$A$11,IF($C$7,8,0),1,1) -> 21.57 | E160: =OFFSET(InputPriceData!D$15,CalculationsAndCharts!$A160+$A$11,IF($C$7,8,0),1,1) -> 22.05 | F160: =OFFSET(InputPriceData!E$15,CalculationsAndCharts!$A160+$A$11,IF($C$7,8,0),1,1) -> 21.51 | G160: =OFFSET(InputPriceData!F$15,CalculationsAndCharts!$A160+$A$11,IF($C$7,8,0),1,1) -> 21.8 | S160: 22.01 | T160: 20.93 | U160: 0.8055555556 | V160: FALSE | W160: FALSE | AB160: 11211 | AC160: 177 | AD160: 63.33898305 | AE160: 13.33898305 | AF160: 2.66779661 | AM160: 21.96 | AN160: 20.93 | AO160: 0.8446601942 | AP160: FALSE | AQ160: 0 | AR160: 0 | AS160: FALSE | AT160: 0 | AU160: FALSE | AV160: FALSE | AW160: FALSE | AX160: FALSE | AY160: TRUE
A161: 129 | B161: =OFFSET(InputPriceData!B$15,CalculationsAndCharts!$A161+$A$11,0,1,1) -> 2014-07-09 | C161: =OFFSET(InputPriceData!G$15,CalculationsAndCharts!$A161+$A$11,IF($C$7,8,0),1,1) -> 459400 | D161: =OFFSET(InputPriceData!C$15,CalculationsAndCharts!$A161+$A$11,IF($C$7,8,0),1,1) -> 21.63 | E161: =OFFSET(InputPriceData!D$15,CalculationsAndCharts!$A161+$A$11,IF($C$7,8,0),1,1) -> 22.01 | F161: =OFFSET(InputPriceData!E$15,CalculationsAndCharts!$A161+$A$11,IF($C$7,8,0),1,1) -> 21.34 | G161: =OFFSET(InputPriceData!F$15,CalculationsAndCharts!$A161+$A$11,IF($C$7,8,0),1,1) -> 21.94 | S161: 22.01 | T161: 20.93 | U161: =IFERROR((G161- T161)/(S161-T161),0) -> 0.9351851852 | V161: FALSE | W161: FALSE | Y161: =IF(W161,IFERROR(100*(G161-X161)/X161,0),"") ->  | AB161: 11211 | AC161: 177 | AD161: =IFERROR(AB161/AC161,0) -> 63.33898305 | AE161: =IFERROR(AB161/AC161-50,0) -> 13.33898305 | AF161: 2.66779661 | AM161: 21.96 | AN161: 20.93 | AO161: 0.9805825243 | AP161: FALSE | AQ161: 0.6315 | AR161: =IF(AND(NOT(AX162),AW161),D161*(1-$E$22),IF(AX161,AR162,0)) -> 20.4185 | AS161: =AND(AX161,F161<AR161) -> FALSE | AT161: =IF(AX161,AT162+1,0) -> 9 | AU161: TRUE | AV161: TRUE | AW161: FALSE | AX161: TRUE | AY161: FALSE
A162: 130 | B162: =OFFSET(InputPriceData!B$15,CalculationsAndCharts!$A162+$A$11,0,1,1) -> 2014-07-08 | C162: =OFFSET(InputPriceData!G$15,CalculationsAndCharts!$A162+$A$11,IF($C$7,8,0),1,1) -> 635600 | D162: =OFFSET(InputPriceData!C$15,CalculationsAndCharts!$A162+$A$11,IF($C$7,8,0),1,1) -> 21.48 | E162: =OFFSET(InputPriceData!D$15,CalculationsAndCharts!$A162+$A$11,IF($C$7,8,0),1,1) -> 21.69 | F162: =OFFSET(InputPriceData!E$15,CalculationsAndCharts!$A162+$A$11,IF($C$7,8,0),1,1) -> 21.31 | G162: =OFFSET(InputPriceData!F$15,CalculationsAndCharts!$A162+$A$11,IF($C$7,8,0),1,1) -> 21.5 | S162: =MAX(OFFSET($G162,0,0,$A$19,1)) -> 22.01 | T162: =MIN(OFFSET($G162,0,0,$A$19,1)) -> 20.93 | U162: 0.5277777778 | V162: =AND(U162<$A$20,U163>$A$20) -> FALSE | W162: =OFFSET(V162,($A$21-1),0,1,1) -> FALSE | X162: =IF($W162,OFFSET($G162,$A$19-1,0,1,1),"") ->  | Z162: =IF(W162,IF(Y162<-10,10,IF(Y162>10,10,Y162)),"") ->  | AA162: =IF(W162,INT(5*(Z162+10)),"") ->  | AB162: =IF(A162>$A$23,0,IF(W162,AA162,0))+AB163 -> 11211 | AC162: =IF(A162>$A$23,0,IF(W162,1,0))+AC163 -> 177 | AD162: 63.33898305 | AE162: 13.33898305 | AF162: =AE162*0.2 -> 2.66779661 | AM162: =MAX(OFFSET($G162,0,0,$E$19,1)) -> 22.01 | AN162: =MIN(OFFSET($G162,0,0,$E$19,1)) -> 20.93 | AO162: =IFERROR(($G162- AN162)/(AM162-AN162),0) -> 0.5277777778 | AP162: =AND(AO162<$E$20,AO163>$E$20) -> FALSE | AQ162: =IF(AND(NOT(AX163),AW162),D162*($E$22),IF(AX162,AQ163,0)) -> 0.6315 | AR162: 20.4185 | AS162: FALSE | AT162: 8 | AU162: =(AT162>=$E$21) -> FALSE | AV162: =OR(AS162,AU162) -> FALSE | AW162: =AND($AP163,NOT(AX163)) -> FALSE | AX162: =IF(AX163,IF(AY162,FALSE,AX163),IF(AW162,TRUE,AX163)) -> TRUE | AY162: =AND(AX163,AND(AV163<>AV164,AV163)) -> FALSE
A163: 131 | B163: =OFFSET(InputPriceData!B$15,CalculationsAndCharts!$A163+$A$11,0,1,1) -> 2014-07-07 | C163: =OFFSET(InputPriceData!G$15,CalculationsAndCharts!$A163+$A$11,IF($C$7,8,0),1,1) -> 514000 | D163: =OFFSET(InputPriceData!C$15,CalculationsAndCharts!$A163+$A$11,IF($C$7,8,0),1,1) -> 21.47 | E163: =OFFSET(InputPriceData!D$15,CalculationsAndCharts!$A163+$A$11,IF($C$7,8,0),1,1) -> 21.78 | F163: =OFFSET(InputPriceData!E$15,CalculationsAndCharts!$A163+$A$11,IF($C$7,8,0),1,1) -> 21.1 | G163: =OFFSET(InputPriceData!F$15,CalculationsAndCharts!$A163+$A$11,IF($C$7,8,0),1,1) -> 21.55 | S163: 22.01 | T163: 20.93 | U163: 0.5740740741 | V163: FALSE | W163: FALSE | AB163: 11211 | AC163: 177 | AD163: 63.33898305 | AE163: 13.33898305 | AF163: 2.66779661 | AM163: 22.01 | AN163: 20.93 | AO163: 0.5740740741 | AP163: FALSE | AQ163: 0.6315 | AR163: 20.4185 | AS163: FALSE | AT163: 7 | AU163: FALSE | AV163: FALSE | AW163: FALSE | AX163: TRUE | AY163: FALSE
A164: 132 | B164: =OFFSET(InputPriceData!B$15,CalculationsAndCharts!$A164+$A$11,0,1,1) -> 2014-07-03 | C164: =OFFSET(InputPriceData!G$15,CalculationsAndCharts!$A164+$A$11,IF($C$7,8,0),1,1) -> 93400 | D164: =OFFSET(InputPriceData!C$15,CalculationsAndCharts!$A164+$A$11,IF($C$7,8,0),1,1) -> 21.43 | E164: =OFFSET(InputPriceData!D$15,CalculationsAndCharts!$A164+$A$11,IF($C$7,8,0),1,1) -> 21.64 | F164: =OFFSET(InputPriceData!E$15,CalculationsAndCharts!$A164+$A$11,IF($C$7,8,0),1,1) -> 21.3 | G164: =OFFSET(InputPriceData!F$15,CalculationsAndCharts!$A164+$A$11,IF($C$7,8,0),1,1) -> 21.57 | S164: 22.06 | T164: 20.93 | U164: 0.5663716814 | V164: FALSE | W164: FALSE | AB164: 11211 | AC164: 177 | AD164: 63.33898305 | AE164: 13.33898305 | AF164: 2.66779661 | AM164: 22.01 | AN164: 20.93 | AO164: 0.5925925926 | AP164: FALSE | AQ164: 0.6315 | AR164: 20.4185 | AS164: FALSE | AT164: 6 | AU164: FALSE | AV164: FALSE | AW164: FALSE | AX164: TRUE | AY164: FALSE
A165: 133 | B165: =OFFSET(InputPriceData!B$15,CalculationsAndCharts!$A165+$A$11,0,1,1) -> 2014-07-02 | C165: =OFFSET(InputPriceData!G$15,CalculationsAndCharts!$A165+$A$11,IF($C$7,8,0),1,1) -> 223400 | D165: =OFFSET(InputPriceData!C$15,CalculationsAndCharts!$A165+$A$11,IF($C$7,8,0),1,1) -> 21.48 | E165: =OFFSET(InputPriceData!D$15,CalculationsAndCharts!$A165+$A$11,IF($C$7,8,0),1,1) -> 21.71 | F165: =OFFSET(InputPriceData!E$15,CalculationsAndCharts!$A165+$A$11,IF($C$7,8,0),1,1) -> 21.16 | G165: =OFFSET(InputPriceData!F$15,CalculationsAndCharts!$A165+$A$11,IF($C$7,8,0),1,1) -> 21.31 | S165: 22.08 | T165: 20.93 | U165: 0.3304347826 | V165: FALSE | W165: FALSE | AB165: 11211 | AC165: 177 | AD165: 63.33898305 | AE165: 13.33898305 | AF165: 2.66779661 | AM165: 22.01 | AN165: 20.93 | AO165: 0.3518518519 | AP165: FALSE | AQ165: 0.6315 | AR165: 20.4185 | AS165: FALSE | AT165: 5 | AU165: FALSE | AV165: FALSE | AW165: FALSE | AX165: TRUE | AY165: FALSE
A166: 134 | B166: =OFFSET(InputPriceData!B$15,CalculationsAndCharts!$A166+$A$11,0,1,1) -> 2014-07-01 | C166: =OFFSET(InputPriceData!G$15,CalculationsAndCharts!$A166+$A$11,IF($C$7,8,0),1,1) -> 297700 | D166: =OFFSET(InputPriceData!C$15,CalculationsAndCharts!$A166+$A$11,IF($C$7,8,0),1,1) -> 21.46 | E166: =OFFSET(InputPriceData!D$15,CalculationsAndCharts!$A166+$A$11,IF($C$7,8,0),1,1) -> 21.84 | F166: =OFFSET(InputPriceData!E$15,CalculationsAndCharts!$A166+$A$11,IF($C$7,8,0),1,1) -> 21.46 | G166: =OFFSET(InputPriceData!F$15,CalculationsAndCharts!$A166+$A$11,IF($C$7,8,0),1,1) -> 21.52 | S166: 22.08 | T166: 20.93 | U166: 0.5130434783 | V166: FALSE | W166: FALSE | AB166: 11211 | AC166: 177 | AD166: 63.33898305 | AE166: 13.33898305 | AF166: 2.66779661 | AM166: 22.06 | AN166: 20.93 | AO166: 0.5221238938 | AP166: FALSE | AQ166: 0.6315 | AR166: 20.4185 | AS166: FALSE | AT166: 4 | AU166: FALSE | AV166: FALSE | AW166: FALSE | AX166: TRUE | AY166: FALSE
A167: 135 | B167: =OFFSET(InputPriceData!B$15,CalculationsAndCharts!$A167+$A$11,0,1,1) -> 2014-06-30 | C167: =OFFSET(InputPriceData!G$15,CalculationsAndCharts!$A167+$A$11,IF($C$7,8,0),1,1) -> 361500 | D167: =OFFSET(InputPriceData!C$15,CalculationsAndCharts!$A167+$A$11,IF($C$7,8,0),1,1) -> 21 | E167: =OFFSET(InputPriceData!D$15,CalculationsAndCharts!$A167+$A$11,IF($C$7,8,0),1,1) -> 21.43 | F167: =OFFSET(InputPriceData!E$15,CalculationsAndCharts!$A167+$A$11,IF($C$7,8,0),1,1) -> 20.98 | G167: =OFFSET(InputPriceData!F$15,CalculationsAndCharts!$A167+$A$11,IF($C$7,8,0),1,1) -> 21.34 | S167: 22.08 | T167: 20.93 | U167: 0.3565217391 | V167: FALSE | W167: FALSE | AB167: 11211 | AC167: 177 | AD167: 63.33898305 | AE167: 13.33898305 | AF167: 2.66779661 | AM167: 22.08 | AN167: 20.93 | AO167: 0.3565217391 | AP167: FALSE | AQ167: 0.6315 | AR167: 20.4185 | AS167: FALSE | AT167: 3 | AU167: FALSE | AV167: FALSE | AW167: FALSE | AX167: TRUE | AY167: FALSE
A168: 136 | B168: =OFFSET(InputPriceData!B$15,CalculationsAndCharts!$A168+$A$11,0,1,1) -> 2014-06-27 | C168: =OFFSET(InputPriceData!G$15,CalculationsAndCharts!$A168+$A$11,IF($C$7,8,0),1,1) -> 1730200 | D168: =OFFSET(InputPriceData!C$15,CalculationsAndCharts!$A168+$A$11,IF($C$7,8,0),1,1) -> 20.86 | E168: =OFFSET(InputPriceData!D$15,CalculationsAndCharts!$A168+$A$11,IF($C$7,8,0),1,1) -> 21.3 | F168: =OFFSET(InputPriceData!E$15,CalculationsAndCharts!$A168+$A$11,IF($C$7,8,0),1,1) -> 20.79 | G168: =OFFSET(InputPriceData!F$15,CalculationsAndCharts!$A168+$A$11,IF($C$7,8,0),1,1) -> 21.03 | S168: 22.08 | T168: 20.93 | U168: 0.08695652174 | V168: FALSE | W168: FALSE | AB168: 11211 | AC168: 177 | AD168: 63.33898305 | AE168: 13.33898305 | AF168: 2.66779661 | AM168: 22.08 | AN168: 20.93 | AO168: 0.08695652174 | AP168: FALSE | AQ168: 0.6315 | AR168: 20.4185 | AS168: FALSE | AT168: 2 | AU168: FALSE | AV168: FALSE | AW168: FALSE | AX168: TRUE | AY168: FALSE
A169: 137 | B169: =OFFSET(InputPriceData!B$15,CalculationsAndCharts!$A169+$A$11,0,1,1) -> 2014-06-26 | C169: =OFFSET(InputPriceData!G$15,CalculationsAndCharts!$A169+$A$11,IF($C$7,8,0),1,1) -> 313100 | D169: =OFFSET(InputPriceData!C$15,CalculationsAndCharts!$A169+$A$11,IF($C$7,8,0),1,1) -> 21.05 | E169: =OFFSET(InputPriceData!D$15,CalculationsAndCharts!$A169+$A$11,IF($C$7,8,0),1,1) -> 21.08 | F169: =OFFSET(InputPriceData!E$15,CalculationsAndCharts!$A169+$A$11,IF($C$7,8,0),1,1) -> 20.79 | G169: =OFFSET(InputPriceData!F$15,CalculationsAndCharts!$A169+$A$11,IF($C$7,8,0),1,1) -> 20.93 | S169: 22.08 | T169: 20.93 | U169: 0 | V169: FALSE | W169: FALSE | AB169: 11211 | AC169: 177 | AD169: 63.33898305 | AE169: 13.33898305 | AF169: 2.66779661 | AM169: 22.08 | AN169: 20.93 | AO169: 0 | AP169: FALSE | AQ169: 0.6315 | AR169: 20.4185 | AS169: FALSE | AT169: 1 | AU169: FALSE | AV169: FALSE | AW169: TRUE | AX169: TRUE | AY169: FALSE
A170: 138 | B170: =OFFSET(InputPriceData!B$15,CalculationsAndCharts!$A170+$A$11,0,1,1) -> 2014-06-25 | C170: =OFFSET(InputPriceData!G$15,CalculationsAndCharts!$A170+$A$11,IF($C$7,8,0),1,1) -> 365800 | D170: =OFFSET(InputPriceData!C$15,CalculationsAndCharts!$A170+$A$11,IF($C$7,8,0),1,1) -> 21.07 | E170: =OFFSET(InputPriceData!D$15,CalculationsAndCharts!$A170+$A$11,IF($C$7,8,0),1,1) -> 21.16 | F170: =OFFSET(InputPriceData!E$15,CalculationsAndCharts!$A170+$A$11,IF($C$7,8,0),1,1) -> 20.83 | G170: =OFFSET(InputPriceData!F$15,CalculationsAndCharts!$A170+$A$11,IF($C$7,8,0),1,1) -> 21.07 | S170: 22.08 | T170: 21.02 | U170: 0.04716981132 | V170: TRUE | W170: FALSE | AB170: 11211 | AC170: 177 | AD170: 63.33898305 | AE170: 13.33898305 | AF170: 2.66779661 | AM170: 22.08 | AN170: 21.07 | AO170: 0 | AP170: TRUE | AQ170: 0 | AR170: 0 | AS170: FALSE | AT170: 0 | AU170: FALSE | AV170: FALSE | AW170: FALSE | AX170: FALSE | AY170: FALSE
A171: 139 | B171: =OFFSET(InputPriceData!B$15,CalculationsAndCharts!$A171+$A$11,0,1,1) -> 2014-06-24 | C171: =OFFSET(InputPriceData!G$15,CalculationsAndCharts!$A171+$A$11,IF($C$7,8,0),1,1) -> 389700 | D171: =OFFSET(InputPriceData!C$15,CalculationsAndCharts!$A171+$A$11,IF($C$7,8,0),1,1) -> 21.56 | E171: =OFFSET(InputPriceData!D$15,CalculationsAndCharts!$A171+$A$11,IF($C$7,8,0),1,1) -> 21.81 | F171: =OFFSET(InputPriceData!E$15,CalculationsAndCharts!$A171+$A$11,IF($C$7,8,0),1,1) -> 21.13 | G171: =OFFSET(InputPriceData!F$15,CalculationsAndCharts!$A171+$A$11,IF($C$7,8,0),1,1) -> 21.18 | S171: 22.08 | T171: 21.02 | U171: 0.1509433962 | V171: FALSE | W171: FALSE | AB171: 11211 | AC171: 177 | AD171: 63.33898305 | AE171: 13.33898305 | AF171: 2.66779661 | AM171: 22.08 | AN171: 21.02 | AO171: 0.1509433962 | AP171: FALSE | AQ171: 0 | AR171: 0 | AS171: FALSE | AT171: 0 | AU171: FALSE | AV171: FALSE | AW171: FALSE | AX171: FALSE | AY171: FALSE
A172: 140 | B172: =OFFSET(InputPriceData!B$15,CalculationsAndCharts!$A172+$A$11,0,1,1) -> 2014-06-23 | C172: =OFFSET(InputPriceData!G$15,CalculationsAndCharts!$A172+$A$11,IF($C$7,8,0),1,1) -> 167900 | D172: =OFFSET(InputPriceData!C$15,CalculationsAndCharts!$A172+$A$11,IF($C$7,8,0),1,1) -> 21.88 | E172: =OFFSET(InputPriceData!D$15,CalculationsAndCharts!$A172+$A$11,IF($C$7,8,0),1,1) -> 21.94 | F172: =OFFSET(InputPriceData!E$15,CalculationsAndCharts!$A172+$A$11,IF($C$7,8,0),1,1) -> 21.57 | G172: =OFFSET(InputPriceData!F$15,CalculationsAndCharts!$A172+$A$11,IF($C$7,8,0),1,1) -> 21.63 | S172: 22.08 | T172: 21.02 | U172: 0.5754716981 | V172: FALSE | W172: FALSE | AB172: 11211 | AC172: 177 | AD172: 63.33898305 | AE172: 13.33898305 | AF172: 2.66779661 | AM172: 22.08 | AN172: 21.02 | AO172: 0.5754716981 | AP172: FALSE | AQ172: 0 | AR172: 0 | AS172: FALSE | AT172: 0 | AU172: FALSE | AV172: FALSE | AW172: FALSE | AX172: FALSE | AY172: FALSE
A173: 141 | B173: =OFFSET(InputPriceData!B$15,CalculationsAndCharts!$A173+$A$11,0,1,1) -> 2014-06-20 | C173: =OFFSET(InputPriceData!G$15,CalculationsAndCharts!$A173+$A$11,IF($C$7,8,0),1,1) -> 820800 | D173: =OFFSET(InputPriceData!C$15,CalculationsAndCharts!$A173+$A$11,IF($C$7,8,0),1,1) -> 21.97 | E173: =OFFSET(InputPriceData!D$15,CalculationsAndCharts!$A173+$A$11,IF($C$7,8,0),1,1) -> 22.04 | F173: =OFFSET(InputPriceData!E$15,CalculationsAndCharts!$A173+$A$11,IF($C$7,8,0),1,1) -> 21.51 | G173: =OFFSET(InputPriceData!F$15,CalculationsAndCharts!$A173+$A$11,IF($C$7,8,0),1,1) -> 21.88 | S173: 22.08 | T173: 21.02 | U173: 0.8113207547 | V173: FALSE | W173: FALSE | AB173: 11211 | AC173: 177 | AD173: 63.33898305 | AE173: 13.33898305 | AF173: 2.66779661 | AM173: 22.08 | AN173: 21.02 | AO173: 0.8113207547 | AP173: FALSE | AQ173: 0 | AR173: 0 | AS173: FALSE | AT173: 0 | AU173: FALSE | AV173: FALSE | AW173: FALSE | AX173: FALSE | AY173: FALSE
A174: 142 | B174: =OFFSET(InputPriceData!B$15,CalculationsAndCharts!$A174+$A$11,0,1,1) -> 2014-06-19 | C174: =OFFSET(InputPriceData!G$15,CalculationsAndCharts!$A174+$A$11,IF($C$7,8,0),1,1) -> 184800 | D174: =OFFSET(InputPriceData!C$15,CalculationsAndCharts!$A174+$A$11,IF($C$7,8,0),1,1) -> 22.01 | E174: =OFFSET(InputPriceData!D$15,CalculationsAndCharts!$A174+$A$11,IF($C$7,8,0),1,1) -> 22.01 | F174: =OFFSET(InputPriceData!E$15,CalculationsAndCharts!$A174+$A$11,IF($C$7,8,0),1,1) -> 21.7 | G174: =OFFSET(InputPriceData!F$15,CalculationsAndCharts!$A174+$A$11,IF($C$7,8,0),1,1) -> 21.86 | S174: 22.08 | T174: 21.02 | U174: 0.7924528302 | V174: FALSE | W174: FALSE | AB174: 11211 | AC174: 177 | AD174: 63.33898305 | AE174: 13.33898305 | AF174: 2.66779661 | AM174: 22.08 | AN174: 21.02 | AO174: 0.7924528302 | AP174: FALSE | AQ174: 0 | AR174: 0 | AS174: FALSE | AT174: 0 | AU174: FALSE | AV174: FALSE | AW174: FALSE | AX174: FALSE | AY174: FALSE
A175: 143 | B175: =OFFSET(InputPriceData!B$15,CalculationsAndCharts!$A175+$A$11,0,1,1) -> 2014-06-18 | C175: =OFFSET(InputPriceData!G$15,CalculationsAndCharts!$A175+$A$11,IF($C$7,8,0),1,1) -> 408400 | D175: =OFFSET(InputPriceData!C$15,CalculationsAndCharts!$A175+$A$11,IF($C$7,8,0),1,1) -> 21.4 | E175: =OFFSET(InputPriceData!D$15,CalculationsAndCharts!$A175+$A$11,IF($C$7,8,0),1,1) -> 22.09 | F175: =OFFSET(InputPriceData!E$15,CalculationsAndCharts!$A175+$A$11,IF($C$7,8,0),1,1) -> 21.4 | G175: =OFFSET(InputPriceData!F$15,CalculationsAndCharts!$A175+$A$11,IF($C$7,8,0),1,1) -> 21.96 | S175: 22.08 | T175: 21.02 | U175: 0.8867924528 | V175: FALSE | W175: FALSE | AB175: 11211 | AC175: 177 | AD175: 63.33898305 | AE175: 13.33898305 | AF175: 2.66779661 | AM175: 22.08 | AN175: 21.02 | AO175: 0.8867924528 | AP175: FALSE | AQ175: 0 | AR175: 0 | AS175: FALSE | AT175: 0 | AU175: FALSE | AV175: FALSE | AW175: FALSE | AX175: FALSE | AY175: FALSE
A176: 144 | B176: =OFFSET(InputPriceData!B$15,CalculationsAndCharts!$A176+$A$11,0,1,1) -> 2014-06-17 | C176: =OFFSET(InputPriceData!G$15,CalculationsAndCharts!$A176+$A$11,IF($C$7,8,0),1,1) -> 386000 | D176: =OFFSET(InputPriceData!C$15,CalculationsAndCharts!$A176+$A$11,IF($C$7,8,0),1,1) -> 21.95 | E176: =OFFSET(InputPriceData!D$15,CalculationsAndCharts!$A176+$A$11,IF($C$7,8,0),1,1) -> 22.15 | F176: =OFFSET(InputPriceData!E$15,CalculationsAndCharts!$A176+$A$11,IF($C$7,8,0),1,1) -> 21.45 | G176: =OFFSET(InputPriceData!F$15,CalculationsAndCharts!$A176+$A$11,IF($C$7,8,0),1,1) -> 21.47 | S176: 22.08 | T176: 20.96 | U176: 0.4553571429 | V176: FALSE | W176: FALSE | AB176: 11211 | AC176: 177 | AD176: 63.33898305 | AE176: 13.33898305 | AF176: 2.66779661 | AM176: 22.08 | AN176: 21.02 | AO176: 0.4245283019 | AP176: FALSE | AQ176: 0 | AR176: 0 | AS176: FALSE | AT176: 0 | AU176: FALSE | AV176: FALSE | AW176: FALSE | AX176: FALSE | AY176: FALSE
A177: 145 | B177: =OFFSET(InputPriceData!B$15,CalculationsAndCharts!$A177+$A$11,0,1,1) -> 2014-06-16 | C177: =OFFSET(InputPriceData!G$15,CalculationsAndCharts!$A177+$A$11,IF($C$7,8,0),1,1) -> 354600 | D177: =OFFSET(InputPriceData!C$15,CalculationsAndCharts!$A177+$A$11,IF($C$7,8,0),1,1) -> 21.81 | E177: =OFFSET(InputPriceData!D$15,CalculationsAndCharts!$A177+$A$11,IF($C$7,8,0),1,1) -> 22.07 | F177: =OFFSET(InputPriceData!E$15,CalculationsAndCharts!$A177+$A$11,IF($C$7,8,0),1,1) -> 21.73 | G177: =OFFSET(InputPriceData!F$15,CalculationsAndCharts!$A177+$A$11,IF($C$7,8,0),1,1) -> 22.01 | S177: 22.08 | T177: 20.3 | U177: 0.9606741573 | V177: FALSE | W177: TRUE | X177: 20.3 | Y177: 8.42364532 | Z177: 8.42364532 | AA177: 92 | AB177: 11211 | AC177: 177 | AD177: 63.33898305 | AE177: 13.33898305 | AF177: 2.66779661 | AM177: 22.08 | AN177: 21.02 | AO177: 0.9339622642 | AP177: FALSE | AQ177: 0 | AR177: 0 | AS177: FALSE | AT177: 0 | AU177: FALSE | AV177: FALSE | AW177: FALSE | AX177: FALSE | AY177: FALSE
A178: 146 | B178: =OFFSET(InputPriceData!B$15,CalculationsAndCharts!$A178+$A$11,0,1,1) -> 2014-06-13 | C178: =OFFSET(InputPriceData!G$15,CalculationsAndCharts!$A178+$A$11,IF($C$7,8,0),1,1) -> 290800 | D178: =OFFSET(InputPriceData!C$15,CalculationsAndCharts!$A178+$A$11,IF($C$7,8,0),1,1) -> 21.64 | E178: =OFFSET(InputPriceData!D$15,CalculationsAndCharts!$A178+$A$11,IF($C$7,8,0),1,1) -> 21.95 | F178: =OFFSET(InputPriceData!E$15,CalculationsAndCharts!$A178+$A$11,IF($C$7,8,0),1,1) -> 21.44 | G178: =OFFSET(InputPriceData!F$15,CalculationsAndCharts!$A178+$A$11,IF($C$7,8,0),1,1) -> 21.87 | S178: 22.08 | T178: 20.3 | U178: 0.8820224719 | V178: FALSE | W178: FALSE | AB178: 11119 | AC178: 176 | AD178: 63.17613636 | AE178: 13.17613636 | AF178: 2.635227273 | AM178: 22.08 | AN178: 20.96 | AO178: 0.8125 | AP178: FALSE | AQ178: 0 | AR178: 0 | AS178: FALSE | AT178: 0 | AU178: FALSE | AV178: FALSE | AW178: FALSE | AX178: FALSE | AY178: FALSE
A179: 147 | B179: =OFFSET(InputPriceData!B$15,CalculationsAndCharts!$A179+$A$11,0,1,1) -> 2014-06-12 | C179: =OFFSET(InputPriceData!G$15,CalculationsAndCharts!$A179+$A$11,IF($C$7,8,0),1,1) -> 316900 | D179: =OFFSET(InputPriceData!C$15,CalculationsAndCharts!$A179+$A$11,IF($C$7,8,0),1,1) -> 21.74 | E179: =OFFSET(InputPriceData!D$15,CalculationsAndCharts!$A179+$A$11,IF($C$7,8,0),1,1) -> 21.83 | F179: =OFFSET(InputPriceData!E$15,CalculationsAndCharts!$A179+$A$11,IF($C$7,8,0),1,1) -> 21.44 | G179: =OFFSET(InputPriceData!F$15,CalculationsAndCharts!$A179+$A$11,IF($C$7,8,0),1,1) -> 21.55 | S179: 22.08 | T179: 20.3 | U179: 0.702247191 | V179: FALSE | W179: FALSE | AB179: 11119 | AC179: 176 | AD179: 63.17613636 | AE179: 13.17613636 | AF179: 2.635227273 | AM179: 22.08 | AN179: 20.3 | AO179: 0.702247191 | AP179: FALSE | AQ179: 0 | AR179: 0 | AS179: FALSE | AT179: 0 | AU179: FALSE | AV179: FALSE | AW179: FALSE | AX179: FALSE | AY179: FALSE
A180: 148 | B180: =OFFSET(InputPriceData!B$15,CalculationsAndCharts!$A180+$A$11,0,1,1) -> 2014-06-11 | C180: =OFFSET(InputPriceData!G$15,CalculationsAndCharts!$A180+$A$11,IF($C$7,8,0),1,1) -> 186600 | D180: =OFFSET(InputPriceData!C$15,CalculationsAndCharts!$A180+$A$11,IF($C$7,8,0),1,1) -> 21.9 | E180: =OFFSET(InputPriceData!D$15,CalculationsAndCharts!$A180+$A$11,IF($C$7,8,0),1,1) -> 21.9 | F180: =OFFSET(InputPriceData!E$15,CalculationsAndCharts!$A180+$A$11,IF($C$7,8,0),1,1) -> 21.65 | G180: =OFFSET(InputPriceData!F$15,CalculationsAndCharts!$A180+$A$11,IF($C$7,8,0),1,1) -> 21.82 | S180: 22.08 | T180: 20.3 | U180: 0.8539325843 | V180: FALSE | W180: FALSE | AB180: 11119 | AC180: 176 | AD180: 63.17613636 | AE180: 13.17613636 | AF180: 2.635227273 | AM180: 22.08 | AN180: 20.3 | AO180: 0.8539325843 | AP180: FALSE | AQ180: 0 | AR180: 0 | AS180: FALSE | AT180: 0 | AU180: FALSE | AV180: FALSE | AW180: FALSE | AX180: FALSE | AY180: FALSE
A181: 149 | B181: =OFFSET(InputPriceData!B$15,CalculationsAndCharts!$A181+$A$11,0,1,1) -> 2014-06-10 | C181: =OFFSET(InputPriceData!G$15,CalculationsAndCharts!$A181+$A$11,IF($C$7,8,0),1,1) -> 209300 | D181: =OFFSET(InputPriceData!C$15,CalculationsAndCharts!$A181+$A$11,IF($C$7,8,0),1,1) -> 22.03 | E181: =OFFSET(InputPriceData!D$15,CalculationsAndCharts!$A181+$A$11,IF($C$7,8,0),1,1) -> 22.1 | F181: =OFFSET(InputPriceData!E$15,CalculationsAndCharts!$A181+$A$11,IF($C$7,8,0),1,1) -> 21.78 | G181: =OFFSET(InputPriceData!F$15,CalculationsAndCharts!$A181+$A$11,IF($C$7,8,0),1,1) -> 22.06 | S181: 22.08 | T181: 20.2 | U181: 0.9893617021 | V181: FALSE | W181: FALSE | AB181: 11119 | AC181: 176 | AD181: 63.17613636 | AE181: 13.17613636 | AF181: 2.635227273 | AM181: 22.08 | AN181: 20.3 | AO181: 0.9887640449 | AP181: FALSE | AQ181: 0 | AR181: 0 | AS181: FALSE | AT181: 0 | AU181: FALSE | AV181: FALSE | AW181: FALSE | AX181: FALSE | AY181: FALSE
A182: 150 | B182: =OFFSET(InputPriceData!B$15,CalculationsAndCharts!$A182+$A$11,0,1,1) -> 2014-06-09 | C182: =OFFSET(InputPriceData!G$15,CalculationsAndCharts!$A182+$A$11,IF($C$7,8,0),1,1) -> 260700 | D182: =OFFSET(InputPriceData!C$15,CalculationsAndCharts!$A182+$A$11,IF($C$7,8,0),1,1) -> 21.87 | E182: =OFFSET(InputPriceData!D$15,CalculationsAndCharts!$A182+$A$11,IF($C$7,8,0),1,1) -> 22.33 | F182: =OFFSET(InputPriceData!E$15,CalculationsAndCharts!$A182+$A$11,IF($C$7,8,0),1,1) -> 21.82 | G182: =OFFSET(InputPriceData!F$15,CalculationsAndCharts!$A182+$A$11,IF($C$7,8,0),1,1) -> 22.08 | S182: 22.08 | T182: 20.2 | U182: 1 | V182: FALSE | W182: TRUE | X182: 20.7 | Y182: 6.666666667 | Z182: 6.666666667 | AA182: 83 | AB182: 11119 | AC182: 176 | AD182: 63.17613636 | AE182: 13.17613636 | AF182: 2.635227273 | AM182: 22.08 | AN182: 20.3 | AO182: 1 | AP182: FALSE | AQ182: 0 | AR182: 0 | AS182: FALSE | AT182: 0 | AU182: FALSE | AV182: FALSE | AW182: FALSE | AX182: FALSE | AY182: FALSE
A183: 151 | B183: =OFFSET(InputPriceData!B$15,CalculationsAndCharts!$A183+$A$11,0,1,1) -> 2014-06-06 | C183: =OFFSET(InputPriceData!G$15,CalculationsAndCharts!$A183+$A$11,IF($C$7,8,0),1,1) -> 227900 | D183: =OFFSET(InputPriceData!C$15,CalculationsAndCharts!$A183+$A$11,IF($C$7,8,0),1,1) -> 21.78 | E183: =OFFSET(InputPriceData!D$15,CalculationsAndCharts!$A183+$A$11,IF($C$7,8,0),1,1) -> 22.01 | F183: =OFFSET(InputPriceData!E$15,CalculationsAndCharts!$A183+$A$11,IF($C$7,8,0),1,1) -> 21.41 | G183: =OFFSET(InputPriceData!F$15,CalculationsAndCharts!$A183+$A$11,IF($C$7,8,0),1,1) -> 21.92 | S183: 21.96 | T183: 20.2 | U183: 0.9772727273 | V183: FALSE | W183: FALSE | AB183: 11036 | AC183: 175 | AD183: 63.06285714 | AE183: 13.06285714 | AF183: 2.612571429 | AM183: 21.96 | AN183: 20.2 | AO183: 0.9772727273 | AP183: FALSE | AQ183: 0 | AR183: 0 | AS183: FALSE | AT183: 0 | AU183: FALSE | AV183: FALSE | AW183: FALSE | AX183: FALSE | AY183: FALSE
A184: 152 | B184: =OFFSET(InputPriceData!B$15,CalculationsAndCharts!$A184+$A$11,0,1,1) -> 2014-06-05 | C184: =OFFSET(InputPriceData!G$15,CalculationsAndCharts!$A184+$A$11,IF($C$7,8,0),1,1) -> 384000 | D184: =OFFSET(InputPriceData!C$15,CalculationsAndCharts!$A184+$A$11,IF($C$7,8,0),1,1) -> 21.19 | E184: =OFFSET(InputPriceData!D$15,CalculationsAndCharts!$A184+$A$11,IF($C$7,8,0),1,1) -> 21.7 | F184: =OFFSET(InputPriceData!E$15,CalculationsAndCharts!$A184+$A$11,IF($C$7,8,0),1,1) -> 20.98 | G184: =OFFSET(InputPriceData!F$15,CalculationsAndCharts!$A184+$A$11,IF($C$7,8,0),1,1) -> 21.7 | S184: 21.96 | T184: 20.2 | U184: 0.8522727273 | V184: FALSE | W184: FALSE | AB184: 11036 | AC184: 175 | AD184: 63.06285714 | AE184: 13.06285714 | AF184: 2.612571429 | AM184: 21.96 | AN184: 20.2 | AO184: 0.8522727273 | AP184: FALSE | AQ184: 0 | AR184: 0 | AS184: FALSE | AT184: 0 | AU184: FALSE | AV184: FALSE | AW184: FALSE | AX184: FALSE | AY184: TRUE
A185: 153 | B185: =OFFSET(InputPriceData!B$15,CalculationsAndCharts!$A185+$A$11,0,1,1) -> 2014-06-04 | C185: =OFFSET(InputPriceData!G$15,CalculationsAndCharts!$A185+$A$11,IF($C$7,8,0),1,1) -> 355100 | D185: =OFFSET(InputPriceData!C$15,CalculationsAndCharts!$A185+$A$11,IF($C$7,8,0),1,1) -> 20.98 | E185: =OFFSET(InputPriceData!D$15,CalculationsAndCharts!$A185+$A$11,IF($C$7,8,0),1,1) -> 21.23 | F185: =OFFSET(InputPriceData!E$15,CalculationsAndCharts!$A185+$A$11,IF($C$7,8,0),1,1) -> 20.91 | G185: =OFFSET(InputPriceData!F$15,CalculationsAndCharts!$A185+$A$11,IF($C$7,8,0),1,1) -> 21.08 | S185: 21.96 | T185: 20.2 | U185: 0.5 | V185: FALSE | W185: FALSE | AB185: 11036 | AC185: 175 | AD185: 63.06285714 | AE185: 13.06285714 | AF185: 2.612571429 | AM185: 21.96 | AN185: 20.2 | AO185: 0.5 | AP185: FALSE | AQ185: 0.6099 | AR185: 19.7201 | AS185: FALSE | AT185: 9 | AU185: TRUE | AV185: TRUE | AW185: FALSE | AX185: TRUE | AY185: FALSE
A186: 154 | B186: =OFFSET(InputPriceData!B$15,CalculationsAndCharts!$A186+$A$11,0,1,1) -> 2014-06-03 | C186: =OFFSET(InputPriceData!G$15,CalculationsAndCharts!$A186+$A$11,IF($C$7,8,0),1,1) -> 433700 | D186: =OFFSET(InputPriceData!C$15,CalculationsAndCharts!$A186+$A$11,IF($C$7,8,0),1,1) -> 21.37 | E186: =OFFSET(InputPriceData!D$15,CalculationsAndCharts!$A186+$A$11,IF($C$7,8,0),1,1) -> 21.58 | F186: =OFFSET(InputPriceData!E$15,CalculationsAndCharts!$A186+$A$11,IF($C$7,8,0),1,1) -> 20.96 | G186: =OFFSET(InputPriceData!F$15,CalculationsAndCharts!$A186+$A$11,IF($C$7,8,0),1,1) -> 21.02 | S186: 21.96 | T186: 20.2 | U186: 0.4659090909 | V186: FALSE | W186: FALSE | AB186: 11036 | AC186: 175 | AD186: 63.06285714 | AE186: 13.06285714 | AF186: 2.612571429 | AM186: 21.96 | AN186: 20.2 | AO186: 0.4659090909 | AP186: FALSE | AQ186: 0.6099 | AR186: 19.7201 | AS186: FALSE | AT186: 8 | AU186: FALSE | AV186: FALSE | AW186: FALSE | AX186: TRUE | AY186: FALSE
A187: 155 | B187: =OFFSET(InputPriceData!B$15,CalculationsAndCharts!$A187+$A$11,0,1,1) -> 2014-06-02 | C187: =OFFSET(InputPriceData!G$15,CalculationsAndCharts!$A187+$A$11,IF($C$7,8,0),1,1) -> 383700 | D187: =OFFSET(InputPriceData!C$15,CalculationsAndCharts!$A187+$A$11,IF($C$7,8,0),1,1) -> 21.64 | E187: =OFFSET(InputPriceData!D$15,CalculationsAndCharts!$A187+$A$11,IF($C$7,8,0),1,1) -> 21.68 | F187: =OFFSET(InputPriceData!E$15,CalculationsAndCharts!$A187+$A$11,IF($C$7,8,0),1,1) -> 21.4 | G187: =OFFSET(InputPriceData!F$15,CalculationsAndCharts!$A187+$A$11,IF($C$7,8,0),1,1) -> 21.49 | S187: 21.96 | T187: 20.2 | U187: 0.7329545455 | V187: FALSE | W187: FALSE | AB187: 11036 | AC187: 175 | AD187: 63.06285714 | AE187: 13.06285714 | AF187: 2.612571429 | AM187: 21.96 | AN187: 20.2 | AO187: 0.7329545455 | AP187: FALSE | AQ187: 0.6099 | AR187: 19.7201 | AS187: FALSE | AT187: 7 | AU187: FALSE | AV187: FALSE | AW187: FALSE | AX187: TRUE | AY187: FALSE
A188: 156 | B188: =OFFSET(InputPriceData!B$15,CalculationsAndCharts!$A188+$A$11,0,1,1) -> 2014-05-30 | C188: =OFFSET(InputPriceData!G$15,CalculationsAndCharts!$A188+$A$11,IF($C$7,8,0),1,1) -> 272300 | D188: =OFFSET(InputPriceData!C$15,CalculationsAndCharts!$A188+$A$11,IF($C$7,8,0),1,1) -> 22 | E188: =OFFSET(InputPriceData!D$15,CalculationsAndCharts!$A188+$A$11,IF($C$7,8,0),1,1) -> 22.13 | F188: =OFFSET(InputPriceData!E$15,CalculationsAndCharts!$A188+$A$11,IF($C$7,8,0),1,1) -> 21.58 | G188: =OFFSET(InputPriceData!F$15,CalculationsAndCharts!$A188+$A$11,IF($C$7,8,0),1,1) -> 21.63 | S188: 21.96 | T188: 20.2 | U188: 0.8125 | V188: FALSE | W188: FALSE | AB188: 11036 | AC188: 175 | AD188: 63.06285714 | AE188: 13.06285714 | AF188: 2.612571429 | AM188: 21.96 | AN188: 20.2 | AO188: 0.8125 | AP188: FALSE | AQ188: 0.6099 | AR188: 19.7201 | AS188: FALSE | AT188: 6 | AU188: FALSE | AV188: FALSE | AW188: FALSE | AX188: TRUE | AY188: FALSE
A189: 157 | B189: =OFFSET(InputPriceData!B$15,CalculationsAndCharts!$A189+$A$11,0,1,1) -> 2014-05-29 | C189: =OFFSET(InputPriceData!G$15,CalculationsAndCharts!$A189+$A$11,IF($C$7,8,0),1,1) -> 360100 | D189: =OFFSET(InputPriceData!C$15,CalculationsAndCharts!$A189+$A$11,IF($C$7,8,0),1,1) -> 21.95 | E189: =OFFSET(InputPriceData!D$15,CalculationsAndCharts!$A189+$A$11,IF($C$7,8,0),1,1) -> 22.11 | F189: =OFFSET(InputPriceData!E$15,CalculationsAndCharts!$A189+$A$11,IF($C$7,8,0),1,1) -> 21.59 | G189: =OFFSET(InputPriceData!F$15,CalculationsAndCharts!$A189+$A$11,IF($C$7,8,0),1,1) -> 21.96 | S189: 21.96 | T189: 20.2 | U189: 1 | V189: FALSE | W189: FALSE | AB189: 11036 | AC189: 175 | AD189: 63.06285714 | AE189: 13.06285714 | AF189: 2.612571429 | AM189: 21.96 | AN189: 20.2 | AO189: 1 | AP189: FALSE | AQ189: 0.6099 | AR189: 19.7201 | AS189: FALSE | AT189: 5 | AU189: FALSE | AV189: FALSE | AW189: FALSE | AX189: TRUE | AY189: FALSE
A190: 158 | B190: =OFFSET(InputPriceData!B$15,CalculationsAndCharts!$A190+$A$11,0,1,1) -> 2014-05-28 | C190: =OFFSET(InputPriceData!G$15,CalculationsAndCharts!$A190+$A$11,IF($C$7,8,0),1,1) -> 368500 | D190: =OFFSET(InputPriceData!C$15,CalculationsAndCharts!$A190+$A$11,IF($C$7,8,0),1,1) -> 21.49 | E190: =OFFSET(InputPriceData!D$15,CalculationsAndCharts!$A190+$A$11,IF($C$7,8,0),1,1) -> 21.83 | F190: =OFFSET(InputPriceData!E$15,CalculationsAndCharts!$A190+$A$11,IF($C$7,8,0),1,1) -> 21.44 | G190: =OFFSET(InputPriceData!F$15,CalculationsAndCharts!$A190+$A$11,IF($C$7,8,0),1,1) -> 21.74 | S190: 21.74 | T190: 20.2 | U190: 1 | V190: FALSE | W190: FALSE | AB190: 11036 | AC190: 175 | AD190: 63.06285714 | AE190: 13.06285714 | AF190: 2.612571429 | AM190: 21.74 | AN190: 20.2 | AO190: 1 | AP190: FALSE | AQ190: 0.6099 | AR190: 19.7201 | AS190: FALSE | AT190: 4 | AU190: FALSE | AV190: FALSE | AW190: FALSE | AX190: TRUE | AY190: FALSE
A191: 159 | B191: =OFFSET(InputPriceData!B$15,CalculationsAndCharts!$A191+$A$11,0,1,1) -> 2014-05-27 | C191: =OFFSET(InputPriceData!G$15,CalculationsAndCharts!$A191+$A$11,IF($C$7,8,0),1,1) -> 372800 | D191: =OFFSET(InputPriceData!C$15,CalculationsAndCharts!$A191+$A$11,IF($C$7,8,0),1,1) -> 21.27 | E191: =OFFSET(InputPriceData!D$15,CalculationsAndCharts!$A191+$A$11,IF($C$7,8,0),1,1) -> 21.57 | F191: =OFFSET(InputPriceData!E$15,CalculationsAndCharts!$A191+$A$11,IF($C$7,8,0),1,1) -> 21.13 | G191: =OFFSET(InputPriceData!F$15,CalculationsAndCharts!$A191+$A$11,IF($C$7,8,0),1,1) -> 21.54 | S191: 21.54 | T191: 20.2 | U191: 1 | V191: FALSE | W191: FALSE | AB191: 11036 | AC191: 175 | AD191: 63.06285714 | AE191: 13.06285714 | AF191: 2.612571429 | AM191: 21.54 | AN191: 20.2 | AO191: 1 | AP191: FALSE | AQ191: 0.6099 | AR191: 19.7201 | AS191: FALSE | AT191: 3 | AU191: FALSE | AV191: FALSE | AW191: FALSE | AX191: TRUE | AY191: FALSE
A192: 160 | B192: =OFFSET(InputPriceData!B$15,CalculationsAndCharts!$A192+$A$11,0,1,1) -> 2014-05-23 | C192: =OFFSET(InputPriceData!G$15,CalculationsAndCharts!$A192+$A$11,IF($C$7,8,0),1,1) -> 355100 | D192: =OFFSET(InputPriceData!C$15,CalculationsAndCharts!$A192+$A$11,IF($C$7,8,0),1,1) -> 21 | E192: =OFFSET(InputPriceData!D$15,CalculationsAndCharts!$A192+$A$11,IF($C$7,8,0),1,1) -> 21.18 | F192: =OFFSET(InputPriceData!E$15,CalculationsAndCharts!$A192+$A$11,IF($C$7,8,0),1,1) -> 20.9 | G192: =OFFSET(InputPriceData!F$15,CalculationsAndCharts!$A192+$A$11,IF($C$7,8,0),1,1) -> 21.1 | S192: 21.76 | T192: 20.2 | U192: 0.5769230769 | V192: FALSE | W192: FALSE | AB192: 11036 | AC192: 175 | AD192: 63.06285714 | AE192: 13.06285714 | AF192: 2.612571429 | AM192: 21.54 | AN192: 20.2 | AO192: 0.671641791 | AP192: FALSE | AQ192: 0.6099 | AR192: 19.7201 | AS192: FALSE | AT192: 2 | AU192: FALSE | AV192: FALSE | AW192: FALSE | AX192: TRUE | AY192: FALSE
A193: 161 | B193: =OFFSET(InputPriceData!B$15,CalculationsAndCharts!$A193+$A$11,0,1,1) -> 2014-05-22 | C193: =OFFSET(InputPriceData!G$15,CalculationsAndCharts!$A193+$A$11,IF($C$7,8,0),1,1) -> 368200 | D193: =OFFSET(InputPriceData!C$15,CalculationsAndCharts!$A193+$A$11,IF($C$7,8,0),1,1) -> 20.33 | E193: =OFFSET(InputPriceData!D$15,CalculationsAndCharts!$A193+$A$11,IF($C$7,8,0),1,1) -> 21 | F193: =OFFSET(InputPriceData!E$15,CalculationsAndCharts!$A193+$A$11,IF($C$7,8,0),1,1) -> 20.33 | G193: =OFFSET(InputPriceData!F$15,CalculationsAndCharts!$A193+$A$11,IF($C$7,8,0),1,1) -> 20.96 | S193: 21.76 | T193: 20.2 | U193: 0.4871794872 | V193: FALSE | W193: FALSE | AB193: 11036 | AC193: 175 | AD193: 63.06285714 | AE193: 13.06285714 | AF193: 2.612571429 | AM193: 21.54 | AN193: 20.2 | AO193: 0.5671641791 | AP193: FALSE | AQ193: 0.6099 | AR193: 19.7201 | AS193: FALSE | AT193: 1 | AU193: FALSE | AV193: FALSE | AW193: TRUE | AX193: TRUE | AY193: FALSE
A194: 162 | B194: =OFFSET(InputPriceData!B$15,CalculationsAndCharts!$A194+$A$11,0,1,1) -> 2014-05-21 | C194: =OFFSET(InputPriceData!G$15,CalculationsAndCharts!$A194+$A$11,IF($C$7,8,0),1,1) -> 450900 | D194: =OFFSET(InputPriceData!C$15,CalculationsAndCharts!$A194+$A$11,IF($C$7,8,0),1,1) -> 20.64 | E194: =OFFSET(InputPriceData!D$15,CalculationsAndCharts!$A194+$A$11,IF($C$7,8,0),1,1) -> 20.74 | F194: =OFFSET(InputPriceData!E$15,CalculationsAndCharts!$A194+$A$11,IF($C$7,8,0),1,1) -> 20.29 | G194: =OFFSET(InputPriceData!F$15,CalculationsAndCharts!$A194+$A$11,IF($C$7,8,0),1,1) -> 20.3 | S194: 21.77 | T194: 20.2 | U194: 0.06369426752 | V194: TRUE | W194: TRUE | X194: 21.77 | Y194: -6.752411576 | Z194: -6.752411576 | AA194: 16 | AB194: 11036 | AC194: 175 | AD194: 63.06285714 | AE194: 13.06285714 | AF194: 2.612571429 | AM194: 21.76 | AN194: 20.2 | AO194: 0.0641025641 | AP194: TRUE | AQ194: 0 | AR194: 0 | AS194: FALSE | AT194: 0 | AU194: FALSE | AV194: FALSE | AW194: FALSE | AX194: FALSE | AY194: FALSE
A195: 163 | B195: =OFFSET(InputPriceData!B$15,CalculationsAndCharts!$A195+$A$11,0,1,1) -> 2014-05-20 | C195: =OFFSET(InputPriceData!G$15,CalculationsAndCharts!$A195+$A$11,IF($C$7,8,0),1,1) -> 354100 | D195: =OFFSET(InputPriceData!C$15,CalculationsAndCharts!$A195+$A$11,IF($C$7,8,0),1,1) -> 20.73 | E195: =OFFSET(InputPriceData!D$15,CalculationsAndCharts!$A195+$A$11,IF($C$7,8,0),1,1) -> 20.85 | F195: =OFFSET(InputPriceData!E$15,CalculationsAndCharts!$A195+$A$11,IF($C$7,8,0),1,1) -> 20.31 | G195: =OFFSET(InputPriceData!F$15,CalculationsAndCharts!$A195+$A$11,IF($C$7,8,0),1,1) -> 20.57 | S195: 22.09 | T195: 20.2 | U195: 0.1957671958 | V195: FALSE | W195: FALSE | AB195: 11020 | AC195: 174 | AD195: 63.33333333 | AE195: 13.33333333 | AF195: 2.666666667 | AM195: 21.76 | AN195: 20.2 | AO195: 0.2371794872 | AP195: FALSE | AQ195: 0 | AR195: 0 | AS195: FALSE | AT195: 0 | AU195: FALSE | AV195: FALSE | AW195: FALSE | AX195: FALSE | AY195: FALSE
A196: 164 | B196: =OFFSET(InputPriceData!B$15,CalculationsAndCharts!$A196+$A$11,0,1,1) -> 2014-05-19 | C196: =OFFSET(InputPriceData!G$15,CalculationsAndCharts!$A196+$A$11,IF($C$7,8,0),1,1) -> 320000 | D196: =OFFSET(InputPriceData!C$15,CalculationsAndCharts!$A196+$A$11,IF($C$7,8,0),1,1) -> 20.32 | E196: =OFFSET(InputPriceData!D$15,CalculationsAndCharts!$A196+$A$11,IF($C$7,8,0),1,1) -> 20.87 | F196: =OFFSET(InputPriceData!E$15,CalculationsAndCharts!$A196+$A$11,IF($C$7,8,0),1,1) -> 20.22 | G196: =OFFSET(InputPriceData!F$15,CalculationsAndCharts!$A196+$A$11,IF($C$7,8,0),1,1) -> 20.82 | S196: 22.33 | T196: 20.2 | U196: 0.2910798122 | V196: FALSE | W196: FALSE | AB196: 11020 | AC196: 174 | AD196: 63.33333333 | AE196: 13.33333333 | AF196: 2.666666667 | AM196: 21.77 | AN196: 20.2 | AO196: 0.3949044586 | AP196: FALSE | AQ196: 0 | AR196: 0 | AS196: FALSE | AT196: 0 | AU196: FALSE | AV196: FALSE | AW196: FALSE | AX196: FALSE | AY196: FALSE
A197: 165 | B197: =OFFSET(InputPriceData!B$15,CalculationsAndCharts!$A197+$A$11,0,1,1) -> 2014-05-16 | C197: =OFFSET(InputPriceData!G$15,CalculationsAndCharts!$A197+$A$11,IF($C$7,8,0),1,1) -> 318300 | D197: =OFFSET(InputPriceData!C$15,CalculationsAndCharts!$A197+$A$11,IF($C$7,8,0),1,1) -> 20.16 | E197: =OFFSET(InputPriceData!D$15,CalculationsAndCharts!$A197+$A$11,IF($C$7,8,0),1,1) -> 20.57 | F197: =OFFSET(InputPriceData!E$15,CalculationsAndCharts!$A197+$A$11,IF($C$7,8,0),1,1) -> 19.99 | G197: =OFFSET(InputPriceData!F$15,CalculationsAndCharts!$A197+$A$11,IF($C$7,8,0),1,1) -> 20.38 | S197: 22.7 | T197: 20.2 | U197: 0.072 | V197: FALSE | W197: FALSE | AB197: 11020 | AC197: 174 | AD197: 63.33333333 | AE197: 13.33333333 | AF197: 2.666666667 | AM197: 22.09 | AN197: 20.2 | AO197: 0.09523809524 | AP197: FALSE | AQ197: 0 | AR197: 0 | AS197: FALSE | AT197: 0 | AU197: FALSE | AV197: FALSE | AW197: FALSE | AX197: FALSE | AY197: TRUE
A198: 166 | B198: =OFFSET(InputPriceData!B$15,CalculationsAndCharts!$A198+$A$11,0,1,1) -> 2014-05-15 | C198: =OFFSET(InputPriceData!G$15,CalculationsAndCharts!$A198+$A$11,IF($C$7,8,0),1,1) -> 676100 | D198: =OFFSET(InputPriceData!C$15,CalculationsAndCharts!$A198+$A$11,IF($C$7,8,0),1,1) -> 20.59 | E198: =OFFSET(InputPriceData!D$15,CalculationsAndCharts!$A198+$A$11,IF($C$7,8,0),1,1) -> 20.61 | F198: =OFFSET(InputPriceData!E$15,CalculationsAndCharts!$A198+$A$11,IF($C$7,8,0),1,1) -> 19.96 | G198: =OFFSET(InputPriceData!F$15,CalculationsAndCharts!$A198+$A$11,IF($C$7,8,0),1,1) -> 20.2 | S198: 23.17 | T198: 20.2 | U198: 0 | V198: FALSE | W198: FALSE | AB198: 11020 | AC198: 174 | AD198: 63.33333333 | AE198: 13.33333333 | AF198: 2.666666667 | AM198: 22.33 | AN198: 20.2 | AO198: 0 | AP198: FALSE | AQ198: 0.6177 | AR198: 19.9723 | AS198: TRUE | AT198: 1 | AU198: FALSE | AV198: TRUE | AW198: TRUE | AX198: TRUE | AY198: FALSE
A199: 167 | B199: =OFFSET(InputPriceData!B$15,CalculationsAndCharts!$A199+$A$11,0,1,1) -> 2014-05-14 | C199: =OFFSET(InputPriceData!G$15,CalculationsAndCharts!$A199+$A$11,IF($C$7,8,0),1,1) -> 326500 | D199: =OFFSET(InputPriceData!C$15,CalculationsAndCharts!$A199+$A$11,IF($C$7,8,0),1,1) -> 21.05 | E199: =OFFSET(InputPriceData!D$15,CalculationsAndCharts!$A199+$A$11,IF($C$7,8,0),1,1) -> 21.1 | F199: =OFFSET(InputPriceData!E$15,CalculationsAndCharts!$A199+$A$11,IF($C$7,8,0),1,1) -> 20.59 | G199: =OFFSET(InputPriceData!F$15,CalculationsAndCharts!$A199+$A$11,IF($C$7,8,0),1,1) -> 20.7 | S199: 23.17 | T199: 20.64 | U199: 0.02371541502 | V199: TRUE | W199: FALSE | AB199: 11020 | AC199: 174 | AD199: 63.33333333 | AE199: 13.33333333 | AF199: 2.666666667 | AM199: 22.7 | AN199: 20.64 | AO199: 0.02912621359 | AP199: TRUE | AQ199: 0 | AR199: 0 | AS199: FALSE | AT199: 0 | AU199: FALSE | AV199: FALSE | AW199: FALSE | AX199: FALSE | AY199: FALSE
A200: 168 | B200: =OFFSET(InputPriceData!B$15,CalculationsAndCharts!$A200+$A$11,0,1,1) -> 2014-05-13 | C200: =OFFSET(InputPriceData!G$15,CalculationsAndCharts!$A200+$A$11,IF($C$7,8,0),1,1) -> 391800 | D200: =OFFSET(InputPriceData!C$15,CalculationsAndCharts!$A200+$A$11,IF($C$7,8,0),1,1) -> 21.45 | E200: =OFFSET(InputPriceData!D$15,CalculationsAndCharts!$A200+$A$11,IF($C$7,8,0),1,1) -> 21.49 | F200: =OFFSET(InputPriceData!E$15,CalculationsAndCharts!$A200+$A$11,IF($C$7,8,0),1,1) -> 21.14 | G200: =OFFSET(InputPriceData!F$15,CalculationsAndCharts!$A200+$A$11,IF($C$7,8,0),1,1) -> 21.15 | S200: 23.17 | T200: 20.64 | U200: 0.2015810277 | V200: FALSE | W200: FALSE | AB200: 11020 | AC200: 174 | AD200: 63.33333333 | AE200: 13.33333333 | AF200: 2.666666667 | AM200: 23.17 | AN200: 20.64 | AO200: 0.2015810277 | AP200: FALSE | AQ200: 0 | AR200: 0 | AS200: FALSE | AT200: 0 | AU200: FALSE | AV200: FALSE | AW200: FALSE | AX200: FALSE | AY200: FALSE
A201: 169 | B201: =OFFSET(InputPriceData!B$15,CalculationsAndCharts!$A201+$A$11,0,1,1) -> 2014-05-12 | C201: =OFFSET(InputPriceData!G$15,CalculationsAndCharts!$A201+$A$11,IF($C$7,8,0),1,1) -> 449400 | D201: =OFFSET(InputPriceData!C$15,CalculationsAndCharts!$A201+$A$11,IF($C$7,8,0),1,1) -> 20.65 | E201: =OFFSET(InputPriceData!D$15,CalculationsAndCharts!$A201+$A$11,IF($C$7,8,0),1,1) -> 21.56 | F201: =OFFSET(InputPriceData!E$15,CalculationsAndCharts!$A201+$A$11,IF($C$7,8,0),1,1) -> 20.46 | G201: =OFFSET(InputPriceData!F$15,CalculationsAndCharts!$A201+$A$11,IF($C$7,8,0),1,1) -> 21.43 | S201: 23.17 | T201: 20.64 | U201: 0.3122529644 | V201: FALSE | W201: FALSE | AB201: 11020 | AC201: 174 | AD201: 63.33333333 | AE201: 13.33333333 | AF201: 2.666666667 | AM201: 23.17 | AN201: 20.64 | AO201: 0.3122529644 | AP201: FALSE | AQ201: 0 | AR201: 0 | AS201: FALSE | AT201: 0 | AU201: FALSE | AV201: FALSE | AW201: FALSE | AX201: FALSE | AY201: FALSE
A202: 170 | B202: =OFFSET(InputPriceData!B$15,CalculationsAndCharts!$A202+$A$11,0,1,1) -> 2014-05-09 | C202: =OFFSET(InputPriceData!G$15,CalculationsAndCharts!$A202+$A$11,IF($C$7,8,0),1,1) -> 529700 | D202: =OFFSET(InputPriceData!C$15,CalculationsAndCharts!$A202+$A$11,IF($C$7,8,0),1,1) -> 20.65 | E202: =OFFSET(InputPriceData!D$15,CalculationsAndCharts!$A202+$A$11,IF($C$7,8,0),1,1) -> 20.74 | F202: =OFFSET(InputPriceData!E$15,CalculationsAndCharts!$A202+$A$11,IF($C$7,8,0),1,1) -> 20.43 | G202: =OFFSET(InputPriceData!F$15,CalculationsAndCharts!$A202+$A$11,IF($C$7,8,0),1,1) -> 20.64 | S202: 23.17 | T202: 20.64 | U202: 0 | V202: FALSE | W202: FALSE | AB202: 11020 | AC202: 174 | AD202: 63.33333333 | AE202: 13.33333333 | AF202: 2.666666667 | AM202: 23.17 | AN202: 20.64 | AO202: 0 | AP202: FALSE | AQ202: 0 | AR202: 0 | AS202: FALSE | AT202: 0 | AU202: FALSE | AV202: FALSE | AW202: FALSE | AX202: FALSE | AY202: FALSE
... 923 more rows

Sheet Transaction Summary
B1: Tested System Transaction Summary (using trade size of 1 share)
C2: =CalculationsAndCharts!$A$8 -> 2800 | D2: Logically Available Bars on the "CalculationsAndCharts" tab constitute a
D3: ="Transaction reporting period extending from " & TEXT(OFFSET(CalculationsAndCharts!$B$32,C2,0,1,1),"mm/dd/yyyy") & " to "& TEXT(CalculationsAndCharts!$B$33,"mm/dd/yyyy") -> Transaction reporting period extending from 11/25/2003 to 01/09/2015
B4: Summary for LONG trades
B5: =COUNT(OFFSET(B15,0,0,C2,1)) -> 130 | C5: LONG trades opened in this time period
B6: =COUNTIF(OFFSET(H15,0,0,B5,1),">0") -> 71 | C6: Winners | D6: Biggest Win | E6: =MAX(OFFSET(H15,0,0,B5,1)) -> 3.5 | H6: Sum of Gains | I6: =SUMIF(OFFSET(H15,0,0,B5,1),">0") -> 63.94
B7: =COUNTIF(OFFSET(H15,0,0,B5,1),"<=0") -> 59 | C7: Losers | D7: Biggest Loss | E7: =MIN(OFFSET(H15,0,0,B5,1)) -> -6.52 | H7: Sum of Losses | I7: =SUMIF(OFFSET(H15,0,0,B5,1),"<0") -> -31.07
H8: NET change for Period | I8: =SUM(OFFSET(H15,0,0,B5,1)) -> 32.87
H10: Smallest Long Account Balance | I10: =MIN(OFFSET(I15,0,0,B5,1)) -> 0.1
E12: =MATCH(TRUE,OFFSET(CalculationsAndCharts!$AY$32,1,0,C2,1),0) -> 11 | F12: =IF($E$12>$B$15,"Open Trade; Marked to Current Bar Open $","") -> Open Trade; Marked to Current Bar Open $
A13: Tran | C13: Enter Long | F13: Exit Long | H13: Trade Result | I13: Running Balance
A14: Num | B14: Rel Row | C14: Date | D14: $ | E14: Rel Row | F14: Date | G14: $
A15: =IF(B15<>"",1+A16,0) -> 130 | B15: =MATCH(TRUE,OFFSET(CalculationsAndCharts!$AW$33,0,0, $C$2,1),0) -> 3 | C15: =OFFSET(CalculationsAndCharts!$B$32, B15,0,1,1) -> 2015-01-07 | D15: =OFFSET(CalculationsAndCharts!$D$32, B15,0,1,1) -> 25.64 | E15: =IF($E$12>$B$15,"OPEN",$E$12) -> OPEN | F15: =IF($E$12>$B$15,CalculationsAndCharts!$B$33,OFFSET(CalculationsAndCharts!$B$32, E15,0,1,1)) -> 2015-01-09 | G15: =IF($E$12>$B$15,CalculationsAndCharts!$D$33,OFFSET(CalculationsAndCharts!$D$32, E15,0,1,1)) -> 26.67 | H15: =G15-D15 -> 1.03 | I15: =H15+IF(ISNA(I16),0,I16) -> 32.87
A16: =IF(B16<>"",1+A17,0) -> 129 | B16: =IFERROR(MATCH(TRUE,OFFSET(CalculationsAndCharts!$AW$33,B15,0, $C$2-B15,1),0)+B15,"") -> 20 | C16: =IFERROR(OFFSET(CalculationsAndCharts!$B$32, B16,0,1,1),"") -> 2014-12-11 | D16: =IFERROR(OFFSET(CalculationsAndCharts!$D$32, B16,0,1,1),"") -> 25.66 | E16: =IFERROR(IF($E$12>$B$15,$E$12,(MATCH(TRUE,OFFSET(CalculationsAndCharts!$AY$33,E15,0, $C$2-E15,1),0)+E15)),"") -> 11 | F16: =IFERROR(OFFSET(CalculationsAndCharts!$B$32, E16,0,1,1),"") -> 2014-12-24 | G16: =IFERROR(OFFSET(CalculationsAndCharts!$D$32, E16,0,1,1),"") -> 27.53 | H16: =IFERROR(G16-D16,"") -> 1.87 | I16: =IFERROR(H16+IF(""=I17,0,I17),"") -> 31.84
A17: 128 | B17: =IFERROR(MATCH(TRUE,OFFSET(CalculationsAndCharts!$AW$33,B16,0, $C$2-B16,1),0)+B16,"") -> 63 | C17: =IFERROR(OFFSET(CalculationsAndCharts!$B$32, B17,0,1,1),"") -> 2014-10-10 | D17: =IFERROR(OFFSET(CalculationsAndCharts!$D$32, B17,0,1,1),"") -> 22.55 | E17: =IF(B17="","",IFERROR((MATCH(TRUE,OFFSET(CalculationsAndCharts!$AY$33,E16,0, $C$2-E16,1),0)+E16),"")) -> 54 | F17: =IFERROR(OFFSET(CalculationsAndCharts!$B$32, E17,0,1,1),"") -> 2014-10-23 | G17: =IFERROR(OFFSET(CalculationsAndCharts!$D$32, E17,0,1,1),"") -> 25.28 | H17: =IFERROR(G17-D17,"") -> 2.73 | I17: =IFERROR(H17+IF(""=I18,0,I18),"") -> 29.97
A18: 127 | B18: =IFERROR(MATCH(TRUE,OFFSET(CalculationsAndCharts!$AW$33,B17,0, $C$2-B17,1),0)+B17,"") -> 74 | C18: =IFERROR(OFFSET(CalculationsAndCharts!$B$32, B18,0,1,1),"") -> 2014-09-25 | D18: =IFERROR(OFFSET(CalculationsAndCharts!$D$32, B18,0,1,1),"") -> 23.76 | E18: =IF(B18="","",IFERROR((MATCH(TRUE,OFFSET(CalculationsAndCharts!$AY$33,E17,0, $C$2-E17,1),0)+E17),"")) -> 65 | F18: =IFERROR(OFFSET(CalculationsAndCharts!$B$32, E18,0,1,1),"") -> 2014-10-08 | G18: =IFERROR(OFFSET(CalculationsAndCharts!$D$32, E18,0,1,1),"") -> 22.95 | H18: =IFERROR(G18-D18,"") -> -0.81 | I18: =IFERROR(H18+IF(""=I19,0,I19),"") -> 27.24
A19: 126 | B19: =IFERROR(MATCH(TRUE,OFFSET(CalculationsAndCharts!$AW$33,B18,0, $C$2-B18,1),0)+B18,"") -> 137 | C19: =IFERROR(OFFSET(CalculationsAndCharts!$B$32, B19,0,1,1),"") -> 2014-06-26 | D19: =IFERROR(OFFSET(CalculationsAndCharts!$D$32, B19,0,1,1),"") -> 21.05 | E19: =IF(B19="","",IFERROR((MATCH(TRUE,OFFSET(CalculationsAndCharts!$AY$33,E18,0, $C$2-E18,1),0)+E18),"")) -> 128 | F19: =IFERROR(OFFSET(CalculationsAndCharts!$B$32, E19,0,1,1),"") -> 2014-07-10 | G19: =IFERROR(OFFSET(CalculationsAndCharts!$D$32, E19,0,1,1),"") -> 21.57 | H19: 0.52 | I19: 28.05
A20: 125 | B20: =IFERROR(MATCH(TRUE,OFFSET(CalculationsAndCharts!$AW$33,B19,0, $C$2-B19,1),0)+B19,"") -> 161 | C20: =IFERROR(OFFSET(CalculationsAndCharts!$B$32, B20,0,1,1),"") -> 2014-05-22 | D20: =IFERROR(OFFSET(CalculationsAndCharts!$D$32, B20,0,1,1),"") -> 20.33 | E20: =IF(B20="","",IFERROR((MATCH(TRUE,OFFSET(CalculationsAndCharts!$AY$33,E19,0, $C$2-E19,1),0)+E19),"")) -> 152 | F20: =IFERROR(OFFSET(CalculationsAndCharts!$B$32, E20,0,1,1),"") -> 2014-06-05 | G20: =IFERROR(OFFSET(CalculationsAndCharts!$D$32, E20,0,1,1),"") -> 21.19 | H20: 0.86 | I20: 27.53
A21: 124 | B21: =IFERROR(MATCH(TRUE,OFFSET(CalculationsAndCharts!$AW$33,B20,0, $C$2-B20,1),0)+B20,"") -> 166 | C21: =IFERROR(OFFSET(CalculationsAndCharts!$B$32, B21,0,1,1),"") -> 2014-05-15 | D21: =IFERROR(OFFSET(CalculationsAndCharts!$D$32, B21,0,1,1),"") -> 20.59 | E21: =IF(B21="","",IFERROR((MATCH(TRUE,OFFSET(CalculationsAndCharts!$AY$33,E20,0, $C$2-E20,1),0)+E20),"")) -> 165 | F21: =IFERROR(OFFSET(CalculationsAndCharts!$B$32, E21,0,1,1),"") -> 2014-05-16 | G21: =IFERROR(OFFSET(CalculationsAndCharts!$D$32, E21,0,1,1),"") -> 20.16 | H21: -0.43 | I21: 26.67
A22: 123 | B22: =IFERROR(MATCH(TRUE,OFFSET(CalculationsAndCharts!$AW$33,B21,0, $C$2-B21,1),0)+B21,"") -> 178 | C22: =IFERROR(OFFSET(CalculationsAndCharts!$B$32, B22,0,1,1),"") -> 2014-04-29 | D22: =IFERROR(OFFSET(CalculationsAndCharts!$D$32, B22,0,1,1),"") -> 21.93 | E22: =IF(B22="","",IFERROR((MATCH(TRUE,OFFSET(CalculationsAndCharts!$AY$33,E21,0, $C$2-E21,1),0)+E21),"")) -> 175 | F22: =IFERROR(OFFSET(CalculationsAndCharts!$B$32, E22,0,1,1),"") -> 2014-05-02 | G22: =IFERROR(OFFSET(CalculationsAndCharts!$D$32, E22,0,1,1),"") -> 21.53 | H22: -0.4 | I22: 27.1
A23: 122 | B23: =IFERROR(MATCH(TRUE,OFFSET(CalculationsAndCharts!$AW$33,B22,0, $C$2-B22,1),0)+B22,"") -> 199 | C23: =IFERROR(OFFSET(CalculationsAndCharts!$B$32, B23,0,1,1),"") -> 2014-03-28 | D23: =IFERROR(OFFSET(CalculationsAndCharts!$D$32, B23,0,1,1),"") -> 21.44 | E23: =IF(B23="","",IFERROR((MATCH(TRUE,OFFSET(CalculationsAndCharts!$AY$33,E22,0, $C$2-E22,1),0)+E22),"")) -> 190 | F23: =IFERROR(OFFSET(CalculationsAndCharts!$B$32, E23,0,1,1),"") -> 2014-04-10 | G23: =IFERROR(OFFSET(CalculationsAndCharts!$D$32, E23,0,1,1),"") -> 22.17 | H23: 0.73 | I23: 27.5
A24: 121 | B24: =IFERROR(MATCH(TRUE,OFFSET(CalculationsAndCharts!$AW$33,B23,0, $C$2-B23,1),0)+B23,"") -> 226 | C24: =IFERROR(OFFSET(CalculationsAndCharts!$B$32, B24,0,1,1),"") -> 2014-02-19 | D24: =IFERROR(OFFSET(CalculationsAndCharts!$D$32, B24,0,1,1),"") -> 20.04 | E24: =IF(B24="","",IFERROR((MATCH(TRUE,OFFSET(CalculationsAndCharts!$AY$33,E23,0, $C$2-E23,1),0)+E23),"")) -> 217 | F24: =IFERROR(OFFSET(CalculationsAndCharts!$B$32, E24,0,1,1),"") -> 2014-03-04 | G24: =IFERROR(OFFSET(CalculationsAndCharts!$D$32, E24,0,1,1),"") -> 20.69 | H24: 0.65 | I24: 26.77
A25: 120 | B25: =IFERROR(MATCH(TRUE,OFFSET(CalculationsAndCharts!$AW$33,B24,0, $C$2-B24,1),0)+B24,"") -> 236 | C25: =IFERROR(OFFSET(CalculationsAndCharts!$B$32, B25,0,1,1),"") -> 2014-02-04 | D25: =IFERROR(OFFSET(CalculationsAndCharts!$D$32, B25,0,1,1),"") -> 20.34 | E25: =IF(B25="","",IFERROR((MATCH(TRUE,OFFSET(CalculationsAndCharts!$AY$33,E24,0, $C$2-E24,1),0)+E24),"")) -> 227 | F25: =IFERROR(OFFSET(CalculationsAndCharts!$B$32, E25,0,1,1),"") -> 2014-02-18 | G25: =IFERROR(OFFSET(CalculationsAndCharts!$D$32, E25,0,1,1),"") -> 20.29 | H25: -0.05 | I25: 26.12
A26: 119 | B26: =IFERROR(MATCH(TRUE,OFFSET(CalculationsAndCharts!$AW$33,B25,0, $C$2-B25,1),0)+B25,"") -> 294 | C26: =IFERROR(OFFSET(CalculationsAndCharts!$B$32, B26,0,1,1),"") -> 2013-11-08 | D26: =IFERROR(OFFSET(CalculationsAndCharts!$D$32, B26,0,1,1),"") -> 14.24 | E26: =IF(B26="","",IFERROR((MATCH(TRUE,OFFSET(CalculationsAndCharts!$AY$33,E25,0, $C$2-E25,1),0)+E25),"")) -> 285 | F26: =IFERROR(OFFSET(CalculationsAndCharts!$B$32, E26,0,1,1),"") -> 2013-11-21 | G26: =IFERROR(OFFSET(CalculationsAndCharts!$D$32, E26,0,1,1),"") -> 17.43 | H26: 3.19 | I26: 26.17
A27: 118 | B27: =IFERROR(MATCH(TRUE,OFFSET(CalculationsAndCharts!$AW$33,B26,0, $C$2-B26,1),0)+B26,"") -> 316 | C27: =IFERROR(OFFSET(CalculationsAndCharts!$B$32, B27,0,1,1),"") -> 2013-10-09 | D27: =IFERROR(OFFSET(CalculationsAndCharts!$D$32, B27,0,1,1),"") -> 13.85 | E27: =IF(B27="","",IFERROR((MATCH(TRUE,OFFSET(CalculationsAndCharts!$AY$33,E26,0, $C$2-E26,1),0)+E26),"")) -> 307 | F27: =IFERROR(OFFSET(CalculationsAndCharts!$B$32, E27,0,1,1),"") -> 2013-10-22 | G27: =IFERROR(OFFSET(CalculationsAndCharts!$D$32, E27,0,1,1),"") -> 14.58 | H27: 0.73 | I27: 22.98
A28: 117 | B28: =IFERROR(MATCH(TRUE,OFFSET(CalculationsAndCharts!$AW$33,B27,0, $C$2-B27,1),0)+B27,"") -> 329 | C28: =IFERROR(OFFSET(CalculationsAndCharts!$B$32, B28,0,1,1),"") -> 2013-09-20 | D28: =IFERROR(OFFSET(CalculationsAndCharts!$D$32, B28,0,1,1),"") -> 14 | E28: =IF(B28="","",IFERROR((MATCH(TRUE,OFFSET(CalculationsAndCharts!$AY$33,E27,0, $C$2-E27,1),0)+E27),"")) -> 320 | F28: =IFERROR(OFFSET(CalculationsAndCharts!$B$32, E28,0,1,1),"") -> 2013-10-03 | G28: =IFERROR(OFFSET(CalculationsAndCharts!$D$32, E28,0,1,1),"") -> 14.11 | H28: 0.11 | I28: 22.25
A29: 116 | B29: =IFERROR(MATCH(TRUE,OFFSET(CalculationsAndCharts!$AW$33,B28,0, $C$2-B28,1),0)+B28,"") -> 344 | C29: =IFERROR(OFFSET(CalculationsAndCharts!$B$32, B29,0,1,1),"") -> 2013-08-29 | D29: =IFERROR(OFFSET(CalculationsAndCharts!$D$32, B29,0,1,1),"") -> 14.07 | E29: =IF(B29="","",IFERROR((MATCH(TRUE,OFFSET(CalculationsAndCharts!$AY$33,E28,0, $C$2-E28,1),0)+E28),"")) -> 335 | F29: =IFERROR(OFFSET(CalculationsAndCharts!$B$32, E29,0,1,1),"") -> 2013-09-12 | G29: =IFERROR(OFFSET(CalculationsAndCharts!$D$32, E29,0,1,1),"") -> 14.34 | H29: 0.27 | I29: 22.14
A30: 115 | B30: =IFERROR(MATCH(TRUE,OFFSET(CalculationsAndCharts!$AW$33,B29,0, $C$2-B29,1),0)+B29,"") -> 360 | C30: =IFERROR(OFFSET(CalculationsAndCharts!$B$32, B30,0,1,1),"") -> 2013-08-07 | D30: =IFERROR(OFFSET(CalculationsAndCharts!$D$32, B30,0,1,1),"") -> 14.43 | E30: =IF(B30="","",IFERROR((MATCH(TRUE,OFFSET(CalculationsAndCharts!$AY$33,E29,0, $C$2-E29,1),0)+E29),"")) -> 351 | F30: =IFERROR(OFFSET(CalculationsAndCharts!$B$32, E30,0,1,1),"") -> 2013-08-20 | G30: =IFERROR(OFFSET(CalculationsAndCharts!$D$32, E30,0,1,1),"") -> 14.25 | H30: -0.18 | I30: 21.87
A31: 114 | B31: =IFERROR(MATCH(TRUE,OFFSET(CalculationsAndCharts!$AW$33,B30,0, $C$2-B30,1),0)+B30,"") -> 392 | C31: =IFERROR(OFFSET(CalculationsAndCharts!$B$32, B31,0,1,1),"") -> 2013-06-21 | D31: =IFERROR(OFFSET(CalculationsAndCharts!$D$32, B31,0,1,1),"") -> 13.9 | E31: =IF(B31="","",IFERROR((MATCH(TRUE,OFFSET(CalculationsAndCharts!$AY$33,E30,0, $C$2-E30,1),0)+E30),"")) -> 383 | F31: =IFERROR(OFFSET(CalculationsAndCharts!$B$32, E31,0,1,1),"") -> 2013-07-05 | G31: =IFERROR(OFFSET(CalculationsAndCharts!$D$32, E31,0,1,1),"") -> 14.17 | H31: 0.27 | I31: 22.05
A32: 113 | B32: =IFERROR(MATCH(TRUE,OFFSET(CalculationsAndCharts!$AW$33,B31,0, $C$2-B31,1),0)+B31,"") -> 403 | C32: =IFERROR(OFFSET(CalculationsAndCharts!$B$32, B32,0,1,1),"") -> 2013-06-06 | D32: =IFERROR(OFFSET(CalculationsAndCharts!$D$32, B32,0,1,1),"") -> 13.89 | E32: =IF(B32="","",IFERROR((MATCH(TRUE,OFFSET(CalculationsAndCharts!$AY$33,E31,0, $C$2-E31,1),0)+E31),"")) -> 394 | F32: =IFERROR(OFFSET(CalculationsAndCharts!$B$32, E32,0,1,1),"") -> 2013-06-19 | G32: =IFERROR(OFFSET(CalculationsAndCharts!$D$32, E32,0,1,1),"") -> 13.99 | H32: 0.1 | I32: 21.78
A33: 112 | B33: =IFERROR(MATCH(TRUE,OFFSET(CalculationsAndCharts!$AW$33,B32,0, $C$2-B32,1),0)+B32,"") -> 435 | C33: =IFERROR(OFFSET(CalculationsAndCharts!$B$32, B33,0,1,1),"") -> 2013-04-22 | D33: =IFERROR(OFFSET(CalculationsAndCharts!$D$32, B33,0,1,1),"") -> 13.15 | E33: =IF(B33="","",IFERROR((MATCH(TRUE,OFFSET(CalculationsAndCharts!$AY$33,E32,0, $C$2-E32,1),0)+E32),"")) -> 426 | F33: =IFERROR(OFFSET(CalculationsAndCharts!$B$32, E33,0,1,1),"") -> 2013-05-03 | G33: =IFERROR(OFFSET(CalculationsAndCharts!$D$32, E33,0,1,1),"") -> 13.54 | H33: 0.39 | I33: 21.68
A34: 111 | B34: =IFERROR(MATCH(TRUE,OFFSET(CalculationsAndCharts!$AW$33,B33,0, $C$2-B33,1),0)+B33,"") -> 452 | C34: =IFERROR(OFFSET(CalculationsAndCharts!$B$32, B34,0,1,1),"") -> 2013-03-27 | D34: =IFERROR(OFFSET(CalculationsAndCharts!$D$32, B34,0,1,1),"") -> 13.44 | E34: =IF(B34="","",IFERROR((MATCH(TRUE,OFFSET(CalculationsAndCharts!$AY$33,E33,0, $C$2-E33,1),0)+E33),"")) -> 449 | F34: =IFERROR(OFFSET(CalculationsAndCharts!$B$32, E34,0,1,1),"") -> 2013-04-02 | G34: =IFERROR(OFFSET(CalculationsAndCharts!$D$32, E34,0,1,1),"") -> 13.33 | H34: -0.11 | I34: 21.29
A35: 110 | B35: =IFERROR(MATCH(TRUE,OFFSET(CalculationsAndCharts!$AW$33,B34,0, $C$2-B34,1),0)+B34,"") -> 476 | C35: =IFERROR(OFFSET(CalculationsAndCharts!$B$32, B35,0,1,1),"") -> 2013-02-21 | D35: =IFERROR(OFFSET(CalculationsAndCharts!$D$32, B35,0,1,1),"") -> 13.7 | E35: =IF(B35="","",IFERROR((MATCH(TRUE,OFFSET(CalculationsAndCharts!$AY$33,E34,0, $C$2-E34,1),0)+E34),"")) -> 471 | F35: =IFERROR(OFFSET(CalculationsAndCharts!$B$32, E35,0,1,1),"") -> 2013-02-28 | G35: =IFERROR(OFFSET(CalculationsAndCharts!$D$32, E35,0,1,1),"") -> 13.46 | H35: -0.24 | I35: 21.4
A36: 109 | B36: =IFERROR(MATCH(TRUE,OFFSET(CalculationsAndCharts!$AW$33,B35,0, $C$2-B35,1),0)+B35,"") -> 527 | C36: =IFERROR(OFFSET(CalculationsAndCharts!$B$32, B36,0,1,1),"") -> 2012-12-06 | D36: =IFERROR(OFFSET(CalculationsAndCharts!$D$32, B36,0,1,1),"") -> 12.86 | E36: =IF(B36="","",IFERROR((MATCH(TRUE,OFFSET(CalculationsAndCharts!$AY$33,E35,0, $C$2-E35,1),0)+E35),"")) -> 521 | F36: =IFERROR(OFFSET(CalculationsAndCharts!$B$32, E36,0,1,1),"") -> 2012-12-14 | G36: =IFERROR(OFFSET(CalculationsAndCharts!$D$32, E36,0,1,1),"") -> 12.46 | H36: -0.4 | I36: 21.64
A37: 108 | B37: =IFERROR(MATCH(TRUE,OFFSET(CalculationsAndCharts!$AW$33,B36,0, $C$2-B36,1),0)+B36,"") -> 545 | C37: =IFERROR(OFFSET(CalculationsAndCharts!$B$32, B37,0,1,1),"") -> 2012-11-09 | D37: =IFERROR(OFFSET(CalculationsAndCharts!$D$32, B37,0,1,1),"") -> 13.38 | E37: =IF(B37="","",IFERROR((MATCH(TRUE,OFFSET(CalculationsAndCharts!$AY$33,E36,0, $C$2-E36,1),0)+E36),"")) -> 536 | F37: =IFERROR(OFFSET(CalculationsAndCharts!$B$32, E37,0,1,1),"") -> 2012-11-23 | G37: =IFERROR(OFFSET(CalculationsAndCharts!$D$32, E37,0,1,1),"") -> 13.68 | H37: 0.3 | I37: 22.04
A38: 107 | B38: =IFERROR(MATCH(TRUE,OFFSET(CalculationsAndCharts!$AW$33,B37,0, $C$2-B37,1),0)+B37,"") -> 577 | C38: =IFERROR(OFFSET(CalculationsAndCharts!$B$32, B38,0,1,1),"") -> 2012-09-24 | D38: =IFERROR(OFFSET(CalculationsAndCharts!$D$32, B38,0,1,1),"") -> 12.91 | E38: =IF(B38="","",IFERROR((MATCH(TRUE,OFFSET(CalculationsAndCharts!$AY$33,E37,0, $C$2-E37,1),0)+E37),"")) -> 568 | F38: =IFERROR(OFFSET(CalculationsAndCharts!$B$32, E38,0,1,1),"") -> 2012-10-05 | G38: =IFERROR(OFFSET(CalculationsAndCharts!$D$32, E38,0,1,1),"") -> 13.52 | H38: 0.61 | I38: 21.74
A39: 106 | B39: =IFERROR(MATCH(TRUE,OFFSET(CalculationsAndCharts!$AW$33,B38,0, $C$2-B38,1),0)+B38,"") -> 600 | C39: =IFERROR(OFFSET(CalculationsAndCharts!$B$32, B39,0,1,1),"") -> 2012-08-21 | D39: =IFERROR(OFFSET(CalculationsAndCharts!$D$32, B39,0,1,1),"") -> 13.41 | E39: =IF(B39="","",IFERROR((MATCH(TRUE,OFFSET(CalculationsAndCharts!$AY$33,E38,0, $C$2-E38,1),0)+E38),"")) -> 592 | F39: =IFERROR(OFFSET(CalculationsAndCharts!$B$32, E39,0,1,1),"") -> 2012-08-31 | G39: =IFERROR(OFFSET(CalculationsAndCharts!$D$32, E39,0,1,1),"") -> 13.09 | H39: -0.32 | I39: 21.13
A40: 105 | B40: =IFERROR(MATCH(TRUE,OFFSET(CalculationsAndCharts!$AW$33,B39,0, $C$2-B39,1),0)+B39,"") -> 613 | C40: =IFERROR(OFFSET(CalculationsAndCharts!$B$32, B40,0,1,1),"") -> 2012-08-02 | D40: =IFERROR(OFFSET(CalculationsAndCharts!$D$32, B40,0,1,1),"") -> 13.35 | E40: =IF(B40="","",IFERROR((MATCH(TRUE,OFFSET(CalculationsAndCharts!$AY$33,E39,0, $C$2-E39,1),0)+E39),"")) -> 604 | F40: =IFERROR(OFFSET(CalculationsAndCharts!$B$32, E40,0,1,1),"") -> 2012-08-15 | G40: =IFERROR(OFFSET(CalculationsAndCharts!$D$32, E40,0,1,1),"") -> 13.33 | H40: -0.02 | I40: 21.45
A41: 104 | B41: =IFERROR(MATCH(TRUE,OFFSET(CalculationsAndCharts!$AW$33,B40,0, $C$2-B40,1),0)+B40,"") -> 625 | C41: =IFERROR(OFFSET(CalculationsAndCharts!$B$32, B41,0,1,1),"") -> 2012-07-17 | D41: =IFERROR(OFFSET(CalculationsAndCharts!$D$32, B41,0,1,1),"") -> 13.78 | E41: =IF(B41="","",IFERROR((MATCH(TRUE,OFFSET(CalculationsAndCharts!$AY$33,E40,0, $C$2-E40,1),0)+E40),"")) -> 616 | F41: =IFERROR(OFFSET(CalculationsAndCharts!$B$32, E41,0,1,1),"") -> 2012-07-30 | G41: =IFERROR(OFFSET(CalculationsAndCharts!$D$32, E41,0,1,1),"") -> 14.2 | H41: 0.42 | I41: 21.47
A42: 103 | B42: =IFERROR(MATCH(TRUE,OFFSET(CalculationsAndCharts!$AW$33,B41,0, $C$2-B41,1),0)+B41,"") -> 640 | C42: =IFERROR(OFFSET(CalculationsAndCharts!$B$32, B42,0,1,1),"") -> 2012-06-25 | D42: =IFERROR(OFFSET(CalculationsAndCharts!$D$32, B42,0,1,1),"") -> 13.7 | E42: =IF(B42="","",IFERROR((MATCH(TRUE,OFFSET(CalculationsAndCharts!$AY$33,E41,0, $C$2-E41,1),0)+E41),"")) -> 631 | F42: =IFERROR(OFFSET(CalculationsAndCharts!$B$32, E42,0,1,1),"") -> 2012-07-09 | G42: =IFERROR(OFFSET(CalculationsAndCharts!$D$32, E42,0,1,1),"") -> 14.38 | H42: 0.68 | I42: 21.05
A43: 102 | B43: =IFERROR(MATCH(TRUE,OFFSET(CalculationsAndCharts!$AW$33,B42,0, $C$2-B42,1),0)+B42,"") -> 665 | C43: =IFERROR(OFFSET(CalculationsAndCharts!$B$32, B43,0,1,1),"") -> 2012-05-18 | D43: =IFERROR(OFFSET(CalculationsAndCharts!$D$32, B43,0,1,1),"") -> 13.75 | E43: =IF(B43="","",IFERROR((MATCH(TRUE,OFFSET(CalculationsAndCharts!$AY$33,E42,0, $C$2-E42,1),0)+E42),"")) -> 656 | F43: =IFERROR(OFFSET(CalculationsAndCharts!$B$32, E43,0,1,1),"") -> 2012-06-01 | G43: =IFERROR(OFFSET(CalculationsAndCharts!$D$32, E43,0,1,1),"") -> 14 | H43: 0.25 | I43: 20.37
A44: 101 | B44: =IFERROR(MATCH(TRUE,OFFSET(CalculationsAndCharts!$AW$33,B43,0, $C$2-B43,1),0)+B43,"") -> 678 | C44: =IFERROR(OFFSET(CalculationsAndCharts!$B$32, B44,0,1,1),"") -> 2012-05-01 | D44: =IFERROR(OFFSET(CalculationsAndCharts!$D$32, B44,0,1,1),"") -> 13.8 | E44: =IF(B44="","",IFERROR((MATCH(TRUE,OFFSET(CalculationsAndCharts!$AY$33,E43,0, $C$2-E43,1),0)+E43),"")) -> 669 | F44: =IFERROR(OFFSET(CalculationsAndCharts!$B$32, E44,0,1,1),"") -> 2012-05-14 | G44: =IFERROR(OFFSET(CalculationsAndCharts!$D$32, E44,0,1,1),"") -> 13.66 | H44: -0.14 | I44: 20.12
A45: 100 | B45: =IFERROR(MATCH(TRUE,OFFSET(CalculationsAndCharts!$AW$33,B44,0, $C$2-B44,1),0)+B44,"") -> 689 | C45: =IFERROR(OFFSET(CalculationsAndCharts!$B$32, B45,0,1,1),"") -> 2012-04-16 | D45: =IFERROR(OFFSET(CalculationsAndCharts!$D$32, B45,0,1,1),"") -> 13.91 | E45: =IF(B45="","",IFERROR((MATCH(TRUE,OFFSET(CalculationsAndCharts!$AY$33,E44,0, $C$2-E44,1),0)+E44),"")) -> 680 | F45: =IFERROR(OFFSET(CalculationsAndCharts!$B$32, E45,0,1,1),"") -> 2012-04-27 | G45: =IFERROR(OFFSET(CalculationsAndCharts!$D$32, E45,0,1,1),"") -> 13.95 | H45: 0.04 | I45: 20.26
A46: 99 | B46: =IFERROR(MATCH(TRUE,OFFSET(CalculationsAndCharts!$AW$33,B45,0, $C$2-B45,1),0)+B45,"") -> 698 | C46: =IFERROR(OFFSET(CalculationsAndCharts!$B$32, B46,0,1,1),"") -> 2012-04-02 | D46: =IFERROR(OFFSET(CalculationsAndCharts!$D$32, B46,0,1,1),"") -> 14.39 | E46: =IF(B46="","",IFERROR((MATCH(TRUE,OFFSET(CalculationsAndCharts!$AY$33,E45,0, $C$2-E45,1),0)+E45),"")) -> 692 | F46: =IFERROR(OFFSET(CalculationsAndCharts!$B$32, E46,0,1,1),"") -> 2012-04-11 | G46: =IFERROR(OFFSET(CalculationsAndCharts!$D$32, E46,0,1,1),"") -> 13.97 | H46: -0.42 | I46: 20.22
A47: 98 | B47: =IFERROR(MATCH(TRUE,OFFSET(CalculationsAndCharts!$AW$33,B46,0, $C$2-B46,1),0)+B46,"") -> 718 | C47: =IFERROR(OFFSET(CalculationsAndCharts!$B$32, B47,0,1,1),"") -> 2012-03-05 | D47: =IFERROR(OFFSET(CalculationsAndCharts!$D$32, B47,0,1,1),"") -> 14.32 | E47: =IF(B47="","",IFERROR((MATCH(TRUE,OFFSET(CalculationsAndCharts!$AY$33,E46,0, $C$2-E46,1),0)+E46),"")) -> 709 | F47: =IFERROR(OFFSET(CalculationsAndCharts!$B$32, E47,0,1,1),"") -> 2012-03-16 | G47: =IFERROR(OFFSET(CalculationsAndCharts!$D$32, E47,0,1,1),"") -> 15.22 | H47: 0.9 | I47: 20.64
A48: 97 | B48: =IFERROR(MATCH(TRUE,OFFSET(CalculationsAndCharts!$AW$33,B47,0, $C$2-B47,1),0)+B47,"") -> 729 | C48: =IFERROR(OFFSET(CalculationsAndCharts!$B$32, B48,0,1,1),"") -> 2012-02-16 | D48: =IFERROR(OFFSET(CalculationsAndCharts!$D$32, B48,0,1,1),"") -> 14.66 | E48: =IF(B48="","",IFERROR((MATCH(TRUE,OFFSET(CalculationsAndCharts!$AY$33,E47,0, $C$2-E47,1),0)+E47),"")) -> 720 | F48: =IFERROR(OFFSET(CalculationsAndCharts!$B$32, E48,0,1,1),"") -> 2012-03-01 | G48: =IFERROR(OFFSET(CalculationsAndCharts!$D$32, E48,0,1,1),"") -> 14.53 | H48: -0.13 | I48: 19.74
A49: 96 | B49: =IFERROR(MATCH(TRUE,OFFSET(CalculationsAndCharts!$AW$33,B48,0, $C$2-B48,1),0)+B48,"") -> 786 | C49: =IFERROR(OFFSET(CalculationsAndCharts!$B$32, B49,0,1,1),"") -> 2011-11-23 | D49: =IFERROR(OFFSET(CalculationsAndCharts!$D$32, B49,0,1,1),"") -> 12.93 | E49: =IF(B49="","",IFERROR((MATCH(TRUE,OFFSET(CalculationsAndCharts!$AY$33,E48,0, $C$2-E48,1),0)+E48),"")) -> 777 | F49: =IFERROR(OFFSET(CalculationsAndCharts!$B$32, E49,0,1,1),"") -> 2011-12-07 | G49: =IFERROR(OFFSET(CalculationsAndCharts!$D$32, E49,0,1,1),"") -> 13.8 | H49: 0.87 | I49: 19.87
A50: 95 | B50: =IFERROR(MATCH(TRUE,OFFSET(CalculationsAndCharts!$AW$33,B49,0, $C$2-B49,1),0)+B49,"") -> 805 | C50: =IFERROR(OFFSET(CalculationsAndCharts!$B$32, B50,0,1,1),"") -> 2011-10-27 | D50: =IFERROR(OFFSET(CalculationsAndCharts!$D$32, B50,0,1,1),"") -> 13.44 | E50: =IF(B50="","",IFERROR((MATCH(TRUE,OFFSET(CalculationsAndCharts!$AY$33,E49,0, $C$2-E49,1),0)+E49),"")) -> 801 | F50: =IFERROR(OFFSET(CalculationsAndCharts!$B$32, E50,0,1,1),"") -> 2011-11-02 | G50: =IFERROR(OFFSET(CalculationsAndCharts!$D$32, E50,0,1,1),"") -> 13.31 | H50: -0.13 | I50: 19
A51: 94 | B51: =IFERROR(MATCH(TRUE,OFFSET(CalculationsAndCharts!$AW$33,B50,0, $C$2-B50,1),0)+B50,"") -> 823 | C51: =IFERROR(OFFSET(CalculationsAndCharts!$B$32, B51,0,1,1),"") -> 2011-10-03 | D51: =IFERROR(OFFSET(CalculationsAndCharts!$D$32, B51,0,1,1),"") -> 13.46 | E51: =IF(B51="","",IFERROR((MATCH(TRUE,OFFSET(CalculationsAndCharts!$AY$33,E50,0, $C$2-E50,1),0)+E50),"")) -> 814 | F51: =IFERROR(OFFSET(CalculationsAndCharts!$B$32, E51,0,1,1),"") -> 2011-10-14 | G51: =IFERROR(OFFSET(CalculationsAndCharts!$D$32, E51,0,1,1),"") -> 14.67 | H51: 1.21 | I51: 19.13
A52: 93 | B52: =IFERROR(MATCH(TRUE,OFFSET(CalculationsAndCharts!$AW$33,B51,0, $C$2-B51,1),0)+B51,"") -> 831 | C52: =IFERROR(OFFSET(CalculationsAndCharts!$B$32, B52,0,1,1),"") -> 2011-09-21 | D52: =IFERROR(OFFSET(CalculationsAndCharts!$D$32, B52,0,1,1),"") -> 13.97 | E52: =IF(B52="","",IFERROR((MATCH(TRUE,OFFSET(CalculationsAndCharts!$AY$33,E51,0, $C$2-E51,1),0)+E51),"")) -> 830 | F52: =IFERROR(OFFSET(CalculationsAndCharts!$B$32, E52,0,1,1),"") -> 2011-09-22 | G52: =IFERROR(OFFSET(CalculationsAndCharts!$D$32, E52,0,1,1),"") -> 13.09 | H52: -0.88 | I52: 17.92
A53: 92 | B53: =IFERROR(MATCH(TRUE,OFFSET(CalculationsAndCharts!$AW$33,B52,0, $C$2-B52,1),0)+B52,"") -> 853 | C53: =IFERROR(OFFSET(CalculationsAndCharts!$B$32, B53,0,1,1),"") -> 2011-08-19 | D53: =IFERROR(OFFSET(CalculationsAndCharts!$D$32, B53,0,1,1),"") -> 12.83 | E53: =IF(B53="","",IFERROR((MATCH(TRUE,OFFSET(CalculationsAndCharts!$AY$33,E52,0, $C$2-E52,1),0)+E52),"")) -> 844 | F53: =IFERROR(OFFSET(CalculationsAndCharts!$B$32, E53,0,1,1),"") -> 2011-09-01 | G53: =IFERROR(OFFSET(CalculationsAndCharts!$D$32, E53,0,1,1),"") -> 15.25 | H53: 2.42 | I53: 18.8
A54: 91 | B54: =IFERROR(MATCH(TRUE,OFFSET(CalculationsAndCharts!$AW$33,B53,0, $C$2-B53,1),0)+B53,"") -> 861 | C54: =IFERROR(OFFSET(CalculationsAndCharts!$B$32, B54,0,1,1),"") -> 2011-08-09 | D54: =IFERROR(OFFSET(CalculationsAndCharts!$D$32, B54,0,1,1),"") -> 13.93 | E54: =IF(B54="","",IFERROR((MATCH(TRUE,OFFSET(CalculationsAndCharts!$AY$33,E53,0, $C$2-E53,1),0)+E53),"")) -> 860 | F54: =IFERROR(OFFSET(CalculationsAndCharts!$B$32, E54,0,1,1),"") -> 2011-08-10 | G54: =IFERROR(OFFSET(CalculationsAndCharts!$D$32, E54,0,1,1),"") -> 14.34 | H54: 0.41 | I54: 16.38
A55: 90 | B55: =IFERROR(MATCH(TRUE,OFFSET(CalculationsAndCharts!$AW$33,B54,0, $C$2-B54,1),0)+B54,"") -> 874 | C55: =IFERROR(OFFSET(CalculationsAndCharts!$B$32, B55,0,1,1),"") -> 2011-07-21 | D55: =IFERROR(OFFSET(CalculationsAndCharts!$D$32, B55,0,1,1),"") -> 15.78 | E55: =IF(B55="","",IFERROR((MATCH(TRUE,OFFSET(CalculationsAndCharts!$AY$33,E54,0, $C$2-E54,1),0)+E54),"")) -> 870 | F55: =IFERROR(OFFSET(CalculationsAndCharts!$B$32, E55,0,1,1),"") -> 2011-07-27 | G55: =IFERROR(OFFSET(CalculationsAndCharts!$D$32, E55,0,1,1),"") -> 15.24 | H55: -0.54 | I55: 15.97
A56: 89 | B56: =IFERROR(MATCH(TRUE,OFFSET(CalculationsAndCharts!$AW$33,B55,0, $C$2-B55,1),0)+B55,"") -> 913 | C56: =IFERROR(OFFSET(CalculationsAndCharts!$B$32, B56,0,1,1),"") -> 2011-05-25 | D56: =IFERROR(OFFSET(CalculationsAndCharts!$D$32, B56,0,1,1),"") -> 16.14 | E56: =IF(B56="","",IFERROR((MATCH(TRUE,OFFSET(CalculationsAndCharts!$AY$33,E55,0, $C$2-E55,1),0)+E55),"")) -> 906 | F56: =IFERROR(OFFSET(CalculationsAndCharts!$B$32, E56,0,1,1),"") -> 2011-06-06 | G56: =IFERROR(OFFSET(CalculationsAndCharts!$D$32, E56,0,1,1),"") -> 15.71 | H56: -0.43 | I56: 16.51
A57: 88 | B57: =IFERROR(MATCH(TRUE,OFFSET(CalculationsAndCharts!$AW$33,B56,0, $C$2-B56,1),0)+B56,"") -> 934 | C57: =IFERROR(OFFSET(CalculationsAndCharts!$B$32, B57,0,1,1),"") -> 2011-04-26 | D57: =IFERROR(OFFSET(CalculationsAndCharts!$D$32, B57,0,1,1),"") -> 17.27 | E57: =IF(B57="","",IFERROR((MATCH(TRUE,OFFSET(CalculationsAndCharts!$AY$33,E56,0, $C$2-E56,1),0)+E56),"")) -> 925 | F57: =IFERROR(OFFSET(CalculationsAndCharts!$B$32, E57,0,1,1),"") -> 2011-05-09 | G57: =IFERROR(OFFSET(CalculationsAndCharts!$D$32, E57,0,1,1),"") -> 16.79 | H57: -0.48 | I57: 16.94
A58: 87 | B58: =IFERROR(MATCH(TRUE,OFFSET(CalculationsAndCharts!$AW$33,B57,0, $C$2-B57,1),0)+B57,"") -> 990 | C58: =IFERROR(OFFSET(CalculationsAndCharts!$B$32, B58,0,1,1),"") -> 2011-02-03 | D58: =IFERROR(OFFSET(CalculationsAndCharts!$D$32, B58,0,1,1),"") -> 15.88 | E58: =IF(B58="","",IFERROR((MATCH(TRUE,OFFSET(CalculationsAndCharts!$AY$33,E57,0, $C$2-E57,1),0)+E57),"")) -> 981 | F58: =IFERROR(OFFSET(CalculationsAndCharts!$B$32, E58,0,1,1),"") -> 2011-02-16 | G58: =IFERROR(OFFSET(CalculationsAndCharts!$D$32, E58,0,1,1),"") -> 16.53 | H58: 0.65 | I58: 17.42
A59: 86 | B59: =IFERROR(MATCH(TRUE,OFFSET(CalculationsAndCharts!$AW$33,B58,0, $C$2-B58,1),0)+B58,"") -> 1001 | C59: =IFERROR(OFFSET(CalculationsAndCharts!$B$32, B59,0,1,1),"") -> 2011-01-19 | D59: =IFERROR(OFFSET(CalculationsAndCharts!$D$32, B59,0,1,1),"") -> 16.03 | E59: =IF(B59="","",IFERROR((MATCH(TRUE,OFFSET(CalculationsAndCharts!$AY$33,E58,0, $C$2-E58,1),0)+E58),"")) -> 992 | F59: =IFERROR(OFFSET(CalculationsAndCharts!$B$32, E59,0,1,1),"") -> 2011-02-01 | G59: =IFERROR(OFFSET(CalculationsAndCharts!$D$32, E59,0,1,1),"") -> 16.07 | H59: 0.04 | I59: 16.77
A60: 85 | B60: =IFERROR(MATCH(TRUE,OFFSET(CalculationsAndCharts!$AW$33,B59,0, $C$2-B59,1),0)+B59,"") -> 1043 | C60: =IFERROR(OFFSET(CalculationsAndCharts!$B$32, B60,0,1,1),"") -> 2010-11-17 | D60: =IFERROR(OFFSET(CalculationsAndCharts!$D$32, B60,0,1,1),"") -> 14.9 | E60: =IF(B60="","",IFERROR((MATCH(TRUE,OFFSET(CalculationsAndCharts!$AY$33,E59,0, $C$2-E59,1),0)+E59),"")) -> 1034 | F60: =IFERROR(OFFSET(CalculationsAndCharts!$B$32, E60,0,1,1),"") -> 2010-12-01 | G60: =IFERROR(OFFSET(CalculationsAndCharts!$D$32, E60,0,1,1),"") -> 15.72 | H60: 0.82 | I60: 16.73
A61: 84 | B61: =IFERROR(MATCH(TRUE,OFFSET(CalculationsAndCharts!$AW$33,B60,0, $C$2-B60,1),0)+B60,"") -> 1054 | C61: =IFERROR(OFFSET(CalculationsAndCharts!$B$32, B61,0,1,1),"") -> 2010-11-02 | D61: =IFERROR(OFFSET(CalculationsAndCharts!$D$32, B61,0,1,1),"") -> 15.02 | E61: =IF(B61="","",IFERROR((MATCH(TRUE,OFFSET(CalculationsAndCharts!$AY$33,E60,0, $C$2-E60,1),0)+E60),"")) -> 1045 | F61: =IFERROR(OFFSET(CalculationsAndCharts!$B$32, E61,0,1,1),"") -> 2010-11-15 | G61: =IFERROR(OFFSET(CalculationsAndCharts!$D$32, E61,0,1,1),"") -> 15.08 | H61: 0.06 | I61: 15.91
A62: 83 | B62: =IFERROR(MATCH(TRUE,OFFSET(CalculationsAndCharts!$AW$33,B61,0, $C$2-B61,1),0)+B61,"") -> 1082 | C62: =IFERROR(OFFSET(CalculationsAndCharts!$B$32, B62,0,1,1),"") -> 2010-09-23 | D62: =IFERROR(OFFSET(CalculationsAndCharts!$D$32, B62,0,1,1),"") -> 14.56 | E62: =IF(B62="","",IFERROR((MATCH(TRUE,OFFSET(CalculationsAndCharts!$AY$33,E61,0, $C$2-E61,1),0)+E61),"")) -> 1073 | F62: =IFERROR(OFFSET(CalculationsAndCharts!$B$32, E62,0,1,1),"") -> 2010-10-06 | G62: =IFERROR(OFFSET(CalculationsAndCharts!$D$32, E62,0,1,1),"") -> 14.85 | H62: 0.29 | I62: 15.85
A63: 82 | B63: =IFERROR(MATCH(TRUE,OFFSET(CalculationsAndCharts!$AW$33,B62,0, $C$2-B62,1),0)+B62,"") -> 1098 | C63: =IFERROR(OFFSET(CalculationsAndCharts!$B$32, B63,0,1,1),"") -> 2010-08-31 | D63: =IFERROR(OFFSET(CalculationsAndCharts!$D$32, B63,0,1,1),"") -> 14.6 | E63: =IF(B63="","",IFERROR((MATCH(TRUE,OFFSET(CalculationsAndCharts!$AY$33,E62,0, $C$2-E62,1),0)+E62),"")) -> 1089 | F63: =IFERROR(OFFSET(CalculationsAndCharts!$B$32, E63,0,1,1),"") -> 2010-09-14 | G63: =IFERROR(OFFSET(CalculationsAndCharts!$D$32, E63,0,1,1),"") -> 16.01 | H63: 1.41 | I63: 15.56
A64: 81 | B64: =IFERROR(MATCH(TRUE,OFFSET(CalculationsAndCharts!$AW$33,B63,0, $C$2-B63,1),0)+B63,"") -> 1111 | C64: =IFERROR(OFFSET(CalculationsAndCharts!$B$32, B64,0,1,1),"") -> 2010-08-12 | D64: =IFERROR(OFFSET(CalculationsAndCharts!$D$32, B64,0,1,1),"") -> 14.94 | E64: =IF(B64="","",IFERROR((MATCH(TRUE,OFFSET(CalculationsAndCharts!$AY$33,E63,0, $C$2-E63,1),0)+E63),"")) -> 1102 | F64: =IFERROR(OFFSET(CalculationsAndCharts!$B$32, E64,0,1,1),"") -> 2010-08-25 | G64: =IFERROR(OFFSET(CalculationsAndCharts!$D$32, E64,0,1,1),"") -> 14.43 | H64: -0.51 | I64: 14.15
A65: 80 | B65: =IFERROR(MATCH(TRUE,OFFSET(CalculationsAndCharts!$AW$33,B64,0, $C$2-B64,1),0)+B64,"") -> 1141 | C65: =IFERROR(OFFSET(CalculationsAndCharts!$B$32, B65,0,1,1),"") -> 2010-06-30 | D65: =IFERROR(OFFSET(CalculationsAndCharts!$D$32, B65,0,1,1),"") -> 14.52 | E65: =IF(B65="","",IFERROR((MATCH(TRUE,OFFSET(CalculationsAndCharts!$AY$33,E64,0, $C$2-E64,1),0)+E64),"")) -> 1132 | F65: =IFERROR(OFFSET(CalculationsAndCharts!$B$32, E65,0,1,1),"") -> 2010-07-14 | G65: =IFERROR(OFFSET(CalculationsAndCharts!$D$32, E65,0,1,1),"") -> 15.32 | H65: 0.8 | I65: 14.66
A66: 79 | B66: =IFERROR(MATCH(TRUE,OFFSET(CalculationsAndCharts!$AW$33,B65,0, $C$2-B65,1),0)+B65,"") -> 1166 | C66: =IFERROR(OFFSET(CalculationsAndCharts!$B$32, B66,0,1,1),"") -> 2010-05-25 | D66: =IFERROR(OFFSET(CalculationsAndCharts!$D$32, B66,0,1,1),"") -> 15.34 | E66: =IF(B66="","",IFERROR((MATCH(TRUE,OFFSET(CalculationsAndCharts!$AY$33,E65,0, $C$2-E65,1),0)+E65),"")) -> 1158 | F66: =IFERROR(OFFSET(CalculationsAndCharts!$B$32, E66,0,1,1),"") -> 2010-06-07 | G66: =IFERROR(OFFSET(CalculationsAndCharts!$D$32, E66,0,1,1),"") -> 15.1 | H66: -0.24 | I66: 13.86
A67: 78 | B67: =IFERROR(MATCH(TRUE,OFFSET(CalculationsAndCharts!$AW$33,B66,0, $C$2-B66,1),0)+B66,"") -> 1179 | C67: =IFERROR(OFFSET(CalculationsAndCharts!$B$32, B67,0,1,1),"") -> 2010-05-06 | D67: =IFERROR(OFFSET(CalculationsAndCharts!$D$32, B67,0,1,1),"") -> 16.01 | E67: =IF(B67="","",IFERROR((MATCH(TRUE,OFFSET(CalculationsAndCharts!$AY$33,E66,0, $C$2-E66,1),0)+E66),"")) -> 1178 | F67: =IFERROR(OFFSET(CalculationsAndCharts!$B$32, E67,0,1,1),"") -> 2010-05-07 | G67: =IFERROR(OFFSET(CalculationsAndCharts!$D$32, E67,0,1,1),"") -> 15.71 | H67: -0.3 | I67: 14.1
A68: 77 | B68: =IFERROR(MATCH(TRUE,OFFSET(CalculationsAndCharts!$AW$33,B67,0, $C$2-B67,1),0)+B67,"") -> 1196 | C68: =IFERROR(OFFSET(CalculationsAndCharts!$B$32, B68,0,1,1),"") -> 2010-04-13 | D68: =IFERROR(OFFSET(CalculationsAndCharts!$D$32, B68,0,1,1),"") -> 15.9 | E68: =IF(B68="","",IFERROR((MATCH(TRUE,OFFSET(CalculationsAndCharts!$AY$33,E67,0, $C$2-E67,1),0)+E67),"")) -> 1187 | F68: =IFERROR(OFFSET(CalculationsAndCharts!$B$32, E68,0,1,1),"") -> 2010-04-26 | G68: =IFERROR(OFFSET(CalculationsAndCharts!$D$32, E68,0,1,1),"") -> 16.99 | H68: 1.09 | I68: 14.4
A69: 76 | B69: =IFERROR(MATCH(TRUE,OFFSET(CalculationsAndCharts!$AW$33,B68,0, $C$2-B68,1),0)+B68,"") -> 1241 | C69: =IFERROR(OFFSET(CalculationsAndCharts!$B$32, B69,0,1,1),"") -> 2010-02-05 | D69: =IFERROR(OFFSET(CalculationsAndCharts!$D$32, B69,0,1,1),"") -> 13.72 | E69: =IF(B69="","",IFERROR((MATCH(TRUE,OFFSET(CalculationsAndCharts!$AY$33,E68,0, $C$2-E68,1),0)+E68),"")) -> 1232 | F69: =IFERROR(OFFSET(CalculationsAndCharts!$B$32, E69,0,1,1),"") -> 2010-02-19 | G69: =IFERROR(OFFSET(CalculationsAndCharts!$D$32, E69,0,1,1),"") -> 14.47 | H69: 0.75 | I69: 13.31
A70: 75 | B70: =IFERROR(MATCH(TRUE,OFFSET(CalculationsAndCharts!$AW$33,B69,0, $C$2-B69,1),0)+B69,"") -> 1250 | C70: =IFERROR(OFFSET(CalculationsAndCharts!$B$32, B70,0,1,1),"") -> 2010-01-25 | D70: =IFERROR(OFFSET(CalculationsAndCharts!$D$32, B70,0,1,1),"") -> 15.24 | E70: =IF(B70="","",IFERROR((MATCH(TRUE,OFFSET(CalculationsAndCharts!$AY$33,E69,0, $C$2-E69,1),0)+E69),"")) -> 1247 | F70: =IFERROR(OFFSET(CalculationsAndCharts!$B$32, E70,0,1,1),"") -> 2010-01-28 | G70: =IFERROR(OFFSET(CalculationsAndCharts!$D$32, E70,0,1,1),"") -> 14.72 | H70: -0.52 | I70: 12.56
A71: 74 | B71: =IFERROR(MATCH(TRUE,OFFSET(CalculationsAndCharts!$AW$33,B70,0, $C$2-B70,1),0)+B70,"") -> 1303 | C71: =IFERROR(OFFSET(CalculationsAndCharts!$B$32, B71,0,1,1),"") -> 2009-11-05 | D71: =IFERROR(OFFSET(CalculationsAndCharts!$D$32, B71,0,1,1),"") -> 13.44 | E71: =IF(B71="","",IFERROR((MATCH(TRUE,OFFSET(CalculationsAndCharts!$AY$33,E70,0, $C$2-E70,1),0)+E70),"")) -> 1294 | F71: =IFERROR(OFFSET(CalculationsAndCharts!$B$32, E71,0,1,1),"") -> 2009-11-18 | G71: =IFERROR(OFFSET(CalculationsAndCharts!$D$32, E71,0,1,1),"") -> 14.77 | H71: 1.33 | I71: 13.08
A72: 73 | B72: =IFERROR(MATCH(TRUE,OFFSET(CalculationsAndCharts!$AW$33,B71,0, $C$2-B71,1),0)+B71,"") -> 1311 | C72: =IFERROR(OFFSET(CalculationsAndCharts!$B$32, B72,0,1,1),"") -> 2009-10-26 | D72: =IFERROR(OFFSET(CalculationsAndCharts!$D$32, B72,0,1,1),"") -> 14.16 | E72: =IF(B72="","",IFERROR((MATCH(TRUE,OFFSET(CalculationsAndCharts!$AY$33,E71,0, $C$2-E71,1),0)+E71),"")) -> 1308 | F72: =IFERROR(OFFSET(CalculationsAndCharts!$B$32, E72,0,1,1),"") -> 2009-10-29 | G72: =IFERROR(OFFSET(CalculationsAndCharts!$D$32, E72,0,1,1),"") -> 13.86 | H72: -0.3 | I72: 11.75
A73: 72 | B73: =IFERROR(MATCH(TRUE,OFFSET(CalculationsAndCharts!$AW$33,B72,0, $C$2-B72,1),0)+B72,"") -> 1343 | C73: =IFERROR(OFFSET(CalculationsAndCharts!$B$32, B73,0,1,1),"") -> 2009-09-10 | D73: =IFERROR(OFFSET(CalculationsAndCharts!$D$32, B73,0,1,1),"") -> 14.02 | E73: =IF(B73="","",IFERROR((MATCH(TRUE,OFFSET(CalculationsAndCharts!$AY$33,E72,0, $C$2-E72,1),0)+E72),"")) -> 1334 | F73: =IFERROR(OFFSET(CalculationsAndCharts!$B$32, E73,0,1,1),"") -> 2009-09-23 | G73: =IFERROR(OFFSET(CalculationsAndCharts!$D$32, E73,0,1,1),"") -> 14.87 | H73: 0.85 | I73: 12.05
A74: 71 | B74: =IFERROR(MATCH(TRUE,OFFSET(CalculationsAndCharts!$AW$33,B73,0, $C$2-B73,1),0)+B73,"") -> 1360 | C74: =IFERROR(OFFSET(CalculationsAndCharts!$B$32, B74,0,1,1),"") -> 2009-08-17 | D74: =IFERROR(OFFSET(CalculationsAndCharts!$D$32, B74,0,1,1),"") -> 14.76 | E74: =IF(B74="","",IFERROR((MATCH(TRUE,OFFSET(CalculationsAndCharts!$AY$33,E73,0, $C$2-E73,1),0)+E73),"")) -> 1351 | F74: =IFERROR(OFFSET(CalculationsAndCharts!$B$32, E74,0,1,1),"") -> 2009-08-28 | G74: =IFERROR(OFFSET(CalculationsAndCharts!$D$32, E74,0,1,1),"") -> 14.64 | H74: -0.12 | I74: 11.2
A75: 70 | B75: =IFERROR(MATCH(TRUE,OFFSET(CalculationsAndCharts!$AW$33,B74,0, $C$2-B74,1),0)+B74,"") -> 1386 | C75: =IFERROR(OFFSET(CalculationsAndCharts!$B$32, B75,0,1,1),"") -> 2009-07-10 | D75: =IFERROR(OFFSET(CalculationsAndCharts!$D$32, B75,0,1,1),"") -> 14.28 | E75: =IF(B75="","",IFERROR((MATCH(TRUE,OFFSET(CalculationsAndCharts!$AY$33,E74,0, $C$2-E74,1),0)+E74),"")) -> 1377 | F75: =IFERROR(OFFSET(CalculationsAndCharts!$B$32, E75,0,1,1),"") -> 2009-07-23 | G75: =IFERROR(OFFSET(CalculationsAndCharts!$D$32, E75,0,1,1),"") -> 14.5 | H75: 0.22 | I75: 11.32
A76: 69 | B76: =IFERROR(MATCH(TRUE,OFFSET(CalculationsAndCharts!$AW$33,B75,0, $C$2-B75,1),0)+B75,"") -> 1402 | C76: =IFERROR(OFFSET(CalculationsAndCharts!$B$32, B76,0,1,1),"") -> 2009-06-17 | D76: =IFERROR(OFFSET(CalculationsAndCharts!$D$32, B76,0,1,1),"") -> 14.52 | E76: =IF(B76="","",IFERROR((MATCH(TRUE,OFFSET(CalculationsAndCharts!$AY$33,E75,0, $C$2-E75,1),0)+E75),"")) -> 1393 | F76: =IFERROR(OFFSET(CalculationsAndCharts!$B$32, E76,0,1,1),"") -> 2009-06-30 | G76: =IFERROR(OFFSET(CalculationsAndCharts!$D$32, E76,0,1,1),"") -> 14.83 | H76: 0.31 | I76: 11.1
A77: 68 | B77: =IFERROR(MATCH(TRUE,OFFSET(CalculationsAndCharts!$AW$33,B76,0, $C$2-B76,1),0)+B76,"") -> 1425 | C77: =IFERROR(OFFSET(CalculationsAndCharts!$B$32, B77,0,1,1),"") -> 2009-05-14 | D77: =IFERROR(OFFSET(CalculationsAndCharts!$D$32, B77,0,1,1),"") -> 14.23 | E77: =IF(B77="","",IFERROR((MATCH(TRUE,OFFSET(CalculationsAndCharts!$AY$33,E76,0, $C$2-E76,1),0)+E76),"")) -> 1416 | F77: =IFERROR(OFFSET(CalculationsAndCharts!$B$32, E77,0,1,1),"") -> 2009-05-28 | G77: =IFERROR(OFFSET(CalculationsAndCharts!$D$32, E77,0,1,1),"") -> 15.07 | H77: 0.84 | I77: 10.79
A78: 67 | B78: =IFERROR(MATCH(TRUE,OFFSET(CalculationsAndCharts!$AW$33,B77,0, $C$2-B77,1),0)+B77,"") -> 1437 | C78: =IFERROR(OFFSET(CalculationsAndCharts!$B$32, B78,0,1,1),"") -> 2009-04-28 | D78: =IFERROR(OFFSET(CalculationsAndCharts!$D$32, B78,0,1,1),"") -> 14.44 | E78: =IF(B78="","",IFERROR((MATCH(TRUE,OFFSET(CalculationsAndCharts!$AY$33,E77,0, $C$2-E77,1),0)+E77),"")) -> 1428 | F78: =IFERROR(OFFSET(CalculationsAndCharts!$B$32, E78,0,1,1),"") -> 2009-05-11 | G78: =IFERROR(OFFSET(CalculationsAndCharts!$D$32, E78,0,1,1),"") -> 15.47 | H78: 1.03 | I78: 9.95
A79: 66 | B79: =IFERROR(MATCH(TRUE,OFFSET(CalculationsAndCharts!$AW$33,B78,0, $C$2-B78,1),0)+B78,"") -> 1472 | C79: =IFERROR(OFFSET(CalculationsAndCharts!$B$32, B79,0,1,1),"") -> 2009-03-09 | D79: =IFERROR(OFFSET(CalculationsAndCharts!$D$32, B79,0,1,1),"") -> 12.03 | E79: =IF(B79="","",IFERROR((MATCH(TRUE,OFFSET(CalculationsAndCharts!$AY$33,E78,0, $C$2-E78,1),0)+E78),"")) -> 1463 | F79: =IFERROR(OFFSET(CalculationsAndCharts!$B$32, E79,0,1,1),"") -> 2009-03-20 | G79: =IFERROR(OFFSET(CalculationsAndCharts!$D$32, E79,0,1,1),"") -> 14.38 | H79: 2.35 | I79: 8.92
A80: =IF(B80<>"",1+A81,0) -> 65 | B80: =IFERROR(MATCH(TRUE,OFFSET(CalculationsAndCharts!$AW$33,B79,0, $C$2-B79,1),0)+B79,"") -> 1486 | C80: =IFERROR(OFFSET(CalculationsAndCharts!$B$32, B80,0,1,1),"") -> 2009-02-17 | D80: =IFERROR(OFFSET(CalculationsAndCharts!$D$32, B80,0,1,1),"") -> 12.78 | E80: =IF(B80="","",IFERROR((MATCH(TRUE,OFFSET(CalculationsAndCharts!$AY$33,E79,0, $C$2-E79,1),0)+E79),"")) -> 1478 | F80: =IFERROR(OFFSET(CalculationsAndCharts!$B$32, E80,0,1,1),"") -> 2009-02-27 | G80: =IFERROR(OFFSET(CalculationsAndCharts!$D$32, E80,0,1,1),"") -> 12.2 | H80: -0.58 | I80: 6.57
A81: 64 | B81: =IFERROR(MATCH(TRUE,OFFSET(CalculationsAndCharts!$AW$33,B80,0, $C$2-B80,1),0)+B80,"") -> 1505 | C81: =IFERROR(OFFSET(CalculationsAndCharts!$B$32, B81,0,1,1),"") -> 2009-01-20 | D81: =IFERROR(OFFSET(CalculationsAndCharts!$D$32, B81,0,1,1),"") -> 13.53 | E81: =IF(B81="","",IFERROR((MATCH(TRUE,OFFSET(CalculationsAndCharts!$AY$33,E80,0, $C$2-E80,1),0)+E80),"")) -> 1504 | F81: =IFERROR(OFFSET(CalculationsAndCharts!$B$32, E81,0,1,1),"") -> 2009-01-21 | G81: =IFERROR(OFFSET(CalculationsAndCharts!$D$32, E81,0,1,1),"") -> 13.16 | H81: -0.37 | I81: 7.15
A82: 63 | B82: =IFERROR(MATCH(TRUE,OFFSET(CalculationsAndCharts!$AW$33,B81,0, $C$2-B81,1),0)+B81,"") -> 1510 | C82: =IFERROR(OFFSET(CalculationsAndCharts!$B$32, B82,0,1,1),"") -> 2009-01-12 | D82: =IFERROR(OFFSET(CalculationsAndCharts!$D$32, B82,0,1,1),"") -> 14.2 | E82: =IF(B82="","",IFERROR((MATCH(TRUE,OFFSET(CalculationsAndCharts!$AY$33,E81,0, $C$2-E81,1),0)+E81),"")) -> 1508 | F82: =IFERROR(OFFSET(CalculationsAndCharts!$B$32, E82,0,1,1),"") -> 2009-01-14 | G82: =IFERROR(OFFSET(CalculationsAndCharts!$D$32, E82,0,1,1),"") -> 13.63 | H82: =IFERROR(G82-D82,"") -> -0.57 | I82: =IFERROR(H82+IF(""=I83,0,I83),"") -> 7.52
A83: 62 | B83: =IFERROR(MATCH(TRUE,OFFSET(CalculationsAndCharts!$AW$33,B82,0, $C$2-B82,1),0)+B82,"") -> 1529 | C83: =IFERROR(OFFSET(CalculationsAndCharts!$B$32, B83,0,1,1),"") -> 2008-12-12 | D83: =IFERROR(OFFSET(CalculationsAndCharts!$D$32, B83,0,1,1),"") -> 12.94 | E83: =IF(B83="","",IFERROR((MATCH(TRUE,OFFSET(CalculationsAndCharts!$AY$33,E82,0, $C$2-E82,1),0)+E82),"")) -> 1520 | F83: =IFERROR(OFFSET(CalculationsAndCharts!$B$32, E83,0,1,1),"") -> 2008-12-26 | G83: =IFERROR(OFFSET(CalculationsAndCharts!$D$32, E83,0,1,1),"") -> 14.68 | H83: 1.74 | I83: 8.09
A84: 61 | B84: =IFERROR(MATCH(TRUE,OFFSET(CalculationsAndCharts!$AW$33,B83,0, $C$2-B83,1),0)+B83,"") -> 1544 | C84: =IFERROR(OFFSET(CalculationsAndCharts!$B$32, B84,0,1,1),"") -> 2008-11-20 | D84: =IFERROR(OFFSET(CalculationsAndCharts!$D$32, B84,0,1,1),"") -> 13.09 | E84: =IF(B84="","",IFERROR((MATCH(TRUE,OFFSET(CalculationsAndCharts!$AY$33,E83,0, $C$2-E83,1),0)+E83),"")) -> 1535 | F84: =IFERROR(OFFSET(CalculationsAndCharts!$B$32, E84,0,1,1),"") -> 2008-12-04 | G84: =IFERROR(OFFSET(CalculationsAndCharts!$D$32, E84,0,1,1),"") -> 14.74 | H84: 1.65 | I84: 6.35
A85: 60 | B85: =IFERROR(MATCH(TRUE,OFFSET(CalculationsAndCharts!$AW$33,B84,0, $C$2-B84,1),0)+B84,"") -> 1569 | C85: =IFERROR(OFFSET(CalculationsAndCharts!$B$32, B85,0,1,1),"") -> 2008-10-16 | D85: =IFERROR(OFFSET(CalculationsAndCharts!$D$32, B85,0,1,1),"") -> 13.9 | E85: =IF(B85="","",IFERROR((MATCH(TRUE,OFFSET(CalculationsAndCharts!$AY$33,E84,0, $C$2-E84,1),0)+E84),"")) -> 1564 | F85: =IFERROR(OFFSET(CalculationsAndCharts!$B$32, E85,0,1,1),"") -> 2008-10-23 | G85: =IFERROR(OFFSET(CalculationsAndCharts!$D$32, E85,0,1,1),"") -> 13.63 | H85: -0.27 | I85: 4.7
A86: 59 | B86: =IFERROR(MATCH(TRUE,OFFSET(CalculationsAndCharts!$AW$33,B85,0, $C$2-B85,1),0)+B85,"") -> 1573 | C86: =IFERROR(OFFSET(CalculationsAndCharts!$B$32, B86,0,1,1),"") -> 2008-10-10 | D86: =IFERROR(OFFSET(CalculationsAndCharts!$D$32, B86,0,1,1),"") -> 13.26 | E86: =IF(B86="","",IFERROR((MATCH(TRUE,OFFSET(CalculationsAndCharts!$AY$33,E85,0, $C$2-E85,1),0)+E85),"")) -> 1572 | F86: =IFERROR(OFFSET(CalculationsAndCharts!$B$32, E86,0,1,1),"") -> 2008-10-13 | G86: =IFERROR(OFFSET(CalculationsAndCharts!$D$32, E86,0,1,1),"") -> 14.87 | H86: 1.61 | I86: 4.97
A87: 58 | B87: =IFERROR(MATCH(TRUE,OFFSET(CalculationsAndCharts!$AW$33,B86,0, $C$2-B86,1),0)+B86,"") -> 1578 | C87: =IFERROR(OFFSET(CalculationsAndCharts!$B$32, B87,0,1,1),"") -> 2008-10-03 | D87: =IFERROR(OFFSET(CalculationsAndCharts!$D$32, B87,0,1,1),"") -> 14.82 | E87: =IF(B87="","",IFERROR((MATCH(TRUE,OFFSET(CalculationsAndCharts!$AY$33,E86,0, $C$2-E86,1),0)+E86),"")) -> 1577 | F87: =IFERROR(OFFSET(CalculationsAndCharts!$B$32, E87,0,1,1),"") -> 2008-10-06 | G87: =IFERROR(OFFSET(CalculationsAndCharts!$D$32, E87,0,1,1),"") -> 14.01 | H87: -0.81 | I87: 3.36
A88: 57 | B88: =IFERROR(MATCH(TRUE,OFFSET(CalculationsAndCharts!$AW$33,B87,0, $C$2-B87,1),0)+B87,"") -> 1585 | C88: =IFERROR(OFFSET(CalculationsAndCharts!$B$32, B88,0,1,1),"") -> 2008-09-24 | D88: =IFERROR(OFFSET(CalculationsAndCharts!$D$32, B88,0,1,1),"") -> 16.41 | E88: =IF(B88="","",IFERROR((MATCH(TRUE,OFFSET(CalculationsAndCharts!$AY$33,E87,0, $C$2-E87,1),0)+E87),"")) -> 1584 | F88: =IFERROR(OFFSET(CalculationsAndCharts!$B$32, E88,0,1,1),"") -> 2008-09-25 | G88: =IFERROR(OFFSET(CalculationsAndCharts!$D$32, E88,0,1,1),"") -> 16.35 | H88: -0.06 | I88: 4.17
A89: 56 | B89: =IFERROR(MATCH(TRUE,OFFSET(CalculationsAndCharts!$AW$33,B88,0, $C$2-B88,1),0)+B88,"") -> 1608 | C89: =IFERROR(OFFSET(CalculationsAndCharts!$B$32, B89,0,1,1),"") -> 2008-08-21 | D89: =IFERROR(OFFSET(CalculationsAndCharts!$D$32, B89,0,1,1),"") -> 16.4 | E89: =IF(B89="","",IFERROR((MATCH(TRUE,OFFSET(CalculationsAndCharts!$AY$33,E88,0, $C$2-E88,1),0)+E88),"")) -> 1599 | F89: =IFERROR(OFFSET(CalculationsAndCharts!$B$32, E89,0,1,1),"") -> 2008-09-04 | G89: =IFERROR(OFFSET(CalculationsAndCharts!$D$32, E89,0,1,1),"") -> 16.99 | H89: 0.59 | I89: 4.23
A90: 55 | B90: =IFERROR(MATCH(TRUE,OFFSET(CalculationsAndCharts!$AW$33,B89,0, $C$2-B89,1),0)+B89,"") -> 1648 | C90: =IFERROR(OFFSET(CalculationsAndCharts!$B$32, B90,0,1,1),"") -> 2008-06-25 | D90: =IFERROR(OFFSET(CalculationsAndCharts!$D$32, B90,0,1,1),"") -> 14.54 | E90: =IF(B90="","",IFERROR((MATCH(TRUE,OFFSET(CalculationsAndCharts!$AY$33,E89,0, $C$2-E89,1),0)+E89),"")) -> 1639 | F90: =IFERROR(OFFSET(CalculationsAndCharts!$B$32, E90,0,1,1),"") -> 2008-07-09 | G90: =IFERROR(OFFSET(CalculationsAndCharts!$D$32, E90,0,1,1),"") -> 15.61 | H90: 1.07 | I90: 3.64
A91: 54 | B91: =IFERROR(MATCH(TRUE,OFFSET(CalculationsAndCharts!$AW$33,B90,0, $C$2-B90,1),0)+B90,"") -> 1657 | C91: =IFERROR(OFFSET(CalculationsAndCharts!$B$32, B91,0,1,1),"") -> 2008-06-12 | D91: =IFERROR(OFFSET(CalculationsAndCharts!$D$32, B91,0,1,1),"") -> 14.91 | E91: =IF(B91="","",IFERROR((MATCH(TRUE,OFFSET(CalculationsAndCharts!$AY$33,E90,0, $C$2-E90,1),0)+E90),"")) -> 1651 | F91: =IFERROR(OFFSET(CalculationsAndCharts!$B$32, E91,0,1,1),"") -> 2008-06-20 | G91: =IFERROR(OFFSET(CalculationsAndCharts!$D$32, E91,0,1,1),"") -> 15.35 | H91: 0.44 | I91: 2.57
A92: 53 | B92: =IFERROR(MATCH(TRUE,OFFSET(CalculationsAndCharts!$AW$33,B91,0, $C$2-B91,1),0)+B91,"") -> 1672 | C92: =IFERROR(OFFSET(CalculationsAndCharts!$B$32, B92,0,1,1),"") -> 2008-05-21 | D92: =IFERROR(OFFSET(CalculationsAndCharts!$D$32, B92,0,1,1),"") -> 15.56 | E92: =IF(B92="","",IFERROR((MATCH(TRUE,OFFSET(CalculationsAndCharts!$AY$33,E91,0, $C$2-E91,1),0)+E91),"")) -> 1671 | F92: =IFERROR(OFFSET(CalculationsAndCharts!$B$32, E92,0,1,1),"") -> 2008-05-22 | G92: =IFERROR(OFFSET(CalculationsAndCharts!$D$32, E92,0,1,1),"") -> 14.9 | H92: -0.66 | I92: 2.13
A93: 52 | B93: =IFERROR(MATCH(TRUE,OFFSET(CalculationsAndCharts!$AW$33,B92,0, $C$2-B92,1),0)+B92,"") -> 1699 | C93: =IFERROR(OFFSET(CalculationsAndCharts!$B$32, B93,0,1,1),"") -> 2008-04-14 | D93: =IFERROR(OFFSET(CalculationsAndCharts!$D$32, B93,0,1,1),"") -> 14.16 | E93: =IF(B93="","",IFERROR((MATCH(TRUE,OFFSET(CalculationsAndCharts!$AY$33,E92,0, $C$2-E92,1),0)+E92),"")) -> 1690 | F93: =IFERROR(OFFSET(CalculationsAndCharts!$B$32, E93,0,1,1),"") -> 2008-04-25 | G93: =IFERROR(OFFSET(CalculationsAndCharts!$D$32, E93,0,1,1),"") -> 15.04 | H93: 0.88 | I93: 2.79
A94: 51 | B94: =IFERROR(MATCH(TRUE,OFFSET(CalculationsAndCharts!$AW$33,B93,0, $C$2-B93,1),0)+B93,"") -> 1730 | C94: =IFERROR(OFFSET(CalculationsAndCharts!$B$32, B94,0,1,1),"") -> 2008-02-28 | D94: =IFERROR(OFFSET(CalculationsAndCharts!$D$32, B94,0,1,1),"") -> 14 | E94: =IF(B94="","",IFERROR((MATCH(TRUE,OFFSET(CalculationsAndCharts!$AY$33,E93,0, $C$2-E93,1),0)+E93),"")) -> 1722 | F94: =IFERROR(OFFSET(CalculationsAndCharts!$B$32, E94,0,1,1),"") -> 2008-03-11 | G94: =IFERROR(OFFSET(CalculationsAndCharts!$D$32, E94,0,1,1),"") -> 13.85 | H94: -0.15 | I94: 1.91
A95: 50 | B95: =IFERROR(MATCH(TRUE,OFFSET(CalculationsAndCharts!$AW$33,B94,0, $C$2-B94,1),0)+B94,"") -> 1738 | C95: =IFERROR(OFFSET(CalculationsAndCharts!$B$32, B95,0,1,1),"") -> 2008-02-15 | D95: =IFERROR(OFFSET(CalculationsAndCharts!$D$32, B95,0,1,1),"") -> 14.68 | E95: =IF(B95="","",IFERROR((MATCH(TRUE,OFFSET(CalculationsAndCharts!$AY$33,E94,0, $C$2-E94,1),0)+E94),"")) -> 1734 | F95: =IFERROR(OFFSET(CalculationsAndCharts!$B$32, E95,0,1,1),"") -> 2008-02-22 | G95: =IFERROR(OFFSET(CalculationsAndCharts!$D$32, E95,0,1,1),"") -> 14.15 | H95: -0.53 | I95: 2.06
A96: 49 | B96: =IFERROR(MATCH(TRUE,OFFSET(CalculationsAndCharts!$AW$33,B95,0, $C$2-B95,1),0)+B95,"") -> 1776 | C96: =IFERROR(OFFSET(CalculationsAndCharts!$B$32, B96,0,1,1),"") -> 2007-12-20 | D96: =IFERROR(OFFSET(CalculationsAndCharts!$D$32, B96,0,1,1),"") -> 14.43 | E96: =IF(B96="","",IFERROR((MATCH(TRUE,OFFSET(CalculationsAndCharts!$AY$33,E95,0, $C$2-E95,1),0)+E95),"")) -> 1768 | F96: =IFERROR(OFFSET(CalculationsAndCharts!$B$32, E96,0,1,1),"") -> 2008-01-03 | G96: =IFERROR(OFFSET(CalculationsAndCharts!$D$32, E96,0,1,1),"") -> 13.68 | H96: -0.75 | I96: 2.59
A97: 48 | B97: =IFERROR(MATCH(TRUE,OFFSET(CalculationsAndCharts!$AW$33,B96,0, $C$2-B96,1),0)+B96,"") -> 1805 | C97: =IFERROR(OFFSET(CalculationsAndCharts!$B$32, B97,0,1,1),"") -> 2007-11-08 | D97: =IFERROR(OFFSET(CalculationsAndCharts!$D$32, B97,0,1,1),"") -> 13.46 | E97: =IF(B97="","",IFERROR((MATCH(TRUE,OFFSET(CalculationsAndCharts!$AY$33,E96,0, $C$2-E96,1),0)+E96),"")) -> 1798 | F97: =IFERROR(OFFSET(CalculationsAndCharts!$B$32, E97,0,1,1),"") -> 2007-11-19 | G97: =IFERROR(OFFSET(CalculationsAndCharts!$D$32, E97,0,1,1),"") -> 13.12 | H97: -0.34 | I97: 3.34
A98: 47 | B98: =IFERROR(MATCH(TRUE,OFFSET(CalculationsAndCharts!$AW$33,B97,0, $C$2-B97,1),0)+B97,"") -> 1822 | C98: =IFERROR(OFFSET(CalculationsAndCharts!$B$32, B98,0,1,1),"") -> 2007-10-16 | D98: =IFERROR(OFFSET(CalculationsAndCharts!$D$32, B98,0,1,1),"") -> 14.27 | E98: =IF(B98="","",IFERROR((MATCH(TRUE,OFFSET(CalculationsAndCharts!$AY$33,E97,0, $C$2-E97,1),0)+E97),"")) -> 1819 | F98: =IFERROR(OFFSET(CalculationsAndCharts!$B$32, E98,0,1,1),"") -> 2007-10-19 | G98: =IFERROR(OFFSET(CalculationsAndCharts!$D$32, E98,0,1,1),"") -> 13.76 | H98: -0.51 | I98: 3.68
A99: 46 | B99: =IFERROR(MATCH(TRUE,OFFSET(CalculationsAndCharts!$AW$33,B98,0, $C$2-B98,1),0)+B98,"") -> 1834 | C99: =IFERROR(OFFSET(CalculationsAndCharts!$B$32, B99,0,1,1),"") -> 2007-09-28 | D99: =IFERROR(OFFSET(CalculationsAndCharts!$D$32, B99,0,1,1),"") -> 14.25 | E99: =IF(B99="","",IFERROR((MATCH(TRUE,OFFSET(CalculationsAndCharts!$AY$33,E98,0, $C$2-E98,1),0)+E98),"")) -> 1825 | F99: =IFERROR(OFFSET(CalculationsAndCharts!$B$32, E99,0,1,1),"") -> 2007-10-11 | G99: =IFERROR(OFFSET(CalculationsAndCharts!$D$32, E99,0,1,1),"") -> 14.94 | H99: 0.69 | I99: 4.19
A100: 45 | B100: =IFERROR(MATCH(TRUE,OFFSET(CalculationsAndCharts!$AW$33,B99,0, $C$2-B99,1),0)+B99,"") -> 1845 | C100: =IFERROR(OFFSET(CalculationsAndCharts!$B$32, B100,0,1,1),"") -> 2007-09-13 | D100: =IFERROR(OFFSET(CalculationsAndCharts!$D$32, B100,0,1,1),"") -> 14.6 | E100: =IF(B100="","",IFERROR((MATCH(TRUE,OFFSET(CalculationsAndCharts!$AY$33,E99,0, $C$2-E99,1),0)+E99),"")) -> 1836 | F100: =IFERROR(OFFSET(CalculationsAndCharts!$B$32, E100,0,1,1),"") -> 2007-09-26 | G100: =IFERROR(OFFSET(CalculationsAndCharts!$D$32, E100,0,1,1),"") -> 14.4 | H100: -0.2 | I100: 3.5
A101: 44 | B101: =IFERROR(MATCH(TRUE,OFFSET(CalculationsAndCharts!$AW$33,B100,0, $C$2-B100,1),0)+B100,"") -> 1855 | C101: =IFERROR(OFFSET(CalculationsAndCharts!$B$32, B101,0,1,1),"") -> 2007-08-29 | D101: =IFERROR(OFFSET(CalculationsAndCharts!$D$32, B101,0,1,1),"") -> 14.87 | E101: =IF(B101="","",IFERROR((MATCH(TRUE,OFFSET(CalculationsAndCharts!$AY$33,E100,0, $C$2-E100,1),0)+E100),"")) -> 1846 | F101: =IFERROR(OFFSET(CalculationsAndCharts!$B$32, E101,0,1,1),"") -> 2007-09-12 | G101: =IFERROR(OFFSET(CalculationsAndCharts!$D$32, E101,0,1,1),"") -> 14.68 | H101: -0.19 | I101: 3.7
A102: 43 | B102: =IFERROR(MATCH(TRUE,OFFSET(CalculationsAndCharts!$AW$33,B101,0, $C$2-B101,1),0)+B101,"") -> 1882 | C102: =IFERROR(OFFSET(CalculationsAndCharts!$B$32, B102,0,1,1),"") -> 2007-07-23 | D102: =IFERROR(OFFSET(CalculationsAndCharts!$D$32, B102,0,1,1),"") -> 15.95 | E102: =IF(B102="","",IFERROR((MATCH(TRUE,OFFSET(CalculationsAndCharts!$AY$33,E101,0, $C$2-E101,1),0)+E101),"")) -> 1881 | F102: =IFERROR(OFFSET(CalculationsAndCharts!$B$32, E102,0,1,1),"") -> 2007-07-24 | G102: =IFERROR(OFFSET(CalculationsAndCharts!$D$32, E102,0,1,1),"") -> 15.12 | H102: -0.83 | I102: 3.89
A103: 42 | B103: =IFERROR(MATCH(TRUE,OFFSET(CalculationsAndCharts!$AW$33,B102,0, $C$2-B102,1),0)+B102,"") -> 1914 | C103: =IFERROR(OFFSET(CalculationsAndCharts!$B$32, B103,0,1,1),"") -> 2007-06-06 | D103: =IFERROR(OFFSET(CalculationsAndCharts!$D$32, B103,0,1,1),"") -> 16.4 | E103: =IF(B103="","",IFERROR((MATCH(TRUE,OFFSET(CalculationsAndCharts!$AY$33,E102,0, $C$2-E102,1),0)+E102),"")) -> 1911 | F103: =IFERROR(OFFSET(CalculationsAndCharts!$B$32, E103,0,1,1),"") -> 2007-06-11 | G103: =IFERROR(OFFSET(CalculationsAndCharts!$D$32, E103,0,1,1),"") -> 16.03 | H103: -0.37 | I103: 4.72
A104: 41 | B104: =IFERROR(MATCH(TRUE,OFFSET(CalculationsAndCharts!$AW$33,B103,0, $C$2-B103,1),0)+B103,"") -> 1931 | C104: =IFERROR(OFFSET(CalculationsAndCharts!$B$32, B104,0,1,1),"") -> 2007-05-11 | D104: =IFERROR(OFFSET(CalculationsAndCharts!$D$32, B104,0,1,1),"") -> 17.11 | E104: =IF(B104="","",IFERROR((MATCH(TRUE,OFFSET(CalculationsAndCharts!$AY$33,E103,0, $C$2-E103,1),0)+E103),"")) -> 1923 | F104: =IFERROR(OFFSET(CalculationsAndCharts!$B$32, E104,0,1,1),"") -> 2007-05-23 | G104: =IFERROR(OFFSET(CalculationsAndCharts!$D$32, E104,0,1,1),"") -> 17.02 | H104: -0.09 | I104: 5.09
A105: 40 | B105: =IFERROR(MATCH(TRUE,OFFSET(CalculationsAndCharts!$AW$33,B104,0, $C$2-B104,1),0)+B104,"") -> 1960 | C105: =IFERROR(OFFSET(CalculationsAndCharts!$B$32, B105,0,1,1),"") -> 2007-03-30 | D105: =IFERROR(OFFSET(CalculationsAndCharts!$D$32, B105,0,1,1),"") -> 15.97 | E105: =IF(B105="","",IFERROR((MATCH(TRUE,OFFSET(CalculationsAndCharts!$AY$33,E104,0, $C$2-E104,1),0)+E104),"")) -> 1951 | F105: =IFERROR(OFFSET(CalculationsAndCharts!$B$32, E105,0,1,1),"") -> 2007-04-13 | G105: =IFERROR(OFFSET(CalculationsAndCharts!$D$32, E105,0,1,1),"") -> 16.4 | H105: 0.43 | I105: 5.18
A106: 39 | B106: =IFERROR(MATCH(TRUE,OFFSET(CalculationsAndCharts!$AW$33,B105,0, $C$2-B105,1),0)+B105,"") -> 1982 | C106: =IFERROR(OFFSET(CalculationsAndCharts!$B$32, B106,0,1,1),"") -> 2007-02-28 | D106: =IFERROR(OFFSET(CalculationsAndCharts!$D$32, B106,0,1,1),"") -> 16.45 | E106: =IF(B106="","",IFERROR((MATCH(TRUE,OFFSET(CalculationsAndCharts!$AY$33,E105,0, $C$2-E105,1),0)+E105),"")) -> 1980 | F106: =IFERROR(OFFSET(CalculationsAndCharts!$B$32, E106,0,1,1),"") -> 2007-03-02 | G106: =IFERROR(OFFSET(CalculationsAndCharts!$D$32, E106,0,1,1),"") -> 15.95 | H106: -0.5 | I106: 4.75
A107: 38 | B107: =IFERROR(MATCH(TRUE,OFFSET(CalculationsAndCharts!$AW$33,B106,0, $C$2-B106,1),0)+B106,"") -> 2020 | C107: =IFERROR(OFFSET(CalculationsAndCharts!$B$32, B107,0,1,1),"") -> 2007-01-03 | D107: =IFERROR(OFFSET(CalculationsAndCharts!$D$32, B107,0,1,1),"") -> 15.24 | E107: =IF(B107="","",IFERROR((MATCH(TRUE,OFFSET(CalculationsAndCharts!$AY$33,E106,0, $C$2-E106,1),0)+E106),"")) -> 2011 | F107: =IFERROR(OFFSET(CalculationsAndCharts!$B$32, E107,0,1,1),"") -> 2007-01-17 | G107: =IFERROR(OFFSET(CalculationsAndCharts!$D$32, E107,0,1,1),"") -> 16.25 | H107: 1.01 | I107: 5.25
A108: 37 | B108: =IFERROR(MATCH(TRUE,OFFSET(CalculationsAndCharts!$AW$33,B107,0, $C$2-B107,1),0)+B107,"") -> 2031 | C108: =IFERROR(OFFSET(CalculationsAndCharts!$B$32, B108,0,1,1),"") -> 2006-12-14 | D108: =IFERROR(OFFSET(CalculationsAndCharts!$D$32, B108,0,1,1),"") -> 15.2 | E108: =IF(B108="","",IFERROR((MATCH(TRUE,OFFSET(CalculationsAndCharts!$AY$33,E107,0, $C$2-E107,1),0)+E107),"")) -> 2022 | F108: =IFERROR(OFFSET(CalculationsAndCharts!$B$32, E108,0,1,1),"") -> 2006-12-28 | G108: =IFERROR(OFFSET(CalculationsAndCharts!$D$32, E108,0,1,1),"") -> 15.35 | H108: 0.15 | I108: 4.24
A109: 36 | B109: =IFERROR(MATCH(TRUE,OFFSET(CalculationsAndCharts!$AW$33,B108,0, $C$2-B108,1),0)+B108,"") -> 2041 | C109: =IFERROR(OFFSET(CalculationsAndCharts!$B$32, B109,0,1,1),"") -> 2006-11-30 | D109: =IFERROR(OFFSET(CalculationsAndCharts!$D$32, B109,0,1,1),"") -> 15.53 | E109: =IF(B109="","",IFERROR((MATCH(TRUE,OFFSET(CalculationsAndCharts!$AY$33,E108,0, $C$2-E108,1),0)+E108),"")) -> 2037 | F109: =IFERROR(OFFSET(CalculationsAndCharts!$B$32, E109,0,1,1),"") -> 2006-12-06 | G109: =IFERROR(OFFSET(CalculationsAndCharts!$D$32, E109,0,1,1),"") -> 15.11 | H109: -0.42 | I109: 4.09
A110: 35 | B110: =IFERROR(MATCH(TRUE,OFFSET(CalculationsAndCharts!$AW$33,B109,0, $C$2-B109,1),0)+B109,"") -> 2060 | C110: =IFERROR(OFFSET(CalculationsAndCharts!$B$32, B110,0,1,1),"") -> 2006-11-02 | D110: =IFERROR(OFFSET(CalculationsAndCharts!$D$32, B110,0,1,1),"") -> 15.9 | E110: =IF(B110="","",IFERROR((MATCH(TRUE,OFFSET(CalculationsAndCharts!$AY$33,E109,0, $C$2-E109,1),0)+E109),"")) -> 2051 | F110: =IFERROR(OFFSET(CalculationsAndCharts!$B$32, E110,0,1,1),"") -> 2006-11-15 | G110: =IFERROR(OFFSET(CalculationsAndCharts!$D$32, E110,0,1,1),"") -> 16.25 | H110: 0.35 | I110: 4.51
A111: 34 | B111: =IFERROR(MATCH(TRUE,OFFSET(CalculationsAndCharts!$AW$33,B110,0, $C$2-B110,1),0)+B110,"") -> 2082 | C111: =IFERROR(OFFSET(CalculationsAndCharts!$B$32, B111,0,1,1),"") -> 2006-10-03 | D111: =IFERROR(OFFSET(CalculationsAndCharts!$D$32, B111,0,1,1),"") -> 15.27 | E111: =IF(B111="","",IFERROR((MATCH(TRUE,OFFSET(CalculationsAndCharts!$AY$33,E110,0, $C$2-E110,1),0)+E110),"")) -> 2073 | F111: =IFERROR(OFFSET(CalculationsAndCharts!$B$32, E111,0,1,1),"") -> 2006-10-16 | G111: =IFERROR(OFFSET(CalculationsAndCharts!$D$32, E111,0,1,1),"") -> 17.4 | H111: 2.13 | I111: 4.16
A112: 33 | B112: =IFERROR(MATCH(TRUE,OFFSET(CalculationsAndCharts!$AW$33,B111,0, $C$2-B111,1),0)+B111,"") -> 2100 | C112: =IFERROR(OFFSET(CalculationsAndCharts!$B$32, B112,0,1,1),"") -> 2006-09-07 | D112: =IFERROR(OFFSET(CalculationsAndCharts!$D$32, B112,0,1,1),"") -> 15.18 | E112: =IF(B112="","",IFERROR((MATCH(TRUE,OFFSET(CalculationsAndCharts!$AY$33,E111,0, $C$2-E111,1),0)+E111),"")) -> 2091 | F112: =IFERROR(OFFSET(CalculationsAndCharts!$B$32, E112,0,1,1),"") -> 2006-09-20 | G112: =IFERROR(OFFSET(CalculationsAndCharts!$D$32, E112,0,1,1),"") -> 15.99 | H112: 0.81 | I112: 2.03
A113: 32 | B113: =IFERROR(MATCH(TRUE,OFFSET(CalculationsAndCharts!$AW$33,B112,0, $C$2-B112,1),0)+B112,"") -> 2121 | C113: =IFERROR(OFFSET(CalculationsAndCharts!$B$32, B113,0,1,1),"") -> 2006-08-08 | D113: =IFERROR(OFFSET(CalculationsAndCharts!$D$32, B113,0,1,1),"") -> 14.72 | E113: =IF(B113="","",IFERROR((MATCH(TRUE,OFFSET(CalculationsAndCharts!$AY$33,E112,0, $C$2-E112,1),0)+E112),"")) -> 2119 | F113: =IFERROR(OFFSET(CalculationsAndCharts!$B$32, E113,0,1,1),"") -> 2006-08-10 | G113: =IFERROR(OFFSET(CalculationsAndCharts!$D$32, E113,0,1,1),"") -> 14.2 | H113: -0.52 | I113: 1.22
A114: 31 | B114: =IFERROR(MATCH(TRUE,OFFSET(CalculationsAndCharts!$AW$33,B113,0, $C$2-B113,1),0)+B113,"") -> 2129 | C114: =IFERROR(OFFSET(CalculationsAndCharts!$B$32, B114,0,1,1),"") -> 2006-07-27 | D114: =IFERROR(OFFSET(CalculationsAndCharts!$D$32, B114,0,1,1),"") -> 15.2 | E114: =IF(B114="","",IFERROR((MATCH(TRUE,OFFSET(CalculationsAndCharts!$AY$33,E113,0, $C$2-E113,1),0)+E113),"")) -> 2125 | F114: =IFERROR(OFFSET(CalculationsAndCharts!$B$32, E114,0,1,1),"") -> 2006-08-02 | G114: =IFERROR(OFFSET(CalculationsAndCharts!$D$32, E114,0,1,1),"") -> 15.21 | H114: 0.01 | I114: 1.74
A115: 30 | B115: =IFERROR(MATCH(TRUE,OFFSET(CalculationsAndCharts!$AW$33,B114,0, $C$2-B114,1),0)+B114,"") -> 2138 | C115: =IFERROR(OFFSET(CalculationsAndCharts!$B$32, B115,0,1,1),"") -> 2006-07-14 | D115: =IFERROR(OFFSET(CalculationsAndCharts!$D$32, B115,0,1,1),"") -> 16.75 | E115: =IF(B115="","",IFERROR((MATCH(TRUE,OFFSET(CalculationsAndCharts!$AY$33,E114,0, $C$2-E114,1),0)+E114),"")) -> 2137 | F115: =IFERROR(OFFSET(CalculationsAndCharts!$B$32, E115,0,1,1),"") -> 2006-07-17 | G115: =IFERROR(OFFSET(CalculationsAndCharts!$D$32, E115,0,1,1),"") -> 16.5 | H115: -0.25 | I115: 1.73
A116: 29 | B116: =IFERROR(MATCH(TRUE,OFFSET(CalculationsAndCharts!$AW$33,B115,0, $C$2-B115,1),0)+B115,"") -> 2159 | C116: =IFERROR(OFFSET(CalculationsAndCharts!$B$32, B116,0,1,1),"") -> 2006-06-14 | D116: =IFERROR(OFFSET(CalculationsAndCharts!$D$32, B116,0,1,1),"") -> 16.46 | E116: =IF(B116="","",IFERROR((MATCH(TRUE,OFFSET(CalculationsAndCharts!$AY$33,E115,0, $C$2-E115,1),0)+E115),"")) -> 2150 | F116: =IFERROR(OFFSET(CalculationsAndCharts!$B$32, E116,0,1,1),"") -> 2006-06-27 | G116: =IFERROR(OFFSET(CalculationsAndCharts!$D$32, E116,0,1,1),"") -> 17.45 | H116: 0.99 | I116: 1.98
A117: 28 | B117: =IFERROR(MATCH(TRUE,OFFSET(CalculationsAndCharts!$AW$33,B116,0, $C$2-B116,1),0)+B116,"") -> 2165 | C117: =IFERROR(OFFSET(CalculationsAndCharts!$B$32, B117,0,1,1),"") -> 2006-06-06 | D117: =IFERROR(OFFSET(CalculationsAndCharts!$D$32, B117,0,1,1),"") -> 17.04 | E117: =IF(B117="","",IFERROR((MATCH(TRUE,OFFSET(CalculationsAndCharts!$AY$33,E116,0, $C$2-E116,1),0)+E116),"")) -> 2164 | F117: =IFERROR(OFFSET(CalculationsAndCharts!$B$32, E117,0,1,1),"") -> 2006-06-07 | G117: =IFERROR(OFFSET(CalculationsAndCharts!$D$32, E117,0,1,1),"") -> 17.2 | H117: 0.16 | I117: 0.99
A118: 27 | B118: =IFERROR(MATCH(TRUE,OFFSET(CalculationsAndCharts!$AW$33,B117,0, $C$2-B117,1),0)+B117,"") -> 2180 | C118: =IFERROR(OFFSET(CalculationsAndCharts!$B$32, B118,0,1,1),"") -> 2006-05-15 | D118: =IFERROR(OFFSET(CalculationsAndCharts!$D$32, B118,0,1,1),"") -> 23.7 | E118: =IF(B118="","",IFERROR((MATCH(TRUE,OFFSET(CalculationsAndCharts!$AY$33,E117,0, $C$2-E117,1),0)+E117),"")) -> 2178 | F118: =IFERROR(OFFSET(CalculationsAndCharts!$B$32, E118,0,1,1),"") -> 2006-05-17 | G118: =IFERROR(OFFSET(CalculationsAndCharts!$D$32, E118,0,1,1),"") -> 17.18 | H118: -6.52 | I118: 0.83
A119: 26 | B119: =IFERROR(MATCH(TRUE,OFFSET(CalculationsAndCharts!$AW$33,B118,0, $C$2-B118,1),0)+B118,"") -> 2202 | C119: =IFERROR(OFFSET(CalculationsAndCharts!$B$32, B119,0,1,1),"") -> 2006-04-12 | D119: =IFERROR(OFFSET(CalculationsAndCharts!$D$32, B119,0,1,1),"") -> 21.19 | E119: =IF(B119="","",IFERROR((MATCH(TRUE,OFFSET(CalculationsAndCharts!$AY$33,E118,0, $C$2-E118,1),0)+E118),"")) -> 2193 | F119: =IFERROR(OFFSET(CalculationsAndCharts!$B$32, E119,0,1,1),"") -> 2006-04-26 | G119: =IFERROR(OFFSET(CalculationsAndCharts!$D$32, E119,0,1,1),"") -> 24.69 | H119: 3.5 | I119: 7.35
A120: 25 | B120: =IFERROR(MATCH(TRUE,OFFSET(CalculationsAndCharts!$AW$33,B119,0, $C$2-B119,1),0)+B119,"") -> 2214 | C120: =IFERROR(OFFSET(CalculationsAndCharts!$B$32, B120,0,1,1),"") -> 2006-03-27 | D120: =IFERROR(OFFSET(CalculationsAndCharts!$D$32, B120,0,1,1),"") -> 21.9 | E120: =IF(B120="","",IFERROR((MATCH(TRUE,OFFSET(CalculationsAndCharts!$AY$33,E119,0, $C$2-E119,1),0)+E119),"")) -> 2213 | F120: =IFERROR(OFFSET(CalculationsAndCharts!$B$32, E120,0,1,1),"") -> 2006-03-28 | G120: =IFERROR(OFFSET(CalculationsAndCharts!$D$32, E120,0,1,1),"") -> 21.43 | H120: -0.47 | I120: 3.85
A121: 24 | B121: =IFERROR(MATCH(TRUE,OFFSET(CalculationsAndCharts!$AW$33,B120,0, $C$2-B120,1),0)+B120,"") -> 2232 | C121: =IFERROR(OFFSET(CalculationsAndCharts!$B$32, B121,0,1,1),"") -> 2006-03-01 | D121: =IFERROR(OFFSET(CalculationsAndCharts!$D$32, B121,0,1,1),"") -> 23.13 | E121: =IF(B121="","",IFERROR((MATCH(TRUE,OFFSET(CalculationsAndCharts!$AY$33,E120,0, $C$2-E120,1),0)+E120),"")) -> 2228 | F121: =IFERROR(OFFSET(CalculationsAndCharts!$B$32, E121,0,1,1),"") -> 2006-03-07 | G121: =IFERROR(OFFSET(CalculationsAndCharts!$D$32, E121,0,1,1),"") -> 22.85 | H121: -0.28 | I121: 4.32
A122: 23 | B122: =IFERROR(MATCH(TRUE,OFFSET(CalculationsAndCharts!$AW$33,B121,0, $C$2-B121,1),0)+B121,"") -> 2260 | C122: =IFERROR(OFFSET(CalculationsAndCharts!$B$32, B122,0,1,1),"") -> 2006-01-19 | D122: =IFERROR(OFFSET(CalculationsAndCharts!$D$32, B122,0,1,1),"") -> 20.55 | E122: =IF(B122="","",IFERROR((MATCH(TRUE,OFFSET(CalculationsAndCharts!$AY$33,E121,0, $C$2-E121,1),0)+E121),"")) -> 2251 | F122: =IFERROR(OFFSET(CalculationsAndCharts!$B$32, E122,0,1,1),"") -> 2006-02-01 | G122: =IFERROR(OFFSET(CalculationsAndCharts!$D$32, E122,0,1,1),"") -> 23.34 | H122: 2.79 | I122: 4.6
A123: 22 | B123: =IFERROR(MATCH(TRUE,OFFSET(CalculationsAndCharts!$AW$33,B122,0, $C$2-B122,1),0)+B122,"") -> 2287 | C123: =IFERROR(OFFSET(CalculationsAndCharts!$B$32, B123,0,1,1),"") -> 2005-12-08 | D123: =IFERROR(OFFSET(CalculationsAndCharts!$D$32, B123,0,1,1),"") -> 20.63 | E123: =IF(B123="","",IFERROR((MATCH(TRUE,OFFSET(CalculationsAndCharts!$AY$33,E122,0, $C$2-E122,1),0)+E122),"")) -> 2283 | F123: =IFERROR(OFFSET(CalculationsAndCharts!$B$32, E123,0,1,1),"") -> 2005-12-14 | G123: =IFERROR(OFFSET(CalculationsAndCharts!$D$32, E123,0,1,1),"") -> 20.01 | H123: -0.62 | I123: 1.81
A124: 21 | B124: =IFERROR(MATCH(TRUE,OFFSET(CalculationsAndCharts!$AW$33,B123,0, $C$2-B123,1),0)+B123,"") -> 2322 | C124: =IFERROR(OFFSET(CalculationsAndCharts!$B$32, B124,0,1,1),"") -> 2005-10-19 | D124: =IFERROR(OFFSET(CalculationsAndCharts!$D$32, B124,0,1,1),"") -> 19.51 | E124: =IF(B124="","",IFERROR((MATCH(TRUE,OFFSET(CalculationsAndCharts!$AY$33,E123,0, $C$2-E123,1),0)+E123),"")) -> 2315 | F124: =IFERROR(OFFSET(CalculationsAndCharts!$B$32, E124,0,1,1),"") -> 2005-10-28 | G124: =IFERROR(OFFSET(CalculationsAndCharts!$D$32, E124,0,1,1),"") -> 18.95 | H124: -0.56 | I124: 2.43
